Workbook

Sheet Présentation
B5: LA STRATÉGIE EN BREF
B24: RÉSULTATS MOYENS POUR L'ENSEMBLE DU QUÉBEC EN 2020

Sheet Évolution
DI2: =SUM('État & Plan d''action'!$S$6:$S$1113,'État & Plan d''action'!$U$6:$U$1113,'État & Plan d''action'!$AC$6:$AC$1113,'État & Plan d''action'!$AE$6:$AE$1113,'État & Plan d''action'!$AM$6:$AM$1113,'État & Plan d''action'!$AO$6:$AO$1113,'État & Plan d''action'!$AW$6:$AW$1113,'État & Plan d''action'!$AY$6:$AY$1113,'État & Plan d''action'!$BG$6:$BG$1113,'État & Plan d''action'!$BI$6:$BI$1113,'État & Plan d''action'!$BQ$6:$BQ$1113,'État & Plan d''action'!$BS$6:$BS$1113,'État & Plan d''action'!$CA$6:$CA$1113,'État & Plan d''action'!$CC$6:$CC$1113,'État & Plan d''action'!$CK$6:$CK$1113,'État & Plan d''action'!$CM$6:$CM$1113,'État & Plan d''action'!$CU$6:$CU$1113,'État & Plan d''action'!$CW$6:$CW$1113)/SUM('Données par municipalité'!$N$6:$N$1113) -> 1.160524319 | DJ2: =SUM('État & Plan d''action'!$S$6:$S$1113,'État & Plan d''action'!$U$6:$U$1113,'État & Plan d''action'!$AD$6:$AD$1113,'État & Plan d''action'!$AF$6:$AF$1113,'État & Plan d''action'!$AN$6:$AN$1113,'État & Plan d''action'!$AP$6:$AP$1113,'État & Plan d''action'!$AX$6:$AX$1113,'État & Plan d''action'!$AZ$6:$AZ$1113,'État & Plan d''action'!$BH$6:$BH$1113,'État & Plan d''action'!$BJ$6:$BJ$1113,'État & Plan d''action'!$BR$6:$BR$1113,'État & Plan d''action'!$BT$6:$BT$1113,'État & Plan d''action'!$CB$6:$CB$1113,'État & Plan d''action'!$CD$6:$CD$1113,'État & Plan d''action'!$CL$6:$CL$1113,'État & Plan d''action'!$CN$6:$CN$1113,'État & Plan d''action'!$CV$6:$CV$1113,'État & Plan d''action'!$CX$6:$CX$1113)/SUM('Données par municipalité'!$N$6:$N$1113) -> 1.152796059
C3: Choisir dans la liste déroulante une municipalité et défiler la page pour voir les indicateurs ou cliquer directement sur l'indicateur ou le tableau.
C4: Choisir une municipalité : | I4: Choisir un indicateur : | M4: Choisir un tableau : | BS4: 1 | BT4: =BS4+1 -> 2 | BU4: =BT4+1 -> 3 | BV4: 4 | BW4: 5 | BX4: 6 | BY4: 7 | BZ4: 8 | CA4: 9 | CB4: 10 | CC4: 11 | CD4: 12 | CE4: 13 | CF4: 14 | CG4: 15 | CH4: 16 | CI4: 17 | CJ4: 18 | CK4: 19 | CL4: 20 | CM4: 21 | CN4: 22 | CO4: 23 | CP4: 24 | CQ4: 25 | CR4: 26 | CS4: 27 | CT4: 28 | CU4: 29 | CV4: 30 | CW4: 31 | CX4: 32 | CY4: 33 | CZ4: 34 | DA4: 35 | DB4: 36 | DC4: 37 | DD4: 38 | DE4: 39 | DF4: 40 | DG4: 41 | DH4: 42 | DI4: 43 | DJ4: 44 | DK4: 45 | DL4: 46 | DM4: 47 | DN4: 48 | DO4: 49 | DP4: 50 | DQ4: 51 | DR4: 52 | DS4: 53 | DT4: 54 | DU4: 55 | DV4: 56 | DW4: 57 | DX4: 58 | DY4: 59 | DZ4: 60 | EA4: 61 | EB4: 62 | EC4: 63 | ED4: 64 | EE4: 65 | EF4: 66 | EG4: =EF4+1 -> 67 | EH4: 68 | EI4: 69 | EJ4: 70 | EK4: 71 | EL4: 72 | EM4: 73 | EN4: 74 | EO4: 75 | EP4: 76 | EQ4: 77 | ER4: 78 | ES4: 79 | ET4: 80 | EU4: 81 | EV4: 82 | EW4: 83 | EX4: 84 | EY4: 85 | EZ4: 86 | FA4: 87 | FB4: 88 | FC4: 89 | FD4: 90 | FE4: 91 | FF4: 92 | FG4: =FF4+1 -> 93 | FH4: =FG4+1 -> 94
C5: TOUT LE QUÉBEC | I5: → Quantité d'eau distribuée | M5: → Résultats par région administrative | BV5: Municipalité exemptées? | CF5: Bilan approuvé? | CP5: Quantité d'eau distribuée | CZ5: % équivalent du réseau ausculté | DK5: nombre de fuites réparées | DR5: Conduite | DS5: Public | DT5: Privé | DU5: Conduite | DV5: Public | DW5: Privé | DX5: Conduite | DY5: Public | DZ5: Privé | EA5: Consommation résidentielle | ED5: IFI | EG5: Conduite | EH5: Public | EI5: Privé | EJ5: Conduite | EK5: Public | EL5: Privé | EM5: Conduite | EN5: Public | EO5: Privé | EP5: Option 1 | EQ5: Option 2 | ER5: Option 3 | ES5: Option 4 | ET5: Option 5 | EU5: Option 1 | EV5: Option 2 | EW5: Option 3 | EX5: Option 4 | EY5: Option 5 | EZ5: Option 1 | FA5: Option 2 | FB5: Option 3 | FC5: Option 4 | FD5: Option 5 | FE5: RVD | FF5: RVD | FH5: Décret de population
I6: → Consommation résidentielle | M6: → Résultats par classe de population | BV6: 2011 | BW6: 2012 | BX6: 2013 | BY6: 2014 | BZ6: 2015 | CA6: 2016 | CB6: 2017 | CC6: 2018 | CD6: 2019 | CE6: 2020 | CF6: 2011 | CG6: 2012 | CH6: 2013 | CI6: 2014 | CJ6: 2015 | CK6: 2016 | CL6: 2017 | CM6: 2018 | CN6: 2019 | CO6: 2020 | CP6: 2011 | CQ6: 2012 | CR6: 2013 | CS6: 2014 | CT6: 2015 | CU6: 2016 | CV6: 2017 | CW6: 2018 | CX6: 2019 | CY6: 2020 | CZ6: 2011 | DA6: 2012 | DB6: 2013 | DC6: 2014 | DD6: 2015 | DE6: 2016 | DF6: 2017 | DG6: 2018 | DH6: 2019 | DI6: 2020 | DJ6: 2021 (prévu) | DK6: 2011 | DL6: 2012 | DM6: 2013 | DN6: 2014 | DO6: 2015 | DP6: 2016 | DQ6: 2017 | DR6: 2018 | DS6: 2018 | DT6: 2018 | DU6: 2019 | DV6: 2019 | DW6: 2019 | DX6: 2020 | DY6: 2020 | DZ6: 2020 | EA6: 2018 | EB6: 2019 | EC6: 2020 | ED6: 2018 | EE6: 2019 | EF6: 2020 | EG6: 2018 | EH6: 2018 | EI6: 2018 | EJ6: 2019 | EK6: 2019 | EL6: 2019 | EM6: 2020 | EN6: 2020 | EO6: 2020 | EP6: 2018 | EQ6: 2018 | ER6: 2018 | ES6: 2018 | ET6: 2018 | EU6: 2019 | EV6: 2019 | EW6: 2019 | EX6: 2019 | EY6: 2019 | EZ6: 2020 | FA6: 2020 | FB6: 2020 | FC6: 2020 | FD6: 2020 | FE6: 2018 | FF6: 2019 | FG6: 2020 | FH6: 2020
I7: → Indice de fuites dans les infrastructures | BS7: xxx | BT7: TOUT LE QUÉBEC | CP7: 620.2056373 | CQ7: 612.340892 | CR7: 596.0865808 | CS7: 589.1008665 | CT7: 573.3776759 | CU7: 550.8217594 | CV7: 529.5924 | CW7: 536.3201867 | CX7: =VLOOKUP(BS7,[5]Évolution!$BS$7:$CV$1115,30,FALSE) -> 524.5080028 | CY7: =SUM('Données par municipalité'!P6:P1113)*1000000/365/SUM('Données par municipalité'!M6:M1113) -> 520.6271874 | CZ7: Non disponible | DA7: 0.54 | DB7: 0.56 | DC7: 0.74 | DD7: 0.78 | DE7: 0.85 | DF7: 0.9019886698 | DG7: 0.8807061573 | DH7: 1.014154605 | DI7: =SUM('État & Plan d''action'!$S$6:$S$1113,'État & Plan d''action'!$U$6:$U$1113,'État & Plan d''action'!$AC$6:$AC$1113,'État & Plan d''action'!$AE$6:$AE$1113,'État & Plan d''action'!$AM$6:$AM$1113,'État & Plan d''action'!$AO$6:$AO$1113,'État & Plan d''action'!$AW$6:$AW$1113,'État & Plan d''action'!$AY$6:$AY$1113,'État & Plan d''action'!$BG$6:$BG$1113,'État & Plan d''action'!$BI$6:$BI$1113,'État & Plan d''action'!$BQ$6:$BQ$1113,'État & Plan d''action'!$BS$6:$BS$1113,'État & Plan d''action'!$CA$6:$CA$1113,'État & Plan d''action'!$CC$6:$CC$1113,'État & Plan d''action'!$CK$6:$CK$1113,'État & Plan d''action'!$CM$6:$CM$1113,'État & Plan d''action'!$CU$6:$CU$1113,'État & Plan d''action'!$CW$6:$CW$1113)/SUM('Données par municipalité'!$N$6:$N$1113) -> 1.160524319 | DJ7: =SUM('État & Plan d''action'!$S$6:$S$1113,'État & Plan d''action'!$U$6:$U$1113,'État & Plan d''action'!$AD$6:$AD$1113,'État & Plan d''action'!$AF$6:$AF$1113,'État & Plan d''action'!$AN$6:$AN$1113,'État & Plan d''action'!$AP$6:$AP$1113,'État & Plan d''action'!$AX$6:$AX$1113,'État & Plan d''action'!$AZ$6:$AZ$1113,'État & Plan d''action'!$BH$6:$BH$1113,'État & Plan d''action'!$BJ$6:$BJ$1113,'État & Plan d''action'!$BR$6:$BR$1113,'État & Plan d''action'!$BT$6:$BT$1113,'État & Plan d''action'!$CB$6:$CB$1113,'État & Plan d''action'!$CD$6:$CD$1113,'État & Plan d''action'!$CL$6:$CL$1113,'État & Plan d''action'!$CN$6:$CN$1113,'État & Plan d''action'!$CV$6:$CV$1113,'État & Plan d''action'!$CX$6:$CX$1113)/SUM('Données par municipalité'!$N$6:$N$1113) -> 1.152796059 | DK7: Non disponible | DL7: 9059 | DM7: 8852 | DN7: 9905 | DO7: 10143 | DP7: 8764 | DQ7: 8355 | DR7: 5694 | DS7: 2517 | DT7: 1275 | DU7: 5090 | DV7: 2667 | DW7: 1457 | DX7: =SUM(DX8:DX1115) -> 4468 | DY7: =SUM(DY8:DY1115) -> 2585 | DZ7: =SUM(DZ8:DZ1115) -> 1354 | EA7: 268.2675218 | EB7: 262.0375957 | EC7: =SUM('Données par municipalité'!Q6:Q1113)*1000000/365/SUM('Données par municipalité'!M6:M1113) -> 276.2706008 | ED7: 6.035062766 | EE7: 6.592263155 | EF7: =SUM('Données par municipalité'!R6:R1113)/SUM('Données par municipalité'!S6:S1113) -> 6.292197281 | EG7: 5.314423557 | EH7: 7.082782709 | EI7: 16.66258134 | EJ7: 4.562531176 | EK7: 8.038466783 | EL7: 16.58260614 | EM7: =SUMPRODUCT('État & Plan d''action'!DE6:DE1113,'État & Plan d''action'!DI6:DI1113)/SUM('État & Plan d''action'!DE6:DE1113) -> 5.001293828 | EN7: =SUMPRODUCT('État & Plan d''action'!DF6:DF1113,'État & Plan d''action'!DJ6:DJ1113)/SUM('État & Plan d''action'!DF6:DF1113) -> 8.708704062 | EO7: =SUMPRODUCT('État & Plan d''action'!DG6:DG1113,'État & Plan d''action'!DK6:DK1113)/SUM('État & Plan d''action'!DG6:DG1113) -> 16.47049001 | EP7: 2964.369 | EQ7: 30100.8408 | ER7: 4173.908 | ES7: 1559.364 | ET7: 3.5 | EU7: 2964.369 | EV7: 30100.8408 | EW7: 4173.908 | EX7: 1559.364 | EY7: 3.5 | EZ7: =SUM('État & Plan d''action'!Q6:Q1113,'État & Plan d''action'!AA6:AA1113,'État & Plan d''action'!AK6:AK1113,'État & Plan d''action'!AU6:AU1113,'État & Plan d''action'!BE6:BE1113,'État & Plan d''action'!BO6:BO1113,'État & Plan d''action'!BY6:BY1113,'État & Plan d''action'!CI6:CI1113,'État & Plan d''action'!CS6:CS1113) -> 3159.545 | FA7: =SUM('État & Plan d''action'!S6:S1113,'État & Plan d''action'!AC6:AC1113,'État & Plan d''action'!AM6:AM1113,'État & Plan d''action'!AW6:AW1113,'État & Plan d''action'!BG6:BG1113,'État & Plan d''action'!BQ6:BQ1113,'État & Plan d''action'!CA6:CA1113,'État & Plan d''action'!CK6:CK1113,'État & Plan d''action'!CU6:CU1113) -> 35970.78872 | FB7: =SUM('État & Plan d''action'!U6:U1113,'État & Plan d''action'!AE6:AE1113,'État & Plan d''action'!AO6:AO1113,'État & Plan d''action'!AY6:AY1113,'État & Plan d''action'!BI6:BI1113,'État & Plan d''action'!BS6:BS1113,'État & Plan d''action'!CC6:CC1113,'État & Plan d''action'!CK6:CK1113,'État & Plan d''action'!CW6:CW1113) -> 10187.00037 | FC7: =SUM('État & Plan d''action'!W6:W1113,'État & Plan d''action'!AG6:AG1113,'État & Plan d''action'!AQ6:AQ1113,'État & Plan d''action'!BA6:BA1113,'État & Plan d''action'!BK6:BK1113,'État & Plan d''action'!BU6:BU1113,'État & Plan d''action'!CE6:CE1113,'État & Plan d''action'!CM6:CM1113,'État & Plan d''action'!CY6:CY1113) -> 903.31 | FD7: =SUM('État & Plan d''action'!Y6:Y1113,'État & Plan d''action'!AI6:AI1113,'État & Plan d''action'!AS6:AS1113,'État & Plan d''action'!BC6:BC1113,'État & Plan d''action'!BM6:BM1113,'État & Plan d''action'!BW6:BW1113,'État & Plan d''action'!CG6:CG1113,'État & Plan d''action'!CO6:CO1113,'État & Plan d''action'!DA6:DA1113) -> 59.9 | FE7: 55.81464743 | FF7: 57.72349908 | FG7: 58.58576664
I8: → Contrôle actif des pertes d'eau | BS8: 46005 | BT8: ABERCORN | BU8: 5 | BV8: non | BW8: non | BX8: non | BY8: non | BZ8: non | CA8: non | CB8: non | CC8: non | CD8: non | CE8: non | CF8: oui | CG8: oui | CH8: oui | CI8: oui | CJ8: non | CK8: non | CL8: non | CM8: non | CN8: non | CO8: =IF(VLOOKUP(BS8,'Données par municipalité'!$B$6:$E$1113,4,FALSE)="","non","oui") -> non | CP8: 330.1897977 | CQ8: 339.4282231 | CR8: 278.0088973 | CS8: 361.1506685 | CX8: =VLOOKUP(BS8,[5]Évolution!$BS$7:$CV$1115,30,FALSE) ->  | CY8: =IF(VLOOKUP(BS8,'Données par municipalité'!$B$6:$F$1113,4,FALSE)="","",VLOOKUP(BS8,'Données par municipalité'!$B$6:$F$1113,4,FALSE)) ->  | CZ8: Non disponible | DA8: 0 | DB8: 0 | DC8: 0 | DI8: =IFERROR(SUM(VLOOKUP($BS8,'État & Plan d''action'!$B$6:$DB$1113,18,FALSE),VLOOKUP($BS8,'État & Plan d''action'!$B$6:$DB$1113,20,FALSE),VLOOKUP($BS8,'État & Plan d''action'!$B$6:$DB$1113,28,FALSE),VLOOKUP($BS8,'État & Plan d''action'!$B$6:$DB$1113,30,FALSE),VLOOKUP($BS8,'État & Plan d''action'!$B$6:$DB$1113,38,FALSE),VLOOKUP($BS8,'État & Plan d''action'!$B$6:$DB$1113,40,FALSE),VLOOKUP($BS8,'État & Plan d''action'!$B$6:$DB$1113,48,FALSE),VLOOKUP($BS8,'État & Plan d''action'!$B$6:$DB$1113,50,FALSE),VLOOKUP($BS8,'État & Plan d''action'!$B$6:$DB$1113,58,FALSE),VLOOKUP($BS8,'État & Plan d''action'!$B$6:$DB$1113,60,FALSE),VLOOKUP($BS8,'État & Plan d''action'!$B$6:$DB$1113,68,FALSE),VLOOKUP($BS8,'État & Plan d''action'!$B$6:$DB$1113,70,FALSE),VLOOKUP($BS8,'État & Plan d''action'!$B$6:$DB$1113,78,FALSE),VLOOKUP($BS8,'État & Plan d''action'!$B$6:$DB$1113,80,FALSE),VLOOKUP($BS8,'État & Plan d''action'!$B$6:$DB$1113,88,FALSE),VLOOKUP($BS8,'État & Plan d''action'!$B$6:$DB$1113,90,FALSE),VLOOKUP($BS8,'État & Plan d''action'!$B$6:$DB$1113,98,FALSE),VLOOKUP($BS8,'État & Plan d''action'!$B$6:$DB$1113,100,FALSE))/(VLOOKUP($BS8,'Données par municipalité'!$B$4:$N$1113,13,FALSE)),"") ->  | DJ8: =IFERROR(SUM(VLOOKUP($BS8,'État & Plan d''action'!$B$6:$DB$1113,19,FALSE),VLOOKUP($BS8,'État & Plan d''action'!$B$6:$DB$1113,21,FALSE),VLOOKUP($BS8,'État & Plan d''action'!$B$6:$DB$1113,29,FALSE),VLOOKUP($BS8,'État & Plan d''action'!$B$6:$DB$1113,31,FALSE),VLOOKUP($BS8,'État & Plan d''action'!$B$6:$DB$1113,39,FALSE),VLOOKUP($BS8,'État & Plan d''action'!$B$6:$DB$1113,41,FALSE),VLOOKUP($BS8,'État & Plan d''action'!$B$6:$DB$1113,49,FALSE),VLOOKUP($BS8,'État & Plan d''action'!$B$6:$DB$1113,51,FALSE),VLOOKUP($BS8,'État & Plan d''action'!$B$6:$DB$1113,59,FALSE),VLOOKUP($BS8,'État & Plan d''action'!$B$6:$DB$1113,61,FALSE),VLOOKUP($BS8,'État & Plan d''action'!$B$6:$DB$1113,69,FALSE),VLOOKUP($BS8,'État & Plan d''action'!$B$6:$DB$1113,71,FALSE),VLOOKUP($BS8,'État & Plan d''action'!$B$6:$DB$1113,79,FALSE),VLOOKUP($BS8,'État & Plan d''action'!$B$6:$DB$1113,81,FALSE),VLOOKUP($BS8,'État & Plan d''action'!$B$6:$DB$1113,89,FALSE),VLOOKUP($BS8,'État & Plan d''action'!$B$6:$DB$1113,91,FALSE),VLOOKUP($BS8,'État & Plan d''action'!$B$6:$DB$1113,99,FALSE),VLOOKUP($BS8,'État & Plan d''action'!$B$6:$DB$1113,101,FALSE))/(VLOOKUP($BS8,'Données par municipalité'!$B$4:$N$1113,13,FALSE)),"") ->  | DK8: Non disponible | DL8: 0 | DM8: 0 | DN8: 2 | DO8: 0 | DX8: =IF(VLOOKUP($BS8,'État & Plan d''action'!$B$6:$DM$1113,108,FALSE)="","",VLOOKUP($BS8,'État & Plan d''action'!$B$6:$DM$1113,108,FALSE)) ->  | DY8: =IF(VLOOKUP($BS8,'État & Plan d''action'!$B$6:$DM$1113,109,FALSE)="","",VLOOKUP($BS8,'État & Plan d''action'!$B$6:$DM$1113,109,FALSE)) ->  | DZ8: =IF(VLOOKUP($BS8,'État & Plan d''action'!$B$6:$DM$1113,110,FALSE)="","",VLOOKUP($BS8,'État & Plan d''action'!$B$6:$DM$1113,110,FALSE)) ->  | EB8: =VLOOKUP(BS8,'[5]Données par municipalité'!$B$6:$F$1113,5,FALSE) ->  | EC8: =VLOOKUP($BS8,'Données par municipalité'!$B$6:$F$1113,5,FALSE) -> 0 | EF8: =IF(VLOOKUP(BS8,'Données par municipalité'!$B$6:$U$1113,7,FALSE)="","",VLOOKUP(BS8,'Données par municipalité'!$B$6:$U$1113,7,FALSE)) ->  | EM8: =VLOOKUP($BS8,'État & Plan d''action'!$B$6:$DK$1113,112,FALSE) -> 0 | EN8: =VLOOKUP($BS8,'État & Plan d''action'!$B$6:$DK$1113,113,FALSE) -> 0 | EO8: =VLOOKUP($BS8,'État & Plan d''action'!$B$6:$DK$1113,114,FALSE) -> 0 | EZ8: =IFERROR(SUM(VLOOKUP($BS8,'État & Plan d''action'!$B$6:$DB$1113,16,FALSE),VLOOKUP($BS8,'État & Plan d''action'!$B$6:$DB$1113,26,FALSE),VLOOKUP($BS8,'État & Plan d''action'!$B$6:$DB$1113,36,FALSE),VLOOKUP($BS8,'État & Plan d''action'!$B$6:$DB$1113,46,FALSE),VLOOKUP($BS8,'État & Plan d''action'!$B$6:$DB$1113,56,FALSE),VLOOKUP($BS8,'État & Plan d''action'!$B$6:$DB$1113,66,FALSE),VLOOKUP($BS8,'État & Plan d''action'!$B$6:$DB$1113,76,FALSE),VLOOKUP($BS8,'État & Plan d''action'!$B$6:$DB$1113,86,FALSE),VLOOKUP($BS8,'État & Plan d''action'!$B$6:$DB$1113,96,FALSE)),"") -> 0 | FA8: =IFERROR(SUM(VLOOKUP($BS8,'État & Plan d''action'!$B$6:$DB$1113,18,FALSE),VLOOKUP($BS8,'État & Plan d''action'!$B$6:$DB$1113,28,FALSE),VLOOKUP($BS8,'État & Plan d''action'!$B$6:$DB$1113,38,FALSE),VLOOKUP($BS8,'État & Plan d''action'!$B$6:$DB$1113,48,FALSE),VLOOKUP($BS8,'État & Plan d''action'!$B$6:$DB$1113,58,FALSE),VLOOKUP($BS8,'État & Plan d''action'!$B$6:$DB$1113,68,FALSE),VLOOKUP($BS8,'État & Plan d''action'!$B$6:$DB$1113,78,FALSE),VLOOKUP($BS8,'État & Plan d''action'!$B$6:$DB$1113,88,FALSE),VLOOKUP($BS8,'État & Plan d''action'!$B$6:$DB$1113,98,FALSE)),"") -> 0 | FB8: =IFERROR(SUM(VLOOKUP($BS8,'État & Plan d''action'!$B$6:$DB$1113,20,FALSE),VLOOKUP($BS8,'État & Plan d''action'!$B$6:$DB$1113,30,FALSE),VLOOKUP($BS8,'État & Plan d''action'!$B$6:$DB$1113,40,FALSE),VLOOKUP($BS8,'État & Plan d''action'!$B$6:$DB$1113,50,FALSE),VLOOKUP($BS8,'État & Plan d''action'!$B$6:$DB$1113,60,FALSE),VLOOKUP($BS8,'État & Plan d''action'!$B$6:$DB$1113,70,FALSE),VLOOKUP($BS8,'État & Plan d''action'!$B$6:$DB$1113,80,FALSE),VLOOKUP($BS8,'État & Plan d''action'!$B$6:$DB$1113,90,FALSE),VLOOKUP($BS8,'État & Plan d''action'!$B$6:$DB$1113,100,FALSE)),"") -> 0 | FC8: =IFERROR(SUM(VLOOKUP($BS8,'État & Plan d''action'!$B$6:$DB$1113,22,FALSE),VLOOKUP($BS8,'État & Plan d''action'!$B$6:$DB$1113,32,FALSE),VLOOKUP($BS8,'État & Plan d''action'!$B$6:$DB$1113,42,FALSE),VLOOKUP($BS8,'État & Plan d''action'!$B$6:$DB$1113,52,FALSE),VLOOKUP($BS8,'État & Plan d''action'!$B$6:$DB$1113,62,FALSE),VLOOKUP($BS8,'État & Plan d''action'!$B$6:$DB$1113,72,FALSE),VLOOKUP($BS8,'État & Plan d''action'!$B$6:$DB$1113,82,FALSE),VLOOKUP($BS8,'État & Plan d''action'!$B$6:$DB$1113,92,FALSE),VLOOKUP($BS8,'État & Plan d''action'!$B$6:$DB$1113,102,FALSE)),"") -> 0 | FD8: =IFERROR(SUM(VLOOKUP($BS8,'État & Plan d''action'!$B$6:$DB$1113,24,FALSE),VLOOKUP($BS8,'État & Plan d''action'!$B$6:$DB$1113,34,FALSE),VLOOKUP($BS8,'État & Plan d''action'!$B$6:$DB$1113,44,FALSE),VLOOKUP($BS8,'État & Plan d''action'!$B$6:$DB$1113,54,FALSE),VLOOKUP($BS8,'État & Plan d''action'!$B$6:$DB$1113,64,FALSE),VLOOKUP($BS8,'État & Plan d''action'!$B$6:$DB$1113,74,FALSE),VLOOKUP($BS8,'État & Plan d''action'!$B$6:$DB$1113,84,FALSE),VLOOKUP($BS8,'État & Plan d''action'!$B$6:$DB$1113,94,FALSE),VLOOKUP($BS8,'État & Plan d''action'!$B$6:$DB$1113,104,FALSE)),"") -> 0 | FH8: 359
I9: → Installation des compteurs d'eau | BS9: 48028 | BT9: ACTON VALE | BU9: 16 | BV9: non | BW9: non | BX9: non | BY9: non | BZ9: non | CA9: non | CB9: non | CC9: non | CD9: non | CE9: non | CF9: oui | CG9: oui | CH9: oui | CI9: oui | CJ9: oui | CK9: oui | CL9: oui | CM9: oui | CN9: oui | CO9: =IF(VLOOKUP(BS9,'Données par municipalité'!$B$6:$E$1113,4,FALSE)="","non","oui") -> oui | CP9: 897.2204945 | CQ9: 776.1723779 | CR9: 725.2448445 | CS9: 806.2090013 | CT9: 446.7434453 | CU9: 448.9974914 | CV9: 513.7650781 | CW9: 505 | CX9: =VLOOKUP(BS9,[5]Évolution!$BS$7:$CV$1115,30,FALSE) -> 458 | CY9: =IF(VLOOKUP(BS9,'Données par municipalité'!$B$6:$F$1113,4,FALSE)="","",VLOOKUP(BS9,'Données par municipalité'!$B$6:$F$1113,4,FALSE)) -> 430 | CZ9: Non disponible | DA9: 0 | DB9: 0 | DC9: 0 | DD9: 0 | DE9: 0.05 | DF9: 0.05 | DG9: 0.099909991 | DH9: 1 | DI9: =IFERROR(SUM(VLOOKUP($BS9,'État & Plan d''action'!$B$6:$DB$1113,18,FALSE),VLOOKUP($BS9,'État & Plan d''action'!$B$6:$DB$1113,20,FALSE),VLOOKUP($BS9,'État & Plan d''action'!$B$6:$DB$1113,28,FALSE),VLOOKUP($BS9,'État & Plan d''action'!$B$6:$DB$1113,30,FALSE),VLOOKUP($BS9,'État & Plan d''action'!$B$6:$DB$1113,38,FALSE),VLOOKUP($BS9,'État & Plan d''action'!$B$6:$DB$1113,40,FALSE),VLOOKUP($BS9,'État & Plan d''action'!$B$6:$DB$1113,48,FALSE),VLOOKUP($BS9,'État & Plan d''action'!$B$6:$DB$1113,50,FALSE),VLOOKUP($BS9,'État & Plan d''action'!$B$6:$DB$1113,58,FALSE),VLOOKUP($BS9,'État & Plan d''action'!$B$6:$DB$1113,60,FALSE),VLOOKUP($BS9,'État & Plan d''action'!$B$6:$DB$1113,68,FALSE),VLOOKUP($BS9,'État & Plan d''action'!$B$6:$DB$1113,70,FALSE),VLOOKUP($BS9,'État & Plan d''action'!$B$6:$DB$1113,78,FALSE),VLOOKUP($BS9,'État & Plan d''action'!$B$6:$DB$1113,80,FALSE),VLOOKUP($BS9,'État & Plan d''action'!$B$6:$DB$1113,88,FALSE),VLOOKUP($BS9,'État & Plan d''action'!$B$6:$DB$1113,90,FALSE),VLOOKUP($BS9,'État & Plan d''action'!$B$6:$DB$1113,98,FALSE),VLOOKUP($BS9,'État & Plan d''action'!$B$6:$DB$1113,100,FALSE))/(VLOOKUP($BS9,'Données par municipalité'!$B$4:$N$1113,13,FALSE)),"") -> 0 | DJ9: =IFERROR(SUM(VLOOKUP($BS9,'État & Plan d''action'!$B$6:$DB$1113,19,FALSE),VLOOKUP($BS9,'État & Plan d''action'!$B$6:$DB$1113,21,FALSE),VLOOKUP($BS9,'État & Plan d''action'!$B$6:$DB$1113,29,FALSE),VLOOKUP($BS9,'État & Plan d''action'!$B$6:$DB$1113,31,FALSE),VLOOKUP($BS9,'État & Plan d''action'!$B$6:$DB$1113,39,FALSE),VLOOKUP($BS9,'État & Plan d''action'!$B$6:$DB$1113,41,FALSE),VLOOKUP($BS9,'État & Plan d''action'!$B$6:$DB$1113,49,FALSE),VLOOKUP($BS9,'État & Plan d''action'!$B$6:$DB$1113,51,FALSE),VLOOKUP($BS9,'État & Plan d''action'!$B$6:$DB$1113,59,FALSE),VLOOKUP($BS9,'État & Plan d''action'!$B$6:$DB$1113,61,FALSE),VLOOKUP($BS9,'État & Plan d''action'!$B$6:$DB$1113,69,FALSE),VLOOKUP($BS9,'État & Plan d''action'!$B$6:$DB$1113,71,FALSE),VLOOKUP($BS9,'État & Plan d''action'!$B$6:$DB$1113,79,FALSE),VLOOKUP($BS9,'État & Plan d''action'!$B$6:$DB$1113,81,FALSE),VLOOKUP($BS9,'État & Plan d''action'!$B$6:$DB$1113,89,FALSE),VLOOKUP($BS9,'État & Plan d''action'!$B$6:$DB$1113,91,FALSE),VLOOKUP($BS9,'État & Plan d''action'!$B$6:$DB$1113,99,FALSE),VLOOKUP($BS9,'État & Plan d''action'!$B$6:$DB$1113,101,FALSE))/(VLOOKUP($BS9,'Données par municipalité'!$B$4:$N$1113,13,FALSE)),"") -> 0 | DK9: Non disponible | DL9: 5 | DM9: 8 | DN9: 12 | DO9: 11 | DP9: 7 | DQ9: 9 | DR9: 4 | DS9: 10 | DT9: 0 | DU9: 1 | DV9: 2 | DW9: 1 | DX9: =IF(VLOOKUP($BS9,'État & Plan d''action'!$B$6:$DM$1113,108,FALSE)="","",VLOOKUP($BS9,'État & Plan d''action'!$B$6:$DM$1113,108,FALSE)) -> 0 | DY9: =IF(VLOOKUP($BS9,'État & Plan d''action'!$B$6:$DM$1113,109,FALSE)="","",VLOOKUP($BS9,'État & Plan d''action'!$B$6:$DM$1113,109,FALSE)) -> 2 | DZ9: =IF(VLOOKUP($BS9,'État & Plan d''action'!$B$6:$DM$1113,110,FALSE)="","",VLOOKUP($BS9,'État & Plan d''action'!$B$6:$DM$1113,110,FALSE)) -> 1 | EA9: 237 | EB9: =VLOOKUP(BS9,'[5]Données par municipalité'!$B$6:$F$1113,5,FALSE) -> 233 | EC9: =VLOOKUP($BS9,'Données par municipalité'!$B$6:$F$1113,5,FALSE) -> 155 | ED9: 1.865414102 | EE9: 1.798818675 | EF9: =IF(VLOOKUP(BS9,'Données par municipalité'!$B$6:$U$1113,7,FALSE)="","",VLOOKUP(BS9,'Données par municipalité'!$B$6:$U$1113,7,FALSE)) -> 2.350779186 | EG9: 1 | EH9: 1 | EI9: 0 | EJ9: 1 | EK9: 1 | EL9: 3 | EM9: =VLOOKUP($BS9,'État & Plan d''action'!$B$6:$DK$1113,112,FALSE) -> S.O. | EN9: =VLOOKUP($BS9,'État & Plan d''action'!$B$6:$DK$1113,113,FALSE) -> 1 | EO9: =VLOOKUP($BS9,'État & Plan d''action'!$B$6:$DK$1113,114,FALSE) -> 2 | EP9: 0 | EQ9: 4.44 | ER9: 0 | ES9: 0 | ET9: 0 | EU9: 0 | EV9: 4.44 | EW9: 0 | EX9: 0 | EY9: 0 | EZ9: =IFERROR(SUM(VLOOKUP($BS9,'État & Plan d''action'!$B$6:$DB$1113,16,FALSE),VLOOKUP($BS9,'État & Plan d''action'!$B$6:$DB$1113,26,FALSE),VLOOKUP($BS9,'État & Plan d''action'!$B$6:$DB$1113,36,FALSE),VLOOKUP($BS9,'État & Plan d''action'!$B$6:$DB$1113,46,FALSE),VLOOKUP($BS9,'État & Plan d''action'!$B$6:$DB$1113,56,FALSE),VLOOKUP($BS9,'État & Plan d''action'!$B$6:$DB$1113,66,FALSE),VLOOKUP($BS9,'État & Plan d''action'!$B$6:$DB$1113,76,FALSE),VLOOKUP($BS9,'État & Plan d''action'!$B$6:$DB$1113,86,FALSE),VLOOKUP($BS9,'État & Plan d''action'!$B$6:$DB$1113,96,FALSE)),"") -> 0 | FA9: =IFERROR(SUM(VLOOKUP($BS9,'État & Plan d''action'!$B$6:$DB$1113,18,FALSE),VLOOKUP($BS9,'État & Plan d''action'!$B$6:$DB$1113,28,FALSE),VLOOKUP($BS9,'État & Plan d''action'!$B$6:$DB$1113,38,FALSE),VLOOKUP($BS9,'État & Plan d''action'!$B$6:$DB$1113,48,FALSE),VLOOKUP($BS9,'État & Plan d''action'!$B$6:$DB$1113,58,FALSE),VLOOKUP($BS9,'État & Plan d''action'!$B$6:$DB$1113,68,FALSE),VLOOKUP($BS9,'État & Plan d''action'!$B$6:$DB$1113,78,FALSE),VLOOKUP($BS9,'État & Plan d''action'!$B$6:$DB$1113,88,FALSE),VLOOKUP($BS9,'État & Plan d''action'!$B$6:$DB$1113,98,FALSE)),"") -> 0 | FB9: =IFERROR(SUM(VLOOKUP($BS9,'État & Plan d''action'!$B$6:$DB$1113,20,FALSE),VLOOKUP($BS9,'État & Plan d''action'!$B$6:$DB$1113,30,FALSE),VLOOKUP($BS9,'État & Plan d''action'!$B$6:$DB$1113,40,FALSE),VLOOKUP($BS9,'État & Plan d''action'!$B$6:$DB$1113,50,FALSE),VLOOKUP($BS9,'État & Plan d''action'!$B$6:$DB$1113,60,FALSE),VLOOKUP($BS9,'État & Plan d''action'!$B$6:$DB$1113,70,FALSE),VLOOKUP($BS9,'État & Plan d''action'!$B$6:$DB$1113,80,FALSE),VLOOKUP($BS9,'État & Plan d''action'!$B$6:$DB$1113,90,FALSE),VLOOKUP($BS9,'État & Plan d''action'!$B$6:$DB$1113,100,FALSE)),"") -> 0 | FC9: =IFERROR(SUM(VLOOKUP($BS9,'État & Plan d''action'!$B$6:$DB$1113,22,FALSE),VLOOKUP($BS9,'État & Plan d''action'!$B$6:$DB$1113,32,FALSE),VLOOKUP($BS9,'État & Plan d''action'!$B$6:$DB$1113,42,FALSE),VLOOKUP($BS9,'État & Plan d''action'!$B$6:$DB$1113,52,FALSE),VLOOKUP($BS9,'État & Plan d''action'!$B$6:$DB$1113,62,FALSE),VLOOKUP($BS9,'État & Plan d''action'!$B$6:$DB$1113,72,FALSE),VLOOKUP($BS9,'État & Plan d''action'!$B$6:$DB$1113,82,FALSE),VLOOKUP($BS9,'État & Plan d''action'!$B$6:$DB$1113,92,FALSE),VLOOKUP($BS9,'État & Plan d''action'!$B$6:$DB$1113,102,FALSE)),"") -> 0 | FD9: =IFERROR(SUM(VLOOKUP($BS9,'État & Plan d''action'!$B$6:$DB$1113,24,FALSE),VLOOKUP($BS9,'État & Plan d''action'!$B$6:$DB$1113,34,FALSE),VLOOKUP($BS9,'État & Plan d''action'!$B$6:$DB$1113,44,FALSE),VLOOKUP($BS9,'État & Plan d''action'!$B$6:$DB$1113,54,FALSE),VLOOKUP($BS9,'État & Plan d''action'!$B$6:$DB$1113,64,FALSE),VLOOKUP($BS9,'État & Plan d''action'!$B$6:$DB$1113,74,FALSE),VLOOKUP($BS9,'État & Plan d''action'!$B$6:$DB$1113,84,FALSE),VLOOKUP($BS9,'État & Plan d''action'!$B$6:$DB$1113,94,FALSE),VLOOKUP($BS9,'État & Plan d''action'!$B$6:$DB$1113,104,FALSE)),"") -> 0 | FE9: 57 | FF9: 57.84210526 | FG9: 58.07017544 | FH9: 7790
B10: QUANTITÉ D'EAU DISTRIBUÉE | I10: → Résultat de validité des données | BS10: 31056 | BT10: ADSTOCK | BU10: 12 | BV10: non | BW10: non | BX10: non | BY10: non | BZ10: non | CA10: non | CB10: non | CC10: non | CD10: non | CE10: non | CF10: oui | CG10: oui | CH10: oui | CI10: oui | CJ10: oui | CK10: oui | CL10: oui | CM10: oui | CN10: oui | CO10: =IF(VLOOKUP(BS10,'Données par municipalité'!$B$6:$E$1113,4,FALSE)="","non","oui") -> oui | CP10: 844.6409854 | CQ10: 764.2244209 | CR10: 562.8779567 | CS10: 384.5338299 | CT10: 338.5359951 | CU10: 340.6543113 | CV10: 288.6805926 | CW10: 313 | CX10: =VLOOKUP(BS10,[5]Évolution!$BS$7:$CV$1115,30,FALSE) -> 260 | CY10: =IF(VLOOKUP(BS10,'Données par municipalité'!$B$6:$F$1113,4,FALSE)="","",VLOOKUP(BS10,'Données par municipalité'!$B$6:$F$1113,4,FALSE)) -> 217 | CZ10: Non disponible | DA10: 0.1 | DB10: 0.05 | DC10: 0.1 | DD10: 0.25 | DE10: 0 | DF10: 0 | DG10: 0 | DH10: 0 | DI10: =IFERROR(SUM(VLOOKUP($BS10,'État & Plan d''action'!$B$6:$DB$1113,18,FALSE),VLOOKUP($BS10,'État & Plan d''action'!$B$6:$DB$1113,20,FALSE),VLOOKUP($BS10,'État & Plan d''action'!$B$6:$DB$1113,28,FALSE),VLOOKUP($BS10,'État & Plan d''action'!$B$6:$DB$1113,30,FALSE),VLOOKUP($BS10,'État & Plan d''action'!$B$6:$DB$1113,38,FALSE),VLOOKUP($BS10,'État & Plan d''action'!$B$6:$DB$1113,40,FALSE),VLOOKUP($BS10,'État & Plan d''action'!$B$6:$DB$1113,48,FALSE),VLOOKUP($BS10,'État & Plan d''action'!$B$6:$DB$1113,50,FALSE),VLOOKUP($BS10,'État & Plan d''action'!$B$6:$DB$1113,58,FALSE),VLOOKUP($BS10,'État & Plan d''action'!$B$6:$DB$1113,60,FALSE),VLOOKUP($BS10,'État & Plan d''action'!$B$6:$DB$1113,68,FALSE),VLOOKUP($BS10,'État & Plan d''action'!$B$6:$DB$1113,70,FALSE),VLOOKUP($BS10,'État & Plan d''action'!$B$6:$DB$1113,78,FALSE),VLOOKUP($BS10,'État & Plan d''action'!$B$6:$DB$1113,80,FALSE),VLOOKUP($BS10,'État & Plan d''action'!$B$6:$DB$1113,88,FALSE),VLOOKUP($BS10,'État & Plan d''action'!$B$6:$DB$1113,90,FALSE),VLOOKUP($BS10,'État & Plan d''action'!$B$6:$DB$1113,98,FALSE),VLOOKUP($BS10,'État & Plan d''action'!$B$6:$DB$1113,100,FALSE))/(VLOOKUP($BS10,'Données par municipalité'!$B$4:$N$1113,13,FALSE)),"") -> 0 | DJ10: =IFERROR(SUM(VLOOKUP($BS10,'État & Plan d''action'!$B$6:$DB$1113,19,FALSE),VLOOKUP($BS10,'État & Plan d''action'!$B$6:$DB$1113,21,FALSE),VLOOKUP($BS10,'État & Plan d''action'!$B$6:$DB$1113,29,FALSE),VLOOKUP($BS10,'État & Plan d''action'!$B$6:$DB$1113,31,FALSE),VLOOKUP($BS10,'État & Plan d''action'!$B$6:$DB$1113,39,FALSE),VLOOKUP($BS10,'État & Plan d''action'!$B$6:$DB$1113,41,FALSE),VLOOKUP($BS10,'État & Plan d''action'!$B$6:$DB$1113,49,FALSE),VLOOKUP($BS10,'État & Plan d''action'!$B$6:$DB$1113,51,FALSE),VLOOKUP($BS10,'État & Plan d''action'!$B$6:$DB$1113,59,FALSE),VLOOKUP($BS10,'État & Plan d''action'!$B$6:$DB$1113,61,FALSE),VLOOKUP($BS10,'État & Plan d''action'!$B$6:$DB$1113,69,FALSE),VLOOKUP($BS10,'État & Plan d''action'!$B$6:$DB$1113,71,FALSE),VLOOKUP($BS10,'État & Plan d''action'!$B$6:$DB$1113,79,FALSE),VLOOKUP($BS10,'État & Plan d''action'!$B$6:$DB$1113,81,FALSE),VLOOKUP($BS10,'État & Plan d''action'!$B$6:$DB$1113,89,FALSE),VLOOKUP($BS10,'État & Plan d''action'!$B$6:$DB$1113,91,FALSE),VLOOKUP($BS10,'État & Plan d''action'!$B$6:$DB$1113,99,FALSE),VLOOKUP($BS10,'État & Plan d''action'!$B$6:$DB$1113,101,FALSE))/(VLOOKUP($BS10,'Données par municipalité'!$B$4:$N$1113,13,FALSE)),"") -> 0 | DK10: Non disponible | DL10: 3 | DM10: 4 | DN10: 4 | DO10: 8 | DP10: 3 | DQ10: 2 | DR10: 0 | DS10: 0 | DT10: 0 | DU10: 0 | DV10: 0 | DW10: 0 | DX10: =IF(VLOOKUP($BS10,'État & Plan d''action'!$B$6:$DM$1113,108,FALSE)="","",VLOOKUP($BS10,'État & Plan d''action'!$B$6:$DM$1113,108,FALSE)) -> 0 | DY10: =IF(VLOOKUP($BS10,'État & Plan d''action'!$B$6:$DM$1113,109,FALSE)="","",VLOOKUP($BS10,'État & Plan d''action'!$B$6:$DM$1113,109,FALSE)) -> 0 | DZ10: =IF(VLOOKUP($BS10,'État & Plan d''action'!$B$6:$DM$1113,110,FALSE)="","",VLOOKUP($BS10,'État & Plan d''action'!$B$6:$DM$1113,110,FALSE)) -> 0 | EA10: 169 | EB10: =VLOOKUP(BS10,'[5]Données par municipalité'!$B$6:$F$1113,5,FALSE) -> 166 | EC10: =VLOOKUP($BS10,'Données par municipalité'!$B$6:$F$1113,5,FALSE) -> 132 | ED10: 0.5229920083 | EE10: 0.2855159097 | EF10: =IF(VLOOKUP(BS10,'Données par municipalité'!$B$6:$U$1113,7,FALSE)="","",VLOOKUP(BS10,'Données par municipalité'!$B$6:$U$1113,7,FALSE)) -> 0.8998235908 | EG10: 0 | EH10: 0 | EI10: 0 | EJ10: 0 | EK10: 0 | EL10: 0 | EM10: =VLOOKUP($BS10,'État & Plan d''action'!$B$6:$DK$1113,112,FALSE) -> S.O. | EN10: =VLOOKUP($BS10,'État & Plan d''action'!$B$6:$DK$1113,113,FALSE) ->  | EO10: =VLOOKUP($BS10,'État & Plan d''action'!$B$6:$DK$1113,114,FALSE) ->  | EP10: 0 | EQ10: 0 | ER10: 0 | ES10: 0 | ET10: 0 | EU10: 0 | EV10: 0 | EW10: 0 | EX10: 0 | EY10: 0 | EZ10: =IFERROR(SUM(VLOOKUP($BS10,'État & Plan d''action'!$B$6:$DB$1113,16,FALSE),VLOOKUP($BS10,'État & Plan d''action'!$B$6:$DB$1113,26,FALSE),VLOOKUP($BS10,'État & Plan d''action'!$B$6:$DB$1113,36,FALSE),VLOOKUP($BS10,'État & Plan d''action'!$B$6:$DB$1113,46,FALSE),VLOOKUP($BS10,'État & Plan d''action'!$B$6:$DB$1113,56,FALSE),VLOOKUP($BS10,'État & Plan d''action'!$B$6:$DB$1113,66,FALSE),VLOOKUP($BS10,'État & Plan d''action'!$B$6:$DB$1113,76,FALSE),VLOOKUP($BS10,'État & Plan d''action'!$B$6:$DB$1113,86,FALSE),VLOOKUP($BS10,'État & Plan d''action'!$B$6:$DB$1113,96,FALSE)),"") -> 0 | FA10: =IFERROR(SUM(VLOOKUP($BS10,'État & Plan d''action'!$B$6:$DB$1113,18,FALSE),VLOOKUP($BS10,'État & Plan d''action'!$B$6:$DB$1113,28,FALSE),VLOOKUP($BS10,'État & Plan d''action'!$B$6:$DB$1113,38,FALSE),VLOOKUP($BS10,'État & Plan d''action'!$B$6:$DB$1113,48,FALSE),VLOOKUP($BS10,'État & Plan d''action'!$B$6:$DB$1113,58,FALSE),VLOOKUP($BS10,'État & Plan d''action'!$B$6:$DB$1113,68,FALSE),VLOOKUP($BS10,'État & Plan d''action'!$B$6:$DB$1113,78,FALSE),VLOOKUP($BS10,'État & Plan d''action'!$B$6:$DB$1113,88,FALSE),VLOOKUP($BS10,'État & Plan d''action'!$B$6:$DB$1113,98,FALSE)),"") -> 0 | FB10: =IFERROR(SUM(VLOOKUP($BS10,'État & Plan d''action'!$B$6:$DB$1113,20,FALSE),VLOOKUP($BS10,'État & Plan d''action'!$B$6:$DB$1113,30,FALSE),VLOOKUP($BS10,'État & Plan d''action'!$B$6:$DB$1113,40,FALSE),VLOOKUP($BS10,'État & Plan d''action'!$B$6:$DB$1113,50,FALSE),VLOOKUP($BS10,'État & Plan d''action'!$B$6:$DB$1113,60,FALSE),VLOOKUP($BS10,'État & Plan d''action'!$B$6:$DB$1113,70,FALSE),VLOOKUP($BS10,'État & Plan d''action'!$B$6:$DB$1113,80,FALSE),VLOOKUP($BS10,'État & Plan d''action'!$B$6:$DB$1113,90,FALSE),VLOOKUP($BS10,'État & Plan d''action'!$B$6:$DB$1113,100,FALSE)),"") -> 0 | FC10: =IFERROR(SUM(VLOOKUP($BS10,'État & Plan d''action'!$B$6:$DB$1113,22,FALSE),VLOOKUP($BS10,'État & Plan d''action'!$B$6:$DB$1113,32,FALSE),VLOOKUP($BS10,'État & Plan d''action'!$B$6:$DB$1113,42,FALSE),VLOOKUP($BS10,'État & Plan d''action'!$B$6:$DB$1113,52,FALSE),VLOOKUP($BS10,'État & Plan d''action'!$B$6:$DB$1113,62,FALSE),VLOOKUP($BS10,'État & Plan d''action'!$B$6:$DB$1113,72,FALSE),VLOOKUP($BS10,'État & Plan d''action'!$B$6:$DB$1113,82,FALSE),VLOOKUP($BS10,'État & Plan d''action'!$B$6:$DB$1113,92,FALSE),VLOOKUP($BS10,'État & Plan d''action'!$B$6:$DB$1113,102,FALSE)),"") -> 0 | FD10: =IFERROR(SUM(VLOOKUP($BS10,'État & Plan d''action'!$B$6:$DB$1113,24,FALSE),VLOOKUP($BS10,'État & Plan d''action'!$B$6:$DB$1113,34,FALSE),VLOOKUP($BS10,'État & Plan d''action'!$B$6:$DB$1113,44,FALSE),VLOOKUP($BS10,'État & Plan d''action'!$B$6:$DB$1113,54,FALSE),VLOOKUP($BS10,'État & Plan d''action'!$B$6:$DB$1113,64,FALSE),VLOOKUP($BS10,'État & Plan d''action'!$B$6:$DB$1113,74,FALSE),VLOOKUP($BS10,'État & Plan d''action'!$B$6:$DB$1113,84,FALSE),VLOOKUP($BS10,'État & Plan d''action'!$B$6:$DB$1113,94,FALSE),VLOOKUP($BS10,'État & Plan d''action'!$B$6:$DB$1113,104,FALSE)),"") -> 0 | FE10: 69 | FF10: 70.88235294 | FG10: 70.88235294 | FH10: 2869
BS11: 98030 | BT11: AGUANISH | BU11: 9 | BV11: non | BW11: non | BX11: non | BY11: non | BZ11: non | CA11: non | CB11: non | CC11: non | CD11: non | CE11: non | CF11: oui | CG11: oui | CH11: non | CI11: oui | CJ11: oui | CK11: oui | CL11: oui | CM11: oui | CN11: oui | CO11: =IF(VLOOKUP(BS11,'Données par municipalité'!$B$6:$E$1113,4,FALSE)="","non","oui") -> oui | CP11: 241.616418 | CQ11: 241.286792 | CS11: 208.8802799 | CT11: 217.1948415 | CU11: 211.9987925 | CV11: 191.994079 | CW11: 201 | CX11: =VLOOKUP(BS11,[5]Évolution!$BS$7:$CV$1115,30,FALSE) -> 209 | CY11: =IF(VLOOKUP(BS11,'Données par municipalité'!$B$6:$F$1113,4,FALSE)="","",VLOOKUP(BS11,'Données par municipalité'!$B$6:$F$1113,4,FALSE)) -> 229 | CZ11: Non disponible | DA11: 0 | DC11: 0 | DD11: 0 | DE11: 0 | DF11: 0 | DG11: 0 | DH11: 0 | DI11: =IFERROR(SUM(VLOOKUP($BS11,'État & Plan d''action'!$B$6:$DB$1113,18,FALSE),VLOOKUP($BS11,'État & Plan d''action'!$B$6:$DB$1113,20,FALSE),VLOOKUP($BS11,'État & Plan d''action'!$B$6:$DB$1113,28,FALSE),VLOOKUP($BS11,'État & Plan d''action'!$B$6:$DB$1113,30,FALSE),VLOOKUP($BS11,'État & Plan d''action'!$B$6:$DB$1113,38,FALSE),VLOOKUP($BS11,'État & Plan d''action'!$B$6:$DB$1113,40,FALSE),VLOOKUP($BS11,'État & Plan d''action'!$B$6:$DB$1113,48,FALSE),VLOOKUP($BS11,'État & Plan d''action'!$B$6:$DB$1113,50,FALSE),VLOOKUP($BS11,'État & Plan d''action'!$B$6:$DB$1113,58,FALSE),VLOOKUP($BS11,'État & Plan d''action'!$B$6:$DB$1113,60,FALSE),VLOOKUP($BS11,'État & Plan d''action'!$B$6:$DB$1113,68,FALSE),VLOOKUP($BS11,'État & Plan d''action'!$B$6:$DB$1113,70,FALSE),VLOOKUP($BS11,'État & Plan d''action'!$B$6:$DB$1113,78,FALSE),VLOOKUP($BS11,'État & Plan d''action'!$B$6:$DB$1113,80,FALSE),VLOOKUP($BS11,'État & Plan d''action'!$B$6:$DB$1113,88,FALSE),VLOOKUP($BS11,'État & Plan d''action'!$B$6:$DB$1113,90,FALSE),VLOOKUP($BS11,'État & Plan d''action'!$B$6:$DB$1113,98,FALSE),VLOOKUP($BS11,'État & Plan d''action'!$B$6:$DB$1113,100,FALSE))/(VLOOKUP($BS11,'Données par municipalité'!$B$4:$N$1113,13,FALSE)),"") -> 0 | DJ11: =IFERROR(SUM(VLOOKUP($BS11,'État & Plan d''action'!$B$6:$DB$1113,19,FALSE),VLOOKUP($BS11,'État & Plan d''action'!$B$6:$DB$1113,21,FALSE),VLOOKUP($BS11,'État & Plan d''action'!$B$6:$DB$1113,29,FALSE),VLOOKUP($BS11,'État & Plan d''action'!$B$6:$DB$1113,31,FALSE),VLOOKUP($BS11,'État & Plan d''action'!$B$6:$DB$1113,39,FALSE),VLOOKUP($BS11,'État & Plan d''action'!$B$6:$DB$1113,41,FALSE),VLOOKUP($BS11,'État & Plan d''action'!$B$6:$DB$1113,49,FALSE),VLOOKUP($BS11,'État & Plan d''action'!$B$6:$DB$1113,51,FALSE),VLOOKUP($BS11,'État & Plan d''action'!$B$6:$DB$1113,59,FALSE),VLOOKUP($BS11,'État & Plan d''action'!$B$6:$DB$1113,61,FALSE),VLOOKUP($BS11,'État & Plan d''action'!$B$6:$DB$1113,69,FALSE),VLOOKUP($BS11,'État & Plan d''action'!$B$6:$DB$1113,71,FALSE),VLOOKUP($BS11,'État & Plan d''action'!$B$6:$DB$1113,79,FALSE),VLOOKUP($BS11,'État & Plan d''action'!$B$6:$DB$1113,81,FALSE),VLOOKUP($BS11,'État & Plan d''action'!$B$6:$DB$1113,89,FALSE),VLOOKUP($BS11,'État & Plan d''action'!$B$6:$DB$1113,91,FALSE),VLOOKUP($BS11,'État & Plan d''action'!$B$6:$DB$1113,99,FALSE),VLOOKUP($BS11,'État & Plan d''action'!$B$6:$DB$1113,101,FALSE))/(VLOOKUP($BS11,'Données par municipalité'!$B$4:$N$1113,13,FALSE)),"") -> 0 | DK11: Non disponible | DN11: 0 | DO11: 0 | DP11: 1 | DQ11: 2 | DR11: 0 | DS11: 0 | DT11: 0 | DU11: 0 | DV11: 0 | DW11: 0 | DX11: =IF(VLOOKUP($BS11,'État & Plan d''action'!$B$6:$DM$1113,108,FALSE)="","",VLOOKUP($BS11,'État & Plan d''action'!$B$6:$DM$1113,108,FALSE)) -> 0 | DY11: =IF(VLOOKUP($BS11,'État & Plan d''action'!$B$6:$DM$1113,109,FALSE)="","",VLOOKUP($BS11,'État & Plan d''action'!$B$6:$DM$1113,109,FALSE)) -> 0 | DZ11: =IF(VLOOKUP($BS11,'État & Plan d''action'!$B$6:$DM$1113,110,FALSE)="","",VLOOKUP($BS11,'État & Plan d''action'!$B$6:$DM$1113,110,FALSE)) -> 0 | EA11: 129 | EB11: =VLOOKUP(BS11,'[5]Données par municipalité'!$B$6:$F$1113,5,FALSE) -> 159 | EC11: =VLOOKUP($BS11,'Données par municipalité'!$B$6:$F$1113,5,FALSE) -> 178 | ED11: 0.4793967845 | EE11: 0.3897914759 | EF11: =IF(VLOOKUP(BS11,'Données par municipalité'!$B$6:$U$1113,7,FALSE)="","",VLOOKUP(BS11,'Données par municipalité'!$B$6:$U$1113,7,FALSE)) -> 0.3680803931 | EG11: 0 | EH11: 0 | EI11: 0 | EJ11: 0 | EK11: 0 | EL11: 0 | EM11: =VLOOKUP($BS11,'État & Plan d''action'!$B$6:$DK$1113,112,FALSE) -> S.O. | EN11: =VLOOKUP($BS11,'État & Plan d''action'!$B$6:$DK$1113,113,FALSE) ->  | EO11: =VLOOKUP($BS11,'État & Plan d''action'!$B$6:$DK$1113,114,FALSE) ->  | EP11: 0 | EQ11: 0 | ER11: 0 | ES11: 0 | ET11: 0 | EU11: 0 | EV11: 0 | EW11: 0 | EX11: 0 | EY11: 0 | EZ11: =IFERROR(SUM(VLOOKUP($BS11,'État & Plan d''action'!$B$6:$DB$1113,16,FALSE),VLOOKUP($BS11,'État & Plan d''action'!$B$6:$DB$1113,26,FALSE),VLOOKUP($BS11,'État & Plan d''action'!$B$6:$DB$1113,36,FALSE),VLOOKUP($BS11,'État & Plan d''action'!$B$6:$DB$1113,46,FALSE),VLOOKUP($BS11,'État & Plan d''action'!$B$6:$DB$1113,56,FALSE),VLOOKUP($BS11,'État & Plan d''action'!$B$6:$DB$1113,66,FALSE),VLOOKUP($BS11,'État & Plan d''action'!$B$6:$DB$1113,76,FALSE),VLOOKUP($BS11,'État & Plan d''action'!$B$6:$DB$1113,86,FALSE),VLOOKUP($BS11,'État & Plan d''action'!$B$6:$DB$1113,96,FALSE)),"") -> 10.735 | FA11: =IFERROR(SUM(VLOOKUP($BS11,'État & Plan d''action'!$B$6:$DB$1113,18,FALSE),VLOOKUP($BS11,'État & Plan d''action'!$B$6:$DB$1113,28,FALSE),VLOOKUP($BS11,'État & Plan d''action'!$B$6:$DB$1113,38,FALSE),VLOOKUP($BS11,'État & Plan d''action'!$B$6:$DB$1113,48,FALSE),VLOOKUP($BS11,'État & Plan d''action'!$B$6:$DB$1113,58,FALSE),VLOOKUP($BS11,'État & Plan d''action'!$B$6:$DB$1113,68,FALSE),VLOOKUP($BS11,'État & Plan d''action'!$B$6:$DB$1113,78,FALSE),VLOOKUP($BS11,'État & Plan d''action'!$B$6:$DB$1113,88,FALSE),VLOOKUP($BS11,'État & Plan d''action'!$B$6:$DB$1113,98,FALSE)),"") -> 0 | FB11: =IFERROR(SUM(VLOOKUP($BS11,'État & Plan d''action'!$B$6:$DB$1113,20,FALSE),VLOOKUP($BS11,'État & Plan d''action'!$B$6:$DB$1113,30,FALSE),VLOOKUP($BS11,'État & Plan d''action'!$B$6:$DB$1113,40,FALSE),VLOOKUP($BS11,'État & Plan d''action'!$B$6:$DB$1113,50,FALSE),VLOOKUP($BS11,'État & Plan d''action'!$B$6:$DB$1113,60,FALSE),VLOOKUP($BS11,'État & Plan d''action'!$B$6:$DB$1113,70,FALSE),VLOOKUP($BS11,'État & Plan d''action'!$B$6:$DB$1113,80,FALSE),VLOOKUP($BS11,'État & Plan d''action'!$B$6:$DB$1113,90,FALSE),VLOOKUP($BS11,'État & Plan d''action'!$B$6:$DB$1113,100,FALSE)),"") -> 0 | FC11: =IFERROR(SUM(VLOOKUP($BS11,'État & Plan d''action'!$B$6:$DB$1113,22,FALSE),VLOOKUP($BS11,'État & Plan d''action'!$B$6:$DB$1113,32,FALSE),VLOOKUP($BS11,'État & Plan d''action'!$B$6:$DB$1113,42,FALSE),VLOOKUP($BS11,'État & Plan d''action'!$B$6:$DB$1113,52,FALSE),VLOOKUP($BS11,'État & Plan d''action'!$B$6:$DB$1113,62,FALSE),VLOOKUP($BS11,'État & Plan d''action'!$B$6:$DB$1113,72,FALSE),VLOOKUP($BS11,'État & Plan d''action'!$B$6:$DB$1113,82,FALSE),VLOOKUP($BS11,'État & Plan d''action'!$B$6:$DB$1113,92,FALSE),VLOOKUP($BS11,'État & Plan d''action'!$B$6:$DB$1113,102,FALSE)),"") -> 0 | FD11: =IFERROR(SUM(VLOOKUP($BS11,'État & Plan d''action'!$B$6:$DB$1113,24,FALSE),VLOOKUP($BS11,'État & Plan d''action'!$B$6:$DB$1113,34,FALSE),VLOOKUP($BS11,'État & Plan d''action'!$B$6:$DB$1113,44,FALSE),VLOOKUP($BS11,'État & Plan d''action'!$B$6:$DB$1113,54,FALSE),VLOOKUP($BS11,'État & Plan d''action'!$B$6:$DB$1113,64,FALSE),VLOOKUP($BS11,'État & Plan d''action'!$B$6:$DB$1113,74,FALSE),VLOOKUP($BS11,'État & Plan d''action'!$B$6:$DB$1113,84,FALSE),VLOOKUP($BS11,'État & Plan d''action'!$B$6:$DB$1113,94,FALSE),VLOOKUP($BS11,'État & Plan d''action'!$B$6:$DB$1113,104,FALSE)),"") -> 0 | FE11: 45 | FF11: 59 | FG11: 59 | FH11: 232
BS12: 92030 | BT12: ALBANEL | BU12: 2 | BV12: non | BW12: non | BX12: non | BY12: non | BZ12: non | CA12: non | CB12: non | CC12: non | CD12: non | CE12: non | CF12: oui | CG12: oui | CH12: oui | CI12: oui | CJ12: oui | CK12: non | CL12: oui | CM12: oui | CN12: oui | CO12: =IF(VLOOKUP(BS12,'Données par municipalité'!$B$6:$E$1113,4,FALSE)="","non","oui") -> oui | CP12: 610.7391767 | CQ12: 593.6651584 | CR12: 539.6369485 | CS12: 577.4918348 | CT12: 536.8374188 | CV12: 539 | CW12: 551 | CX12: =VLOOKUP(BS12,[5]Évolution!$BS$7:$CV$1115,30,FALSE) -> 480 | CY12: =IF(VLOOKUP(BS12,'Données par municipalité'!$B$6:$F$1113,4,FALSE)="","",VLOOKUP(BS12,'Données par municipalité'!$B$6:$F$1113,4,FALSE)) -> 365 | CZ12: Non disponible | DA12: 0 | DB12: 0.1 | DC12: 0.1 | DD12: 0 | DF12: 0 | DG12: 0 | DH12: 1 | DI12: =IFERROR(SUM(VLOOKUP($BS12,'État & Plan d''action'!$B$6:$DB$1113,18,FALSE),VLOOKUP($BS12,'État & Plan d''action'!$B$6:$DB$1113,20,FALSE),VLOOKUP($BS12,'État & Plan d''action'!$B$6:$DB$1113,28,FALSE),VLOOKUP($BS12,'État & Plan d''action'!$B$6:$DB$1113,30,FALSE),VLOOKUP($BS12,'État & Plan d''action'!$B$6:$DB$1113,38,FALSE),VLOOKUP($BS12,'État & Plan d''action'!$B$6:$DB$1113,40,FALSE),VLOOKUP($BS12,'État & Plan d''action'!$B$6:$DB$1113,48,FALSE),VLOOKUP($BS12,'État & Plan d''action'!$B$6:$DB$1113,50,FALSE),VLOOKUP($BS12,'État & Plan d''action'!$B$6:$DB$1113,58,FALSE),VLOOKUP($BS12,'État & Plan d''action'!$B$6:$DB$1113,60,FALSE),VLOOKUP($BS12,'État & Plan d''action'!$B$6:$DB$1113,68,FALSE),VLOOKUP($BS12,'État & Plan d''action'!$B$6:$DB$1113,70,FALSE),VLOOKUP($BS12,'État & Plan d''action'!$B$6:$DB$1113,78,FALSE),VLOOKUP($BS12,'État & Plan d''action'!$B$6:$DB$1113,80,FALSE),VLOOKUP($BS12,'État & Plan d''action'!$B$6:$DB$1113,88,FALSE),VLOOKUP($BS12,'État & Plan d''action'!$B$6:$DB$1113,90,FALSE),VLOOKUP($BS12,'État & Plan d''action'!$B$6:$DB$1113,98,FALSE),VLOOKUP($BS12,'État & Plan d''action'!$B$6:$DB$1113,100,FALSE))/(VLOOKUP($BS12,'Données par municipalité'!$B$4:$N$1113,13,FALSE)),"") -> 1 | DJ12: =IFERROR(SUM(VLOOKUP($BS12,'État & Plan d''action'!$B$6:$DB$1113,19,FALSE),VLOOKUP($BS12,'État & Plan d''action'!$B$6:$DB$1113,21,FALSE),VLOOKUP($BS12,'État & Plan d''action'!$B$6:$DB$1113,29,FALSE),VLOOKUP($BS12,'État & Plan d''action'!$B$6:$DB$1113,31,FALSE),VLOOKUP($BS12,'État & Plan d''action'!$B$6:$DB$1113,39,FALSE),VLOOKUP($BS12,'État & Plan d''action'!$B$6:$DB$1113,41,FALSE),VLOOKUP($BS12,'État & Plan d''action'!$B$6:$DB$1113,49,FALSE),VLOOKUP($BS12,'État & Plan d''action'!$B$6:$DB$1113,51,FALSE),VLOOKUP($BS12,'État & Plan d''action'!$B$6:$DB$1113,59,FALSE),VLOOKUP($BS12,'État & Plan d''action'!$B$6:$DB$1113,61,FALSE),VLOOKUP($BS12,'État & Plan d''action'!$B$6:$DB$1113,69,FALSE),VLOOKUP($BS12,'État & Plan d''action'!$B$6:$DB$1113,71,FALSE),VLOOKUP($BS12,'État & Plan d''action'!$B$6:$DB$1113,79,FALSE),VLOOKUP($BS12,'État & Plan d''action'!$B$6:$DB$1113,81,FALSE),VLOOKUP($BS12,'État & Plan d''action'!$B$6:$DB$1113,89,FALSE),VLOOKUP($BS12,'État & Plan d''action'!$B$6:$DB$1113,91,FALSE),VLOOKUP($BS12,'État & Plan d''action'!$B$6:$DB$1113,99,FALSE),VLOOKUP($BS12,'État & Plan d''action'!$B$6:$DB$1113,101,FALSE))/(VLOOKUP($BS12,'Données par municipalité'!$B$4:$N$1113,13,FALSE)),"") -> 1 | DK12: Non disponible | DL12: 14 | DM12: 25 | DN12: 25 | DO12: 27 | DQ12: 2 | DR12: 3 | DS12: 0 | DT12: 1 | DU12: 1 | DV12: 0 | DW12: 1 | DX12: =IF(VLOOKUP($BS12,'État & Plan d''action'!$B$6:$DM$1113,108,FALSE)="","",VLOOKUP($BS12,'État & Plan d''action'!$B$6:$DM$1113,108,FALSE)) -> 1 | DY12: =IF(VLOOKUP($BS12,'État & Plan d''action'!$B$6:$DM$1113,109,FALSE)="","",VLOOKUP($BS12,'État & Plan d''action'!$B$6:$DM$1113,109,FALSE)) -> 0 | DZ12: =IF(VLOOKUP($BS12,'État & Plan d''action'!$B$6:$DM$1113,110,FALSE)="","",VLOOKUP($BS12,'État & Plan d''action'!$B$6:$DM$1113,110,FALSE)) -> 0 | EA12: 455 | EB12: =VLOOKUP(BS12,'[5]Données par municipalité'!$B$6:$F$1113,5,FALSE) -> 307 | EC12: =VLOOKUP($BS12,'Données par municipalité'!$B$6:$F$1113,5,FALSE) -> 186 | ED12: 1.879188221 | EE12: 4.3 | EF12: =IF(VLOOKUP(BS12,'Données par municipalité'!$B$6:$U$1113,7,FALSE)="","",VLOOKUP(BS12,'Données par municipalité'!$B$6:$U$1113,7,FALSE)) -> 5.325136444 | EG12: 15 | EH12: 0 | EI12: 15 | EJ12: 30 | EK12: 0 | EL12: 30 | EM12: =VLOOKUP($BS12,'État & Plan d''action'!$B$6:$DK$1113,112,FALSE) -> 14 | EN12: =VLOOKUP($BS12,'État & Plan d''action'!$B$6:$DK$1113,113,FALSE) ->  | EO12: =VLOOKUP($BS12,'État & Plan d''action'!$B$6:$DK$1113,114,FALSE) ->  | EP12: 0 | EQ12: 0 | ER12: 0 | ES12: 0 | ET12: 0 | EU12: 0 | EV12: 0 | EW12: 0 | EX12: 0 | EY12: 0 | EZ12: =IFERROR(SUM(VLOOKUP($BS12,'État & Plan d''action'!$B$6:$DB$1113,16,FALSE),VLOOKUP($BS12,'État & Plan d''action'!$B$6:$DB$1113,26,FALSE),VLOOKUP($BS12,'État & Plan d''action'!$B$6:$DB$1113,36,FALSE),VLOOKUP($BS12,'État & Plan d''action'!$B$6:$DB$1113,46,FALSE),VLOOKUP($BS12,'État & Plan d''action'!$B$6:$DB$1113,56,FALSE),VLOOKUP($BS12,'État & Plan d''action'!$B$6:$DB$1113,66,FALSE),VLOOKUP($BS12,'État & Plan d''action'!$B$6:$DB$1113,76,FALSE),VLOOKUP($BS12,'État & Plan d''action'!$B$6:$DB$1113,86,FALSE),VLOOKUP($BS12,'État & Plan d''action'!$B$6:$DB$1113,96,FALSE)),"") -> 0 | FA12: =IFERROR(SUM(VLOOKUP($BS12,'État & Plan d''action'!$B$6:$DB$1113,18,FALSE),VLOOKUP($BS12,'État & Plan d''action'!$B$6:$DB$1113,28,FALSE),VLOOKUP($BS12,'État & Plan d''action'!$B$6:$DB$1113,38,FALSE),VLOOKUP($BS12,'État & Plan d''action'!$B$6:$DB$1113,48,FALSE),VLOOKUP($BS12,'État & Plan d''action'!$B$6:$DB$1113,58,FALSE),VLOOKUP($BS12,'État & Plan d''action'!$B$6:$DB$1113,68,FALSE),VLOOKUP($BS12,'État & Plan d''action'!$B$6:$DB$1113,78,FALSE),VLOOKUP($BS12,'État & Plan d''action'!$B$6:$DB$1113,88,FALSE),VLOOKUP($BS12,'État & Plan d''action'!$B$6:$DB$1113,98,FALSE)),"") -> 0 | FB12: =IFERROR(SUM(VLOOKUP($BS12,'État & Plan d''action'!$B$6:$DB$1113,20,FALSE),VLOOKUP($BS12,'État & Plan d''action'!$B$6:$DB$1113,30,FALSE),VLOOKUP($BS12,'État & Plan d''action'!$B$6:$DB$1113,40,FALSE),VLOOKUP($BS12,'État & Plan d''action'!$B$6:$DB$1113,50,FALSE),VLOOKUP($BS12,'État & Plan d''action'!$B$6:$DB$1113,60,FALSE),VLOOKUP($BS12,'État & Plan d''action'!$B$6:$DB$1113,70,FALSE),VLOOKUP($BS12,'État & Plan d''action'!$B$6:$DB$1113,80,FALSE),VLOOKUP($BS12,'État & Plan d''action'!$B$6:$DB$1113,90,FALSE),VLOOKUP($BS12,'État & Plan d''action'!$B$6:$DB$1113,100,FALSE)),"") -> 19.817 | FC12: =IFERROR(SUM(VLOOKUP($BS12,'État & Plan d''action'!$B$6:$DB$1113,22,FALSE),VLOOKUP($BS12,'État & Plan d''action'!$B$6:$DB$1113,32,FALSE),VLOOKUP($BS12,'État & Plan d''action'!$B$6:$DB$1113,42,FALSE),VLOOKUP($BS12,'État & Plan d''action'!$B$6:$DB$1113,52,FALSE),VLOOKUP($BS12,'État & Plan d''action'!$B$6:$DB$1113,62,FALSE),VLOOKUP($BS12,'État & Plan d''action'!$B$6:$DB$1113,72,FALSE),VLOOKUP($BS12,'État & Plan d''action'!$B$6:$DB$1113,82,FALSE),VLOOKUP($BS12,'État & Plan d''action'!$B$6:$DB$1113,92,FALSE),VLOOKUP($BS12,'État & Plan d''action'!$B$6:$DB$1113,102,FALSE)),"") -> 0 | FD12: =IFERROR(SUM(VLOOKUP($BS12,'État & Plan d''action'!$B$6:$DB$1113,24,FALSE),VLOOKUP($BS12,'État & Plan d''action'!$B$6:$DB$1113,34,FALSE),VLOOKUP($BS12,'État & Plan d''action'!$B$6:$DB$1113,44,FALSE),VLOOKUP($BS12,'État & Plan d''action'!$B$6:$DB$1113,54,FALSE),VLOOKUP($BS12,'État & Plan d''action'!$B$6:$DB$1113,64,FALSE),VLOOKUP($BS12,'État & Plan d''action'!$B$6:$DB$1113,74,FALSE),VLOOKUP($BS12,'État & Plan d''action'!$B$6:$DB$1113,84,FALSE),VLOOKUP($BS12,'État & Plan d''action'!$B$6:$DB$1113,94,FALSE),VLOOKUP($BS12,'État & Plan d''action'!$B$6:$DB$1113,104,FALSE)),"") -> 0 | FE12: 54.21621622 | FF12: 59.89189189 | FG12: 59.78378378 | FH12: 2258
BS13: 7025 | BT13: ALBERTVILLE | BU13: 1 | BV13: oui | BW13: oui | BX13: oui | BY13: oui | BZ13: oui | CA13: oui | CB13: oui | CC13: oui | CD13: oui | CE13: oui | CF13: oui | CG13: oui | CH13: oui | CI13: oui | CJ13: oui | CK13: non | CL13: non | CM13: non | CN13: non | CO13: =IF(VLOOKUP(BS13,'Données par municipalité'!$B$6:$E$1113,4,FALSE)="","non","oui") -> non | CP13: 507.8286152 | CQ13: 506.4411053 | CR13: 601.5147262 | CS13: 611.3302224 | CT13: 641.425658 | CX13: =VLOOKUP(BS13,[5]Évolution!$BS$7:$CV$1115,30,FALSE) ->  | CY13: =IF(VLOOKUP(BS13,'Données par municipalité'!$B$6:$F$1113,4,FALSE)="","",VLOOKUP(BS13,'Données par municipalité'!$B$6:$F$1113,4,FALSE)) ->  | CZ13: Non disponible | DB13: 0 | DC13: 0 | DD13: 0 | DI13: =IFERROR(SUM(VLOOKUP($BS13,'État & Plan d''action'!$B$6:$DB$1113,18,FALSE),VLOOKUP($BS13,'État & Plan d''action'!$B$6:$DB$1113,20,FALSE),VLOOKUP($BS13,'État & Plan d''action'!$B$6:$DB$1113,28,FALSE),VLOOKUP($BS13,'État & Plan d''action'!$B$6:$DB$1113,30,FALSE),VLOOKUP($BS13,'État & Plan d''action'!$B$6:$DB$1113,38,FALSE),VLOOKUP($BS13,'État & Plan d''action'!$B$6:$DB$1113,40,FALSE),VLOOKUP($BS13,'État & Plan d''action'!$B$6:$DB$1113,48,FALSE),VLOOKUP($BS13,'État & Plan d''action'!$B$6:$DB$1113,50,FALSE),VLOOKUP($BS13,'État & Plan d''action'!$B$6:$DB$1113,58,FALSE),VLOOKUP($BS13,'État & Plan d''action'!$B$6:$DB$1113,60,FALSE),VLOOKUP($BS13,'État & Plan d''action'!$B$6:$DB$1113,68,FALSE),VLOOKUP($BS13,'État & Plan d''action'!$B$6:$DB$1113,70,FALSE),VLOOKUP($BS13,'État & Plan d''action'!$B$6:$DB$1113,78,FALSE),VLOOKUP($BS13,'État & Plan d''action'!$B$6:$DB$1113,80,FALSE),VLOOKUP($BS13,'État & Plan d''action'!$B$6:$DB$1113,88,FALSE),VLOOKUP($BS13,'État & Plan d''action'!$B$6:$DB$1113,90,FALSE),VLOOKUP($BS13,'État & Plan d''action'!$B$6:$DB$1113,98,FALSE),VLOOKUP($BS13,'État & Plan d''action'!$B$6:$DB$1113,100,FALSE))/(VLOOKUP($BS13,'Données par municipalité'!$B$4:$N$1113,13,FALSE)),"") ->  | DJ13: =IFERROR(SUM(VLOOKUP($BS13,'État & Plan d''action'!$B$6:$DB$1113,19,FALSE),VLOOKUP($BS13,'État & Plan d''action'!$B$6:$DB$1113,21,FALSE),VLOOKUP($BS13,'État & Plan d''action'!$B$6:$DB$1113,29,FALSE),VLOOKUP($BS13,'État & Plan d''action'!$B$6:$DB$1113,31,FALSE),VLOOKUP($BS13,'État & Plan d''action'!$B$6:$DB$1113,39,FALSE),VLOOKUP($BS13,'État & Plan d''action'!$B$6:$DB$1113,41,FALSE),VLOOKUP($BS13,'État & Plan d''action'!$B$6:$DB$1113,49,FALSE),VLOOKUP($BS13,'État & Plan d''action'!$B$6:$DB$1113,51,FALSE),VLOOKUP($BS13,'État & Plan d''action'!$B$6:$DB$1113,59,FALSE),VLOOKUP($BS13,'État & Plan d''action'!$B$6:$DB$1113,61,FALSE),VLOOKUP($BS13,'État & Plan d''action'!$B$6:$DB$1113,69,FALSE),VLOOKUP($BS13,'État & Plan d''action'!$B$6:$DB$1113,71,FALSE),VLOOKUP($BS13,'État & Plan d''action'!$B$6:$DB$1113,79,FALSE),VLOOKUP($BS13,'État & Plan d''action'!$B$6:$DB$1113,81,FALSE),VLOOKUP($BS13,'État & Plan d''action'!$B$6:$DB$1113,89,FALSE),VLOOKUP($BS13,'État & Plan d''action'!$B$6:$DB$1113,91,FALSE),VLOOKUP($BS13,'État & Plan d''action'!$B$6:$DB$1113,99,FALSE),VLOOKUP($BS13,'État & Plan d''action'!$B$6:$DB$1113,101,FALSE))/(VLOOKUP($BS13,'Données par municipalité'!$B$4:$N$1113,13,FALSE)),"") ->  | DK13: Non disponible | DL13: 1 | DM13: 1 | DN13: 4 | DO13: 3 | DX13: =IF(VLOOKUP($BS13,'État & Plan d''action'!$B$6:$DM$1113,108,FALSE)="","",VLOOKUP($BS13,'État & Plan d''action'!$B$6:$DM$1113,108,FALSE)) ->  | DY13: =IF(VLOOKUP($BS13,'État & Plan d''action'!$B$6:$DM$1113,109,FALSE)="","",VLOOKUP($BS13,'État & Plan d''action'!$B$6:$DM$1113,109,FALSE)) ->  | DZ13: =IF(VLOOKUP($BS13,'État & Plan d''action'!$B$6:$DM$1113,110,FALSE)="","",VLOOKUP($BS13,'État & Plan d''action'!$B$6:$DM$1113,110,FALSE)) ->  | EB13: =VLOOKUP(BS13,'[5]Données par municipalité'!$B$6:$F$1113,5,FALSE) ->  | EC13: =VLOOKUP($BS13,'Données par municipalité'!$B$6:$F$1113,5,FALSE) -> 0 | EF13: =IF(VLOOKUP(BS13,'Données par municipalité'!$B$6:$U$1113,7,FALSE)="","",VLOOKUP(BS13,'Données par municipalité'!$B$6:$U$1113,7,FALSE)) ->  | EM13: =VLOOKUP($BS13,'État & Plan d''action'!$B$6:$DK$1113,112,FALSE) -> 0 | EN13: =VLOOKUP($BS13,'État & Plan d''action'!$B$6:$DK$1113,113,FALSE) -> 0 | EO13: =VLOOKUP($BS13,'État & Plan d''action'!$B$6:$DK$1113,114,FALSE) -> 0 | EZ13: =IFERROR(SUM(VLOOKUP($BS13,'État & Plan d''action'!$B$6:$DB$1113,16,FALSE),VLOOKUP($BS13,'État & Plan d''action'!$B$6:$DB$1113,26,FALSE),VLOOKUP($BS13,'État & Plan d''action'!$B$6:$DB$1113,36,FALSE),VLOOKUP($BS13,'État & Plan d''action'!$B$6:$DB$1113,46,FALSE),VLOOKUP($BS13,'État & Plan d''action'!$B$6:$DB$1113,56,FALSE),VLOOKUP($BS13,'État & Plan d''action'!$B$6:$DB$1113,66,FALSE),VLOOKUP($BS13,'État & Plan d''action'!$B$6:$DB$1113,76,FALSE),VLOOKUP($BS13,'État & Plan d''action'!$B$6:$DB$1113,86,FALSE),VLOOKUP($BS13,'État & Plan d''action'!$B$6:$DB$1113,96,FALSE)),"") -> 0 | FA13: =IFERROR(SUM(VLOOKUP($BS13,'État & Plan d''action'!$B$6:$DB$1113,18,FALSE),VLOOKUP($BS13,'État & Plan d''action'!$B$6:$DB$1113,28,FALSE),VLOOKUP($BS13,'État & Plan d''action'!$B$6:$DB$1113,38,FALSE),VLOOKUP($BS13,'État & Plan d''action'!$B$6:$DB$1113,48,FALSE),VLOOKUP($BS13,'État & Plan d''action'!$B$6:$DB$1113,58,FALSE),VLOOKUP($BS13,'État & Plan d''action'!$B$6:$DB$1113,68,FALSE),VLOOKUP($BS13,'État & Plan d''action'!$B$6:$DB$1113,78,FALSE),VLOOKUP($BS13,'État & Plan d''action'!$B$6:$DB$1113,88,FALSE),VLOOKUP($BS13,'État & Plan d''action'!$B$6:$DB$1113,98,FALSE)),"") -> 0 | FB13: =IFERROR(SUM(VLOOKUP($BS13,'État & Plan d''action'!$B$6:$DB$1113,20,FALSE),VLOOKUP($BS13,'État & Plan d''action'!$B$6:$DB$1113,30,FALSE),VLOOKUP($BS13,'État & Plan d''action'!$B$6:$DB$1113,40,FALSE),VLOOKUP($BS13,'État & Plan d''action'!$B$6:$DB$1113,50,FALSE),VLOOKUP($BS13,'État & Plan d''action'!$B$6:$DB$1113,60,FALSE),VLOOKUP($BS13,'État & Plan d''action'!$B$6:$DB$1113,70,FALSE),VLOOKUP($BS13,'État & Plan d''action'!$B$6:$DB$1113,80,FALSE),VLOOKUP($BS13,'État & Plan d''action'!$B$6:$DB$1113,90,FALSE),VLOOKUP($BS13,'État & Plan d''action'!$B$6:$DB$1113,100,FALSE)),"") -> 0 | FC13: =IFERROR(SUM(VLOOKUP($BS13,'État & Plan d''action'!$B$6:$DB$1113,22,FALSE),VLOOKUP($BS13,'État & Plan d''action'!$B$6:$DB$1113,32,FALSE),VLOOKUP($BS13,'État & Plan d''action'!$B$6:$DB$1113,42,FALSE),VLOOKUP($BS13,'État & Plan d''action'!$B$6:$DB$1113,52,FALSE),VLOOKUP($BS13,'État & Plan d''action'!$B$6:$DB$1113,62,FALSE),VLOOKUP($BS13,'État & Plan d''action'!$B$6:$DB$1113,72,FALSE),VLOOKUP($BS13,'État & Plan d''action'!$B$6:$DB$1113,82,FALSE),VLOOKUP($BS13,'État & Plan d''action'!$B$6:$DB$1113,92,FALSE),VLOOKUP($BS13,'État & Plan d''action'!$B$6:$DB$1113,102,FALSE)),"") -> 0 | FD13: =IFERROR(SUM(VLOOKUP($BS13,'État & Plan d''action'!$B$6:$DB$1113,24,FALSE),VLOOKUP($BS13,'État & Plan d''action'!$B$6:$DB$1113,34,FALSE),VLOOKUP($BS13,'État & Plan d''action'!$B$6:$DB$1113,44,FALSE),VLOOKUP($BS13,'État & Plan d''action'!$B$6:$DB$1113,54,FALSE),VLOOKUP($BS13,'État & Plan d''action'!$B$6:$DB$1113,64,FALSE),VLOOKUP($BS13,'État & Plan d''action'!$B$6:$DB$1113,74,FALSE),VLOOKUP($BS13,'État & Plan d''action'!$B$6:$DB$1113,84,FALSE),VLOOKUP($BS13,'État & Plan d''action'!$B$6:$DB$1113,94,FALSE),VLOOKUP($BS13,'État & Plan d''action'!$B$6:$DB$1113,104,FALSE)),"") -> 0 | FH13: 217
BS14: 84050 | BT14: ALLEYN-ET-CAWOOD | BU14: 7 | BV14: oui | BW14: oui | BX14: oui | BY14: oui | BZ14: oui | CA14: oui | CB14: oui | CC14: oui | CD14: oui | CE14: oui | CF14: oui | CG14: oui | CH14: non | CI14: oui | CJ14: oui | CK14: non | CL14: non | CM14: non | CN14: non | CO14: =IF(VLOOKUP(BS14,'Données par municipalité'!$B$6:$E$1113,4,FALSE)="","non","oui") -> non | CP14: 719.2898177 | CQ14: 719.2898177 | CS14: 553.1288247 | CT14: 500.8312719 | CX14: =VLOOKUP(BS14,[5]Évolution!$BS$7:$CV$1115,30,FALSE) ->  | CY14: =IF(VLOOKUP(BS14,'Données par municipalité'!$B$6:$F$1113,4,FALSE)="","",VLOOKUP(BS14,'Données par municipalité'!$B$6:$F$1113,4,FALSE)) ->  | CZ14: Non disponible | DC14: 0 | DD14: 0 | DI14: =IFERROR(SUM(VLOOKUP($BS14,'État & Plan d''action'!$B$6:$DB$1113,18,FALSE),VLOOKUP($BS14,'État & Plan d''action'!$B$6:$DB$1113,20,FALSE),VLOOKUP($BS14,'État & Plan d''action'!$B$6:$DB$1113,28,FALSE),VLOOKUP($BS14,'État & Plan d''action'!$B$6:$DB$1113,30,FALSE),VLOOKUP($BS14,'État & Plan d''action'!$B$6:$DB$1113,38,FALSE),VLOOKUP($BS14,'État & Plan d''action'!$B$6:$DB$1113,40,FALSE),VLOOKUP($BS14,'État & Plan d''action'!$B$6:$DB$1113,48,FALSE),VLOOKUP($BS14,'État & Plan d''action'!$B$6:$DB$1113,50,FALSE),VLOOKUP($BS14,'État & Plan d''action'!$B$6:$DB$1113,58,FALSE),VLOOKUP($BS14,'État & Plan d''action'!$B$6:$DB$1113,60,FALSE),VLOOKUP($BS14,'État & Plan d''action'!$B$6:$DB$1113,68,FALSE),VLOOKUP($BS14,'État & Plan d''action'!$B$6:$DB$1113,70,FALSE),VLOOKUP($BS14,'État & Plan d''action'!$B$6:$DB$1113,78,FALSE),VLOOKUP($BS14,'État & Plan d''action'!$B$6:$DB$1113,80,FALSE),VLOOKUP($BS14,'État & Plan d''action'!$B$6:$DB$1113,88,FALSE),VLOOKUP($BS14,'État & Plan d''action'!$B$6:$DB$1113,90,FALSE),VLOOKUP($BS14,'État & Plan d''action'!$B$6:$DB$1113,98,FALSE),VLOOKUP($BS14,'État & Plan d''action'!$B$6:$DB$1113,100,FALSE))/(VLOOKUP($BS14,'Données par municipalité'!$B$4:$N$1113,13,FALSE)),"") ->  | DJ14: =IFERROR(SUM(VLOOKUP($BS14,'État & Plan d''action'!$B$6:$DB$1113,19,FALSE),VLOOKUP($BS14,'État & Plan d''action'!$B$6:$DB$1113,21,FALSE),VLOOKUP($BS14,'État & Plan d''action'!$B$6:$DB$1113,29,FALSE),VLOOKUP($BS14,'État & Plan d''action'!$B$6:$DB$1113,31,FALSE),VLOOKUP($BS14,'État & Plan d''action'!$B$6:$DB$1113,39,FALSE),VLOOKUP($BS14,'État & Plan d''action'!$B$6:$DB$1113,41,FALSE),VLOOKUP($BS14,'État & Plan d''action'!$B$6:$DB$1113,49,FALSE),VLOOKUP($BS14,'État & Plan d''action'!$B$6:$DB$1113,51,FALSE),VLOOKUP($BS14,'État & Plan d''action'!$B$6:$DB$1113,59,FALSE),VLOOKUP($BS14,'État & Plan d''action'!$B$6:$DB$1113,61,FALSE),VLOOKUP($BS14,'État & Plan d''action'!$B$6:$DB$1113,69,FALSE),VLOOKUP($BS14,'État & Plan d''action'!$B$6:$DB$1113,71,FALSE),VLOOKUP($BS14,'État & Plan d''action'!$B$6:$DB$1113,79,FALSE),VLOOKUP($BS14,'État & Plan d''action'!$B$6:$DB$1113,81,FALSE),VLOOKUP($BS14,'État & Plan d''action'!$B$6:$DB$1113,89,FALSE),VLOOKUP($BS14,'État & Plan d''action'!$B$6:$DB$1113,91,FALSE),VLOOKUP($BS14,'État & Plan d''action'!$B$6:$DB$1113,99,FALSE),VLOOKUP($BS14,'État & Plan d''action'!$B$6:$DB$1113,101,FALSE))/(VLOOKUP($BS14,'Données par municipalité'!$B$4:$N$1113,13,FALSE)),"") ->  | DK14: Non disponible | DN14: 0 | DO14: 0 | DX14: =IF(VLOOKUP($BS14,'État & Plan d''action'!$B$6:$DM$1113,108,FALSE)="","",VLOOKUP($BS14,'État & Plan d''action'!$B$6:$DM$1113,108,FALSE)) ->  | DY14: =IF(VLOOKUP($BS14,'État & Plan d''action'!$B$6:$DM$1113,109,FALSE)="","",VLOOKUP($BS14,'État & Plan d''action'!$B$6:$DM$1113,109,FALSE)) ->  | DZ14: =IF(VLOOKUP($BS14,'État & Plan d''action'!$B$6:$DM$1113,110,FALSE)="","",VLOOKUP($BS14,'État & Plan d''action'!$B$6:$DM$1113,110,FALSE)) ->  | EB14: =VLOOKUP(BS14,'[5]Données par municipalité'!$B$6:$F$1113,5,FALSE) ->  | EC14: =VLOOKUP($BS14,'Données par municipalité'!$B$6:$F$1113,5,FALSE) -> 0 | EF14: =IF(VLOOKUP(BS14,'Données par municipalité'!$B$6:$U$1113,7,FALSE)="","",VLOOKUP(BS14,'Données par municipalité'!$B$6:$U$1113,7,FALSE)) ->  | EM14: =VLOOKUP($BS14,'État & Plan d''action'!$B$6:$DK$1113,112,FALSE) -> 0 | EN14: =VLOOKUP($BS14,'État & Plan d''action'!$B$6:$DK$1113,113,FALSE) -> 0 | EO14: =VLOOKUP($BS14,'État & Plan d''action'!$B$6:$DK$1113,114,FALSE) -> 0 | EZ14: =IFERROR(SUM(VLOOKUP($BS14,'État & Plan d''action'!$B$6:$DB$1113,16,FALSE),VLOOKUP($BS14,'État & Plan d''action'!$B$6:$DB$1113,26,FALSE),VLOOKUP($BS14,'État & Plan d''action'!$B$6:$DB$1113,36,FALSE),VLOOKUP($BS14,'État & Plan d''action'!$B$6:$DB$1113,46,FALSE),VLOOKUP($BS14,'État & Plan d''action'!$B$6:$DB$1113,56,FALSE),VLOOKUP($BS14,'État & Plan d''action'!$B$6:$DB$1113,66,FALSE),VLOOKUP($BS14,'État & Plan d''action'!$B$6:$DB$1113,76,FALSE),VLOOKUP($BS14,'État & Plan d''action'!$B$6:$DB$1113,86,FALSE),VLOOKUP($BS14,'État & Plan d''action'!$B$6:$DB$1113,96,FALSE)),"") -> 0 | FA14: =IFERROR(SUM(VLOOKUP($BS14,'État & Plan d''action'!$B$6:$DB$1113,18,FALSE),VLOOKUP($BS14,'État & Plan d''action'!$B$6:$DB$1113,28,FALSE),VLOOKUP($BS14,'État & Plan d''action'!$B$6:$DB$1113,38,FALSE),VLOOKUP($BS14,'État & Plan d''action'!$B$6:$DB$1113,48,FALSE),VLOOKUP($BS14,'État & Plan d''action'!$B$6:$DB$1113,58,FALSE),VLOOKUP($BS14,'État & Plan d''action'!$B$6:$DB$1113,68,FALSE),VLOOKUP($BS14,'État & Plan d''action'!$B$6:$DB$1113,78,FALSE),VLOOKUP($BS14,'État & Plan d''action'!$B$6:$DB$1113,88,FALSE),VLOOKUP($BS14,'État & Plan d''action'!$B$6:$DB$1113,98,FALSE)),"") -> 0 | FB14: =IFERROR(SUM(VLOOKUP($BS14,'État & Plan d''action'!$B$6:$DB$1113,20,FALSE),VLOOKUP($BS14,'État & Plan d''action'!$B$6:$DB$1113,30,FALSE),VLOOKUP($BS14,'État & Plan d''action'!$B$6:$DB$1113,40,FALSE),VLOOKUP($BS14,'État & Plan d''action'!$B$6:$DB$1113,50,FALSE),VLOOKUP($BS14,'État & Plan d''action'!$B$6:$DB$1113,60,FALSE),VLOOKUP($BS14,'État & Plan d''action'!$B$6:$DB$1113,70,FALSE),VLOOKUP($BS14,'État & Plan d''action'!$B$6:$DB$1113,80,FALSE),VLOOKUP($BS14,'État & Plan d''action'!$B$6:$DB$1113,90,FALSE),VLOOKUP($BS14,'État & Plan d''action'!$B$6:$DB$1113,100,FALSE)),"") -> 0 | FC14: =IFERROR(SUM(VLOOKUP($BS14,'État & Plan d''action'!$B$6:$DB$1113,22,FALSE),VLOOKUP($BS14,'État & Plan d''action'!$B$6:$DB$1113,32,FALSE),VLOOKUP($BS14,'État & Plan d''action'!$B$6:$DB$1113,42,FALSE),VLOOKUP($BS14,'État & Plan d''action'!$B$6:$DB$1113,52,FALSE),VLOOKUP($BS14,'État & Plan d''action'!$B$6:$DB$1113,62,FALSE),VLOOKUP($BS14,'État & Plan d''action'!$B$6:$DB$1113,72,FALSE),VLOOKUP($BS14,'État & Plan d''action'!$B$6:$DB$1113,82,FALSE),VLOOKUP($BS14,'État & Plan d''action'!$B$6:$DB$1113,92,FALSE),VLOOKUP($BS14,'État & Plan d''action'!$B$6:$DB$1113,102,FALSE)),"") -> 0 | FD14: =IFERROR(SUM(VLOOKUP($BS14,'État & Plan d''action'!$B$6:$DB$1113,24,FALSE),VLOOKUP($BS14,'État & Plan d''action'!$B$6:$DB$1113,34,FALSE),VLOOKUP($BS14,'État & Plan d''action'!$B$6:$DB$1113,44,FALSE),VLOOKUP($BS14,'État & Plan d''action'!$B$6:$DB$1113,54,FALSE),VLOOKUP($BS14,'État & Plan d''action'!$B$6:$DB$1113,64,FALSE),VLOOKUP($BS14,'État & Plan d''action'!$B$6:$DB$1113,74,FALSE),VLOOKUP($BS14,'État & Plan d''action'!$B$6:$DB$1113,84,FALSE),VLOOKUP($BS14,'État & Plan d''action'!$B$6:$DB$1113,94,FALSE),VLOOKUP($BS14,'État & Plan d''action'!$B$6:$DB$1113,104,FALSE)),"") -> 0 | FH14: 176
BS15: 93042 | BT15: ALMA | BU15: 2 | BV15: non | BW15: non | BX15: non | BY15: non | BZ15: non | CA15: non | CB15: non | CC15: non | CD15: non | CE15: non | CF15: oui | CG15: oui | CH15: oui | CI15: oui | CJ15: oui | CK15: oui | CL15: oui | CM15: oui | CN15: oui | CO15: =IF(VLOOKUP(BS15,'Données par municipalité'!$B$6:$E$1113,4,FALSE)="","non","oui") -> oui | CP15: 477.2860499 | CQ15: 498.0146779 | CR15: 492.1423262 | CS15: 451.5197374 | CT15: 441.8145897 | CU15: 397.905454 | CV15: 392.8088706 | CW15: 399 | CX15: =VLOOKUP(BS15,[5]Évolution!$BS$7:$CV$1115,30,FALSE) -> 399 | CY15: =IF(VLOOKUP(BS15,'Données par municipalité'!$B$6:$F$1113,4,FALSE)="","",VLOOKUP(BS15,'Données par municipalité'!$B$6:$F$1113,4,FALSE)) -> 399 | CZ15: Non disponible | DA15: 0 | DB15: 0 | DC15: 0 | DD15: 0.25 | DE15: 0.5 | DF15: 0.5 | DG15: 1 | DH15: 1 | DI15: =IFERROR(SUM(VLOOKUP($BS15,'État & Plan d''action'!$B$6:$DB$1113,18,FALSE),VLOOKUP($BS15,'État & Plan d''action'!$B$6:$DB$1113,20,FALSE),VLOOKUP($BS15,'État & Plan d''action'!$B$6:$DB$1113,28,FALSE),VLOOKUP($BS15,'État & Plan d''action'!$B$6:$DB$1113,30,FALSE),VLOOKUP($BS15,'État & Plan d''action'!$B$6:$DB$1113,38,FALSE),VLOOKUP($BS15,'État & Plan d''action'!$B$6:$DB$1113,40,FALSE),VLOOKUP($BS15,'État & Plan d''action'!$B$6:$DB$1113,48,FALSE),VLOOKUP($BS15,'État & Plan d''action'!$B$6:$DB$1113,50,FALSE),VLOOKUP($BS15,'État & Plan d''action'!$B$6:$DB$1113,58,FALSE),VLOOKUP($BS15,'État & Plan d''action'!$B$6:$DB$1113,60,FALSE),VLOOKUP($BS15,'État & Plan d''action'!$B$6:$DB$1113,68,FALSE),VLOOKUP($BS15,'État & Plan d''action'!$B$6:$DB$1113,70,FALSE),VLOOKUP($BS15,'État & Plan d''action'!$B$6:$DB$1113,78,FALSE),VLOOKUP($BS15,'État & Plan d''action'!$B$6:$DB$1113,80,FALSE),VLOOKUP($BS15,'État & Plan d''action'!$B$6:$DB$1113,88,FALSE),VLOOKUP($BS15,'État & Plan d''action'!$B$6:$DB$1113,90,FALSE),VLOOKUP($BS15,'État & Plan d''action'!$B$6:$DB$1113,98,FALSE),VLOOKUP($BS15,'État & Plan d''action'!$B$6:$DB$1113,100,FALSE))/(VLOOKUP($BS15,'Données par municipalité'!$B$4:$N$1113,13,FALSE)),"") -> 1 | DJ15: =IFERROR(SUM(VLOOKUP($BS15,'État & Plan d''action'!$B$6:$DB$1113,19,FALSE),VLOOKUP($BS15,'État & Plan d''action'!$B$6:$DB$1113,21,FALSE),VLOOKUP($BS15,'État & Plan d''action'!$B$6:$DB$1113,29,FALSE),VLOOKUP($BS15,'État & Plan d''action'!$B$6:$DB$1113,31,FALSE),VLOOKUP($BS15,'État & Plan d''action'!$B$6:$DB$1113,39,FALSE),VLOOKUP($BS15,'État & Plan d''action'!$B$6:$DB$1113,41,FALSE),VLOOKUP($BS15,'État & Plan d''action'!$B$6:$DB$1113,49,FALSE),VLOOKUP($BS15,'État & Plan d''action'!$B$6:$DB$1113,51,FALSE),VLOOKUP($BS15,'État & Plan d''action'!$B$6:$DB$1113,59,FALSE),VLOOKUP($BS15,'État & Plan d''action'!$B$6:$DB$1113,61,FALSE),VLOOKUP($BS15,'État & Plan d''action'!$B$6:$DB$1113,69,FALSE),VLOOKUP($BS15,'État & Plan d''action'!$B$6:$DB$1113,71,FALSE),VLOOKUP($BS15,'État & Plan d''action'!$B$6:$DB$1113,79,FALSE),VLOOKUP($BS15,'État & Plan d''action'!$B$6:$DB$1113,81,FALSE),VLOOKUP($BS15,'État & Plan d''action'!$B$6:$DB$1113,89,FALSE),VLOOKUP($BS15,'État & Plan d''action'!$B$6:$DB$1113,91,FALSE),VLOOKUP($BS15,'État & Plan d''action'!$B$6:$DB$1113,99,FALSE),VLOOKUP($BS15,'État & Plan d''action'!$B$6:$DB$1113,101,FALSE))/(VLOOKUP($BS15,'Données par municipalité'!$B$4:$N$1113,13,FALSE)),"") -> 1 | DK15: Non disponible | DN15: 0 | DO15: 0 | DP15: 39 | DQ15: 69 | DR15: 34 | DS15: 2 | DT15: 0 | DU15: 56 | DV15: 0 | DW15: 5 | DX15: =IF(VLOOKUP($BS15,'État & Plan d''action'!$B$6:$DM$1113,108,FALSE)="","",VLOOKUP($BS15,'État & Plan d''action'!$B$6:$DM$1113,108,FALSE)) -> 43 | DY15: =IF(VLOOKUP($BS15,'État & Plan d''action'!$B$6:$DM$1113,109,FALSE)="","",VLOOKUP($BS15,'État & Plan d''action'!$B$6:$DM$1113,109,FALSE)) -> 0 | DZ15: =IF(VLOOKUP($BS15,'État & Plan d''action'!$B$6:$DM$1113,110,FALSE)="","",VLOOKUP($BS15,'État & Plan d''action'!$B$6:$DM$1113,110,FALSE)) -> 0 | EA15: 271 | EB15: =VLOOKUP(BS15,'[5]Données par municipalité'!$B$6:$F$1113,5,FALSE) -> 246 | EC15: =VLOOKUP($BS15,'Données par municipalité'!$B$6:$F$1113,5,FALSE) -> 237 | ED15: 1.857760683 | EE15: 3.496970914 | EF15: =IF(VLOOKUP(BS15,'Données par municipalité'!$B$6:$U$1113,7,FALSE)="","",VLOOKUP(BS15,'Données par municipalité'!$B$6:$U$1113,7,FALSE)) -> 3.872644467 | EG15: 3 | EH15: 5 | EI15: 0 | EJ15: 2 | EK15: 0 | EL15: 7 | EM15: =VLOOKUP($BS15,'État & Plan d''action'!$B$6:$DK$1113,112,FALSE) -> 3 | EN15: =VLOOKUP($BS15,'État & Plan d''action'!$B$6:$DK$1113,113,FALSE) ->  | EO15: =VLOOKUP($BS15,'État & Plan d''action'!$B$6:$DK$1113,114,FALSE) ->  | EP15: 9.691 | EQ15: 253.858 | ER15: 0 | ES15: 0 | ET15: 0 | EU15: 9.691 | EV15: 253.858 | EW15: 0 | EX15: 0 | EY15: 0 | EZ15: =IFERROR(SUM(VLOOKUP($BS15,'État & Plan d''action'!$B$6:$DB$1113,16,FALSE),VLOOKUP($BS15,'État & Plan d''action'!$B$6:$DB$1113,26,FALSE),VLOOKUP($BS15,'État & Plan d''action'!$B$6:$DB$1113,36,FALSE),VLOOKUP($BS15,'État & Plan d''action'!$B$6:$DB$1113,46,FALSE),VLOOKUP($BS15,'État & Plan d''action'!$B$6:$DB$1113,56,FALSE),VLOOKUP($BS15,'État & Plan d''action'!$B$6:$DB$1113,66,FALSE),VLOOKUP($BS15,'État & Plan d''action'!$B$6:$DB$1113,76,FALSE),VLOOKUP($BS15,'État & Plan d''action'!$B$6:$DB$1113,86,FALSE),VLOOKUP($BS15,'État & Plan d''action'!$B$6:$DB$1113,96,FALSE)),"") -> 0 | FA15: =IFERROR(SUM(VLOOKUP($BS15,'État & Plan d''action'!$B$6:$DB$1113,18,FALSE),VLOOKUP($BS15,'État & Plan d''action'!$B$6:$DB$1113,28,FALSE),VLOOKUP($BS15,'État & Plan d''action'!$B$6:$DB$1113,38,FALSE),VLOOKUP($BS15,'État & Plan d''action'!$B$6:$DB$1113,48,FALSE),VLOOKUP($BS15,'État & Plan d''action'!$B$6:$DB$1113,58,FALSE),VLOOKUP($BS15,'État & Plan d''action'!$B$6:$DB$1113,68,FALSE),VLOOKUP($BS15,'État & Plan d''action'!$B$6:$DB$1113,78,FALSE),VLOOKUP($BS15,'État & Plan d''action'!$B$6:$DB$1113,88,FALSE),VLOOKUP($BS15,'État & Plan d''action'!$B$6:$DB$1113,98,FALSE)),"") -> 0 | FB15: =IFERROR(SUM(VLOOKUP($BS15,'État & Plan d''action'!$B$6:$DB$1113,20,FALSE),VLOOKUP($BS15,'État & Plan d''action'!$B$6:$DB$1113,30,FALSE),VLOOKUP($BS15,'État & Plan d''action'!$B$6:$DB$1113,40,FALSE),VLOOKUP($BS15,'État & Plan d''action'!$B$6:$DB$1113,50,FALSE),VLOOKUP($BS15,'État & Plan d''action'!$B$6:$DB$1113,60,FALSE),VLOOKUP($BS15,'État & Plan d''action'!$B$6:$DB$1113,70,FALSE),VLOOKUP($BS15,'État & Plan d''action'!$B$6:$DB$1113,80,FALSE),VLOOKUP($BS15,'État & Plan d''action'!$B$6:$DB$1113,90,FALSE),VLOOKUP($BS15,'État & Plan d''action'!$B$6:$DB$1113,100,FALSE)),"") -> 253.858 | FC15: =IFERROR(SUM(VLOOKUP($BS15,'État & Plan d''action'!$B$6:$DB$1113,22,FALSE),VLOOKUP($BS15,'État & Plan d''action'!$B$6:$DB$1113,32,FALSE),VLOOKUP($BS15,'État & Plan d''action'!$B$6:$DB$1113,42,FALSE),VLOOKUP($BS15,'État & Plan d''action'!$B$6:$DB$1113,52,FALSE),VLOOKUP($BS15,'État & Plan d''action'!$B$6:$DB$1113,62,FALSE),VLOOKUP($BS15,'État & Plan d''action'!$B$6:$DB$1113,72,FALSE),VLOOKUP($BS15,'État & Plan d''action'!$B$6:$DB$1113,82,FALSE),VLOOKUP($BS15,'État & Plan d''action'!$B$6:$DB$1113,92,FALSE),VLOOKUP($BS15,'État & Plan d''action'!$B$6:$DB$1113,102,FALSE)),"") -> 0 | FD15: =IFERROR(SUM(VLOOKUP($BS15,'État & Plan d''action'!$B$6:$DB$1113,24,FALSE),VLOOKUP($BS15,'État & Plan d''action'!$B$6:$DB$1113,34,FALSE),VLOOKUP($BS15,'État & Plan d''action'!$B$6:$DB$1113,44,FALSE),VLOOKUP($BS15,'État & Plan d''action'!$B$6:$DB$1113,54,FALSE),VLOOKUP($BS15,'État & Plan d''action'!$B$6:$DB$1113,64,FALSE),VLOOKUP($BS15,'État & Plan d''action'!$B$6:$DB$1113,74,FALSE),VLOOKUP($BS15,'État & Plan d''action'!$B$6:$DB$1113,84,FALSE),VLOOKUP($BS15,'État & Plan d''action'!$B$6:$DB$1113,94,FALSE),VLOOKUP($BS15,'État & Plan d''action'!$B$6:$DB$1113,104,FALSE)),"") -> 0 | FE15: 63 | FF15: 65.02631579 | FG15: 65.02631579 | FH15: 30915
BS16: 78070 | BT16: AMHERST | BU16: 15 | BV16: non | BW16: non | BX16: non | BY16: non | BZ16: non | CA16: non | CB16: non | CC16: non | CD16: non | CE16: non | CF16: oui | CG16: oui | CH16: oui | CI16: oui | CJ16: oui | CK16: oui | CL16: oui | CM16: oui | CN16: oui | CO16: =IF(VLOOKUP(BS16,'Données par municipalité'!$B$6:$E$1113,4,FALSE)="","non","oui") -> oui | CP16: 513.8034961 | CQ16: 452.2809206 | CR16: 488.7784914 | CS16: 388.621723 | CT16: 337.5527698 | CU16: 208.044993 | CV16: 198.8250239 | CW16: 244 | CX16: =VLOOKUP(BS16,[5]Évolution!$BS$7:$CV$1115,30,FALSE) -> 264 | CY16: =IF(VLOOKUP(BS16,'Données par municipalité'!$B$6:$F$1113,4,FALSE)="","",VLOOKUP(BS16,'Données par municipalité'!$B$6:$F$1113,4,FALSE)) -> 285 | CZ16: Non disponible | DA16: 0.5 | DB16: 0 | DC16: 0 | DD16: 0 | DE16: 0 | DF16: 0 | DG16: 0 | DH16: 0 | DI16: =IFERROR(SUM(VLOOKUP($BS16,'État & Plan d''action'!$B$6:$DB$1113,18,FALSE),VLOOKUP($BS16,'État & Plan d''action'!$B$6:$DB$1113,20,FALSE),VLOOKUP($BS16,'État & Plan d''action'!$B$6:$DB$1113,28,FALSE),VLOOKUP($BS16,'État & Plan d''action'!$B$6:$DB$1113,30,FALSE),VLOOKUP($BS16,'État & Plan d''action'!$B$6:$DB$1113,38,FALSE),VLOOKUP($BS16,'État & Plan d''action'!$B$6:$DB$1113,40,FALSE),VLOOKUP($BS16,'État & Plan d''action'!$B$6:$DB$1113,48,FALSE),VLOOKUP($BS16,'État & Plan d''action'!$B$6:$DB$1113,50,FALSE),VLOOKUP($BS16,'État & Plan d''action'!$B$6:$DB$1113,58,FALSE),VLOOKUP($BS16,'État & Plan d''action'!$B$6:$DB$1113,60,FALSE),VLOOKUP($BS16,'État & Plan d''action'!$B$6:$DB$1113,68,FALSE),VLOOKUP($BS16,'État & Plan d''action'!$B$6:$DB$1113,70,FALSE),VLOOKUP($BS16,'État & Plan d''action'!$B$6:$DB$1113,78,FALSE),VLOOKUP($BS16,'État & Plan d''action'!$B$6:$DB$1113,80,FALSE),VLOOKUP($BS16,'État & Plan d''action'!$B$6:$DB$1113,88,FALSE),VLOOKUP($BS16,'État & Plan d''action'!$B$6:$DB$1113,90,FALSE),VLOOKUP($BS16,'État & Plan d''action'!$B$6:$DB$1113,98,FALSE),VLOOKUP($BS16,'État & Plan d''action'!$B$6:$DB$1113,100,FALSE))/(VLOOKUP($BS16,'Données par municipalité'!$B$4:$N$1113,13,FALSE)),"") -> 0 | DJ16: =IFERROR(SUM(VLOOKUP($BS16,'État & Plan d''action'!$B$6:$DB$1113,19,FALSE),VLOOKUP($BS16,'État & Plan d''action'!$B$6:$DB$1113,21,FALSE),VLOOKUP($BS16,'État & Plan d''action'!$B$6:$DB$1113,29,FALSE),VLOOKUP($BS16,'État & Plan d''action'!$B$6:$DB$1113,31,FALSE),VLOOKUP($BS16,'État & Plan d''action'!$B$6:$DB$1113,39,FALSE),VLOOKUP($BS16,'État & Plan d''action'!$B$6:$DB$1113,41,FALSE),VLOOKUP($BS16,'État & Plan d''action'!$B$6:$DB$1113,49,FALSE),VLOOKUP($BS16,'État & Plan d''action'!$B$6:$DB$1113,51,FALSE),VLOOKUP($BS16,'État & Plan d''action'!$B$6:$DB$1113,59,FALSE),VLOOKUP($BS16,'État & Plan d''action'!$B$6:$DB$1113,61,FALSE),VLOOKUP($BS16,'État & Plan d''action'!$B$6:$DB$1113,69,FALSE),VLOOKUP($BS16,'État & Plan d''action'!$B$6:$DB$1113,71,FALSE),VLOOKUP($BS16,'État & Plan d''action'!$B$6:$DB$1113,79,FALSE),VLOOKUP($BS16,'État & Plan d''action'!$B$6:$DB$1113,81,FALSE),VLOOKUP($BS16,'État & Plan d''action'!$B$6:$DB$1113,89,FALSE),VLOOKUP($BS16,'État & Plan d''action'!$B$6:$DB$1113,91,FALSE),VLOOKUP($BS16,'État & Plan d''action'!$B$6:$DB$1113,99,FALSE),VLOOKUP($BS16,'État & Plan d''action'!$B$6:$DB$1113,101,FALSE))/(VLOOKUP($BS16,'Données par municipalité'!$B$4:$N$1113,13,FALSE)),"") -> 0 | DK16: Non disponible | DL16: 0 | DM16: 0 | DN16: 1 | DO16: 2 | DP16: 2 | DQ16: 0 | DR16: 0 | DS16: 1 | DT16: 1 | DU16: 0 | DV16: 0 | DW16: 1 | DX16: =IF(VLOOKUP($BS16,'État & Plan d''action'!$B$6:$DM$1113,108,FALSE)="","",VLOOKUP($BS16,'État & Plan d''action'!$B$6:$DM$1113,108,FALSE)) -> 0 | DY16: =IF(VLOOKUP($BS16,'État & Plan d''action'!$B$6:$DM$1113,109,FALSE)="","",VLOOKUP($BS16,'État & Plan d''action'!$B$6:$DM$1113,109,FALSE)) -> 0 | DZ16: =IF(VLOOKUP($BS16,'État & Plan d''action'!$B$6:$DM$1113,110,FALSE)="","",VLOOKUP($BS16,'État & Plan d''action'!$B$6:$DM$1113,110,FALSE)) -> 1 | EA16: 158 | EB16: =VLOOKUP(BS16,'[5]Données par municipalité'!$B$6:$F$1113,5,FALSE) -> 208 | EC16: =VLOOKUP($BS16,'Données par municipalité'!$B$6:$F$1113,5,FALSE) -> 187 | ED16: 1.980548986 | EE16: 0.952950373 | EF16: =IF(VLOOKUP(BS16,'Données par municipalité'!$B$6:$U$1113,7,FALSE)="","",VLOOKUP(BS16,'Données par municipalité'!$B$6:$U$1113,7,FALSE)) -> 2.302788818 | EG16: 0 | EH16: 1 | EI16: 7 | EJ16: 0 | EK16: 0 | EL16: 1 | EM16: =VLOOKUP($BS16,'État & Plan d''action'!$B$6:$DK$1113,112,FALSE) -> S.O. | EN16: =VLOOKUP($BS16,'État & Plan d''action'!$B$6:$DK$1113,113,FALSE) ->  | EO16: =VLOOKUP($BS16,'État & Plan d''action'!$B$6:$DK$1113,114,FALSE) -> 2 | EP16: 6.68 | EQ16: 0 | ER16: 0 | ES16: 0 | ET16: 0 | EU16: 6.68 | EV16: 0 | EW16: 0 | EX16: 0 | EY16: 0 | EZ16: =IFERROR(SUM(VLOOKUP($BS16,'État & Plan d''action'!$B$6:$DB$1113,16,FALSE),VLOOKUP($BS16,'État & Plan d''action'!$B$6:$DB$1113,26,FALSE),VLOOKUP($BS16,'État & Plan d''action'!$B$6:$DB$1113,36,FALSE),VLOOKUP($BS16,'État & Plan d''action'!$B$6:$DB$1113,46,FALSE),VLOOKUP($BS16,'État & Plan d''action'!$B$6:$DB$1113,56,FALSE),VLOOKUP($BS16,'État & Plan d''action'!$B$6:$DB$1113,66,FALSE),VLOOKUP($BS16,'État & Plan d''action'!$B$6:$DB$1113,76,FALSE),VLOOKUP($BS16,'État & Plan d''action'!$B$6:$DB$1113,86,FALSE),VLOOKUP($BS16,'État & Plan d''action'!$B$6:$DB$1113,96,FALSE)),"") -> 0 | FA16: =IFERROR(SUM(VLOOKUP($BS16,'État & Plan d''action'!$B$6:$DB$1113,18,FALSE),VLOOKUP($BS16,'État & Plan d''action'!$B$6:$DB$1113,28,FALSE),VLOOKUP($BS16,'État & Plan d''action'!$B$6:$DB$1113,38,FALSE),VLOOKUP($BS16,'État & Plan d''action'!$B$6:$DB$1113,48,FALSE),VLOOKUP($BS16,'État & Plan d''action'!$B$6:$DB$1113,58,FALSE),VLOOKUP($BS16,'État & Plan d''action'!$B$6:$DB$1113,68,FALSE),VLOOKUP($BS16,'État & Plan d''action'!$B$6:$DB$1113,78,FALSE),VLOOKUP($BS16,'État & Plan d''action'!$B$6:$DB$1113,88,FALSE),VLOOKUP($BS16,'État & Plan d''action'!$B$6:$DB$1113,98,FALSE)),"") -> 0 | FB16: =IFERROR(SUM(VLOOKUP($BS16,'État & Plan d''action'!$B$6:$DB$1113,20,FALSE),VLOOKUP($BS16,'État & Plan d''action'!$B$6:$DB$1113,30,FALSE),VLOOKUP($BS16,'État & Plan d''action'!$B$6:$DB$1113,40,FALSE),VLOOKUP($BS16,'État & Plan d''action'!$B$6:$DB$1113,50,FALSE),VLOOKUP($BS16,'État & Plan d''action'!$B$6:$DB$1113,60,FALSE),VLOOKUP($BS16,'État & Plan d''action'!$B$6:$DB$1113,70,FALSE),VLOOKUP($BS16,'État & Plan d''action'!$B$6:$DB$1113,80,FALSE),VLOOKUP($BS16,'État & Plan d''action'!$B$6:$DB$1113,90,FALSE),VLOOKUP($BS16,'État & Plan d''action'!$B$6:$DB$1113,100,FALSE)),"") -> 0 | FC16: =IFERROR(SUM(VLOOKUP($BS16,'État & Plan d''action'!$B$6:$DB$1113,22,FALSE),VLOOKUP($BS16,'État & Plan d''action'!$B$6:$DB$1113,32,FALSE),VLOOKUP($BS16,'État & Plan d''action'!$B$6:$DB$1113,42,FALSE),VLOOKUP($BS16,'État & Plan d''action'!$B$6:$DB$1113,52,FALSE),VLOOKUP($BS16,'État & Plan d''action'!$B$6:$DB$1113,62,FALSE),VLOOKUP($BS16,'État & Plan d''action'!$B$6:$DB$1113,72,FALSE),VLOOKUP($BS16,'État & Plan d''action'!$B$6:$DB$1113,82,FALSE),VLOOKUP($BS16,'État & Plan d''action'!$B$6:$DB$1113,92,FALSE),VLOOKUP($BS16,'État & Plan d''action'!$B$6:$DB$1113,102,FALSE)),"") -> 0 | FD16: =IFERROR(SUM(VLOOKUP($BS16,'État & Plan d''action'!$B$6:$DB$1113,24,FALSE),VLOOKUP($BS16,'État & Plan d''action'!$B$6:$DB$1113,34,FALSE),VLOOKUP($BS16,'État & Plan d''action'!$B$6:$DB$1113,44,FALSE),VLOOKUP($BS16,'État & Plan d''action'!$B$6:$DB$1113,54,FALSE),VLOOKUP($BS16,'État & Plan d''action'!$B$6:$DB$1113,64,FALSE),VLOOKUP($BS16,'État & Plan d''action'!$B$6:$DB$1113,74,FALSE),VLOOKUP($BS16,'État & Plan d''action'!$B$6:$DB$1113,84,FALSE),VLOOKUP($BS16,'État & Plan d''action'!$B$6:$DB$1113,94,FALSE),VLOOKUP($BS16,'État & Plan d''action'!$B$6:$DB$1113,104,FALSE)),"") -> 0 | FE16: 59 | FF16: 57.65116279 | FG16: 58.72972973 | FH16: 1509
BS17: 88055 | BT17: AMOS | BU17: 8 | BV17: non | BW17: non | BX17: non | BY17: non | BZ17: non | CA17: non | CB17: non | CC17: non | CD17: non | CE17: non | CF17: oui | CG17: oui | CH17: oui | CI17: oui | CJ17: oui | CK17: oui | CL17: oui | CM17: oui | CN17: oui | CO17: =IF(VLOOKUP(BS17,'Données par municipalité'!$B$6:$E$1113,4,FALSE)="","non","oui") -> oui | CP17: 603.8033952 | CQ17: 466.0457248 | CR17: 424.0781628 | CS17: 404.890079 | CT17: 444.8717339 | CU17: 387.976034 | CV17: 367.1509458 | CW17: 429 | CX17: =VLOOKUP(BS17,[5]Évolution!$BS$7:$CV$1115,30,FALSE) -> 480 | CY17: =IF(VLOOKUP(BS17,'Données par municipalité'!$B$6:$F$1113,4,FALSE)="","",VLOOKUP(BS17,'Données par municipalité'!$B$6:$F$1113,4,FALSE)) -> 380 | CZ17: Non disponible | DA17: 0 | DB17: 0 | DC17: 0 | DD17: 0 | DE17: 0 | DF17: 0 | DG17: 0 | DH17: 0 | DI17: =IFERROR(SUM(VLOOKUP($BS17,'État & Plan d''action'!$B$6:$DB$1113,18,FALSE),VLOOKUP($BS17,'État & Plan d''action'!$B$6:$DB$1113,20,FALSE),VLOOKUP($BS17,'État & Plan d''action'!$B$6:$DB$1113,28,FALSE),VLOOKUP($BS17,'État & Plan d''action'!$B$6:$DB$1113,30,FALSE),VLOOKUP($BS17,'État & Plan d''action'!$B$6:$DB$1113,38,FALSE),VLOOKUP($BS17,'État & Plan d''action'!$B$6:$DB$1113,40,FALSE),VLOOKUP($BS17,'État & Plan d''action'!$B$6:$DB$1113,48,FALSE),VLOOKUP($BS17,'État & Plan d''action'!$B$6:$DB$1113,50,FALSE),VLOOKUP($BS17,'État & Plan d''action'!$B$6:$DB$1113,58,FALSE),VLOOKUP($BS17,'État & Plan d''action'!$B$6:$DB$1113,60,FALSE),VLOOKUP($BS17,'État & Plan d''action'!$B$6:$DB$1113,68,FALSE),VLOOKUP($BS17,'État & Plan d''action'!$B$6:$DB$1113,70,FALSE),VLOOKUP($BS17,'État & Plan d''action'!$B$6:$DB$1113,78,FALSE),VLOOKUP($BS17,'État & Plan d''action'!$B$6:$DB$1113,80,FALSE),VLOOKUP($BS17,'État & Plan d''action'!$B$6:$DB$1113,88,FALSE),VLOOKUP($BS17,'État & Plan d''action'!$B$6:$DB$1113,90,FALSE),VLOOKUP($BS17,'État & Plan d''action'!$B$6:$DB$1113,98,FALSE),VLOOKUP($BS17,'État & Plan d''action'!$B$6:$DB$1113,100,FALSE))/(VLOOKUP($BS17,'Données par municipalité'!$B$4:$N$1113,13,FALSE)),"") -> 0 | DJ17: =IFERROR(SUM(VLOOKUP($BS17,'État & Plan d''action'!$B$6:$DB$1113,19,FALSE),VLOOKUP($BS17,'État & Plan d''action'!$B$6:$DB$1113,21,FALSE),VLOOKUP($BS17,'État & Plan d''action'!$B$6:$DB$1113,29,FALSE),VLOOKUP($BS17,'État & Plan d''action'!$B$6:$DB$1113,31,FALSE),VLOOKUP($BS17,'État & Plan d''action'!$B$6:$DB$1113,39,FALSE),VLOOKUP($BS17,'État & Plan d''action'!$B$6:$DB$1113,41,FALSE),VLOOKUP($BS17,'État & Plan d''action'!$B$6:$DB$1113,49,FALSE),VLOOKUP($BS17,'État & Plan d''action'!$B$6:$DB$1113,51,FALSE),VLOOKUP($BS17,'État & Plan d''action'!$B$6:$DB$1113,59,FALSE),VLOOKUP($BS17,'État & Plan d''action'!$B$6:$DB$1113,61,FALSE),VLOOKUP($BS17,'État & Plan d''action'!$B$6:$DB$1113,69,FALSE),VLOOKUP($BS17,'État & Plan d''action'!$B$6:$DB$1113,71,FALSE),VLOOKUP($BS17,'État & Plan d''action'!$B$6:$DB$1113,79,FALSE),VLOOKUP($BS17,'État & Plan d''action'!$B$6:$DB$1113,81,FALSE),VLOOKUP($BS17,'État & Plan d''action'!$B$6:$DB$1113,89,FALSE),VLOOKUP($BS17,'État & Plan d''action'!$B$6:$DB$1113,91,FALSE),VLOOKUP($BS17,'État & Plan d''action'!$B$6:$DB$1113,99,FALSE),VLOOKUP($BS17,'État & Plan d''action'!$B$6:$DB$1113,101,FALSE))/(VLOOKUP($BS17,'Données par municipalité'!$B$4:$N$1113,13,FALSE)),"") -> 1 | DK17: Non disponible | DN17: 0 | DO17: 0 | DP17: 8 | DQ17: 11 | DR17: 9 | DS17: 3 | DT17: 2 | DU17: 8 | DV17: 4 | DW17: 3 | DX17: =IF(VLOOKUP($BS17,'État & Plan d''action'!$B$6:$DM$1113,108,FALSE)="","",VLOOKUP($BS17,'État & Plan d''action'!$B$6:$DM$1113,108,FALSE)) -> 7 | DY17: =IF(VLOOKUP($BS17,'État & Plan d''action'!$B$6:$DM$1113,109,FALSE)="","",VLOOKUP($BS17,'État & Plan d''action'!$B$6:$DM$1113,109,FALSE)) -> 5 | DZ17: =IF(VLOOKUP($BS17,'État & Plan d''action'!$B$6:$DM$1113,110,FALSE)="","",VLOOKUP($BS17,'État & Plan d''action'!$B$6:$DM$1113,110,FALSE)) -> 2 | EA17: 231 | EB17: =VLOOKUP(BS17,'[5]Données par municipalité'!$B$6:$F$1113,5,FALSE) -> 272 | EC17: =VLOOKUP($BS17,'Données par municipalité'!$B$6:$F$1113,5,FALSE) -> 223 | ED17: 0.7647509206 | EE17: 1.898776993 | EF17: =IF(VLOOKUP(BS17,'Données par municipalité'!$B$6:$U$1113,7,FALSE)="","",VLOOKUP(BS17,'Données par municipalité'!$B$6:$U$1113,7,FALSE)) -> 3.148246378 | EG17: 2 | EH17: 2 | EI17: 2 | EJ17: 2 | EK17: 2 | EL17: 2 | EM17: =VLOOKUP($BS17,'État & Plan d''action'!$B$6:$DK$1113,112,FALSE) -> 2 | EN17: =VLOOKUP($BS17,'État & Plan d''action'!$B$6:$DK$1113,113,FALSE) -> 2 | EO17: =VLOOKUP($BS17,'État & Plan d''action'!$B$6:$DK$1113,114,FALSE) -> 2 | EP17: 0 | EQ17: 0 | ER17: 0 | ES17: 0 | ET17: 0 | EU17: 0 | EV17: 0 | EW17: 0 | EX17: 0 | EY17: 0 | EZ17: =IFERROR(SUM(VLOOKUP($BS17,'État & Plan d''action'!$B$6:$DB$1113,16,FALSE),VLOOKUP($BS17,'État & Plan d''action'!$B$6:$DB$1113,26,FALSE),VLOOKUP($BS17,'État & Plan d''action'!$B$6:$DB$1113,36,FALSE),VLOOKUP($BS17,'État & Plan d''action'!$B$6:$DB$1113,46,FALSE),VLOOKUP($BS17,'État & Plan d''action'!$B$6:$DB$1113,56,FALSE),VLOOKUP($BS17,'État & Plan d''action'!$B$6:$DB$1113,66,FALSE),VLOOKUP($BS17,'État & Plan d''action'!$B$6:$DB$1113,76,FALSE),VLOOKUP($BS17,'État & Plan d''action'!$B$6:$DB$1113,86,FALSE),VLOOKUP($BS17,'État & Plan d''action'!$B$6:$DB$1113,96,FALSE)),"") -> 0 | FA17: =IFERROR(SUM(VLOOKUP($BS17,'État & Plan d''action'!$B$6:$DB$1113,18,FALSE),VLOOKUP($BS17,'État & Plan d''action'!$B$6:$DB$1113,28,FALSE),VLOOKUP($BS17,'État & Plan d''action'!$B$6:$DB$1113,38,FALSE),VLOOKUP($BS17,'État & Plan d''action'!$B$6:$DB$1113,48,FALSE),VLOOKUP($BS17,'État & Plan d''action'!$B$6:$DB$1113,58,FALSE),VLOOKUP($BS17,'État & Plan d''action'!$B$6:$DB$1113,68,FALSE),VLOOKUP($BS17,'État & Plan d''action'!$B$6:$DB$1113,78,FALSE),VLOOKUP($BS17,'État & Plan d''action'!$B$6:$DB$1113,88,FALSE),VLOOKUP($BS17,'État & Plan d''action'!$B$6:$DB$1113,98,FALSE)),"") -> 0 | FB17: =IFERROR(SUM(VLOOKUP($BS17,'État & Plan d''action'!$B$6:$DB$1113,20,FALSE),VLOOKUP($BS17,'État & Plan d''action'!$B$6:$DB$1113,30,FALSE),VLOOKUP($BS17,'État & Plan d''action'!$B$6:$DB$1113,40,FALSE),VLOOKUP($BS17,'État & Plan d''action'!$B$6:$DB$1113,50,FALSE),VLOOKUP($BS17,'État & Plan d''action'!$B$6:$DB$1113,60,FALSE),VLOOKUP($BS17,'État & Plan d''action'!$B$6:$DB$1113,70,FALSE),VLOOKUP($BS17,'État & Plan d''action'!$B$6:$DB$1113,80,FALSE),VLOOKUP($BS17,'État & Plan d''action'!$B$6:$DB$1113,90,FALSE),VLOOKUP($BS17,'État & Plan d''action'!$B$6:$DB$1113,100,FALSE)),"") -> 0 | FC17: =IFERROR(SUM(VLOOKUP($BS17,'État & Plan d''action'!$B$6:$DB$1113,22,FALSE),VLOOKUP($BS17,'État & Plan d''action'!$B$6:$DB$1113,32,FALSE),VLOOKUP($BS17,'État & Plan d''action'!$B$6:$DB$1113,42,FALSE),VLOOKUP($BS17,'État & Plan d''action'!$B$6:$DB$1113,52,FALSE),VLOOKUP($BS17,'État & Plan d''action'!$B$6:$DB$1113,62,FALSE),VLOOKUP($BS17,'État & Plan d''action'!$B$6:$DB$1113,72,FALSE),VLOOKUP($BS17,'État & Plan d''action'!$B$6:$DB$1113,82,FALSE),VLOOKUP($BS17,'État & Plan d''action'!$B$6:$DB$1113,92,FALSE),VLOOKUP($BS17,'État & Plan d''action'!$B$6:$DB$1113,102,FALSE)),"") -> 0 | FD17: =IFERROR(SUM(VLOOKUP($BS17,'État & Plan d''action'!$B$6:$DB$1113,24,FALSE),VLOOKUP($BS17,'État & Plan d''action'!$B$6:$DB$1113,34,FALSE),VLOOKUP($BS17,'État & Plan d''action'!$B$6:$DB$1113,44,FALSE),VLOOKUP($BS17,'État & Plan d''action'!$B$6:$DB$1113,54,FALSE),VLOOKUP($BS17,'État & Plan d''action'!$B$6:$DB$1113,64,FALSE),VLOOKUP($BS17,'État & Plan d''action'!$B$6:$DB$1113,74,FALSE),VLOOKUP($BS17,'État & Plan d''action'!$B$6:$DB$1113,84,FALSE),VLOOKUP($BS17,'État & Plan d''action'!$B$6:$DB$1113,94,FALSE),VLOOKUP($BS17,'État & Plan d''action'!$B$6:$DB$1113,104,FALSE)),"") -> 0 | FE17: 53 | FF17: 63.30631386 | FG17: 61.85363432 | FH17: 12721
BS18: 7047 | BT18: AMQUI | BU18: 1 | BV18: non | BW18: non | BX18: non | BY18: non | BZ18: non | CA18: non | CB18: non | CC18: non | CD18: non | CE18: non | CF18: oui | CG18: non | CH18: non | CI18: non | CJ18: non | CK18: oui | CL18: oui | CM18: non | CN18: oui | CO18: =IF(VLOOKUP(BS18,'Données par municipalité'!$B$6:$E$1113,4,FALSE)="","non","oui") -> oui | CP18: 199.2656648 | CU18: 508.6403646 | CV18: 523.4754104 | CX18: =VLOOKUP(BS18,[5]Évolution!$BS$7:$CV$1115,30,FALSE) -> 623 | CY18: =IF(VLOOKUP(BS18,'Données par municipalité'!$B$6:$F$1113,4,FALSE)="","",VLOOKUP(BS18,'Données par municipalité'!$B$6:$F$1113,4,FALSE)) -> 560 | CZ18: Non disponible | DE18: 0 | DF18: 0 | DH18: 0.2611022546 | DI18: =IFERROR(SUM(VLOOKUP($BS18,'État & Plan d''action'!$B$6:$DB$1113,18,FALSE),VLOOKUP($BS18,'État & Plan d''action'!$B$6:$DB$1113,20,FALSE),VLOOKUP($BS18,'État & Plan d''action'!$B$6:$DB$1113,28,FALSE),VLOOKUP($BS18,'État & Plan d''action'!$B$6:$DB$1113,30,FALSE),VLOOKUP($BS18,'État & Plan d''action'!$B$6:$DB$1113,38,FALSE),VLOOKUP($BS18,'État & Plan d''action'!$B$6:$DB$1113,40,FALSE),VLOOKUP($BS18,'État & Plan d''action'!$B$6:$DB$1113,48,FALSE),VLOOKUP($BS18,'État & Plan d''action'!$B$6:$DB$1113,50,FALSE),VLOOKUP($BS18,'État & Plan d''action'!$B$6:$DB$1113,58,FALSE),VLOOKUP($BS18,'État & Plan d''action'!$B$6:$DB$1113,60,FALSE),VLOOKUP($BS18,'État & Plan d''action'!$B$6:$DB$1113,68,FALSE),VLOOKUP($BS18,'État & Plan d''action'!$B$6:$DB$1113,70,FALSE),VLOOKUP($BS18,'État & Plan d''action'!$B$6:$DB$1113,78,FALSE),VLOOKUP($BS18,'État & Plan d''action'!$B$6:$DB$1113,80,FALSE),VLOOKUP($BS18,'État & Plan d''action'!$B$6:$DB$1113,88,FALSE),VLOOKUP($BS18,'État & Plan d''action'!$B$6:$DB$1113,90,FALSE),VLOOKUP($BS18,'État & Plan d''action'!$B$6:$DB$1113,98,FALSE),VLOOKUP($BS18,'État & Plan d''action'!$B$6:$DB$1113,100,FALSE))/(VLOOKUP($BS18,'Données par municipalité'!$B$4:$N$1113,13,FALSE)),"") -> 1 | DJ18: =IFERROR(SUM(VLOOKUP($BS18,'État & Plan d''action'!$B$6:$DB$1113,19,FALSE),VLOOKUP($BS18,'État & Plan d''action'!$B$6:$DB$1113,21,FALSE),VLOOKUP($BS18,'État & Plan d''action'!$B$6:$DB$1113,29,FALSE),VLOOKUP($BS18,'État & Plan d''action'!$B$6:$DB$1113,31,FALSE),VLOOKUP($BS18,'État & Plan d''action'!$B$6:$DB$1113,39,FALSE),VLOOKUP($BS18,'État & Plan d''action'!$B$6:$DB$1113,41,FALSE),VLOOKUP($BS18,'État & Plan d''action'!$B$6:$DB$1113,49,FALSE),VLOOKUP($BS18,'État & Plan d''action'!$B$6:$DB$1113,51,FALSE),VLOOKUP($BS18,'État & Plan d''action'!$B$6:$DB$1113,59,FALSE),VLOOKUP($BS18,'État & Plan d''action'!$B$6:$DB$1113,61,FALSE),VLOOKUP($BS18,'État & Plan d''action'!$B$6:$DB$1113,69,FALSE),VLOOKUP($BS18,'État & Plan d''action'!$B$6:$DB$1113,71,FALSE),VLOOKUP($BS18,'État & Plan d''action'!$B$6:$DB$1113,79,FALSE),VLOOKUP($BS18,'État & Plan d''action'!$B$6:$DB$1113,81,FALSE),VLOOKUP($BS18,'État & Plan d''action'!$B$6:$DB$1113,89,FALSE),VLOOKUP($BS18,'État & Plan d''action'!$B$6:$DB$1113,91,FALSE),VLOOKUP($BS18,'État & Plan d''action'!$B$6:$DB$1113,99,FALSE),VLOOKUP($BS18,'État & Plan d''action'!$B$6:$DB$1113,101,FALSE))/(VLOOKUP($BS18,'Données par municipalité'!$B$4:$N$1113,13,FALSE)),"") -> 1 | DK18: Non disponible | DN18: 0 | DO18: 0 | DP18: 1 | DQ18: 1 | DU18: 3 | DV18: 0 | DW18: 0 | DX18: =IF(VLOOKUP($BS18,'État & Plan d''action'!$B$6:$DM$1113,108,FALSE)="","",VLOOKUP($BS18,'État & Plan d''action'!$B$6:$DM$1113,108,FALSE)) -> 1 | DY18: =IF(VLOOKUP($BS18,'État & Plan d''action'!$B$6:$DM$1113,109,FALSE)="","",VLOOKUP($BS18,'État & Plan d''action'!$B$6:$DM$1113,109,FALSE)) -> 0 | DZ18: =IF(VLOOKUP($BS18,'État & Plan d''action'!$B$6:$DM$1113,110,FALSE)="","",VLOOKUP($BS18,'État & Plan d''action'!$B$6:$DM$1113,110,FALSE)) -> 2 | EB18: =VLOOKUP(BS18,'[5]Données par municipalité'!$B$6:$F$1113,5,FALSE) -> 348 | EC18: =VLOOKUP($BS18,'Données par municipalité'!$B$6:$F$1113,5,FALSE) -> 262 | EE18: 9.360205358 | EF18: =IF(VLOOKUP(BS18,'Données par municipalité'!$B$6:$U$1113,7,FALSE)="","",VLOOKUP(BS18,'Données par municipalité'!$B$6:$U$1113,7,FALSE)) -> 8.168554426 | EJ18: 2 | EK18: 0 | EL18: 0 | EM18: =VLOOKUP($BS18,'État & Plan d''action'!$B$6:$DK$1113,112,FALSE) -> 2 | EN18: =VLOOKUP($BS18,'État & Plan d''action'!$B$6:$DK$1113,113,FALSE) ->  | EO18: =VLOOKUP($BS18,'État & Plan d''action'!$B$6:$DK$1113,114,FALSE) -> 2 | EZ18: =IFERROR(SUM(VLOOKUP($BS18,'État & Plan d''action'!$B$6:$DB$1113,16,FALSE),VLOOKUP($BS18,'État & Plan d''action'!$B$6:$DB$1113,26,FALSE),VLOOKUP($BS18,'État & Plan d''action'!$B$6:$DB$1113,36,FALSE),VLOOKUP($BS18,'État & Plan d''action'!$B$6:$DB$1113,46,FALSE),VLOOKUP($BS18,'État & Plan d''action'!$B$6:$DB$1113,56,FALSE),VLOOKUP($BS18,'État & Plan d''action'!$B$6:$DB$1113,66,FALSE),VLOOKUP($BS18,'État & Plan d''action'!$B$6:$DB$1113,76,FALSE),VLOOKUP($BS18,'État & Plan d''action'!$B$6:$DB$1113,86,FALSE),VLOOKUP($BS18,'État & Plan d''action'!$B$6:$DB$1113,96,FALSE)),"") -> 0 | FA18: =IFERROR(SUM(VLOOKUP($BS18,'État & Plan d''action'!$B$6:$DB$1113,18,FALSE),VLOOKUP($BS18,'État & Plan d''action'!$B$6:$DB$1113,28,FALSE),VLOOKUP($BS18,'État & Plan d''action'!$B$6:$DB$1113,38,FALSE),VLOOKUP($BS18,'État & Plan d''action'!$B$6:$DB$1113,48,FALSE),VLOOKUP($BS18,'État & Plan d''action'!$B$6:$DB$1113,58,FALSE),VLOOKUP($BS18,'État & Plan d''action'!$B$6:$DB$1113,68,FALSE),VLOOKUP($BS18,'État & Plan d''action'!$B$6:$DB$1113,78,FALSE),VLOOKUP($BS18,'État & Plan d''action'!$B$6:$DB$1113,88,FALSE),VLOOKUP($BS18,'État & Plan d''action'!$B$6:$DB$1113,98,FALSE)),"") -> 0 | FB18: =IFERROR(SUM(VLOOKUP($BS18,'État & Plan d''action'!$B$6:$DB$1113,20,FALSE),VLOOKUP($BS18,'État & Plan d''action'!$B$6:$DB$1113,30,FALSE),VLOOKUP($BS18,'État & Plan d''action'!$B$6:$DB$1113,40,FALSE),VLOOKUP($BS18,'État & Plan d''action'!$B$6:$DB$1113,50,FALSE),VLOOKUP($BS18,'État & Plan d''action'!$B$6:$DB$1113,60,FALSE),VLOOKUP($BS18,'État & Plan d''action'!$B$6:$DB$1113,70,FALSE),VLOOKUP($BS18,'État & Plan d''action'!$B$6:$DB$1113,80,FALSE),VLOOKUP($BS18,'État & Plan d''action'!$B$6:$DB$1113,90,FALSE),VLOOKUP($BS18,'État & Plan d''action'!$B$6:$DB$1113,100,FALSE)),"") -> 43.91 | FC18: =IFERROR(SUM(VLOOKUP($BS18,'État & Plan d''action'!$B$6:$DB$1113,22,FALSE),VLOOKUP($BS18,'État & Plan d''action'!$B$6:$DB$1113,32,FALSE),VLOOKUP($BS18,'État & Plan d''action'!$B$6:$DB$1113,42,FALSE),VLOOKUP($BS18,'État & Plan d''action'!$B$6:$DB$1113,52,FALSE),VLOOKUP($BS18,'État & Plan d''action'!$B$6:$DB$1113,62,FALSE),VLOOKUP($BS18,'État & Plan d''action'!$B$6:$DB$1113,72,FALSE),VLOOKUP($BS18,'État & Plan d''action'!$B$6:$DB$1113,82,FALSE),VLOOKUP($BS18,'État & Plan d''action'!$B$6:$DB$1113,92,FALSE),VLOOKUP($BS18,'État & Plan d''action'!$B$6:$DB$1113,102,FALSE)),"") -> 0 | FD18: =IFERROR(SUM(VLOOKUP($BS18,'État & Plan d''action'!$B$6:$DB$1113,24,FALSE),VLOOKUP($BS18,'État & Plan d''action'!$B$6:$DB$1113,34,FALSE),VLOOKUP($BS18,'État & Plan d''action'!$B$6:$DB$1113,44,FALSE),VLOOKUP($BS18,'État & Plan d''action'!$B$6:$DB$1113,54,FALSE),VLOOKUP($BS18,'État & Plan d''action'!$B$6:$DB$1113,64,FALSE),VLOOKUP($BS18,'État & Plan d''action'!$B$6:$DB$1113,74,FALSE),VLOOKUP($BS18,'État & Plan d''action'!$B$6:$DB$1113,84,FALSE),VLOOKUP($BS18,'État & Plan d''action'!$B$6:$DB$1113,94,FALSE),VLOOKUP($BS18,'État & Plan d''action'!$B$6:$DB$1113,104,FALSE)),"") -> 0 | FF18: 53.91836735 | FG18: 52.15686275 | FH18: 6119
W19: Évolution 2011 à 2020 | BS19: 55008 | BT19: ANGE-GARDIEN | BU19: 16 | BV19: non | BW19: non | BX19: non | BY19: non | BZ19: non | CA19: non | CB19: non | CC19: non | CD19: non | CE19: non | CF19: oui | CG19: oui | CH19: non | CI19: oui | CJ19: oui | CK19: oui | CL19: oui | CM19: oui | CN19: oui | CO19: =IF(VLOOKUP(BS19,'Données par municipalité'!$B$6:$E$1113,4,FALSE)="","non","oui") -> oui | CP19: 1137.74979 | CQ19: 1119.014689 | CS19: 1089.114684 | CT19: 1111.09821 | CU19: 1094.921913 | CV19: 1050.443598 | CW19: 1012 | CX19: =VLOOKUP(BS19,[5]Évolution!$BS$7:$CV$1115,30,FALSE) -> 1037 | CY19: =IF(VLOOKUP(BS19,'Données par municipalité'!$B$6:$F$1113,4,FALSE)="","",VLOOKUP(BS19,'Données par municipalité'!$B$6:$F$1113,4,FALSE)) -> 828 | CZ19: Non disponible | DA19: 0 | DC19: 0 | DD19: 0 | DE19: 0 | DF19: 0 | DG19: 0 | DH19: 0 | DI19: =IFERROR(SUM(VLOOKUP($BS19,'État & Plan d''action'!$B$6:$DB$1113,18,FALSE),VLOOKUP($BS19,'État & Plan d''action'!$B$6:$DB$1113,20,FALSE),VLOOKUP($BS19,'État & Plan d''action'!$B$6:$DB$1113,28,FALSE),VLOOKUP($BS19,'État & Plan d''action'!$B$6:$DB$1113,30,FALSE),VLOOKUP($BS19,'État & Plan d''action'!$B$6:$DB$1113,38,FALSE),VLOOKUP($BS19,'État & Plan d''action'!$B$6:$DB$1113,40,FALSE),VLOOKUP($BS19,'État & Plan d''action'!$B$6:$DB$1113,48,FALSE),VLOOKUP($BS19,'État & Plan d''action'!$B$6:$DB$1113,50,FALSE),VLOOKUP($BS19,'État & Plan d''action'!$B$6:$DB$1113,58,FALSE),VLOOKUP($BS19,'État & Plan d''action'!$B$6:$DB$1113,60,FALSE),VLOOKUP($BS19,'État & Plan d''action'!$B$6:$DB$1113,68,FALSE),VLOOKUP($BS19,'État & Plan d''action'!$B$6:$DB$1113,70,FALSE),VLOOKUP($BS19,'État & Plan d''action'!$B$6:$DB$1113,78,FALSE),VLOOKUP($BS19,'État & Plan d''action'!$B$6:$DB$1113,80,FALSE),VLOOKUP($BS19,'État & Plan d''action'!$B$6:$DB$1113,88,FALSE),VLOOKUP($BS19,'État & Plan d''action'!$B$6:$DB$1113,90,FALSE),VLOOKUP($BS19,'État & Plan d''action'!$B$6:$DB$1113,98,FALSE),VLOOKUP($BS19,'État & Plan d''action'!$B$6:$DB$1113,100,FALSE))/(VLOOKUP($BS19,'Données par municipalité'!$B$4:$N$1113,13,FALSE)),"") -> 0.9883694203 | DJ19: =IFERROR(SUM(VLOOKUP($BS19,'État & Plan d''action'!$B$6:$DB$1113,19,FALSE),VLOOKUP($BS19,'État & Plan d''action'!$B$6:$DB$1113,21,FALSE),VLOOKUP($BS19,'État & Plan d''action'!$B$6:$DB$1113,29,FALSE),VLOOKUP($BS19,'État & Plan d''action'!$B$6:$DB$1113,31,FALSE),VLOOKUP($BS19,'État & Plan d''action'!$B$6:$DB$1113,39,FALSE),VLOOKUP($BS19,'État & Plan d''action'!$B$6:$DB$1113,41,FALSE),VLOOKUP($BS19,'État & Plan d''action'!$B$6:$DB$1113,49,FALSE),VLOOKUP($BS19,'État & Plan d''action'!$B$6:$DB$1113,51,FALSE),VLOOKUP($BS19,'État & Plan d''action'!$B$6:$DB$1113,59,FALSE),VLOOKUP($BS19,'État & Plan d''action'!$B$6:$DB$1113,61,FALSE),VLOOKUP($BS19,'État & Plan d''action'!$B$6:$DB$1113,69,FALSE),VLOOKUP($BS19,'État & Plan d''action'!$B$6:$DB$1113,71,FALSE),VLOOKUP($BS19,'État & Plan d''action'!$B$6:$DB$1113,79,FALSE),VLOOKUP($BS19,'État & Plan d''action'!$B$6:$DB$1113,81,FALSE),VLOOKUP($BS19,'État & Plan d''action'!$B$6:$DB$1113,89,FALSE),VLOOKUP($BS19,'État & Plan d''action'!$B$6:$DB$1113,91,FALSE),VLOOKUP($BS19,'État & Plan d''action'!$B$6:$DB$1113,99,FALSE),VLOOKUP($BS19,'État & Plan d''action'!$B$6:$DB$1113,101,FALSE))/(VLOOKUP($BS19,'Données par municipalité'!$B$4:$N$1113,13,FALSE)),"") -> 0.2298533536 | DK19: Non disponible | DL19: 1 | DN19: 4 | DO19: 3 | DP19: 2 | DQ19: 3 | DR19: 1 | DS19: 0 | DT19: 1 | DU19: 1 | DV19: 0 | DW19: 0 | DX19: =IF(VLOOKUP($BS19,'État & Plan d''action'!$B$6:$DM$1113,108,FALSE)="","",VLOOKUP($BS19,'État & Plan d''action'!$B$6:$DM$1113,108,FALSE)) -> 0 | DY19: =IF(VLOOKUP($BS19,'État & Plan d''action'!$B$6:$DM$1113,109,FALSE)="","",VLOOKUP($BS19,'État & Plan d''action'!$B$6:$DM$1113,109,FALSE)) -> 0 | DZ19: =IF(VLOOKUP($BS19,'État & Plan d''action'!$B$6:$DM$1113,110,FALSE)="","",VLOOKUP($BS19,'État & Plan d''action'!$B$6:$DM$1113,110,FALSE)) -> 0 | EA19: 301 | EB19: =VLOOKUP(BS19,'[5]Données par municipalité'!$B$6:$F$1113,5,FALSE) -> 295 | EC19: =VLOOKUP($BS19,'Données par municipalité'!$B$6:$F$1113,5,FALSE) -> 251 | ED19: 3.549182122 | EE19: 3.682871692 | EF19: =IF(VLOOKUP(BS19,'Données par municipalité'!$B$6:$U$1113,7,FALSE)="","",VLOOKUP(BS19,'Données par municipalité'!$B$6:$U$1113,7,FALSE)) -> 3.644070082 | EG19: 1 | EH19: 0 | EI19: 1 | EJ19: 1 | EK19: 0 | EL19: 0 | EM19: =VLOOKUP($BS19,'État & Plan d''action'!$B$6:$DK$1113,112,FALSE) -> S.O. | EN19: =VLOOKUP($BS19,'État & Plan d''action'!$B$6:$DK$1113,113,FALSE) ->  | EO19: =VLOOKUP($BS19,'État & Plan d''action'!$B$6:$DK$1113,114,FALSE) ->  | EP19: 0 | EQ19: 0 | ER19: 0 | ES19: 0 | ET19: 0 | EU19: 0 | EV19: 0 | EW19: 0 | EX19: 0 | EY19: 0 | EZ19: =IFERROR(SUM(VLOOKUP($BS19,'État & Plan d''action'!$B$6:$DB$1113,16,FALSE),VLOOKUP($BS19,'État & Plan d''action'!$B$6:$DB$1113,26,FALSE),VLOOKUP($BS19,'État & Plan d''action'!$B$6:$DB$1113,36,FALSE),VLOOKUP($BS19,'État & Plan d''action'!$B$6:$DB$1113,46,FALSE),VLOOKUP($BS19,'État & Plan d''action'!$B$6:$DB$1113,56,FALSE),VLOOKUP($BS19,'État & Plan d''action'!$B$6:$DB$1113,66,FALSE),VLOOKUP($BS19,'État & Plan d''action'!$B$6:$DB$1113,76,FALSE),VLOOKUP($BS19,'État & Plan d''action'!$B$6:$DB$1113,86,FALSE),VLOOKUP($BS19,'État & Plan d''action'!$B$6:$DB$1113,96,FALSE)),"") -> 0 | FA19: =IFERROR(SUM(VLOOKUP($BS19,'État & Plan d''action'!$B$6:$DB$1113,18,FALSE),VLOOKUP($BS19,'État & Plan d''action'!$B$6:$DB$1113,28,FALSE),VLOOKUP($BS19,'État & Plan d''action'!$B$6:$DB$1113,38,FALSE),VLOOKUP($BS19,'État & Plan d''action'!$B$6:$DB$1113,48,FALSE),VLOOKUP($BS19,'État & Plan d''action'!$B$6:$DB$1113,58,FALSE),VLOOKUP($BS19,'État & Plan d''action'!$B$6:$DB$1113,68,FALSE),VLOOKUP($BS19,'État & Plan d''action'!$B$6:$DB$1113,78,FALSE),VLOOKUP($BS19,'État & Plan d''action'!$B$6:$DB$1113,88,FALSE),VLOOKUP($BS19,'État & Plan d''action'!$B$6:$DB$1113,98,FALSE)),"") -> 0 | FB19: =IFERROR(SUM(VLOOKUP($BS19,'État & Plan d''action'!$B$6:$DB$1113,20,FALSE),VLOOKUP($BS19,'État & Plan d''action'!$B$6:$DB$1113,30,FALSE),VLOOKUP($BS19,'État & Plan d''action'!$B$6:$DB$1113,40,FALSE),VLOOKUP($BS19,'État & Plan d''action'!$B$6:$DB$1113,50,FALSE),VLOOKUP($BS19,'État & Plan d''action'!$B$6:$DB$1113,60,FALSE),VLOOKUP($BS19,'État & Plan d''action'!$B$6:$DB$1113,70,FALSE),VLOOKUP($BS19,'État & Plan d''action'!$B$6:$DB$1113,80,FALSE),VLOOKUP($BS19,'État & Plan d''action'!$B$6:$DB$1113,90,FALSE),VLOOKUP($BS19,'État & Plan d''action'!$B$6:$DB$1113,100,FALSE)),"") -> 21.5 | FC19: =IFERROR(SUM(VLOOKUP($BS19,'État & Plan d''action'!$B$6:$DB$1113,22,FALSE),VLOOKUP($BS19,'État & Plan d''action'!$B$6:$DB$1113,32,FALSE),VLOOKUP($BS19,'État & Plan d''action'!$B$6:$DB$1113,42,FALSE),VLOOKUP($BS19,'État & Plan d''action'!$B$6:$DB$1113,52,FALSE),VLOOKUP($BS19,'État & Plan d''action'!$B$6:$DB$1113,62,FALSE),VLOOKUP($BS19,'État & Plan d''action'!$B$6:$DB$1113,72,FALSE),VLOOKUP($BS19,'État & Plan d''action'!$B$6:$DB$1113,82,FALSE),VLOOKUP($BS19,'État & Plan d''action'!$B$6:$DB$1113,92,FALSE),VLOOKUP($BS19,'État & Plan d''action'!$B$6:$DB$1113,102,FALSE)),"") -> 21.5 | FD19: =IFERROR(SUM(VLOOKUP($BS19,'État & Plan d''action'!$B$6:$DB$1113,24,FALSE),VLOOKUP($BS19,'État & Plan d''action'!$B$6:$DB$1113,34,FALSE),VLOOKUP($BS19,'État & Plan d''action'!$B$6:$DB$1113,44,FALSE),VLOOKUP($BS19,'État & Plan d''action'!$B$6:$DB$1113,54,FALSE),VLOOKUP($BS19,'État & Plan d''action'!$B$6:$DB$1113,64,FALSE),VLOOKUP($BS19,'État & Plan d''action'!$B$6:$DB$1113,74,FALSE),VLOOKUP($BS19,'État & Plan d''action'!$B$6:$DB$1113,84,FALSE),VLOOKUP($BS19,'État & Plan d''action'!$B$6:$DB$1113,94,FALSE),VLOOKUP($BS19,'État & Plan d''action'!$B$6:$DB$1113,104,FALSE)),"") -> 0 | FE19: 75 | FF19: 74.83333333 | FG19: 75.34313725 | FH19: 2862
W20: =NM -> TOUT LE QUÉBEC | X20: Année | BS20: 19037 | BT20: ARMAGH | BU20: 12 | BV20: non | BW20: non | BX20: non | BY20: non | BZ20: non | CA20: non | CB20: non | CC20: non | CD20: non | CE20: non | CF20: oui | CG20: oui | CH20: oui | CI20: oui | CJ20: oui | CK20: oui | CL20: oui | CM20: oui | CN20: oui | CO20: =IF(VLOOKUP(BS20,'Données par municipalité'!$B$6:$E$1113,4,FALSE)="","non","oui") -> oui | CP20: 330.8893256 | CQ20: 345.0339 | CR20: 354.1952055 | CS20: 340.1820078 | CT20: 352.1497042 | CU20: 360.5236351 | CV20: 336.1624897 | CW20: 290 | CX20: =VLOOKUP(BS20,[5]Évolution!$BS$7:$CV$1115,30,FALSE) -> 309 | CY20: =IF(VLOOKUP(BS20,'Données par municipalité'!$B$6:$F$1113,4,FALSE)="","",VLOOKUP(BS20,'Données par municipalité'!$B$6:$F$1113,4,FALSE)) -> 320 | CZ20: Non disponible | DA20: 0 | DB20: 1 | DC20: 1 | DD20: 0 | DE20: 0 | DF20: 0 | DG20: 0 | DH20: 0 | DI20: =IFERROR(SUM(VLOOKUP($BS20,'État & Plan d''action'!$B$6:$DB$1113,18,FALSE),VLOOKUP($BS20,'État & Plan d''action'!$B$6:$DB$1113,20,FALSE),VLOOKUP($BS20,'État & Plan d''action'!$B$6:$DB$1113,28,FALSE),VLOOKUP($BS20,'État & Plan d''action'!$B$6:$DB$1113,30,FALSE),VLOOKUP($BS20,'État & Plan d''action'!$B$6:$DB$1113,38,FALSE),VLOOKUP($BS20,'État & Plan d''action'!$B$6:$DB$1113,40,FALSE),VLOOKUP($BS20,'État & Plan d''action'!$B$6:$DB$1113,48,FALSE),VLOOKUP($BS20,'État & Plan d''action'!$B$6:$DB$1113,50,FALSE),VLOOKUP($BS20,'État & Plan d''action'!$B$6:$DB$1113,58,FALSE),VLOOKUP($BS20,'État & Plan d''action'!$B$6:$DB$1113,60,FALSE),VLOOKUP($BS20,'État & Plan d''action'!$B$6:$DB$1113,68,FALSE),VLOOKUP($BS20,'État & Plan d''action'!$B$6:$DB$1113,70,FALSE),VLOOKUP($BS20,'État & Plan d''action'!$B$6:$DB$1113,78,FALSE),VLOOKUP($BS20,'État & Plan d''action'!$B$6:$DB$1113,80,FALSE),VLOOKUP($BS20,'État & Plan d''action'!$B$6:$DB$1113,88,FALSE),VLOOKUP($BS20,'État & Plan d''action'!$B$6:$DB$1113,90,FALSE),VLOOKUP($BS20,'État & Plan d''action'!$B$6:$DB$1113,98,FALSE),VLOOKUP($BS20,'État & Plan d''action'!$B$6:$DB$1113,100,FALSE))/(VLOOKUP($BS20,'Données par municipalité'!$B$4:$N$1113,13,FALSE)),"") -> 1 | DJ20: =IFERROR(SUM(VLOOKUP($BS20,'État & Plan d''action'!$B$6:$DB$1113,19,FALSE),VLOOKUP($BS20,'État & Plan d''action'!$B$6:$DB$1113,21,FALSE),VLOOKUP($BS20,'État & Plan d''action'!$B$6:$DB$1113,29,FALSE),VLOOKUP($BS20,'État & Plan d''action'!$B$6:$DB$1113,31,FALSE),VLOOKUP($BS20,'État & Plan d''action'!$B$6:$DB$1113,39,FALSE),VLOOKUP($BS20,'État & Plan d''action'!$B$6:$DB$1113,41,FALSE),VLOOKUP($BS20,'État & Plan d''action'!$B$6:$DB$1113,49,FALSE),VLOOKUP($BS20,'État & Plan d''action'!$B$6:$DB$1113,51,FALSE),VLOOKUP($BS20,'État & Plan d''action'!$B$6:$DB$1113,59,FALSE),VLOOKUP($BS20,'État & Plan d''action'!$B$6:$DB$1113,61,FALSE),VLOOKUP($BS20,'État & Plan d''action'!$B$6:$DB$1113,69,FALSE),VLOOKUP($BS20,'État & Plan d''action'!$B$6:$DB$1113,71,FALSE),VLOOKUP($BS20,'État & Plan d''action'!$B$6:$DB$1113,79,FALSE),VLOOKUP($BS20,'État & Plan d''action'!$B$6:$DB$1113,81,FALSE),VLOOKUP($BS20,'État & Plan d''action'!$B$6:$DB$1113,89,FALSE),VLOOKUP($BS20,'État & Plan d''action'!$B$6:$DB$1113,91,FALSE),VLOOKUP($BS20,'État & Plan d''action'!$B$6:$DB$1113,99,FALSE),VLOOKUP($BS20,'État & Plan d''action'!$B$6:$DB$1113,101,FALSE))/(VLOOKUP($BS20,'Données par municipalité'!$B$4:$N$1113,13,FALSE)),"") -> 1 | DK20: Non disponible | DL20: 0 | DM20: 0 | DN20: 2 | DO20: 3 | DP20: 2 | DQ20: 0 | DR20: 0 | DS20: 0 | DT20: 0 | DU20: 2 | DV20: 0 | DW20: 0 | DX20: =IF(VLOOKUP($BS20,'État & Plan d''action'!$B$6:$DM$1113,108,FALSE)="","",VLOOKUP($BS20,'État & Plan d''action'!$B$6:$DM$1113,108,FALSE)) -> 0 | DY20: =IF(VLOOKUP($BS20,'État & Plan d''action'!$B$6:$DM$1113,109,FALSE)="","",VLOOKUP($BS20,'État & Plan d''action'!$B$6:$DM$1113,109,FALSE)) -> 0 | DZ20: =IF(VLOOKUP($BS20,'État & Plan d''action'!$B$6:$DM$1113,110,FALSE)="","",VLOOKUP($BS20,'État & Plan d''action'!$B$6:$DM$1113,110,FALSE)) -> 0 | EA20: 231 | EB20: =VLOOKUP(BS20,'[5]Données par municipalité'!$B$6:$F$1113,5,FALSE) -> 220 | EC20: =VLOOKUP($BS20,'Données par municipalité'!$B$6:$F$1113,5,FALSE) -> 251 | ED20: 1.531634013 | EE20: 2.339634992 | EF20: =IF(VLOOKUP(BS20,'Données par municipalité'!$B$6:$U$1113,7,FALSE)="","",VLOOKUP(BS20,'Données par municipalité'!$B$6:$U$1113,7,FALSE)) -> 1.614705018 | EG20: 0 | EH20: 0 | EI20: 0 | EJ20: 1 | EK20: 0 | EL20: 0 | EM20: =VLOOKUP($BS20,'État & Plan d''action'!$B$6:$DK$1113,112,FALSE) -> S.O. | EN20: =VLOOKUP($BS20,'État & Plan d''action'!$B$6:$DK$1113,113,FALSE) ->  | EO20: =VLOOKUP($BS20,'État & Plan d''action'!$B$6:$DK$1113,114,FALSE) ->  | EP20: 0 | EQ20: 0 | ER20: 0 | ES20: 0 | ET20: 0 | EU20: 0 | EV20: 0 | EW20: 0 | EX20: 0 | EY20: 0 | EZ20: =IFERROR(SUM(VLOOKUP($BS20,'État & Plan d''action'!$B$6:$DB$1113,16,FALSE),VLOOKUP($BS20,'État & Plan d''action'!$B$6:$DB$1113,26,FALSE),VLOOKUP($BS20,'État & Plan d''action'!$B$6:$DB$1113,36,FALSE),VLOOKUP($BS20,'État & Plan d''action'!$B$6:$DB$1113,46,FALSE),VLOOKUP($BS20,'État & Plan d''action'!$B$6:$DB$1113,56,FALSE),VLOOKUP($BS20,'État & Plan d''action'!$B$6:$DB$1113,66,FALSE),VLOOKUP($BS20,'État & Plan d''action'!$B$6:$DB$1113,76,FALSE),VLOOKUP($BS20,'État & Plan d''action'!$B$6:$DB$1113,86,FALSE),VLOOKUP($BS20,'État & Plan d''action'!$B$6:$DB$1113,96,FALSE)),"") -> 0 | FA20: =IFERROR(SUM(VLOOKUP($BS20,'État & Plan d''action'!$B$6:$DB$1113,18,FALSE),VLOOKUP($BS20,'État & Plan d''action'!$B$6:$DB$1113,28,FALSE),VLOOKUP($BS20,'État & Plan d''action'!$B$6:$DB$1113,38,FALSE),VLOOKUP($BS20,'État & Plan d''action'!$B$6:$DB$1113,48,FALSE),VLOOKUP($BS20,'État & Plan d''action'!$B$6:$DB$1113,58,FALSE),VLOOKUP($BS20,'État & Plan d''action'!$B$6:$DB$1113,68,FALSE),VLOOKUP($BS20,'État & Plan d''action'!$B$6:$DB$1113,78,FALSE),VLOOKUP($BS20,'État & Plan d''action'!$B$6:$DB$1113,88,FALSE),VLOOKUP($BS20,'État & Plan d''action'!$B$6:$DB$1113,98,FALSE)),"") -> 0 | FB20: =IFERROR(SUM(VLOOKUP($BS20,'État & Plan d''action'!$B$6:$DB$1113,20,FALSE),VLOOKUP($BS20,'État & Plan d''action'!$B$6:$DB$1113,30,FALSE),VLOOKUP($BS20,'État & Plan d''action'!$B$6:$DB$1113,40,FALSE),VLOOKUP($BS20,'État & Plan d''action'!$B$6:$DB$1113,50,FALSE),VLOOKUP($BS20,'État & Plan d''action'!$B$6:$DB$1113,60,FALSE),VLOOKUP($BS20,'État & Plan d''action'!$B$6:$DB$1113,70,FALSE),VLOOKUP($BS20,'État & Plan d''action'!$B$6:$DB$1113,80,FALSE),VLOOKUP($BS20,'État & Plan d''action'!$B$6:$DB$1113,90,FALSE),VLOOKUP($BS20,'État & Plan d''action'!$B$6:$DB$1113,100,FALSE)),"") -> 9.151 | FC20: =IFERROR(SUM(VLOOKUP($BS20,'État & Plan d''action'!$B$6:$DB$1113,22,FALSE),VLOOKUP($BS20,'État & Plan d''action'!$B$6:$DB$1113,32,FALSE),VLOOKUP($BS20,'État & Plan d''action'!$B$6:$DB$1113,42,FALSE),VLOOKUP($BS20,'État & Plan d''action'!$B$6:$DB$1113,52,FALSE),VLOOKUP($BS20,'État & Plan d''action'!$B$6:$DB$1113,62,FALSE),VLOOKUP($BS20,'État & Plan d''action'!$B$6:$DB$1113,72,FALSE),VLOOKUP($BS20,'État & Plan d''action'!$B$6:$DB$1113,82,FALSE),VLOOKUP($BS20,'État & Plan d''action'!$B$6:$DB$1113,92,FALSE),VLOOKUP($BS20,'État & Plan d''action'!$B$6:$DB$1113,102,FALSE)),"") -> 0 | FD20: =IFERROR(SUM(VLOOKUP($BS20,'État & Plan d''action'!$B$6:$DB$1113,24,FALSE),VLOOKUP($BS20,'État & Plan d''action'!$B$6:$DB$1113,34,FALSE),VLOOKUP($BS20,'État & Plan d''action'!$B$6:$DB$1113,44,FALSE),VLOOKUP($BS20,'État & Plan d''action'!$B$6:$DB$1113,54,FALSE),VLOOKUP($BS20,'État & Plan d''action'!$B$6:$DB$1113,64,FALSE),VLOOKUP($BS20,'État & Plan d''action'!$B$6:$DB$1113,74,FALSE),VLOOKUP($BS20,'État & Plan d''action'!$B$6:$DB$1113,84,FALSE),VLOOKUP($BS20,'État & Plan d''action'!$B$6:$DB$1113,94,FALSE),VLOOKUP($BS20,'État & Plan d''action'!$B$6:$DB$1113,104,FALSE)),"") -> 0 | FE20: 59.43243243 | FF20: 59 | FG20: 58.72972973 | FH20: 1468
W21: =IF(W20="TOUT LE QUÉBEC","",INDEX('Données par municipalité'!$B$6:$B$1113,MATCH(W20,'Données par municipalité'!$C$6:$C$1113,0),1)) ->  | X21: 2011 | Y21: 2012 | Z21: 2013 | AA21: 2014 | AB21: 2015 | AC21: 2016 | AD21: 2017 | AE21: 2018 | AF21: 2019 | AG21: 2020 | AH21: Objectifs 2025 | BS21: 78060 | BT21: ARUNDEL | BU21: 15 | BV21: oui | BW21: oui | BX21: oui | BY21: oui | BZ21: oui | CA21: oui | CB21: oui | CC21: oui | CD21: oui | CE21: oui | CF21: oui | CG21: oui | CH21: oui | CI21: oui | CJ21: oui | CK21: non | CL21: non | CM21: non | CN21: non | CO21: =IF(VLOOKUP(BS21,'Données par municipalité'!$B$6:$E$1113,4,FALSE)="","non","oui") -> non | CP21: 293.3242764 | CQ21: 312.5293295 | CR21: 304.3610528 | CS21: 307.5832697 | CT21: 495.8325761 | CX21: =VLOOKUP(BS21,[5]Évolution!$BS$7:$CV$1115,30,FALSE) ->  | CY21: =IF(VLOOKUP(BS21,'Données par municipalité'!$B$6:$F$1113,4,FALSE)="","",VLOOKUP(BS21,'Données par municipalité'!$B$6:$F$1113,4,FALSE)) ->  | CZ21: Non disponible | DB21: 0 | DC21: 0 | DD21: 0 | DI21: =IFERROR(SUM(VLOOKUP($BS21,'État & Plan d''action'!$B$6:$DB$1113,18,FALSE),VLOOKUP($BS21,'État & Plan d''action'!$B$6:$DB$1113,20,FALSE),VLOOKUP($BS21,'État & Plan d''action'!$B$6:$DB$1113,28,FALSE),VLOOKUP($BS21,'État & Plan d''action'!$B$6:$DB$1113,30,FALSE),VLOOKUP($BS21,'État & Plan d''action'!$B$6:$DB$1113,38,FALSE),VLOOKUP($BS21,'État & Plan d''action'!$B$6:$DB$1113,40,FALSE),VLOOKUP($BS21,'État & Plan d''action'!$B$6:$DB$1113,48,FALSE),VLOOKUP($BS21,'État & Plan d''action'!$B$6:$DB$1113,50,FALSE),VLOOKUP($BS21,'État & Plan d''action'!$B$6:$DB$1113,58,FALSE),VLOOKUP($BS21,'État & Plan d''action'!$B$6:$DB$1113,60,FALSE),VLOOKUP($BS21,'État & Plan d''action'!$B$6:$DB$1113,68,FALSE),VLOOKUP($BS21,'État & Plan d''action'!$B$6:$DB$1113,70,FALSE),VLOOKUP($BS21,'État & Plan d''action'!$B$6:$DB$1113,78,FALSE),VLOOKUP($BS21,'État & Plan d''action'!$B$6:$DB$1113,80,FALSE),VLOOKUP($BS21,'État & Plan d''action'!$B$6:$DB$1113,88,FALSE),VLOOKUP($BS21,'État & Plan d''action'!$B$6:$DB$1113,90,FALSE),VLOOKUP($BS21,'État & Plan d''action'!$B$6:$DB$1113,98,FALSE),VLOOKUP($BS21,'État & Plan d''action'!$B$6:$DB$1113,100,FALSE))/(VLOOKUP($BS21,'Données par municipalité'!$B$4:$N$1113,13,FALSE)),"") ->  | DJ21: =IFERROR(SUM(VLOOKUP($BS21,'État & Plan d''action'!$B$6:$DB$1113,19,FALSE),VLOOKUP($BS21,'État & Plan d''action'!$B$6:$DB$1113,21,FALSE),VLOOKUP($BS21,'État & Plan d''action'!$B$6:$DB$1113,29,FALSE),VLOOKUP($BS21,'État & Plan d''action'!$B$6:$DB$1113,31,FALSE),VLOOKUP($BS21,'État & Plan d''action'!$B$6:$DB$1113,39,FALSE),VLOOKUP($BS21,'État & Plan d''action'!$B$6:$DB$1113,41,FALSE),VLOOKUP($BS21,'État & Plan d''action'!$B$6:$DB$1113,49,FALSE),VLOOKUP($BS21,'État & Plan d''action'!$B$6:$DB$1113,51,FALSE),VLOOKUP($BS21,'État & Plan d''action'!$B$6:$DB$1113,59,FALSE),VLOOKUP($BS21,'État & Plan d''action'!$B$6:$DB$1113,61,FALSE),VLOOKUP($BS21,'État & Plan d''action'!$B$6:$DB$1113,69,FALSE),VLOOKUP($BS21,'État & Plan d''action'!$B$6:$DB$1113,71,FALSE),VLOOKUP($BS21,'État & Plan d''action'!$B$6:$DB$1113,79,FALSE),VLOOKUP($BS21,'État & Plan d''action'!$B$6:$DB$1113,81,FALSE),VLOOKUP($BS21,'État & Plan d''action'!$B$6:$DB$1113,89,FALSE),VLOOKUP($BS21,'État & Plan d''action'!$B$6:$DB$1113,91,FALSE),VLOOKUP($BS21,'État & Plan d''action'!$B$6:$DB$1113,99,FALSE),VLOOKUP($BS21,'État & Plan d''action'!$B$6:$DB$1113,101,FALSE))/(VLOOKUP($BS21,'Données par municipalité'!$B$4:$N$1113,13,FALSE)),"") ->  | DK21: Non disponible | DN21: 0 | DO21: 0 | DX21: =IF(VLOOKUP($BS21,'État & Plan d''action'!$B$6:$DM$1113,108,FALSE)="","",VLOOKUP($BS21,'État & Plan d''action'!$B$6:$DM$1113,108,FALSE)) ->  | DY21: =IF(VLOOKUP($BS21,'État & Plan d''action'!$B$6:$DM$1113,109,FALSE)="","",VLOOKUP($BS21,'État & Plan d''action'!$B$6:$DM$1113,109,FALSE)) ->  | DZ21: =IF(VLOOKUP($BS21,'État & Plan d''action'!$B$6:$DM$1113,110,FALSE)="","",VLOOKUP($BS21,'État & Plan d''action'!$B$6:$DM$1113,110,FALSE)) ->  | EB21: =VLOOKUP(BS21,'[5]Données par municipalité'!$B$6:$F$1113,5,FALSE) ->  | EC21: =VLOOKUP($BS21,'Données par municipalité'!$B$6:$F$1113,5,FALSE) -> 0 | EF21: =IF(VLOOKUP(BS21,'Données par municipalité'!$B$6:$U$1113,7,FALSE)="","",VLOOKUP(BS21,'Données par municipalité'!$B$6:$U$1113,7,FALSE)) ->  | EM21: =VLOOKUP($BS21,'État & Plan d''action'!$B$6:$DK$1113,112,FALSE) -> 0 | EN21: =VLOOKUP($BS21,'État & Plan d''action'!$B$6:$DK$1113,113,FALSE) -> 0 | EO21: =VLOOKUP($BS21,'État & Plan d''action'!$B$6:$DK$1113,114,FALSE) -> 0 | EZ21: =IFERROR(SUM(VLOOKUP($BS21,'État & Plan d''action'!$B$6:$DB$1113,16,FALSE),VLOOKUP($BS21,'État & Plan d''action'!$B$6:$DB$1113,26,FALSE),VLOOKUP($BS21,'État & Plan d''action'!$B$6:$DB$1113,36,FALSE),VLOOKUP($BS21,'État & Plan d''action'!$B$6:$DB$1113,46,FALSE),VLOOKUP($BS21,'État & Plan d''action'!$B$6:$DB$1113,56,FALSE),VLOOKUP($BS21,'État & Plan d''action'!$B$6:$DB$1113,66,FALSE),VLOOKUP($BS21,'État & Plan d''action'!$B$6:$DB$1113,76,FALSE),VLOOKUP($BS21,'État & Plan d''action'!$B$6:$DB$1113,86,FALSE),VLOOKUP($BS21,'État & Plan d''action'!$B$6:$DB$1113,96,FALSE)),"") -> 0 | FA21: =IFERROR(SUM(VLOOKUP($BS21,'État & Plan d''action'!$B$6:$DB$1113,18,FALSE),VLOOKUP($BS21,'État & Plan d''action'!$B$6:$DB$1113,28,FALSE),VLOOKUP($BS21,'État & Plan d''action'!$B$6:$DB$1113,38,FALSE),VLOOKUP($BS21,'État & Plan d''action'!$B$6:$DB$1113,48,FALSE),VLOOKUP($BS21,'État & Plan d''action'!$B$6:$DB$1113,58,FALSE),VLOOKUP($BS21,'État & Plan d''action'!$B$6:$DB$1113,68,FALSE),VLOOKUP($BS21,'État & Plan d''action'!$B$6:$DB$1113,78,FALSE),VLOOKUP($BS21,'État & Plan d''action'!$B$6:$DB$1113,88,FALSE),VLOOKUP($BS21,'État & Plan d''action'!$B$6:$DB$1113,98,FALSE)),"") -> 0 | FB21: =IFERROR(SUM(VLOOKUP($BS21,'État & Plan d''action'!$B$6:$DB$1113,20,FALSE),VLOOKUP($BS21,'État & Plan d''action'!$B$6:$DB$1113,30,FALSE),VLOOKUP($BS21,'État & Plan d''action'!$B$6:$DB$1113,40,FALSE),VLOOKUP($BS21,'État & Plan d''action'!$B$6:$DB$1113,50,FALSE),VLOOKUP($BS21,'État & Plan d''action'!$B$6:$DB$1113,60,FALSE),VLOOKUP($BS21,'État & Plan d''action'!$B$6:$DB$1113,70,FALSE),VLOOKUP($BS21,'État & Plan d''action'!$B$6:$DB$1113,80,FALSE),VLOOKUP($BS21,'État & Plan d''action'!$B$6:$DB$1113,90,FALSE),VLOOKUP($BS21,'État & Plan d''action'!$B$6:$DB$1113,100,FALSE)),"") -> 0 | FC21: =IFERROR(SUM(VLOOKUP($BS21,'État & Plan d''action'!$B$6:$DB$1113,22,FALSE),VLOOKUP($BS21,'État & Plan d''action'!$B$6:$DB$1113,32,FALSE),VLOOKUP($BS21,'État & Plan d''action'!$B$6:$DB$1113,42,FALSE),VLOOKUP($BS21,'État & Plan d''action'!$B$6:$DB$1113,52,FALSE),VLOOKUP($BS21,'État & Plan d''action'!$B$6:$DB$1113,62,FALSE),VLOOKUP($BS21,'État & Plan d''action'!$B$6:$DB$1113,72,FALSE),VLOOKUP($BS21,'État & Plan d''action'!$B$6:$DB$1113,82,FALSE),VLOOKUP($BS21,'État & Plan d''action'!$B$6:$DB$1113,92,FALSE),VLOOKUP($BS21,'État & Plan d''action'!$B$6:$DB$1113,102,FALSE)),"") -> 0 | FD21: =IFERROR(SUM(VLOOKUP($BS21,'État & Plan d''action'!$B$6:$DB$1113,24,FALSE),VLOOKUP($BS21,'État & Plan d''action'!$B$6:$DB$1113,34,FALSE),VLOOKUP($BS21,'État & Plan d''action'!$B$6:$DB$1113,44,FALSE),VLOOKUP($BS21,'État & Plan d''action'!$B$6:$DB$1113,54,FALSE),VLOOKUP($BS21,'État & Plan d''action'!$B$6:$DB$1113,64,FALSE),VLOOKUP($BS21,'État & Plan d''action'!$B$6:$DB$1113,74,FALSE),VLOOKUP($BS21,'État & Plan d''action'!$B$6:$DB$1113,84,FALSE),VLOOKUP($BS21,'État & Plan d''action'!$B$6:$DB$1113,94,FALSE),VLOOKUP($BS21,'État & Plan d''action'!$B$6:$DB$1113,104,FALSE)),"") -> 0 | FH21: 577
W22: Quantité d'eau distribuée par personne (l/pers/d) | X22: =IF($W$21="",CP7,IF(X$25="non","Non disponible",IF(VLOOKUP($W$21,$BS$8:$CY$1115,24,FALSE)=0,"Non disponible",VLOOKUP($W$21,$BS$8:$CY$1115,24,FALSE)))) -> 620.2056373 | Y22: =IF($W$21="",CQ7,IF(Y$25="non","Non disponible",IF(VLOOKUP($W$21,$BS$8:$CY$1115,25,FALSE)=0,"Non disponible",VLOOKUP($W$21,$BS$8:$CY$1115,25,FALSE)))) -> 612.340892 | Z22: =IF($W$21="",CR7,IF(Z$25="non","Non disponible",IF(VLOOKUP($W$21,$BS$8:$CY$1115,26,FALSE)=0,"Non disponible",VLOOKUP($W$21,$BS$8:$CY$1115,26,FALSE)))) -> 596.0865808 | AA22: =IF($W$21="",CS7,IF(AA$25="non","Non disponible",IF(VLOOKUP($W$21,$BS$8:$CY$1115,27,FALSE)=0,"Non disponible",VLOOKUP($W$21,$BS$8:$CY$1115,27,FALSE)))) -> 589.1008665 | AB22: =IF($W$21="",CT7,IF(AB$25="non","Non disponible",IF(VLOOKUP($W$21,$BS$8:$CY$1115,28,FALSE)=0,"Non disponible",VLOOKUP($W$21,$BS$8:$CY$1115,28,FALSE)))) -> 573.3776759 | AC22: =IF($W$21="",CU7,IF(AC$25="non","Non disponible",IF(VLOOKUP($W$21,$BS$8:$CY$1115,29,FALSE)=0,"Non disponible",VLOOKUP($W$21,$BS$8:$CY$1115,29,FALSE)))) -> 550.8217594 | AD22: =IF($W$21="",CV7,IF(AD$25="non","Non disponible",IF(VLOOKUP($W$21,$BS$8:$CY$1115,30,FALSE)=0,"Non disponible",VLOOKUP($W$21,$BS$8:$CY$1115,30,FALSE)))) -> 529.5924 | AE22: =IF($W$21="",CW7,IF(AE$25="non","Non disponible",IF(VLOOKUP($W$21,$BS$8:$CY$1115,31,FALSE)=0,"Non disponible",VLOOKUP($W$21,$BS$8:$CY$1115,31,FALSE)))) -> 536.3201867 | AF22: =IF($W$21="",CX7,IF(AF$25="non","Non disponible",IF(VLOOKUP($W$21,$BS$8:$CY$1115,32,FALSE)=0,"Non disponible",VLOOKUP($W$21,$BS$8:$CY$1115,32,FALSE)))) -> 524.5080028 | AG22: =IF($W$21="",CY7,IF(AG$25="non","Non disponible",IF(VLOOKUP($W$21,$BS$8:$CY$1115,33,FALSE)=0,"Non disponible",VLOOKUP($W$21,$BS$8:$CY$1115,33,FALSE)))) -> 520.6271874 | AH22: =IF(NM="Choisir une municipalité","",458) -> 458 | BS22: 40043 | BT22: VAL-DES-SOURCES | BU22: 5 | BV22: non | BW22: non | BX22: non | BY22: non | BZ22: non | CA22: non | CB22: non | CC22: non | CD22: non | CE22: non | CF22: oui | CG22: oui | CH22: oui | CI22: oui | CJ22: oui | CK22: oui | CL22: oui | CM22: oui | CN22: oui | CO22: =IF(VLOOKUP(BS22,'Données par municipalité'!$B$6:$E$1113,4,FALSE)="","non","oui") -> oui | CP22: 583.2514758 | CQ22: 721.6998821 | CR22: 617.0447524 | CS22: 545.5950553 | CT22: 544.4265566 | CU22: 496.3607436 | CV22: 529.8294331 | CW22: 540 | CX22: =VLOOKUP(BS22,[5]Évolution!$BS$7:$CV$1115,30,FALSE) -> 557 | CY22: =IF(VLOOKUP(BS22,'Données par municipalité'!$B$6:$F$1113,4,FALSE)="","",VLOOKUP(BS22,'Données par municipalité'!$B$6:$F$1113,4,FALSE)) -> 498 | CZ22: Non disponible | DA22: 0.5 | DB22: 0.5 | DC22: 0.5 | DD22: 0.5 | DE22: 1 | DF22: 1 | DG22: 1 | DH22: 1.50000765 | DI22: =IFERROR(SUM(VLOOKUP($BS22,'État & Plan d''action'!$B$6:$DB$1113,18,FALSE),VLOOKUP($BS22,'État & Plan d''action'!$B$6:$DB$1113,20,FALSE),VLOOKUP($BS22,'État & Plan d''action'!$B$6:$DB$1113,28,FALSE),VLOOKUP($BS22,'État & Plan d''action'!$B$6:$DB$1113,30,FALSE),VLOOKUP($BS22,'État & Plan d''action'!$B$6:$DB$1113,38,FALSE),VLOOKUP($BS22,'État & Plan d''action'!$B$6:$DB$1113,40,FALSE),VLOOKUP($BS22,'État & Plan d''action'!$B$6:$DB$1113,48,FALSE),VLOOKUP($BS22,'État & Plan d''action'!$B$6:$DB$1113,50,FALSE),VLOOKUP($BS22,'État & Plan d''action'!$B$6:$DB$1113,58,FALSE),VLOOKUP($BS22,'État & Plan d''action'!$B$6:$DB$1113,60,FALSE),VLOOKUP($BS22,'État & Plan d''action'!$B$6:$DB$1113,68,FALSE),VLOOKUP($BS22,'État & Plan d''action'!$B$6:$DB$1113,70,FALSE),VLOOKUP($BS22,'État & Plan d''action'!$B$6:$DB$1113,78,FALSE),VLOOKUP($BS22,'État & Plan d''action'!$B$6:$DB$1113,80,FALSE),VLOOKUP($BS22,'État & Plan d''action'!$B$6:$DB$1113,88,FALSE),VLOOKUP($BS22,'État & Plan d''action'!$B$6:$DB$1113,90,FALSE),VLOOKUP($BS22,'État & Plan d''action'!$B$6:$DB$1113,98,FALSE),VLOOKUP($BS22,'État & Plan d''action'!$B$6:$DB$1113,100,FALSE))/(VLOOKUP($BS22,'Données par municipalité'!$B$4:$N$1113,13,FALSE)),"") -> 1.00000153 | DJ22: =IFERROR(SUM(VLOOKUP($BS22,'État & Plan d''action'!$B$6:$DB$1113,19,FALSE),VLOOKUP($BS22,'État & Plan d''action'!$B$6:$DB$1113,21,FALSE),VLOOKUP($BS22,'État & Plan d''action'!$B$6:$DB$1113,29,FALSE),VLOOKUP($BS22,'État & Plan d''action'!$B$6:$DB$1113,31,FALSE),VLOOKUP($BS22,'État & Plan d''action'!$B$6:$DB$1113,39,FALSE),VLOOKUP($BS22,'État & Plan d''action'!$B$6:$DB$1113,41,FALSE),VLOOKUP($BS22,'État & Plan d''action'!$B$6:$DB$1113,49,FALSE),VLOOKUP($BS22,'État & Plan d''action'!$B$6:$DB$1113,51,FALSE),VLOOKUP($BS22,'État & Plan d''action'!$B$6:$DB$1113,59,FALSE),VLOOKUP($BS22,'État & Plan d''action'!$B$6:$DB$1113,61,FALSE),VLOOKUP($BS22,'État & Plan d''action'!$B$6:$DB$1113,69,FALSE),VLOOKUP($BS22,'État & Plan d''action'!$B$6:$DB$1113,71,FALSE),VLOOKUP($BS22,'État & Plan d''action'!$B$6:$DB$1113,79,FALSE),VLOOKUP($BS22,'État & Plan d''action'!$B$6:$DB$1113,81,FALSE),VLOOKUP($BS22,'État & Plan d''action'!$B$6:$DB$1113,89,FALSE),VLOOKUP($BS22,'État & Plan d''action'!$B$6:$DB$1113,91,FALSE),VLOOKUP($BS22,'État & Plan d''action'!$B$6:$DB$1113,99,FALSE),VLOOKUP($BS22,'État & Plan d''action'!$B$6:$DB$1113,101,FALSE))/(VLOOKUP($BS22,'Données par municipalité'!$B$4:$N$1113,13,FALSE)),"") -> 0 | DK22: Non disponible | DL22: 3 | DM22: 11 | DN22: 5 | DO22: 3 | DP22: 5 | DQ22: 7 | DR22: 6 | DS22: 2 | DT22: 10 | DU22: 6 | DV22: 3 | DW22: 9 | DX22: =IF(VLOOKUP($BS22,'État & Plan d''action'!$B$6:$DM$1113,108,FALSE)="","",VLOOKUP($BS22,'État & Plan d''action'!$B$6:$DM$1113,108,FALSE)) -> 7 | DY22: =IF(VLOOKUP($BS22,'État & Plan d''action'!$B$6:$DM$1113,109,FALSE)="","",VLOOKUP($BS22,'État & Plan d''action'!$B$6:$DM$1113,109,FALSE)) -> 5 | DZ22: =IF(VLOOKUP($BS22,'État & Plan d''action'!$B$6:$DM$1113,110,FALSE)="","",VLOOKUP($BS22,'État & Plan d''action'!$B$6:$DM$1113,110,FALSE)) -> 1 | EA22: 358 | EB22: =VLOOKUP(BS22,'[5]Données par municipalité'!$B$6:$F$1113,5,FALSE) -> 330 | EC22: =VLOOKUP($BS22,'Données par municipalité'!$B$6:$F$1113,5,FALSE) -> 270 | ED22: 4.464816269 | EE22: 5.297629 | EF22: =IF(VLOOKUP(BS22,'Données par municipalité'!$B$6:$U$1113,7,FALSE)="","",VLOOKUP(BS22,'Données par municipalité'!$B$6:$U$1113,7,FALSE)) -> 6.540222547 | EG22: 5 | EH22: 5 | EI22: 10 | EJ22: 5 | EK22: 5 | EL22: 10 | EM22: =VLOOKUP($BS22,'État & Plan d''action'!$B$6:$DK$1113,112,FALSE) -> 5 | EN22: =VLOOKUP($BS22,'État & Plan d''action'!$B$6:$DK$1113,113,FALSE) -> 5 | EO22: =VLOOKUP($BS22,'État & Plan d''action'!$B$6:$DK$1113,114,FALSE) -> 5 | EP22: 0 | EQ22: 65.357 | ER22: 0 | ES22: 0 | ET22: 0 | EU22: 0 | EV22: 65.357 | EW22: 0 | EX22: 0 | EY22: 0 | EZ22: =IFERROR(SUM(VLOOKUP($BS22,'État & Plan d''action'!$B$6:$DB$1113,16,FALSE),VLOOKUP($BS22,'État & Plan d''action'!$B$6:$DB$1113,26,FALSE),VLOOKUP($BS22,'État & Plan d''action'!$B$6:$DB$1113,36,FALSE),VLOOKUP($BS22,'État & Plan d''action'!$B$6:$DB$1113,46,FALSE),VLOOKUP($BS22,'État & Plan d''action'!$B$6:$DB$1113,56,FALSE),VLOOKUP($BS22,'État & Plan d''action'!$B$6:$DB$1113,66,FALSE),VLOOKUP($BS22,'État & Plan d''action'!$B$6:$DB$1113,76,FALSE),VLOOKUP($BS22,'État & Plan d''action'!$B$6:$DB$1113,86,FALSE),VLOOKUP($BS22,'État & Plan d''action'!$B$6:$DB$1113,96,FALSE)),"") -> 0 | FA22: =IFERROR(SUM(VLOOKUP($BS22,'État & Plan d''action'!$B$6:$DB$1113,18,FALSE),VLOOKUP($BS22,'État & Plan d''action'!$B$6:$DB$1113,28,FALSE),VLOOKUP($BS22,'État & Plan d''action'!$B$6:$DB$1113,38,FALSE),VLOOKUP($BS22,'État & Plan d''action'!$B$6:$DB$1113,48,FALSE),VLOOKUP($BS22,'État & Plan d''action'!$B$6:$DB$1113,58,FALSE),VLOOKUP($BS22,'État & Plan d''action'!$B$6:$DB$1113,68,FALSE),VLOOKUP($BS22,'État & Plan d''action'!$B$6:$DB$1113,78,FALSE),VLOOKUP($BS22,'État & Plan d''action'!$B$6:$DB$1113,88,FALSE),VLOOKUP($BS22,'État & Plan d''action'!$B$6:$DB$1113,98,FALSE)),"") -> 0 | FB22: =IFERROR(SUM(VLOOKUP($BS22,'État & Plan d''action'!$B$6:$DB$1113,20,FALSE),VLOOKUP($BS22,'État & Plan d''action'!$B$6:$DB$1113,30,FALSE),VLOOKUP($BS22,'État & Plan d''action'!$B$6:$DB$1113,40,FALSE),VLOOKUP($BS22,'État & Plan d''action'!$B$6:$DB$1113,50,FALSE),VLOOKUP($BS22,'État & Plan d''action'!$B$6:$DB$1113,60,FALSE),VLOOKUP($BS22,'État & Plan d''action'!$B$6:$DB$1113,70,FALSE),VLOOKUP($BS22,'État & Plan d''action'!$B$6:$DB$1113,80,FALSE),VLOOKUP($BS22,'État & Plan d''action'!$B$6:$DB$1113,90,FALSE),VLOOKUP($BS22,'État & Plan d''action'!$B$6:$DB$1113,100,FALSE)),"") -> 65.3571 | FC22: =IFERROR(SUM(VLOOKUP($BS22,'État & Plan d''action'!$B$6:$DB$1113,22,FALSE),VLOOKUP($BS22,'État & Plan d''action'!$B$6:$DB$1113,32,FALSE),VLOOKUP($BS22,'État & Plan d''action'!$B$6:$DB$1113,42,FALSE),VLOOKUP($BS22,'État & Plan d''action'!$B$6:$DB$1113,52,FALSE),VLOOKUP($BS22,'État & Plan d''action'!$B$6:$DB$1113,62,FALSE),VLOOKUP($BS22,'État & Plan d''action'!$B$6:$DB$1113,72,FALSE),VLOOKUP($BS22,'État & Plan d''action'!$B$6:$DB$1113,82,FALSE),VLOOKUP($BS22,'État & Plan d''action'!$B$6:$DB$1113,92,FALSE),VLOOKUP($BS22,'État & Plan d''action'!$B$6:$DB$1113,102,FALSE)),"") -> 0 | FD22: =IFERROR(SUM(VLOOKUP($BS22,'État & Plan d''action'!$B$6:$DB$1113,24,FALSE),VLOOKUP($BS22,'État & Plan d''action'!$B$6:$DB$1113,34,FALSE),VLOOKUP($BS22,'État & Plan d''action'!$B$6:$DB$1113,44,FALSE),VLOOKUP($BS22,'État & Plan d''action'!$B$6:$DB$1113,54,FALSE),VLOOKUP($BS22,'État & Plan d''action'!$B$6:$DB$1113,64,FALSE),VLOOKUP($BS22,'État & Plan d''action'!$B$6:$DB$1113,74,FALSE),VLOOKUP($BS22,'État & Plan d''action'!$B$6:$DB$1113,84,FALSE),VLOOKUP($BS22,'État & Plan d''action'!$B$6:$DB$1113,94,FALSE),VLOOKUP($BS22,'État & Plan d''action'!$B$6:$DB$1113,104,FALSE)),"") -> 0 | FE22: 45 | FF22: 58.72972973 | FH22: 6823
W23: =IF(NM="Tout le Québec","Objectif 2025 pour l'ensemble du Québec : 458","") -> Objectif 2025 pour l'ensemble du Québec : 458 | X23: =IF(NM="Tout le Québec",458,"") -> 458 | Y23: 458 | Z23: 458 | AA23: 458 | AB23: 458 | AC23: 458 | AD23: 458 | AE23: =IF(NM="Tout le Québec",458,"") -> 458 | AF23: =IF(NM="Tout le Québec",458,"") -> 458 | AG23: 458 | AH23: 458 | BS23: 41055 | BT23: ASCOT CORNER | BU23: 5 | BV23: non | BW23: non | BX23: non | BY23: non | BZ23: non | CA23: non | CB23: non | CC23: non | CD23: non | CE23: non | CF23: oui | CG23: oui | CH23: oui | CI23: oui | CJ23: oui | CK23: oui | CL23: oui | CM23: oui | CN23: oui | CO23: =IF(VLOOKUP(BS23,'Données par municipalité'!$B$6:$E$1113,4,FALSE)="","non","oui") -> oui | CP23: 350.7481085 | CQ23: 277.3905347 | CR23: 302.3028761 | CS23: 388.5714838 | CT23: 380.0087906 | CU23: 369.9651361 | CV23: 326.0781516 | CW23: 367 | CX23: =VLOOKUP(BS23,[5]Évolution!$BS$7:$CV$1115,30,FALSE) -> 380 | CY23: =IF(VLOOKUP(BS23,'Données par municipalité'!$B$6:$F$1113,4,FALSE)="","",VLOOKUP(BS23,'Données par municipalité'!$B$6:$F$1113,4,FALSE)) -> 348 | CZ23: Non disponible | DA23: 0 | DB23: 0 | DC23: 0 | DD23: 0 | DE23: 0 | DF23: 1 | DG23: 0.3596691044 | DH23: 0 | DI23: =IFERROR(SUM(VLOOKUP($BS23,'État & Plan d''action'!$B$6:$DB$1113,18,FALSE),VLOOKUP($BS23,'État & Plan d''action'!$B$6:$DB$1113,20,FALSE),VLOOKUP($BS23,'État & Plan d''action'!$B$6:$DB$1113,28,FALSE),VLOOKUP($BS23,'État & Plan d''action'!$B$6:$DB$1113,30,FALSE),VLOOKUP($BS23,'État & Plan d''action'!$B$6:$DB$1113,38,FALSE),VLOOKUP($BS23,'État & Plan d''action'!$B$6:$DB$1113,40,FALSE),VLOOKUP($BS23,'État & Plan d''action'!$B$6:$DB$1113,48,FALSE),VLOOKUP($BS23,'État & Plan d''action'!$B$6:$DB$1113,50,FALSE),VLOOKUP($BS23,'État & Plan d''action'!$B$6:$DB$1113,58,FALSE),VLOOKUP($BS23,'État & Plan d''action'!$B$6:$DB$1113,60,FALSE),VLOOKUP($BS23,'État & Plan d''action'!$B$6:$DB$1113,68,FALSE),VLOOKUP($BS23,'État & Plan d''action'!$B$6:$DB$1113,70,FALSE),VLOOKUP($BS23,'État & Plan d''action'!$B$6:$DB$1113,78,FALSE),VLOOKUP($BS23,'État & Plan d''action'!$B$6:$DB$1113,80,FALSE),VLOOKUP($BS23,'État & Plan d''action'!$B$6:$DB$1113,88,FALSE),VLOOKUP($BS23,'État & Plan d''action'!$B$6:$DB$1113,90,FALSE),VLOOKUP($BS23,'État & Plan d''action'!$B$6:$DB$1113,98,FALSE),VLOOKUP($BS23,'État & Plan d''action'!$B$6:$DB$1113,100,FALSE))/(VLOOKUP($BS23,'Données par municipalité'!$B$4:$N$1113,13,FALSE)),"") -> 1 | DJ23: =IFERROR(SUM(VLOOKUP($BS23,'État & Plan d''action'!$B$6:$DB$1113,19,FALSE),VLOOKUP($BS23,'État & Plan d''action'!$B$6:$DB$1113,21,FALSE),VLOOKUP($BS23,'État & Plan d''action'!$B$6:$DB$1113,29,FALSE),VLOOKUP($BS23,'État & Plan d''action'!$B$6:$DB$1113,31,FALSE),VLOOKUP($BS23,'État & Plan d''action'!$B$6:$DB$1113,39,FALSE),VLOOKUP($BS23,'État & Plan d''action'!$B$6:$DB$1113,41,FALSE),VLOOKUP($BS23,'État & Plan d''action'!$B$6:$DB$1113,49,FALSE),VLOOKUP($BS23,'État & Plan d''action'!$B$6:$DB$1113,51,FALSE),VLOOKUP($BS23,'État & Plan d''action'!$B$6:$DB$1113,59,FALSE),VLOOKUP($BS23,'État & Plan d''action'!$B$6:$DB$1113,61,FALSE),VLOOKUP($BS23,'État & Plan d''action'!$B$6:$DB$1113,69,FALSE),VLOOKUP($BS23,'État & Plan d''action'!$B$6:$DB$1113,71,FALSE),VLOOKUP($BS23,'État & Plan d''action'!$B$6:$DB$1113,79,FALSE),VLOOKUP($BS23,'État & Plan d''action'!$B$6:$DB$1113,81,FALSE),VLOOKUP($BS23,'État & Plan d''action'!$B$6:$DB$1113,89,FALSE),VLOOKUP($BS23,'État & Plan d''action'!$B$6:$DB$1113,91,FALSE),VLOOKUP($BS23,'État & Plan d''action'!$B$6:$DB$1113,99,FALSE),VLOOKUP($BS23,'État & Plan d''action'!$B$6:$DB$1113,101,FALSE))/(VLOOKUP($BS23,'Données par municipalité'!$B$4:$N$1113,13,FALSE)),"") -> 1 | DK23: Non disponible | DL23: 0 | DM23: 1 | DN23: 1 | DO23: 0 | DP23: 0 | DQ23: 0 | DR23: 0 | DS23: 0 | DT23: 3 | DU23: 1 | DV23: 0 | DW23: 0 | DX23: =IF(VLOOKUP($BS23,'État & Plan d''action'!$B$6:$DM$1113,108,FALSE)="","",VLOOKUP($BS23,'État & Plan d''action'!$B$6:$DM$1113,108,FALSE)) -> 0 | DY23: =IF(VLOOKUP($BS23,'État & Plan d''action'!$B$6:$DM$1113,109,FALSE)="","",VLOOKUP($BS23,'État & Plan d''action'!$B$6:$DM$1113,109,FALSE)) -> 0 | DZ23: =IF(VLOOKUP($BS23,'État & Plan d''action'!$B$6:$DM$1113,110,FALSE)="","",VLOOKUP($BS23,'État & Plan d''action'!$B$6:$DM$1113,110,FALSE)) -> 2 | EA23: 199 | EB23: =VLOOKUP(BS23,'[5]Données par municipalité'!$B$6:$F$1113,5,FALSE) -> 198 | EC23: =VLOOKUP($BS23,'Données par municipalité'!$B$6:$F$1113,5,FALSE) -> 179 | ED23: 2.379077935 | EE23: 2.920473413 | EF23: =IF(VLOOKUP(BS23,'Données par municipalité'!$B$6:$U$1113,7,FALSE)="","",VLOOKUP(BS23,'Données par municipalité'!$B$6:$U$1113,7,FALSE)) -> 3.887833559 | EG23: 1 | EH23: 0 | EI23: 3 | EJ23: 1 | EK23: 0 | EL23: 0 | EM23: =VLOOKUP($BS23,'État & Plan d''action'!$B$6:$DK$1113,112,FALSE) -> S.O. | EN23: =VLOOKUP($BS23,'État & Plan d''action'!$B$6:$DK$1113,113,FALSE) ->  | EO23: =VLOOKUP($BS23,'État & Plan d''action'!$B$6:$DK$1113,114,FALSE) -> 14 | EP23: 8.341 | EQ23: 2 | ER23: 1 | ES23: 0 | ET23: 0 | EU23: 8.341 | EV23: 2 | EW23: 1 | EX23: 0 | EY23: 0 | EZ23: =IFERROR(SUM(VLOOKUP($BS23,'État & Plan d''action'!$B$6:$DB$1113,16,FALSE),VLOOKUP($BS23,'État & Plan d''action'!$B$6:$DB$1113,26,FALSE),VLOOKUP($BS23,'État & Plan d''action'!$B$6:$DB$1113,36,FALSE),VLOOKUP($BS23,'État & Plan d''action'!$B$6:$DB$1113,46,FALSE),VLOOKUP($BS23,'État & Plan d''action'!$B$6:$DB$1113,56,FALSE),VLOOKUP($BS23,'État & Plan d''action'!$B$6:$DB$1113,66,FALSE),VLOOKUP($BS23,'État & Plan d''action'!$B$6:$DB$1113,76,FALSE),VLOOKUP($BS23,'État & Plan d''action'!$B$6:$DB$1113,86,FALSE),VLOOKUP($BS23,'État & Plan d''action'!$B$6:$DB$1113,96,FALSE)),"") -> 0 | FA23: =IFERROR(SUM(VLOOKUP($BS23,'État & Plan d''action'!$B$6:$DB$1113,18,FALSE),VLOOKUP($BS23,'État & Plan d''action'!$B$6:$DB$1113,28,FALSE),VLOOKUP($BS23,'État & Plan d''action'!$B$6:$DB$1113,38,FALSE),VLOOKUP($BS23,'État & Plan d''action'!$B$6:$DB$1113,48,FALSE),VLOOKUP($BS23,'État & Plan d''action'!$B$6:$DB$1113,58,FALSE),VLOOKUP($BS23,'État & Plan d''action'!$B$6:$DB$1113,68,FALSE),VLOOKUP($BS23,'État & Plan d''action'!$B$6:$DB$1113,78,FALSE),VLOOKUP($BS23,'État & Plan d''action'!$B$6:$DB$1113,88,FALSE),VLOOKUP($BS23,'État & Plan d''action'!$B$6:$DB$1113,98,FALSE)),"") -> 0 | FB23: =IFERROR(SUM(VLOOKUP($BS23,'État & Plan d''action'!$B$6:$DB$1113,20,FALSE),VLOOKUP($BS23,'État & Plan d''action'!$B$6:$DB$1113,30,FALSE),VLOOKUP($BS23,'État & Plan d''action'!$B$6:$DB$1113,40,FALSE),VLOOKUP($BS23,'État & Plan d''action'!$B$6:$DB$1113,50,FALSE),VLOOKUP($BS23,'État & Plan d''action'!$B$6:$DB$1113,60,FALSE),VLOOKUP($BS23,'État & Plan d''action'!$B$6:$DB$1113,70,FALSE),VLOOKUP($BS23,'État & Plan d''action'!$B$6:$DB$1113,80,FALSE),VLOOKUP($BS23,'État & Plan d''action'!$B$6:$DB$1113,90,FALSE),VLOOKUP($BS23,'État & Plan d''action'!$B$6:$DB$1113,100,FALSE)),"") -> 8.541 | FC23: =IFERROR(SUM(VLOOKUP($BS23,'État & Plan d''action'!$B$6:$DB$1113,22,FALSE),VLOOKUP($BS23,'État & Plan d''action'!$B$6:$DB$1113,32,FALSE),VLOOKUP($BS23,'État & Plan d''action'!$B$6:$DB$1113,42,FALSE),VLOOKUP($BS23,'État & Plan d''action'!$B$6:$DB$1113,52,FALSE),VLOOKUP($BS23,'État & Plan d''action'!$B$6:$DB$1113,62,FALSE),VLOOKUP($BS23,'État & Plan d''action'!$B$6:$DB$1113,72,FALSE),VLOOKUP($BS23,'État & Plan d''action'!$B$6:$DB$1113,82,FALSE),VLOOKUP($BS23,'État & Plan d''action'!$B$6:$DB$1113,92,FALSE),VLOOKUP($BS23,'État & Plan d''action'!$B$6:$DB$1113,102,FALSE)),"") -> 0 | FD23: =IFERROR(SUM(VLOOKUP($BS23,'État & Plan d''action'!$B$6:$DB$1113,24,FALSE),VLOOKUP($BS23,'État & Plan d''action'!$B$6:$DB$1113,34,FALSE),VLOOKUP($BS23,'État & Plan d''action'!$B$6:$DB$1113,44,FALSE),VLOOKUP($BS23,'État & Plan d''action'!$B$6:$DB$1113,54,FALSE),VLOOKUP($BS23,'État & Plan d''action'!$B$6:$DB$1113,64,FALSE),VLOOKUP($BS23,'État & Plan d''action'!$B$6:$DB$1113,74,FALSE),VLOOKUP($BS23,'État & Plan d''action'!$B$6:$DB$1113,84,FALSE),VLOOKUP($BS23,'État & Plan d''action'!$B$6:$DB$1113,94,FALSE),VLOOKUP($BS23,'État & Plan d''action'!$B$6:$DB$1113,104,FALSE)),"") -> 0 | FE23: 58.1372549 | FF23: 56 | FG23: 60.32918845 | FH23: 3286
W24: Municipalité exemptée ? | X24: =IF($W$21="","non",VLOOKUP($W$21,$BS$8:$CE$1115,4,FALSE)) -> non | Y24: =IF($W$21="","non",VLOOKUP($W$21,$BS$8:$CE$1115,5,FALSE)) -> non | Z24: =IF($W$21="","non",VLOOKUP($W$21,$BS$8:$CE$1115,6,FALSE)) -> non | AA24: =IF($W$21="","non",VLOOKUP($W$21,$BS$8:$CE$1115,7,FALSE)) -> non | AB24: =IF($W$21="","non",VLOOKUP($W$21,$BS$8:$CE$1115,8,FALSE)) -> non | AC24: =IF($W$21="","non",VLOOKUP($W$21,$BS$8:$CE$1115,9,FALSE)) -> non | AD24: =IF($W$21="","non",VLOOKUP($W$21,$BS$8:$CE$1115,10,FALSE)) -> non | AE24: =IF($W$21="","non",VLOOKUP($W$21,$BS$8:$CE$1115,11,FALSE)) -> non | AF24: =IF($W$21="","non",VLOOKUP($W$21,$BS$8:$CE$1115,12,FALSE)) -> non | AG24: =IF($W$21="","non",VLOOKUP($W$21,$BS$8:$CE$1115,13,FALSE)) -> non | BS24: 50013 | BT24: ASTON-JONCTION | BU24: 17 | BV24: oui | BW24: oui | BX24: oui | BY24: oui | BZ24: oui | CA24: oui | CB24: oui | CC24: oui | CD24: oui | CE24: oui | CF24: non | CG24: non | CH24: non | CI24: non | CJ24: non | CK24: non | CL24: non | CM24: non | CN24: non | CO24: =IF(VLOOKUP(BS24,'Données par municipalité'!$B$6:$E$1113,4,FALSE)="","non","oui") -> non | CX24: =VLOOKUP(BS24,[5]Évolution!$BS$7:$CV$1115,30,FALSE) ->  | CY24: =IF(VLOOKUP(BS24,'Données par municipalité'!$B$6:$F$1113,4,FALSE)="","",VLOOKUP(BS24,'Données par municipalité'!$B$6:$F$1113,4,FALSE)) ->  | CZ24: Non disponible | DI24: =IFERROR(SUM(VLOOKUP($BS24,'État & Plan d''action'!$B$6:$DB$1113,18,FALSE),VLOOKUP($BS24,'État & Plan d''action'!$B$6:$DB$1113,20,FALSE),VLOOKUP($BS24,'État & Plan d''action'!$B$6:$DB$1113,28,FALSE),VLOOKUP($BS24,'État & Plan d''action'!$B$6:$DB$1113,30,FALSE),VLOOKUP($BS24,'État & Plan d''action'!$B$6:$DB$1113,38,FALSE),VLOOKUP($BS24,'État & Plan d''action'!$B$6:$DB$1113,40,FALSE),VLOOKUP($BS24,'État & Plan d''action'!$B$6:$DB$1113,48,FALSE),VLOOKUP($BS24,'État & Plan d''action'!$B$6:$DB$1113,50,FALSE),VLOOKUP($BS24,'État & Plan d''action'!$B$6:$DB$1113,58,FALSE),VLOOKUP($BS24,'État & Plan d''action'!$B$6:$DB$1113,60,FALSE),VLOOKUP($BS24,'État & Plan d''action'!$B$6:$DB$1113,68,FALSE),VLOOKUP($BS24,'État & Plan d''action'!$B$6:$DB$1113,70,FALSE),VLOOKUP($BS24,'État & Plan d''action'!$B$6:$DB$1113,78,FALSE),VLOOKUP($BS24,'État & Plan d''action'!$B$6:$DB$1113,80,FALSE),VLOOKUP($BS24,'État & Plan d''action'!$B$6:$DB$1113,88,FALSE),VLOOKUP($BS24,'État & Plan d''action'!$B$6:$DB$1113,90,FALSE),VLOOKUP($BS24,'État & Plan d''action'!$B$6:$DB$1113,98,FALSE),VLOOKUP($BS24,'État & Plan d''action'!$B$6:$DB$1113,100,FALSE))/(VLOOKUP($BS24,'Données par municipalité'!$B$4:$N$1113,13,FALSE)),"") ->  | DJ24: =IFERROR(SUM(VLOOKUP($BS24,'État & Plan d''action'!$B$6:$DB$1113,19,FALSE),VLOOKUP($BS24,'État & Plan d''action'!$B$6:$DB$1113,21,FALSE),VLOOKUP($BS24,'État & Plan d''action'!$B$6:$DB$1113,29,FALSE),VLOOKUP($BS24,'État & Plan d''action'!$B$6:$DB$1113,31,FALSE),VLOOKUP($BS24,'État & Plan d''action'!$B$6:$DB$1113,39,FALSE),VLOOKUP($BS24,'État & Plan d''action'!$B$6:$DB$1113,41,FALSE),VLOOKUP($BS24,'État & Plan d''action'!$B$6:$DB$1113,49,FALSE),VLOOKUP($BS24,'État & Plan d''action'!$B$6:$DB$1113,51,FALSE),VLOOKUP($BS24,'État & Plan d''action'!$B$6:$DB$1113,59,FALSE),VLOOKUP($BS24,'État & Plan d''action'!$B$6:$DB$1113,61,FALSE),VLOOKUP($BS24,'État & Plan d''action'!$B$6:$DB$1113,69,FALSE),VLOOKUP($BS24,'État & Plan d''action'!$B$6:$DB$1113,71,FALSE),VLOOKUP($BS24,'État & Plan d''action'!$B$6:$DB$1113,79,FALSE),VLOOKUP($BS24,'État & Plan d''action'!$B$6:$DB$1113,81,FALSE),VLOOKUP($BS24,'État & Plan d''action'!$B$6:$DB$1113,89,FALSE),VLOOKUP($BS24,'État & Plan d''action'!$B$6:$DB$1113,91,FALSE),VLOOKUP($BS24,'État & Plan d''action'!$B$6:$DB$1113,99,FALSE),VLOOKUP($BS24,'État & Plan d''action'!$B$6:$DB$1113,101,FALSE))/(VLOOKUP($BS24,'Données par municipalité'!$B$4:$N$1113,13,FALSE)),"") ->  | DK24: Non disponible | DN24: 0 | DO24: 0 | DX24: =IF(VLOOKUP($BS24,'État & Plan d''action'!$B$6:$DM$1113,108,FALSE)="","",VLOOKUP($BS24,'État & Plan d''action'!$B$6:$DM$1113,108,FALSE)) ->  | DY24: =IF(VLOOKUP($BS24,'État & Plan d''action'!$B$6:$DM$1113,109,FALSE)="","",VLOOKUP($BS24,'État & Plan d''action'!$B$6:$DM$1113,109,FALSE)) ->  | DZ24: =IF(VLOOKUP($BS24,'État & Plan d''action'!$B$6:$DM$1113,110,FALSE)="","",VLOOKUP($BS24,'État & Plan d''action'!$B$6:$DM$1113,110,FALSE)) ->  | EB24: =VLOOKUP(BS24,'[5]Données par municipalité'!$B$6:$F$1113,5,FALSE) ->  | EC24: =VLOOKUP($BS24,'Données par municipalité'!$B$6:$F$1113,5,FALSE) -> 0 | EF24: =IF(VLOOKUP(BS24,'Données par municipalité'!$B$6:$U$1113,7,FALSE)="","",VLOOKUP(BS24,'Données par municipalité'!$B$6:$U$1113,7,FALSE)) ->  | EM24: =VLOOKUP($BS24,'État & Plan d''action'!$B$6:$DK$1113,112,FALSE) -> 0 | EN24: =VLOOKUP($BS24,'État & Plan d''action'!$B$6:$DK$1113,113,FALSE) -> 0 | EO24: =VLOOKUP($BS24,'État & Plan d''action'!$B$6:$DK$1113,114,FALSE) -> 0 | EZ24: =IFERROR(SUM(VLOOKUP($BS24,'État & Plan d''action'!$B$6:$DB$1113,16,FALSE),VLOOKUP($BS24,'État & Plan d''action'!$B$6:$DB$1113,26,FALSE),VLOOKUP($BS24,'État & Plan d''action'!$B$6:$DB$1113,36,FALSE),VLOOKUP($BS24,'État & Plan d''action'!$B$6:$DB$1113,46,FALSE),VLOOKUP($BS24,'État & Plan d''action'!$B$6:$DB$1113,56,FALSE),VLOOKUP($BS24,'État & Plan d''action'!$B$6:$DB$1113,66,FALSE),VLOOKUP($BS24,'État & Plan d''action'!$B$6:$DB$1113,76,FALSE),VLOOKUP($BS24,'État & Plan d''action'!$B$6:$DB$1113,86,FALSE),VLOOKUP($BS24,'État & Plan d''action'!$B$6:$DB$1113,96,FALSE)),"") -> 0 | FA24: =IFERROR(SUM(VLOOKUP($BS24,'État & Plan d''action'!$B$6:$DB$1113,18,FALSE),VLOOKUP($BS24,'État & Plan d''action'!$B$6:$DB$1113,28,FALSE),VLOOKUP($BS24,'État & Plan d''action'!$B$6:$DB$1113,38,FALSE),VLOOKUP($BS24,'État & Plan d''action'!$B$6:$DB$1113,48,FALSE),VLOOKUP($BS24,'État & Plan d''action'!$B$6:$DB$1113,58,FALSE),VLOOKUP($BS24,'État & Plan d''action'!$B$6:$DB$1113,68,FALSE),VLOOKUP($BS24,'État & Plan d''action'!$B$6:$DB$1113,78,FALSE),VLOOKUP($BS24,'État & Plan d''action'!$B$6:$DB$1113,88,FALSE),VLOOKUP($BS24,'État & Plan d''action'!$B$6:$DB$1113,98,FALSE)),"") -> 0 | FB24: =IFERROR(SUM(VLOOKUP($BS24,'État & Plan d''action'!$B$6:$DB$1113,20,FALSE),VLOOKUP($BS24,'État & Plan d''action'!$B$6:$DB$1113,30,FALSE),VLOOKUP($BS24,'État & Plan d''action'!$B$6:$DB$1113,40,FALSE),VLOOKUP($BS24,'État & Plan d''action'!$B$6:$DB$1113,50,FALSE),VLOOKUP($BS24,'État & Plan d''action'!$B$6:$DB$1113,60,FALSE),VLOOKUP($BS24,'État & Plan d''action'!$B$6:$DB$1113,70,FALSE),VLOOKUP($BS24,'État & Plan d''action'!$B$6:$DB$1113,80,FALSE),VLOOKUP($BS24,'État & Plan d''action'!$B$6:$DB$1113,90,FALSE),VLOOKUP($BS24,'État & Plan d''action'!$B$6:$DB$1113,100,FALSE)),"") -> 0 | FC24: =IFERROR(SUM(VLOOKUP($BS24,'État & Plan d''action'!$B$6:$DB$1113,22,FALSE),VLOOKUP($BS24,'État & Plan d''action'!$B$6:$DB$1113,32,FALSE),VLOOKUP($BS24,'État & Plan d''action'!$B$6:$DB$1113,42,FALSE),VLOOKUP($BS24,'État & Plan d''action'!$B$6:$DB$1113,52,FALSE),VLOOKUP($BS24,'État & Plan d''action'!$B$6:$DB$1113,62,FALSE),VLOOKUP($BS24,'État & Plan d''action'!$B$6:$DB$1113,72,FALSE),VLOOKUP($BS24,'État & Plan d''action'!$B$6:$DB$1113,82,FALSE),VLOOKUP($BS24,'État & Plan d''action'!$B$6:$DB$1113,92,FALSE),VLOOKUP($BS24,'État & Plan d''action'!$B$6:$DB$1113,102,FALSE)),"") -> 0 | FD24: =IFERROR(SUM(VLOOKUP($BS24,'État & Plan d''action'!$B$6:$DB$1113,24,FALSE),VLOOKUP($BS24,'État & Plan d''action'!$B$6:$DB$1113,34,FALSE),VLOOKUP($BS24,'État & Plan d''action'!$B$6:$DB$1113,44,FALSE),VLOOKUP($BS24,'État & Plan d''action'!$B$6:$DB$1113,54,FALSE),VLOOKUP($BS24,'État & Plan d''action'!$B$6:$DB$1113,64,FALSE),VLOOKUP($BS24,'État & Plan d''action'!$B$6:$DB$1113,74,FALSE),VLOOKUP($BS24,'État & Plan d''action'!$B$6:$DB$1113,84,FALSE),VLOOKUP($BS24,'État & Plan d''action'!$B$6:$DB$1113,94,FALSE),VLOOKUP($BS24,'État & Plan d''action'!$B$6:$DB$1113,104,FALSE)),"") -> 0 | FH24: 443
W25: FM approuvé ? | X25: =VLOOKUP($W$21,$BS$8:$CO$1115,14,FALSE) ->  | Y25: =VLOOKUP($W$21,$BS$8:$CO$1115,15,FALSE) ->  | Z25: =VLOOKUP($W$21,$BS$8:$CO$1115,16,FALSE) ->  | AA25: =VLOOKUP($W$21,$BS$8:$CO$1115,17,FALSE) ->  | AB25: =VLOOKUP($W$21,$BS$8:$CO$1115,18,FALSE) ->  | AC25: =VLOOKUP($W$21,$BS$8:$CO$1115,19,FALSE) ->  | AD25: =VLOOKUP($W$21,$BS$8:$CO$1115,20,FALSE) ->  | AE25: =VLOOKUP($W$21,$BS$8:$CO$1115,21,FALSE) ->  | AF25: =VLOOKUP($W$21,$BS$8:$CO$1115,22,FALSE) ->  | AG25: =VLOOKUP($W$21,$BS$8:$CO$1115,23,FALSE) ->  | BS25: 13045 | BT25: AUCLAIR | BU25: 1 | BV25: non | BW25: non | BX25: non | BY25: non | BZ25: non | CA25: non | CB25: non | CC25: non | CD25: non | CE25: non | CF25: oui | CG25: oui | CH25: oui | CI25: oui | CJ25: oui | CK25: oui | CL25: non | CM25: oui | CN25: oui | CO25: =IF(VLOOKUP(BS25,'Données par municipalité'!$B$6:$E$1113,4,FALSE)="","non","oui") -> oui | CP25: 334.7280335 | CQ25: 333.2705631 | CR25: 462.7621587 | CS25: 452.2461213 | CT25: 437.2282417 | CU25: 416.3413999 | CW25: 296 | CX25: =VLOOKUP(BS25,[5]Évolution!$BS$7:$CV$1115,30,FALSE) -> 297 | CY25: =IF(VLOOKUP(BS25,'Données par municipalité'!$B$6:$F$1113,4,FALSE)="","",VLOOKUP(BS25,'Données par municipalité'!$B$6:$F$1113,4,FALSE)) -> 197 | CZ25: Non disponible | DA25: 0.1 | DB25: 0.1 | DC25: 0.1 | DD25: 0.1 | DE25: 0.1 | DG25: 0 | DH25: 0 | DI25: =IFERROR(SUM(VLOOKUP($BS25,'État & Plan d''action'!$B$6:$DB$1113,18,FALSE),VLOOKUP($BS25,'État & Plan d''action'!$B$6:$DB$1113,20,FALSE),VLOOKUP($BS25,'État & Plan d''action'!$B$6:$DB$1113,28,FALSE),VLOOKUP($BS25,'État & Plan d''action'!$B$6:$DB$1113,30,FALSE),VLOOKUP($BS25,'État & Plan d''action'!$B$6:$DB$1113,38,FALSE),VLOOKUP($BS25,'État & Plan d''action'!$B$6:$DB$1113,40,FALSE),VLOOKUP($BS25,'État & Plan d''action'!$B$6:$DB$1113,48,FALSE),VLOOKUP($BS25,'État & Plan d''action'!$B$6:$DB$1113,50,FALSE),VLOOKUP($BS25,'État & Plan d''action'!$B$6:$DB$1113,58,FALSE),VLOOKUP($BS25,'État & Plan d''action'!$B$6:$DB$1113,60,FALSE),VLOOKUP($BS25,'État & Plan d''action'!$B$6:$DB$1113,68,FALSE),VLOOKUP($BS25,'État & Plan d''action'!$B$6:$DB$1113,70,FALSE),VLOOKUP($BS25,'État & Plan d''action'!$B$6:$DB$1113,78,FALSE),VLOOKUP($BS25,'État & Plan d''action'!$B$6:$DB$1113,80,FALSE),VLOOKUP($BS25,'État & Plan d''action'!$B$6:$DB$1113,88,FALSE),VLOOKUP($BS25,'État & Plan d''action'!$B$6:$DB$1113,90,FALSE),VLOOKUP($BS25,'État & Plan d''action'!$B$6:$DB$1113,98,FALSE),VLOOKUP($BS25,'État & Plan d''action'!$B$6:$DB$1113,100,FALSE))/(VLOOKUP($BS25,'Données par municipalité'!$B$4:$N$1113,13,FALSE)),"") -> 0 | DJ25: =IFERROR(SUM(VLOOKUP($BS25,'État & Plan d''action'!$B$6:$DB$1113,19,FALSE),VLOOKUP($BS25,'État & Plan d''action'!$B$6:$DB$1113,21,FALSE),VLOOKUP($BS25,'État & Plan d''action'!$B$6:$DB$1113,29,FALSE),VLOOKUP($BS25,'État & Plan d''action'!$B$6:$DB$1113,31,FALSE),VLOOKUP($BS25,'État & Plan d''action'!$B$6:$DB$1113,39,FALSE),VLOOKUP($BS25,'État & Plan d''action'!$B$6:$DB$1113,41,FALSE),VLOOKUP($BS25,'État & Plan d''action'!$B$6:$DB$1113,49,FALSE),VLOOKUP($BS25,'État & Plan d''action'!$B$6:$DB$1113,51,FALSE),VLOOKUP($BS25,'État & Plan d''action'!$B$6:$DB$1113,59,FALSE),VLOOKUP($BS25,'État & Plan d''action'!$B$6:$DB$1113,61,FALSE),VLOOKUP($BS25,'État & Plan d''action'!$B$6:$DB$1113,69,FALSE),VLOOKUP($BS25,'État & Plan d''action'!$B$6:$DB$1113,71,FALSE),VLOOKUP($BS25,'État & Plan d''action'!$B$6:$DB$1113,79,FALSE),VLOOKUP($BS25,'État & Plan d''action'!$B$6:$DB$1113,81,FALSE),VLOOKUP($BS25,'État & Plan d''action'!$B$6:$DB$1113,89,FALSE),VLOOKUP($BS25,'État & Plan d''action'!$B$6:$DB$1113,91,FALSE),VLOOKUP($BS25,'État & Plan d''action'!$B$6:$DB$1113,99,FALSE),VLOOKUP($BS25,'État & Plan d''action'!$B$6:$DB$1113,101,FALSE))/(VLOOKUP($BS25,'Données par municipalité'!$B$4:$N$1113,13,FALSE)),"") -> 0 | DK25: Non disponible | DL25: 1 | DM25: 0 | DN25: 2 | DO25: 2 | DP25: 0 | DR25: 11 | DS25: 0 | DT25: 0 | DU25: 1 | DV25: 0 | DW25: 0 | DX25: =IF(VLOOKUP($BS25,'État & Plan d''action'!$B$6:$DM$1113,108,FALSE)="","",VLOOKUP($BS25,'État & Plan d''action'!$B$6:$DM$1113,108,FALSE)) -> 0 | DY25: =IF(VLOOKUP($BS25,'État & Plan d''action'!$B$6:$DM$1113,109,FALSE)="","",VLOOKUP($BS25,'État & Plan d''action'!$B$6:$DM$1113,109,FALSE)) -> 0 | DZ25: =IF(VLOOKUP($BS25,'État & Plan d''action'!$B$6:$DM$1113,110,FALSE)="","",VLOOKUP($BS25,'État & Plan d''action'!$B$6:$DM$1113,110,FALSE)) -> 0 | EA25: 182 | EB25: =VLOOKUP(BS25,'[5]Données par municipalité'!$B$6:$F$1113,5,FALSE) -> 233 | EC25: =VLOOKUP($BS25,'Données par municipalité'!$B$6:$F$1113,5,FALSE) -> 150 | ED25: 2.927922939 | EE25: 1.274405553 | EF25: =IF(VLOOKUP(BS25,'Données par municipalité'!$B$6:$U$1113,7,FALSE)="","",VLOOKUP(BS25,'Données par municipalité'!$B$6:$U$1113,7,FALSE)) -> 1.182470137 | EG25: 5 | EH25: 0 | EI25: 0 | EJ25: 2 | EK25: 0 | EL25: 0 | EM25: =VLOOKUP($BS25,'État & Plan d''action'!$B$6:$DK$1113,112,FALSE) -> S.O. | EN25: =VLOOKUP($BS25,'État & Plan d''action'!$B$6:$DK$1113,113,FALSE) ->  | EO25: =VLOOKUP($BS25,'État & Plan d''action'!$B$6:$DK$1113,114,FALSE) ->  | EP25: 0 | EQ25: 0 | ER25: 0 | ES25: 0 | ET25: 0 | EU25: 0 | EV25: 0 | EW25: 0 | EX25: 0 | EY25: 0 | EZ25: =IFERROR(SUM(VLOOKUP($BS25,'État & Plan d''action'!$B$6:$DB$1113,16,FALSE),VLOOKUP($BS25,'État & Plan d''action'!$B$6:$DB$1113,26,FALSE),VLOOKUP($BS25,'État & Plan d''action'!$B$6:$DB$1113,36,FALSE),VLOOKUP($BS25,'État & Plan d''action'!$B$6:$DB$1113,46,FALSE),VLOOKUP($BS25,'État & Plan d''action'!$B$6:$DB$1113,56,FALSE),VLOOKUP($BS25,'État & Plan d''action'!$B$6:$DB$1113,66,FALSE),VLOOKUP($BS25,'État & Plan d''action'!$B$6:$DB$1113,76,FALSE),VLOOKUP($BS25,'État & Plan d''action'!$B$6:$DB$1113,86,FALSE),VLOOKUP($BS25,'État & Plan d''action'!$B$6:$DB$1113,96,FALSE)),"") -> 0 | FA25: =IFERROR(SUM(VLOOKUP($BS25,'État & Plan d''action'!$B$6:$DB$1113,18,FALSE),VLOOKUP($BS25,'État & Plan d''action'!$B$6:$DB$1113,28,FALSE),VLOOKUP($BS25,'État & Plan d''action'!$B$6:$DB$1113,38,FALSE),VLOOKUP($BS25,'État & Plan d''action'!$B$6:$DB$1113,48,FALSE),VLOOKUP($BS25,'État & Plan d''action'!$B$6:$DB$1113,58,FALSE),VLOOKUP($BS25,'État & Plan d''action'!$B$6:$DB$1113,68,FALSE),VLOOKUP($BS25,'État & Plan d''action'!$B$6:$DB$1113,78,FALSE),VLOOKUP($BS25,'État & Plan d''action'!$B$6:$DB$1113,88,FALSE),VLOOKUP($BS25,'État & Plan d''action'!$B$6:$DB$1113,98,FALSE)),"") -> 0 | FB25: =IFERROR(SUM(VLOOKUP($BS25,'État & Plan d''action'!$B$6:$DB$1113,20,FALSE),VLOOKUP($BS25,'État & Plan d''action'!$B$6:$DB$1113,30,FALSE),VLOOKUP($BS25,'État & Plan d''action'!$B$6:$DB$1113,40,FALSE),VLOOKUP($BS25,'État & Plan d''action'!$B$6:$DB$1113,50,FALSE),VLOOKUP($BS25,'État & Plan d''action'!$B$6:$DB$1113,60,FALSE),VLOOKUP($BS25,'État & Plan d''action'!$B$6:$DB$1113,70,FALSE),VLOOKUP($BS25,'État & Plan d''action'!$B$6:$DB$1113,80,FALSE),VLOOKUP($BS25,'État & Plan d''action'!$B$6:$DB$1113,90,FALSE),VLOOKUP($BS25,'État & Plan d''action'!$B$6:$DB$1113,100,FALSE)),"") -> 0 | FC25: =IFERROR(SUM(VLOOKUP($BS25,'État & Plan d''action'!$B$6:$DB$1113,22,FALSE),VLOOKUP($BS25,'État & Plan d''action'!$B$6:$DB$1113,32,FALSE),VLOOKUP($BS25,'État & Plan d''action'!$B$6:$DB$1113,42,FALSE),VLOOKUP($BS25,'État & Plan d''action'!$B$6:$DB$1113,52,FALSE),VLOOKUP($BS25,'État & Plan d''action'!$B$6:$DB$1113,62,FALSE),VLOOKUP($BS25,'État & Plan d''action'!$B$6:$DB$1113,72,FALSE),VLOOKUP($BS25,'État & Plan d''action'!$B$6:$DB$1113,82,FALSE),VLOOKUP($BS25,'État & Plan d''action'!$B$6:$DB$1113,92,FALSE),VLOOKUP($BS25,'État & Plan d''action'!$B$6:$DB$1113,102,FALSE)),"") -> 0 | FD25: =IFERROR(SUM(VLOOKUP($BS25,'État & Plan d''action'!$B$6:$DB$1113,24,FALSE),VLOOKUP($BS25,'État & Plan d''action'!$B$6:$DB$1113,34,FALSE),VLOOKUP($BS25,'État & Plan d''action'!$B$6:$DB$1113,44,FALSE),VLOOKUP($BS25,'État & Plan d''action'!$B$6:$DB$1113,54,FALSE),VLOOKUP($BS25,'État & Plan d''action'!$B$6:$DB$1113,64,FALSE),VLOOKUP($BS25,'État & Plan d''action'!$B$6:$DB$1113,74,FALSE),VLOOKUP($BS25,'État & Plan d''action'!$B$6:$DB$1113,84,FALSE),VLOOKUP($BS25,'État & Plan d''action'!$B$6:$DB$1113,94,FALSE),VLOOKUP($BS25,'État & Plan d''action'!$B$6:$DB$1113,104,FALSE)),"") -> 0 | FE25: 45 | FF25: 58.72972973 | FG25: 58.72972973 | FH25: 444
W26: Consommation résidentielle | X26: Non disponible | Y26: Non disponible | Z26: Non disponible | AA26: Non disponible | AB26: Non disponible | AC26: Non disponible | AD26: Non disponible | AE26: =IF($W$21="",EA7,IF(AE$25="non","Non disponible",IF(VLOOKUP($W$21,$BS$8:$EC$1115,61,FALSE)=0,"Non disponible",VLOOKUP($W$21,$BS$8:$EC$1115,61,FALSE)))) -> 268.2675218 | AF26: =IF($W$21="",EB7,IF(AF$25="non","Non disponible",IF(VLOOKUP($W$21,$BS$8:$EC$1115,62,FALSE)=0,"Non disponible",VLOOKUP($W$21,$BS$8:$EC$1115,62,FALSE)))) -> 262.0375957 | AG26: =IF($W$21="",EC7,IF(AG$25="non","Non disponible",IF(VLOOKUP($W$21,$BS$8:$EC$1115,63,FALSE)=0,"Non disponible",VLOOKUP($W$21,$BS$8:$EC$1115,63,FALSE)))) -> 276.2706008 | BS26: 30055 | BT26: AUDET | BU26: 5 | BV26: non | BW26: non | BX26: non | BY26: non | BZ26: non | CA26: non | CB26: non | CC26: non | CD26: non | CE26: non | CF26: oui | CG26: oui | CH26: non | CI26: oui | CJ26: oui | CK26: oui | CL26: oui | CM26: oui | CN26: oui | CO26: =IF(VLOOKUP(BS26,'Données par municipalité'!$B$6:$E$1113,4,FALSE)="","non","oui") -> oui | CP26: 399.8785861 | CQ26: 349.2192263 | CS26: 333.5423315 | CT26: 250.866376 | CU26: 212.6355245 | CV26: 169.9217069 | CW26: 191 | CX26: =VLOOKUP(BS26,[5]Évolution!$BS$7:$CV$1115,30,FALSE) -> 204 | CY26: =IF(VLOOKUP(BS26,'Données par municipalité'!$B$6:$F$1113,4,FALSE)="","",VLOOKUP(BS26,'Données par municipalité'!$B$6:$F$1113,4,FALSE)) -> 182 | CZ26: Non disponible | DA26: 1 | DC26: 0 | DD26: 1 | DE26: 1 | DF26: 1 | DG26: 2.80469738 | DH26: 2.076923077 | DI26: =IFERROR(SUM(VLOOKUP($BS26,'État & Plan d''action'!$B$6:$DB$1113,18,FALSE),VLOOKUP($BS26,'État & Plan d''action'!$B$6:$DB$1113,20,FALSE),VLOOKUP($BS26,'État & Plan d''action'!$B$6:$DB$1113,28,FALSE),VLOOKUP($BS26,'État & Plan d''action'!$B$6:$DB$1113,30,FALSE),VLOOKUP($BS26,'État & Plan d''action'!$B$6:$DB$1113,38,FALSE),VLOOKUP($BS26,'État & Plan d''action'!$B$6:$DB$1113,40,FALSE),VLOOKUP($BS26,'État & Plan d''action'!$B$6:$DB$1113,48,FALSE),VLOOKUP($BS26,'État & Plan d''action'!$B$6:$DB$1113,50,FALSE),VLOOKUP($BS26,'État & Plan d''action'!$B$6:$DB$1113,58,FALSE),VLOOKUP($BS26,'État & Plan d''action'!$B$6:$DB$1113,60,FALSE),VLOOKUP($BS26,'État & Plan d''action'!$B$6:$DB$1113,68,FALSE),VLOOKUP($BS26,'État & Plan d''action'!$B$6:$DB$1113,70,FALSE),VLOOKUP($BS26,'État & Plan d''action'!$B$6:$DB$1113,78,FALSE),VLOOKUP($BS26,'État & Plan d''action'!$B$6:$DB$1113,80,FALSE),VLOOKUP($BS26,'État & Plan d''action'!$B$6:$DB$1113,88,FALSE),VLOOKUP($BS26,'État & Plan d''action'!$B$6:$DB$1113,90,FALSE),VLOOKUP($BS26,'État & Plan d''action'!$B$6:$DB$1113,98,FALSE),VLOOKUP($BS26,'État & Plan d''action'!$B$6:$DB$1113,100,FALSE))/(VLOOKUP($BS26,'Données par municipalité'!$B$4:$N$1113,13,FALSE)),"") -> 2 | DJ26: =IFERROR(SUM(VLOOKUP($BS26,'État & Plan d''action'!$B$6:$DB$1113,19,FALSE),VLOOKUP($BS26,'État & Plan d''action'!$B$6:$DB$1113,21,FALSE),VLOOKUP($BS26,'État & Plan d''action'!$B$6:$DB$1113,29,FALSE),VLOOKUP($BS26,'État & Plan d''action'!$B$6:$DB$1113,31,FALSE),VLOOKUP($BS26,'État & Plan d''action'!$B$6:$DB$1113,39,FALSE),VLOOKUP($BS26,'État & Plan d''action'!$B$6:$DB$1113,41,FALSE),VLOOKUP($BS26,'État & Plan d''action'!$B$6:$DB$1113,49,FALSE),VLOOKUP($BS26,'État & Plan d''action'!$B$6:$DB$1113,51,FALSE),VLOOKUP($BS26,'État & Plan d''action'!$B$6:$DB$1113,59,FALSE),VLOOKUP($BS26,'État & Plan d''action'!$B$6:$DB$1113,61,FALSE),VLOOKUP($BS26,'État & Plan d''action'!$B$6:$DB$1113,69,FALSE),VLOOKUP($BS26,'État & Plan d''action'!$B$6:$DB$1113,71,FALSE),VLOOKUP($BS26,'État & Plan d''action'!$B$6:$DB$1113,79,FALSE),VLOOKUP($BS26,'État & Plan d''action'!$B$6:$DB$1113,81,FALSE),VLOOKUP($BS26,'État & Plan d''action'!$B$6:$DB$1113,89,FALSE),VLOOKUP($BS26,'État & Plan d''action'!$B$6:$DB$1113,91,FALSE),VLOOKUP($BS26,'État & Plan d''action'!$B$6:$DB$1113,99,FALSE),VLOOKUP($BS26,'État & Plan d''action'!$B$6:$DB$1113,101,FALSE))/(VLOOKUP($BS26,'Données par municipalité'!$B$4:$N$1113,13,FALSE)),"") -> 2 | DK26: Non disponible | DL26: 0 | DN26: 3 | DO26: 8 | DP26: 2 | DQ26: 2 | DR26: 0 | DS26: 0 | DT26: 0 | DU26: 0 | DV26: 4 | DW26: 1 | DX26: =IF(VLOOKUP($BS26,'État & Plan d''action'!$B$6:$DM$1113,108,FALSE)="","",VLOOKUP($BS26,'État & Plan d''action'!$B$6:$DM$1113,108,FALSE)) -> 0 | DY26: =IF(VLOOKUP($BS26,'État & Plan d''action'!$B$6:$DM$1113,109,FALSE)="","",VLOOKUP($BS26,'État & Plan d''action'!$B$6:$DM$1113,109,FALSE)) -> 3 | DZ26: =IF(VLOOKUP($BS26,'État & Plan d''action'!$B$6:$DM$1113,110,FALSE)="","",VLOOKUP($BS26,'État & Plan d''action'!$B$6:$DM$1113,110,FALSE)) -> 0 | EA26: 123 | EB26: =VLOOKUP(BS26,'[5]Données par municipalité'!$B$6:$F$1113,5,FALSE) -> 109 | EC26: =VLOOKUP($BS26,'Données par municipalité'!$B$6:$F$1113,5,FALSE) -> 108 | ED26: 0.8425382238 | EE26: 2.38813061 | EF26: =IF(VLOOKUP(BS26,'Données par municipalité'!$B$6:$U$1113,7,FALSE)="","",VLOOKUP(BS26,'Données par municipalité'!$B$6:$U$1113,7,FALSE)) -> 2.00310302 | EG26: 0 | EH26: 0 | EI26: 0 | EJ26: 0 | EK26: 4 | EL26: 29 | EM26: =VLOOKUP($BS26,'État & Plan d''action'!$B$6:$DK$1113,112,FALSE) -> S.O. | EN26: =VLOOKUP($BS26,'État & Plan d''action'!$B$6:$DK$1113,113,FALSE) -> 7 | EO26: =VLOOKUP($BS26,'État & Plan d''action'!$B$6:$DK$1113,114,FALSE) ->  | EP26: 7.762 | EQ26: 7.762 | ER26: 7.762 | ES26: 0 | ET26: 0 | EU26: 7.762 | EV26: 7.762 | EW26: 7.762 | EX26: 0 | EY26: 0 | EZ26: =IFERROR(SUM(VLOOKUP($BS26,'État & Plan d''action'!$B$6:$DB$1113,16,FALSE),VLOOKUP($BS26,'État & Plan d''action'!$B$6:$DB$1113,26,FALSE),VLOOKUP($BS26,'État & Plan d''action'!$B$6:$DB$1113,36,FALSE),VLOOKUP($BS26,'État & Plan d''action'!$B$6:$DB$1113,46,FALSE),VLOOKUP($BS26,'État & Plan d''action'!$B$6:$DB$1113,56,FALSE),VLOOKUP($BS26,'État & Plan d''action'!$B$6:$DB$1113,66,FALSE),VLOOKUP($BS26,'État & Plan d''action'!$B$6:$DB$1113,76,FALSE),VLOOKUP($BS26,'État & Plan d''action'!$B$6:$DB$1113,86,FALSE),VLOOKUP($BS26,'État & Plan d''action'!$B$6:$DB$1113,96,FALSE)),"") -> 5.33 | FA26: =IFERROR(SUM(VLOOKUP($BS26,'État & Plan d''action'!$B$6:$DB$1113,18,FALSE),VLOOKUP($BS26,'État & Plan d''action'!$B$6:$DB$1113,28,FALSE),VLOOKUP($BS26,'État & Plan d''action'!$B$6:$DB$1113,38,FALSE),VLOOKUP($BS26,'État & Plan d''action'!$B$6:$DB$1113,48,FALSE),VLOOKUP($BS26,'État & Plan d''action'!$B$6:$DB$1113,58,FALSE),VLOOKUP($BS26,'État & Plan d''action'!$B$6:$DB$1113,68,FALSE),VLOOKUP($BS26,'État & Plan d''action'!$B$6:$DB$1113,78,FALSE),VLOOKUP($BS26,'État & Plan d''action'!$B$6:$DB$1113,88,FALSE),VLOOKUP($BS26,'État & Plan d''action'!$B$6:$DB$1113,98,FALSE)),"") -> 10.66 | FB26: =IFERROR(SUM(VLOOKUP($BS26,'État & Plan d''action'!$B$6:$DB$1113,20,FALSE),VLOOKUP($BS26,'État & Plan d''action'!$B$6:$DB$1113,30,FALSE),VLOOKUP($BS26,'État & Plan d''action'!$B$6:$DB$1113,40,FALSE),VLOOKUP($BS26,'État & Plan d''action'!$B$6:$DB$1113,50,FALSE),VLOOKUP($BS26,'État & Plan d''action'!$B$6:$DB$1113,60,FALSE),VLOOKUP($BS26,'État & Plan d''action'!$B$6:$DB$1113,70,FALSE),VLOOKUP($BS26,'État & Plan d''action'!$B$6:$DB$1113,80,FALSE),VLOOKUP($BS26,'État & Plan d''action'!$B$6:$DB$1113,90,FALSE),VLOOKUP($BS26,'État & Plan d''action'!$B$6:$DB$1113,100,FALSE)),"") -> 0 | FC26: =IFERROR(SUM(VLOOKUP($BS26,'État & Plan d''action'!$B$6:$DB$1113,22,FALSE),VLOOKUP($BS26,'État & Plan d''action'!$B$6:$DB$1113,32,FALSE),VLOOKUP($BS26,'État & Plan d''action'!$B$6:$DB$1113,42,FALSE),VLOOKUP($BS26,'État & Plan d''action'!$B$6:$DB$1113,52,FALSE),VLOOKUP($BS26,'État & Plan d''action'!$B$6:$DB$1113,62,FALSE),VLOOKUP($BS26,'État & Plan d''action'!$B$6:$DB$1113,72,FALSE),VLOOKUP($BS26,'État & Plan d''action'!$B$6:$DB$1113,82,FALSE),VLOOKUP($BS26,'État & Plan d''action'!$B$6:$DB$1113,92,FALSE),VLOOKUP($BS26,'État & Plan d''action'!$B$6:$DB$1113,102,FALSE)),"") -> 0 | FD26: =IFERROR(SUM(VLOOKUP($BS26,'État & Plan d''action'!$B$6:$DB$1113,24,FALSE),VLOOKUP($BS26,'État & Plan d''action'!$B$6:$DB$1113,34,FALSE),VLOOKUP($BS26,'État & Plan d''action'!$B$6:$DB$1113,44,FALSE),VLOOKUP($BS26,'État & Plan d''action'!$B$6:$DB$1113,54,FALSE),VLOOKUP($BS26,'État & Plan d''action'!$B$6:$DB$1113,64,FALSE),VLOOKUP($BS26,'État & Plan d''action'!$B$6:$DB$1113,74,FALSE),VLOOKUP($BS26,'État & Plan d''action'!$B$6:$DB$1113,84,FALSE),VLOOKUP($BS26,'État & Plan d''action'!$B$6:$DB$1113,94,FALSE),VLOOKUP($BS26,'État & Plan d''action'!$B$6:$DB$1113,104,FALSE)),"") -> 0 | FE26: 54 | FF26: 56 | FG26: 70 | FH26: 765
W27: Indice de fuites dans les infrastructures | X27: Non disponible | Y27: Non disponible | Z27: Non disponible | AA27: Non disponible | AB27: Non disponible | AC27: Non disponible | AD27: Non disponible | AE27: =IF($W$21="",ED7,IF(AE$25="non","Non disponible",IF(VLOOKUP($W$21,$BS$8:$EE$1115,64,FALSE)=0,"Non disponible",VLOOKUP($W$21,$BS$8:$EE$1115,64,FALSE)))) -> 6.035062766 | AF27: =IF($W$21="",EE7,IF(AF$25="non","Non disponible",IF(VLOOKUP($W$21,$BS$8:$EE$1115,65,FALSE)=0,"Non disponible",VLOOKUP($W$21,$BS$8:$EE$1115,65,FALSE)))) -> 6.592263155 | AG27: =IF($W$21="",EF7,IF(AG$25="non","Non disponible",IF(VLOOKUP($W$21,$BS$8:$EF$1115,66,FALSE)=0,"Non disponible",VLOOKUP($W$21,$BS$8:$EF$1115,66,FALSE)))) -> 6.292197281 | BS27: 83090 | BT27: AUMOND | BU27: 7 | BV27: oui | BW27: oui | BX27: oui | BY27: oui | BZ27: oui | CA27: oui | CB27: oui | CC27: oui | CD27: oui | CE27: oui | CF27: non | CG27: non | CH27: non | CI27: non | CJ27: non | CK27: non | CL27: non | CM27: non | CN27: non | CO27: =IF(VLOOKUP(BS27,'Données par municipalité'!$B$6:$E$1113,4,FALSE)="","non","oui") -> non | CX27: =VLOOKUP(BS27,[5]Évolution!$BS$7:$CV$1115,30,FALSE) ->  | CY27: =IF(VLOOKUP(BS27,'Données par municipalité'!$B$6:$F$1113,4,FALSE)="","",VLOOKUP(BS27,'Données par municipalité'!$B$6:$F$1113,4,FALSE)) ->  | CZ27: Non disponible | DI27: =IFERROR(SUM(VLOOKUP($BS27,'État & Plan d''action'!$B$6:$DB$1113,18,FALSE),VLOOKUP($BS27,'État & Plan d''action'!$B$6:$DB$1113,20,FALSE),VLOOKUP($BS27,'État & Plan d''action'!$B$6:$DB$1113,28,FALSE),VLOOKUP($BS27,'État & Plan d''action'!$B$6:$DB$1113,30,FALSE),VLOOKUP($BS27,'État & Plan d''action'!$B$6:$DB$1113,38,FALSE),VLOOKUP($BS27,'État & Plan d''action'!$B$6:$DB$1113,40,FALSE),VLOOKUP($BS27,'État & Plan d''action'!$B$6:$DB$1113,48,FALSE),VLOOKUP($BS27,'État & Plan d''action'!$B$6:$DB$1113,50,FALSE),VLOOKUP($BS27,'État & Plan d''action'!$B$6:$DB$1113,58,FALSE),VLOOKUP($BS27,'État & Plan d''action'!$B$6:$DB$1113,60,FALSE),VLOOKUP($BS27,'État & Plan d''action'!$B$6:$DB$1113,68,FALSE),VLOOKUP($BS27,'État & Plan d''action'!$B$6:$DB$1113,70,FALSE),VLOOKUP($BS27,'État & Plan d''action'!$B$6:$DB$1113,78,FALSE),VLOOKUP($BS27,'État & Plan d''action'!$B$6:$DB$1113,80,FALSE),VLOOKUP($BS27,'État & Plan d''action'!$B$6:$DB$1113,88,FALSE),VLOOKUP($BS27,'État & Plan d''action'!$B$6:$DB$1113,90,FALSE),VLOOKUP($BS27,'État & Plan d''action'!$B$6:$DB$1113,98,FALSE),VLOOKUP($BS27,'État & Plan d''action'!$B$6:$DB$1113,100,FALSE))/(VLOOKUP($BS27,'Données par municipalité'!$B$4:$N$1113,13,FALSE)),"") ->  | DJ27: =IFERROR(SUM(VLOOKUP($BS27,'État & Plan d''action'!$B$6:$DB$1113,19,FALSE),VLOOKUP($BS27,'État & Plan d''action'!$B$6:$DB$1113,21,FALSE),VLOOKUP($BS27,'État & Plan d''action'!$B$6:$DB$1113,29,FALSE),VLOOKUP($BS27,'État & Plan d''action'!$B$6:$DB$1113,31,FALSE),VLOOKUP($BS27,'État & Plan d''action'!$B$6:$DB$1113,39,FALSE),VLOOKUP($BS27,'État & Plan d''action'!$B$6:$DB$1113,41,FALSE),VLOOKUP($BS27,'État & Plan d''action'!$B$6:$DB$1113,49,FALSE),VLOOKUP($BS27,'État & Plan d''action'!$B$6:$DB$1113,51,FALSE),VLOOKUP($BS27,'État & Plan d''action'!$B$6:$DB$1113,59,FALSE),VLOOKUP($BS27,'État & Plan d''action'!$B$6:$DB$1113,61,FALSE),VLOOKUP($BS27,'État & Plan d''action'!$B$6:$DB$1113,69,FALSE),VLOOKUP($BS27,'État & Plan d''action'!$B$6:$DB$1113,71,FALSE),VLOOKUP($BS27,'État & Plan d''action'!$B$6:$DB$1113,79,FALSE),VLOOKUP($BS27,'État & Plan d''action'!$B$6:$DB$1113,81,FALSE),VLOOKUP($BS27,'État & Plan d''action'!$B$6:$DB$1113,89,FALSE),VLOOKUP($BS27,'État & Plan d''action'!$B$6:$DB$1113,91,FALSE),VLOOKUP($BS27,'État & Plan d''action'!$B$6:$DB$1113,99,FALSE),VLOOKUP($BS27,'État & Plan d''action'!$B$6:$DB$1113,101,FALSE))/(VLOOKUP($BS27,'Données par municipalité'!$B$4:$N$1113,13,FALSE)),"") ->  | DK27: Non disponible | DN27: 0 | DO27: 0 | DX27: =IF(VLOOKUP($BS27,'État & Plan d''action'!$B$6:$DM$1113,108,FALSE)="","",VLOOKUP($BS27,'État & Plan d''action'!$B$6:$DM$1113,108,FALSE)) ->  | DY27: =IF(VLOOKUP($BS27,'État & Plan d''action'!$B$6:$DM$1113,109,FALSE)="","",VLOOKUP($BS27,'État & Plan d''action'!$B$6:$DM$1113,109,FALSE)) ->  | DZ27: =IF(VLOOKUP($BS27,'État & Plan d''action'!$B$6:$DM$1113,110,FALSE)="","",VLOOKUP($BS27,'État & Plan d''action'!$B$6:$DM$1113,110,FALSE)) ->  | EB27: =VLOOKUP(BS27,'[5]Données par municipalité'!$B$6:$F$1113,5,FALSE) ->  | EC27: =VLOOKUP($BS27,'Données par municipalité'!$B$6:$F$1113,5,FALSE) -> 0 | EF27: =IF(VLOOKUP(BS27,'Données par municipalité'!$B$6:$U$1113,7,FALSE)="","",VLOOKUP(BS27,'Données par municipalité'!$B$6:$U$1113,7,FALSE)) ->  | EM27: =VLOOKUP($BS27,'État & Plan d''action'!$B$6:$DK$1113,112,FALSE) -> 0 | EN27: =VLOOKUP($BS27,'État & Plan d''action'!$B$6:$DK$1113,113,FALSE) -> 0 | EO27: =VLOOKUP($BS27,'État & Plan d''action'!$B$6:$DK$1113,114,FALSE) -> 0 | EZ27: =IFERROR(SUM(VLOOKUP($BS27,'État & Plan d''action'!$B$6:$DB$1113,16,FALSE),VLOOKUP($BS27,'État & Plan d''action'!$B$6:$DB$1113,26,FALSE),VLOOKUP($BS27,'État & Plan d''action'!$B$6:$DB$1113,36,FALSE),VLOOKUP($BS27,'État & Plan d''action'!$B$6:$DB$1113,46,FALSE),VLOOKUP($BS27,'État & Plan d''action'!$B$6:$DB$1113,56,FALSE),VLOOKUP($BS27,'État & Plan d''action'!$B$6:$DB$1113,66,FALSE),VLOOKUP($BS27,'État & Plan d''action'!$B$6:$DB$1113,76,FALSE),VLOOKUP($BS27,'État & Plan d''action'!$B$6:$DB$1113,86,FALSE),VLOOKUP($BS27,'État & Plan d''action'!$B$6:$DB$1113,96,FALSE)),"") -> 0 | FA27: =IFERROR(SUM(VLOOKUP($BS27,'État & Plan d''action'!$B$6:$DB$1113,18,FALSE),VLOOKUP($BS27,'État & Plan d''action'!$B$6:$DB$1113,28,FALSE),VLOOKUP($BS27,'État & Plan d''action'!$B$6:$DB$1113,38,FALSE),VLOOKUP($BS27,'État & Plan d''action'!$B$6:$DB$1113,48,FALSE),VLOOKUP($BS27,'État & Plan d''action'!$B$6:$DB$1113,58,FALSE),VLOOKUP($BS27,'État & Plan d''action'!$B$6:$DB$1113,68,FALSE),VLOOKUP($BS27,'État & Plan d''action'!$B$6:$DB$1113,78,FALSE),VLOOKUP($BS27,'État & Plan d''action'!$B$6:$DB$1113,88,FALSE),VLOOKUP($BS27,'État & Plan d''action'!$B$6:$DB$1113,98,FALSE)),"") -> 0 | FB27: =IFERROR(SUM(VLOOKUP($BS27,'État & Plan d''action'!$B$6:$DB$1113,20,FALSE),VLOOKUP($BS27,'État & Plan d''action'!$B$6:$DB$1113,30,FALSE),VLOOKUP($BS27,'État & Plan d''action'!$B$6:$DB$1113,40,FALSE),VLOOKUP($BS27,'État & Plan d''action'!$B$6:$DB$1113,50,FALSE),VLOOKUP($BS27,'État & Plan d''action'!$B$6:$DB$1113,60,FALSE),VLOOKUP($BS27,'État & Plan d''action'!$B$6:$DB$1113,70,FALSE),VLOOKUP($BS27,'État & Plan d''action'!$B$6:$DB$1113,80,FALSE),VLOOKUP($BS27,'État & Plan d''action'!$B$6:$DB$1113,90,FALSE),VLOOKUP($BS27,'État & Plan d''action'!$B$6:$DB$1113,100,FALSE)),"") -> 0 | FC27: =IFERROR(SUM(VLOOKUP($BS27,'État & Plan d''action'!$B$6:$DB$1113,22,FALSE),VLOOKUP($BS27,'État & Plan d''action'!$B$6:$DB$1113,32,FALSE),VLOOKUP($BS27,'État & Plan d''action'!$B$6:$DB$1113,42,FALSE),VLOOKUP($BS27,'État & Plan d''action'!$B$6:$DB$1113,52,FALSE),VLOOKUP($BS27,'État & Plan d''action'!$B$6:$DB$1113,62,FALSE),VLOOKUP($BS27,'État & Plan d''action'!$B$6:$DB$1113,72,FALSE),VLOOKUP($BS27,'État & Plan d''action'!$B$6:$DB$1113,82,FALSE),VLOOKUP($BS27,'État & Plan d''action'!$B$6:$DB$1113,92,FALSE),VLOOKUP($BS27,'État & Plan d''action'!$B$6:$DB$1113,102,FALSE)),"") -> 0 | FD27: =IFERROR(SUM(VLOOKUP($BS27,'État & Plan d''action'!$B$6:$DB$1113,24,FALSE),VLOOKUP($BS27,'État & Plan d''action'!$B$6:$DB$1113,34,FALSE),VLOOKUP($BS27,'État & Plan d''action'!$B$6:$DB$1113,44,FALSE),VLOOKUP($BS27,'État & Plan d''action'!$B$6:$DB$1113,54,FALSE),VLOOKUP($BS27,'État & Plan d''action'!$B$6:$DB$1113,64,FALSE),VLOOKUP($BS27,'État & Plan d''action'!$B$6:$DB$1113,74,FALSE),VLOOKUP($BS27,'État & Plan d''action'!$B$6:$DB$1113,84,FALSE),VLOOKUP($BS27,'État & Plan d''action'!$B$6:$DB$1113,94,FALSE),VLOOKUP($BS27,'État & Plan d''action'!$B$6:$DB$1113,104,FALSE)),"") -> 0 | FH27: 759
W28: Résultat de validité des données | X28: Non disponible | Y28: Non disponible | Z28: Non disponible | AA28: Non disponible | AB28: Non disponible | AC28: Non disponible | AD28: Non disponible | AE28: =IF($W$21="",FE7,IF(AE$25="non","Non disponible",IF(VLOOKUP($W$21,$BS$8:$FG$1115,91,FALSE)=0,"Non disponible",VLOOKUP($W$21,$BS$8:$FG$1115,91,FALSE)))) -> 55.81464743 | AF28: =IF($W$21="",FF7,IF(AF$25="non","Non disponible",IF(VLOOKUP($W$21,$BS$8:$FG$1115,92,FALSE)=0,"Non disponible",VLOOKUP($W$21,$BS$8:$FG$1115,92,FALSE)))) -> 57.72349908 | AG28: =IF($W$21="",FG7,IF(AG$25="non","Non disponible",IF(VLOOKUP($W$21,$BS$8:$FG$1115,93,FALSE)=0,"Non disponible",VLOOKUP($W$21,$BS$8:$FG$1115,93,FALSE)))) -> 58.58576664 | BS28: 45085 | BT28: AUSTIN | BU28: 5 | BV28: oui | BW28: oui | BX28: oui | BY28: oui | BZ28: oui | CA28: oui | CB28: oui | CC28: oui | CD28: oui | CE28: oui | CF28: non | CG28: non | CH28: non | CI28: non | CJ28: non | CK28: non | CL28: non | CM28: non | CN28: non | CO28: =IF(VLOOKUP(BS28,'Données par municipalité'!$B$6:$E$1113,4,FALSE)="","non","oui") -> non | CX28: =VLOOKUP(BS28,[5]Évolution!$BS$7:$CV$1115,30,FALSE) ->  | CY28: =IF(VLOOKUP(BS28,'Données par municipalité'!$B$6:$F$1113,4,FALSE)="","",VLOOKUP(BS28,'Données par municipalité'!$B$6:$F$1113,4,FALSE)) ->  | CZ28: Non disponible | DI28: =IFERROR(SUM(VLOOKUP($BS28,'État & Plan d''action'!$B$6:$DB$1113,18,FALSE),VLOOKUP($BS28,'État & Plan d''action'!$B$6:$DB$1113,20,FALSE),VLOOKUP($BS28,'État & Plan d''action'!$B$6:$DB$1113,28,FALSE),VLOOKUP($BS28,'État & Plan d''action'!$B$6:$DB$1113,30,FALSE),VLOOKUP($BS28,'État & Plan d''action'!$B$6:$DB$1113,38,FALSE),VLOOKUP($BS28,'État & Plan d''action'!$B$6:$DB$1113,40,FALSE),VLOOKUP($BS28,'État & Plan d''action'!$B$6:$DB$1113,48,FALSE),VLOOKUP($BS28,'État & Plan d''action'!$B$6:$DB$1113,50,FALSE),VLOOKUP($BS28,'État & Plan d''action'!$B$6:$DB$1113,58,FALSE),VLOOKUP($BS28,'État & Plan d''action'!$B$6:$DB$1113,60,FALSE),VLOOKUP($BS28,'État & Plan d''action'!$B$6:$DB$1113,68,FALSE),VLOOKUP($BS28,'État & Plan d''action'!$B$6:$DB$1113,70,FALSE),VLOOKUP($BS28,'État & Plan d''action'!$B$6:$DB$1113,78,FALSE),VLOOKUP($BS28,'État & Plan d''action'!$B$6:$DB$1113,80,FALSE),VLOOKUP($BS28,'État & Plan d''action'!$B$6:$DB$1113,88,FALSE),VLOOKUP($BS28,'État & Plan d''action'!$B$6:$DB$1113,90,FALSE),VLOOKUP($BS28,'État & Plan d''action'!$B$6:$DB$1113,98,FALSE),VLOOKUP($BS28,'État & Plan d''action'!$B$6:$DB$1113,100,FALSE))/(VLOOKUP($BS28,'Données par municipalité'!$B$4:$N$1113,13,FALSE)),"") ->  | DJ28: =IFERROR(SUM(VLOOKUP($BS28,'État & Plan d''action'!$B$6:$DB$1113,19,FALSE),VLOOKUP($BS28,'État & Plan d''action'!$B$6:$DB$1113,21,FALSE),VLOOKUP($BS28,'État & Plan d''action'!$B$6:$DB$1113,29,FALSE),VLOOKUP($BS28,'État & Plan d''action'!$B$6:$DB$1113,31,FALSE),VLOOKUP($BS28,'État & Plan d''action'!$B$6:$DB$1113,39,FALSE),VLOOKUP($BS28,'État & Plan d''action'!$B$6:$DB$1113,41,FALSE),VLOOKUP($BS28,'État & Plan d''action'!$B$6:$DB$1113,49,FALSE),VLOOKUP($BS28,'État & Plan d''action'!$B$6:$DB$1113,51,FALSE),VLOOKUP($BS28,'État & Plan d''action'!$B$6:$DB$1113,59,FALSE),VLOOKUP($BS28,'État & Plan d''action'!$B$6:$DB$1113,61,FALSE),VLOOKUP($BS28,'État & Plan d''action'!$B$6:$DB$1113,69,FALSE),VLOOKUP($BS28,'État & Plan d''action'!$B$6:$DB$1113,71,FALSE),VLOOKUP($BS28,'État & Plan d''action'!$B$6:$DB$1113,79,FALSE),VLOOKUP($BS28,'État & Plan d''action'!$B$6:$DB$1113,81,FALSE),VLOOKUP($BS28,'État & Plan d''action'!$B$6:$DB$1113,89,FALSE),VLOOKUP($BS28,'État & Plan d''action'!$B$6:$DB$1113,91,FALSE),VLOOKUP($BS28,'État & Plan d''action'!$B$6:$DB$1113,99,FALSE),VLOOKUP($BS28,'État & Plan d''action'!$B$6:$DB$1113,101,FALSE))/(VLOOKUP($BS28,'Données par municipalité'!$B$4:$N$1113,13,FALSE)),"") ->  | DK28: Non disponible | DN28: 0 | DO28: 0 | DX28: =IF(VLOOKUP($BS28,'État & Plan d''action'!$B$6:$DM$1113,108,FALSE)="","",VLOOKUP($BS28,'État & Plan d''action'!$B$6:$DM$1113,108,FALSE)) ->  | DY28: =IF(VLOOKUP($BS28,'État & Plan d''action'!$B$6:$DM$1113,109,FALSE)="","",VLOOKUP($BS28,'État & Plan d''action'!$B$6:$DM$1113,109,FALSE)) ->  | DZ28: =IF(VLOOKUP($BS28,'État & Plan d''action'!$B$6:$DM$1113,110,FALSE)="","",VLOOKUP($BS28,'État & Plan d''action'!$B$6:$DM$1113,110,FALSE)) ->  | EB28: =VLOOKUP(BS28,'[5]Données par municipalité'!$B$6:$F$1113,5,FALSE) ->  | EC28: =VLOOKUP($BS28,'Données par municipalité'!$B$6:$F$1113,5,FALSE) -> 0 | EF28: =IF(VLOOKUP(BS28,'Données par municipalité'!$B$6:$U$1113,7,FALSE)="","",VLOOKUP(BS28,'Données par municipalité'!$B$6:$U$1113,7,FALSE)) ->  | EM28: =VLOOKUP($BS28,'État & Plan d''action'!$B$6:$DK$1113,112,FALSE) -> 0 | EN28: =VLOOKUP($BS28,'État & Plan d''action'!$B$6:$DK$1113,113,FALSE) -> 0 | EO28: =VLOOKUP($BS28,'État & Plan d''action'!$B$6:$DK$1113,114,FALSE) -> 0 | EZ28: =IFERROR(SUM(VLOOKUP($BS28,'État & Plan d''action'!$B$6:$DB$1113,16,FALSE),VLOOKUP($BS28,'État & Plan d''action'!$B$6:$DB$1113,26,FALSE),VLOOKUP($BS28,'État & Plan d''action'!$B$6:$DB$1113,36,FALSE),VLOOKUP($BS28,'État & Plan d''action'!$B$6:$DB$1113,46,FALSE),VLOOKUP($BS28,'État & Plan d''action'!$B$6:$DB$1113,56,FALSE),VLOOKUP($BS28,'État & Plan d''action'!$B$6:$DB$1113,66,FALSE),VLOOKUP($BS28,'État & Plan d''action'!$B$6:$DB$1113,76,FALSE),VLOOKUP($BS28,'État & Plan d''action'!$B$6:$DB$1113,86,FALSE),VLOOKUP($BS28,'État & Plan d''action'!$B$6:$DB$1113,96,FALSE)),"") -> 0 | FA28: =IFERROR(SUM(VLOOKUP($BS28,'État & Plan d''action'!$B$6:$DB$1113,18,FALSE),VLOOKUP($BS28,'État & Plan d''action'!$B$6:$DB$1113,28,FALSE),VLOOKUP($BS28,'État & Plan d''action'!$B$6:$DB$1113,38,FALSE),VLOOKUP($BS28,'État & Plan d''action'!$B$6:$DB$1113,48,FALSE),VLOOKUP($BS28,'État & Plan d''action'!$B$6:$DB$1113,58,FALSE),VLOOKUP($BS28,'État & Plan d''action'!$B$6:$DB$1113,68,FALSE),VLOOKUP($BS28,'État & Plan d''action'!$B$6:$DB$1113,78,FALSE),VLOOKUP($BS28,'État & Plan d''action'!$B$6:$DB$1113,88,FALSE),VLOOKUP($BS28,'État & Plan d''action'!$B$6:$DB$1113,98,FALSE)),"") -> 0 | FB28: =IFERROR(SUM(VLOOKUP($BS28,'État & Plan d''action'!$B$6:$DB$1113,20,FALSE),VLOOKUP($BS28,'État & Plan d''action'!$B$6:$DB$1113,30,FALSE),VLOOKUP($BS28,'État & Plan d''action'!$B$6:$DB$1113,40,FALSE),VLOOKUP($BS28,'État & Plan d''action'!$B$6:$DB$1113,50,FALSE),VLOOKUP($BS28,'État & Plan d''action'!$B$6:$DB$1113,60,FALSE),VLOOKUP($BS28,'État & Plan d''action'!$B$6:$DB$1113,70,FALSE),VLOOKUP($BS28,'État & Plan d''action'!$B$6:$DB$1113,80,FALSE),VLOOKUP($BS28,'État & Plan d''action'!$B$6:$DB$1113,90,FALSE),VLOOKUP($BS28,'État & Plan d''action'!$B$6:$DB$1113,100,FALSE)),"") -> 0 | FC28: =IFERROR(SUM(VLOOKUP($BS28,'État & Plan d''action'!$B$6:$DB$1113,22,FALSE),VLOOKUP($BS28,'État & Plan d''action'!$B$6:$DB$1113,32,FALSE),VLOOKUP($BS28,'État & Plan d''action'!$B$6:$DB$1113,42,FALSE),VLOOKUP($BS28,'État & Plan d''action'!$B$6:$DB$1113,52,FALSE),VLOOKUP($BS28,'État & Plan d''action'!$B$6:$DB$1113,62,FALSE),VLOOKUP($BS28,'État & Plan d''action'!$B$6:$DB$1113,72,FALSE),VLOOKUP($BS28,'État & Plan d''action'!$B$6:$DB$1113,82,FALSE),VLOOKUP($BS28,'État & Plan d''action'!$B$6:$DB$1113,92,FALSE),VLOOKUP($BS28,'État & Plan d''action'!$B$6:$DB$1113,102,FALSE)),"") -> 0 | FD28: =IFERROR(SUM(VLOOKUP($BS28,'État & Plan d''action'!$B$6:$DB$1113,24,FALSE),VLOOKUP($BS28,'État & Plan d''action'!$B$6:$DB$1113,34,FALSE),VLOOKUP($BS28,'État & Plan d''action'!$B$6:$DB$1113,44,FALSE),VLOOKUP($BS28,'État & Plan d''action'!$B$6:$DB$1113,54,FALSE),VLOOKUP($BS28,'État & Plan d''action'!$B$6:$DB$1113,64,FALSE),VLOOKUP($BS28,'État & Plan d''action'!$B$6:$DB$1113,74,FALSE),VLOOKUP($BS28,'État & Plan d''action'!$B$6:$DB$1113,84,FALSE),VLOOKUP($BS28,'État & Plan d''action'!$B$6:$DB$1113,94,FALSE),VLOOKUP($BS28,'État & Plan d''action'!$B$6:$DB$1113,104,FALSE)),"") -> 0 | FH28: 1576
B29: Haut de la page ↑ | W29: Comparaison 2019 | AD29: =IFERROR(IF(AG25="non","",IF(NM="Tout le Québec","","Objectif 2020 pour la municipalité : "&AG29)),"") ->  | AE29: =AF29 ->  | AF29: =AG29 ->  | AG29: =IFERROR(RIGHT(IF(LEN(VLOOKUP(W21,'Données par municipalité'!B6:G1113,6,FALSE))=14,LEFT(VLOOKUP(W21,'Données par municipalité'!B6:G1113,6,FALSE),5),VLOOKUP(W21,'Données par municipalité'!B6:G1113,6,FALSE)),3)*1,"") ->  | AH29: =AG29 ->  | BS29: 87050 | BT29: AUTHIER | BU29: 8 | BV29: oui | BW29: oui | BX29: oui | BY29: oui | BZ29: oui | CA29: oui | CB29: oui | CC29: oui | CD29: oui | CE29: oui | CF29: non | CG29: non | CH29: non | CI29: non | CJ29: non | CK29: non | CL29: non | CM29: non | CN29: non | CO29: =IF(VLOOKUP(BS29,'Données par municipalité'!$B$6:$E$1113,4,FALSE)="","non","oui") -> non | CX29: =VLOOKUP(BS29,[5]Évolution!$BS$7:$CV$1115,30,FALSE) ->  | CY29: =IF(VLOOKUP(BS29,'Données par municipalité'!$B$6:$F$1113,4,FALSE)="","",VLOOKUP(BS29,'Données par municipalité'!$B$6:$F$1113,4,FALSE)) ->  | CZ29: Non disponible | DI29: =IFERROR(SUM(VLOOKUP($BS29,'État & Plan d''action'!$B$6:$DB$1113,18,FALSE),VLOOKUP($BS29,'État & Plan d''action'!$B$6:$DB$1113,20,FALSE),VLOOKUP($BS29,'État & Plan d''action'!$B$6:$DB$1113,28,FALSE),VLOOKUP($BS29,'État & Plan d''action'!$B$6:$DB$1113,30,FALSE),VLOOKUP($BS29,'État & Plan d''action'!$B$6:$DB$1113,38,FALSE),VLOOKUP($BS29,'État & Plan d''action'!$B$6:$DB$1113,40,FALSE),VLOOKUP($BS29,'État & Plan d''action'!$B$6:$DB$1113,48,FALSE),VLOOKUP($BS29,'État & Plan d''action'!$B$6:$DB$1113,50,FALSE),VLOOKUP($BS29,'État & Plan d''action'!$B$6:$DB$1113,58,FALSE),VLOOKUP($BS29,'État & Plan d''action'!$B$6:$DB$1113,60,FALSE),VLOOKUP($BS29,'État & Plan d''action'!$B$6:$DB$1113,68,FALSE),VLOOKUP($BS29,'État & Plan d''action'!$B$6:$DB$1113,70,FALSE),VLOOKUP($BS29,'État & Plan d''action'!$B$6:$DB$1113,78,FALSE),VLOOKUP($BS29,'État & Plan d''action'!$B$6:$DB$1113,80,FALSE),VLOOKUP($BS29,'État & Plan d''action'!$B$6:$DB$1113,88,FALSE),VLOOKUP($BS29,'État & Plan d''action'!$B$6:$DB$1113,90,FALSE),VLOOKUP($BS29,'État & Plan d''action'!$B$6:$DB$1113,98,FALSE),VLOOKUP($BS29,'État & Plan d''action'!$B$6:$DB$1113,100,FALSE))/(VLOOKUP($BS29,'Données par municipalité'!$B$4:$N$1113,13,FALSE)),"") ->  | DJ29: =IFERROR(SUM(VLOOKUP($BS29,'État & Plan d''action'!$B$6:$DB$1113,19,FALSE),VLOOKUP($BS29,'État & Plan d''action'!$B$6:$DB$1113,21,FALSE),VLOOKUP($BS29,'État & Plan d''action'!$B$6:$DB$1113,29,FALSE),VLOOKUP($BS29,'État & Plan d''action'!$B$6:$DB$1113,31,FALSE),VLOOKUP($BS29,'État & Plan d''action'!$B$6:$DB$1113,39,FALSE),VLOOKUP($BS29,'État & Plan d''action'!$B$6:$DB$1113,41,FALSE),VLOOKUP($BS29,'État & Plan d''action'!$B$6:$DB$1113,49,FALSE),VLOOKUP($BS29,'État & Plan d''action'!$B$6:$DB$1113,51,FALSE),VLOOKUP($BS29,'État & Plan d''action'!$B$6:$DB$1113,59,FALSE),VLOOKUP($BS29,'État & Plan d''action'!$B$6:$DB$1113,61,FALSE),VLOOKUP($BS29,'État & Plan d''action'!$B$6:$DB$1113,69,FALSE),VLOOKUP($BS29,'État & Plan d''action'!$B$6:$DB$1113,71,FALSE),VLOOKUP($BS29,'État & Plan d''action'!$B$6:$DB$1113,79,FALSE),VLOOKUP($BS29,'État & Plan d''action'!$B$6:$DB$1113,81,FALSE),VLOOKUP($BS29,'État & Plan d''action'!$B$6:$DB$1113,89,FALSE),VLOOKUP($BS29,'État & Plan d''action'!$B$6:$DB$1113,91,FALSE),VLOOKUP($BS29,'État & Plan d''action'!$B$6:$DB$1113,99,FALSE),VLOOKUP($BS29,'État & Plan d''action'!$B$6:$DB$1113,101,FALSE))/(VLOOKUP($BS29,'Données par municipalité'!$B$4:$N$1113,13,FALSE)),"") ->  | DK29: Non disponible | DL29: 3 | DM29: 4 | DN29: 4 | DO29: 1 | DX29: =IF(VLOOKUP($BS29,'État & Plan d''action'!$B$6:$DM$1113,108,FALSE)="","",VLOOKUP($BS29,'État & Plan d''action'!$B$6:$DM$1113,108,FALSE)) ->  | DY29: =IF(VLOOKUP($BS29,'État & Plan d''action'!$B$6:$DM$1113,109,FALSE)="","",VLOOKUP($BS29,'État & Plan d''action'!$B$6:$DM$1113,109,FALSE)) ->  | DZ29: =IF(VLOOKUP($BS29,'État & Plan d''action'!$B$6:$DM$1113,110,FALSE)="","",VLOOKUP($BS29,'État & Plan d''action'!$B$6:$DM$1113,110,FALSE)) ->  | EB29: =VLOOKUP(BS29,'[5]Données par municipalité'!$B$6:$F$1113,5,FALSE) ->  | EC29: =VLOOKUP($BS29,'Données par municipalité'!$B$6:$F$1113,5,FALSE) -> 0 | EF29: =IF(VLOOKUP(BS29,'Données par municipalité'!$B$6:$U$1113,7,FALSE)="","",VLOOKUP(BS29,'Données par municipalité'!$B$6:$U$1113,7,FALSE)) ->  | EM29: =VLOOKUP($BS29,'État & Plan d''action'!$B$6:$DK$1113,112,FALSE) -> 0 | EN29: =VLOOKUP($BS29,'État & Plan d''action'!$B$6:$DK$1113,113,FALSE) -> 0 | EO29: =VLOOKUP($BS29,'État & Plan d''action'!$B$6:$DK$1113,114,FALSE) -> 0 | EZ29: =IFERROR(SUM(VLOOKUP($BS29,'État & Plan d''action'!$B$6:$DB$1113,16,FALSE),VLOOKUP($BS29,'État & Plan d''action'!$B$6:$DB$1113,26,FALSE),VLOOKUP($BS29,'État & Plan d''action'!$B$6:$DB$1113,36,FALSE),VLOOKUP($BS29,'État & Plan d''action'!$B$6:$DB$1113,46,FALSE),VLOOKUP($BS29,'État & Plan d''action'!$B$6:$DB$1113,56,FALSE),VLOOKUP($BS29,'État & Plan d''action'!$B$6:$DB$1113,66,FALSE),VLOOKUP($BS29,'État & Plan d''action'!$B$6:$DB$1113,76,FALSE),VLOOKUP($BS29,'État & Plan d''action'!$B$6:$DB$1113,86,FALSE),VLOOKUP($BS29,'État & Plan d''action'!$B$6:$DB$1113,96,FALSE)),"") -> 0 | FA29: =IFERROR(SUM(VLOOKUP($BS29,'État & Plan d''action'!$B$6:$DB$1113,18,FALSE),VLOOKUP($BS29,'État & Plan d''action'!$B$6:$DB$1113,28,FALSE),VLOOKUP($BS29,'État & Plan d''action'!$B$6:$DB$1113,38,FALSE),VLOOKUP($BS29,'État & Plan d''action'!$B$6:$DB$1113,48,FALSE),VLOOKUP($BS29,'État & Plan d''action'!$B$6:$DB$1113,58,FALSE),VLOOKUP($BS29,'État & Plan d''action'!$B$6:$DB$1113,68,FALSE),VLOOKUP($BS29,'État & Plan d''action'!$B$6:$DB$1113,78,FALSE),VLOOKUP($BS29,'État & Plan d''action'!$B$6:$DB$1113,88,FALSE),VLOOKUP($BS29,'État & Plan d''action'!$B$6:$DB$1113,98,FALSE)),"") -> 0 | FB29: =IFERROR(SUM(VLOOKUP($BS29,'État & Plan d''action'!$B$6:$DB$1113,20,FALSE),VLOOKUP($BS29,'État & Plan d''action'!$B$6:$DB$1113,30,FALSE),VLOOKUP($BS29,'État & Plan d''action'!$B$6:$DB$1113,40,FALSE),VLOOKUP($BS29,'État & Plan d''action'!$B$6:$DB$1113,50,FALSE),VLOOKUP($BS29,'État & Plan d''action'!$B$6:$DB$1113,60,FALSE),VLOOKUP($BS29,'État & Plan d''action'!$B$6:$DB$1113,70,FALSE),VLOOKUP($BS29,'État & Plan d''action'!$B$6:$DB$1113,80,FALSE),VLOOKUP($BS29,'État & Plan d''action'!$B$6:$DB$1113,90,FALSE),VLOOKUP($BS29,'État & Plan d''action'!$B$6:$DB$1113,100,FALSE)),"") -> 0 | FC29: =IFERROR(SUM(VLOOKUP($BS29,'État & Plan d''action'!$B$6:$DB$1113,22,FALSE),VLOOKUP($BS29,'État & Plan d''action'!$B$6:$DB$1113,32,FALSE),VLOOKUP($BS29,'État & Plan d''action'!$B$6:$DB$1113,42,FALSE),VLOOKUP($BS29,'État & Plan d''action'!$B$6:$DB$1113,52,FALSE),VLOOKUP($BS29,'État & Plan d''action'!$B$6:$DB$1113,62,FALSE),VLOOKUP($BS29,'État & Plan d''action'!$B$6:$DB$1113,72,FALSE),VLOOKUP($BS29,'État & Plan d''action'!$B$6:$DB$1113,82,FALSE),VLOOKUP($BS29,'État & Plan d''action'!$B$6:$DB$1113,92,FALSE),VLOOKUP($BS29,'État & Plan d''action'!$B$6:$DB$1113,102,FALSE)),"") -> 0 | FD29: =IFERROR(SUM(VLOOKUP($BS29,'État & Plan d''action'!$B$6:$DB$1113,24,FALSE),VLOOKUP($BS29,'État & Plan d''action'!$B$6:$DB$1113,34,FALSE),VLOOKUP($BS29,'État & Plan d''action'!$B$6:$DB$1113,44,FALSE),VLOOKUP($BS29,'État & Plan d''action'!$B$6:$DB$1113,54,FALSE),VLOOKUP($BS29,'État & Plan d''action'!$B$6:$DB$1113,64,FALSE),VLOOKUP($BS29,'État & Plan d''action'!$B$6:$DB$1113,74,FALSE),VLOOKUP($BS29,'État & Plan d''action'!$B$6:$DB$1113,84,FALSE),VLOOKUP($BS29,'État & Plan d''action'!$B$6:$DB$1113,94,FALSE),VLOOKUP($BS29,'État & Plan d''action'!$B$6:$DB$1113,104,FALSE)),"") -> 0 | FH29: 271
B30: CONSOMMATION RÉSIDENTIELLE | W30: =W20 -> TOUT LE QUÉBEC | X30: =IF(W20="tout le québec","",PROPER(W20)) ->  | Y30: =IF(W20="Tout le Québec","","Région : "&VLOOKUP(VLOOKUP($W$20,$BT$8:$BU$1115,2,FALSE),$T$171:$V$187,3,FALSE)) ->  | Z30: =IF(W20="TOUT LE QUÉBEC","","Classe de population : "&VLOOKUP($W$20,B199:N204,4,FALSE)) ->  | AA30: Tout le Québec | AB30: Objectif 2025 pour l'ensemble du Québec | AD30: =IF(NM="Tout le Québec","Objectif 2025 pour l'ensemble du Québec : 50",IF(AG25="non","","Objectif 2019 pour la municipalité : 50")) -> Objectif 2025 pour l'ensemble du Québec : 50 | AE30: =AF30 ->  | AF30: =AG30 ->  | AG30: =IF(AG25="non","",50) ->  | BS30: 87100 | BT30: AUTHIER-NORD | BU30: 8 | BV30: oui | BW30: oui | BX30: oui | BY30: oui | BZ30: oui | CA30: oui | CB30: oui | CC30: oui | CD30: oui | CE30: oui | CF30: non | CG30: non | CH30: non | CI30: non | CJ30: non | CK30: non | CL30: non | CM30: non | CN30: non | CO30: =IF(VLOOKUP(BS30,'Données par municipalité'!$B$6:$E$1113,4,FALSE)="","non","oui") -> non | CX30: =VLOOKUP(BS30,[5]Évolution!$BS$7:$CV$1115,30,FALSE) ->  | CY30: =IF(VLOOKUP(BS30,'Données par municipalité'!$B$6:$F$1113,4,FALSE)="","",VLOOKUP(BS30,'Données par municipalité'!$B$6:$F$1113,4,FALSE)) ->  | CZ30: Non disponible | DI30: =IFERROR(SUM(VLOOKUP($BS30,'État & Plan d''action'!$B$6:$DB$1113,18,FALSE),VLOOKUP($BS30,'État & Plan d''action'!$B$6:$DB$1113,20,FALSE),VLOOKUP($BS30,'État & Plan d''action'!$B$6:$DB$1113,28,FALSE),VLOOKUP($BS30,'État & Plan d''action'!$B$6:$DB$1113,30,FALSE),VLOOKUP($BS30,'État & Plan d''action'!$B$6:$DB$1113,38,FALSE),VLOOKUP($BS30,'État & Plan d''action'!$B$6:$DB$1113,40,FALSE),VLOOKUP($BS30,'État & Plan d''action'!$B$6:$DB$1113,48,FALSE),VLOOKUP($BS30,'État & Plan d''action'!$B$6:$DB$1113,50,FALSE),VLOOKUP($BS30,'État & Plan d''action'!$B$6:$DB$1113,58,FALSE),VLOOKUP($BS30,'État & Plan d''action'!$B$6:$DB$1113,60,FALSE),VLOOKUP($BS30,'État & Plan d''action'!$B$6:$DB$1113,68,FALSE),VLOOKUP($BS30,'État & Plan d''action'!$B$6:$DB$1113,70,FALSE),VLOOKUP($BS30,'État & Plan d''action'!$B$6:$DB$1113,78,FALSE),VLOOKUP($BS30,'État & Plan d''action'!$B$6:$DB$1113,80,FALSE),VLOOKUP($BS30,'État & Plan d''action'!$B$6:$DB$1113,88,FALSE),VLOOKUP($BS30,'État & Plan d''action'!$B$6:$DB$1113,90,FALSE),VLOOKUP($BS30,'État & Plan d''action'!$B$6:$DB$1113,98,FALSE),VLOOKUP($BS30,'État & Plan d''action'!$B$6:$DB$1113,100,FALSE))/(VLOOKUP($BS30,'Données par municipalité'!$B$4:$N$1113,13,FALSE)),"") ->  | DJ30: =IFERROR(SUM(VLOOKUP($BS30,'État & Plan d''action'!$B$6:$DB$1113,19,FALSE),VLOOKUP($BS30,'État & Plan d''action'!$B$6:$DB$1113,21,FALSE),VLOOKUP($BS30,'État & Plan d''action'!$B$6:$DB$1113,29,FALSE),VLOOKUP($BS30,'État & Plan d''action'!$B$6:$DB$1113,31,FALSE),VLOOKUP($BS30,'État & Plan d''action'!$B$6:$DB$1113,39,FALSE),VLOOKUP($BS30,'État & Plan d''action'!$B$6:$DB$1113,41,FALSE),VLOOKUP($BS30,'État & Plan d''action'!$B$6:$DB$1113,49,FALSE),VLOOKUP($BS30,'État & Plan d''action'!$B$6:$DB$1113,51,FALSE),VLOOKUP($BS30,'État & Plan d''action'!$B$6:$DB$1113,59,FALSE),VLOOKUP($BS30,'État & Plan d''action'!$B$6:$DB$1113,61,FALSE),VLOOKUP($BS30,'État & Plan d''action'!$B$6:$DB$1113,69,FALSE),VLOOKUP($BS30,'État & Plan d''action'!$B$6:$DB$1113,71,FALSE),VLOOKUP($BS30,'État & Plan d''action'!$B$6:$DB$1113,79,FALSE),VLOOKUP($BS30,'État & Plan d''action'!$B$6:$DB$1113,81,FALSE),VLOOKUP($BS30,'État & Plan d''action'!$B$6:$DB$1113,89,FALSE),VLOOKUP($BS30,'État & Plan d''action'!$B$6:$DB$1113,91,FALSE),VLOOKUP($BS30,'État & Plan d''action'!$B$6:$DB$1113,99,FALSE),VLOOKUP($BS30,'État & Plan d''action'!$B$6:$DB$1113,101,FALSE))/(VLOOKUP($BS30,'Données par municipalité'!$B$4:$N$1113,13,FALSE)),"") ->  | DK30: Non disponible | DN30: 0 | DO30: 0 | DX30: =IF(VLOOKUP($BS30,'État & Plan d''action'!$B$6:$DM$1113,108,FALSE)="","",VLOOKUP($BS30,'État & Plan d''action'!$B$6:$DM$1113,108,FALSE)) ->  | DY30: =IF(VLOOKUP($BS30,'État & Plan d''action'!$B$6:$DM$1113,109,FALSE)="","",VLOOKUP($BS30,'État & Plan d''action'!$B$6:$DM$1113,109,FALSE)) ->  | DZ30: =IF(VLOOKUP($BS30,'État & Plan d''action'!$B$6:$DM$1113,110,FALSE)="","",VLOOKUP($BS30,'État & Plan d''action'!$B$6:$DM$1113,110,FALSE)) ->  | EB30: =VLOOKUP(BS30,'[5]Données par municipalité'!$B$6:$F$1113,5,FALSE) ->  | EC30: =VLOOKUP($BS30,'Données par municipalité'!$B$6:$F$1113,5,FALSE) -> 0 | EF30: =IF(VLOOKUP(BS30,'Données par municipalité'!$B$6:$U$1113,7,FALSE)="","",VLOOKUP(BS30,'Données par municipalité'!$B$6:$U$1113,7,FALSE)) ->  | EM30: =VLOOKUP($BS30,'État & Plan d''action'!$B$6:$DK$1113,112,FALSE) -> 0 | EN30: =VLOOKUP($BS30,'État & Plan d''action'!$B$6:$DK$1113,113,FALSE) -> 0 | EO30: =VLOOKUP($BS30,'État & Plan d''action'!$B$6:$DK$1113,114,FALSE) -> 0 | EZ30: =IFERROR(SUM(VLOOKUP($BS30,'État & Plan d''action'!$B$6:$DB$1113,16,FALSE),VLOOKUP($BS30,'État & Plan d''action'!$B$6:$DB$1113,26,FALSE),VLOOKUP($BS30,'État & Plan d''action'!$B$6:$DB$1113,36,FALSE),VLOOKUP($BS30,'État & Plan d''action'!$B$6:$DB$1113,46,FALSE),VLOOKUP($BS30,'État & Plan d''action'!$B$6:$DB$1113,56,FALSE),VLOOKUP($BS30,'État & Plan d''action'!$B$6:$DB$1113,66,FALSE),VLOOKUP($BS30,'État & Plan d''action'!$B$6:$DB$1113,76,FALSE),VLOOKUP($BS30,'État & Plan d''action'!$B$6:$DB$1113,86,FALSE),VLOOKUP($BS30,'État & Plan d''action'!$B$6:$DB$1113,96,FALSE)),"") -> 0 | FA30: =IFERROR(SUM(VLOOKUP($BS30,'État & Plan d''action'!$B$6:$DB$1113,18,FALSE),VLOOKUP($BS30,'État & Plan d''action'!$B$6:$DB$1113,28,FALSE),VLOOKUP($BS30,'État & Plan d''action'!$B$6:$DB$1113,38,FALSE),VLOOKUP($BS30,'État & Plan d''action'!$B$6:$DB$1113,48,FALSE),VLOOKUP($BS30,'État & Plan d''action'!$B$6:$DB$1113,58,FALSE),VLOOKUP($BS30,'État & Plan d''action'!$B$6:$DB$1113,68,FALSE),VLOOKUP($BS30,'État & Plan d''action'!$B$6:$DB$1113,78,FALSE),VLOOKUP($BS30,'État & Plan d''action'!$B$6:$DB$1113,88,FALSE),VLOOKUP($BS30,'État & Plan d''action'!$B$6:$DB$1113,98,FALSE)),"") -> 0 | FB30: =IFERROR(SUM(VLOOKUP($BS30,'État & Plan d''action'!$B$6:$DB$1113,20,FALSE),VLOOKUP($BS30,'État & Plan d''action'!$B$6:$DB$1113,30,FALSE),VLOOKUP($BS30,'État & Plan d''action'!$B$6:$DB$1113,40,FALSE),VLOOKUP($BS30,'État & Plan d''action'!$B$6:$DB$1113,50,FALSE),VLOOKUP($BS30,'État & Plan d''action'!$B$6:$DB$1113,60,FALSE),VLOOKUP($BS30,'État & Plan d''action'!$B$6:$DB$1113,70,FALSE),VLOOKUP($BS30,'État & Plan d''action'!$B$6:$DB$1113,80,FALSE),VLOOKUP($BS30,'État & Plan d''action'!$B$6:$DB$1113,90,FALSE),VLOOKUP($BS30,'État & Plan d''action'!$B$6:$DB$1113,100,FALSE)),"") -> 0 | FC30: =IFERROR(SUM(VLOOKUP($BS30,'État & Plan d''action'!$B$6:$DB$1113,22,FALSE),VLOOKUP($BS30,'État & Plan d''action'!$B$6:$DB$1113,32,FALSE),VLOOKUP($BS30,'État & Plan d''action'!$B$6:$DB$1113,42,FALSE),VLOOKUP($BS30,'État & Plan d''action'!$B$6:$DB$1113,52,FALSE),VLOOKUP($BS30,'État & Plan d''action'!$B$6:$DB$1113,62,FALSE),VLOOKUP($BS30,'État & Plan d''action'!$B$6:$DB$1113,72,FALSE),VLOOKUP($BS30,'État & Plan d''action'!$B$6:$DB$1113,82,FALSE),VLOOKUP($BS30,'État & Plan d''action'!$B$6:$DB$1113,92,FALSE),VLOOKUP($BS30,'État & Plan d''action'!$B$6:$DB$1113,102,FALSE)),"") -> 0 | FD30: =IFERROR(SUM(VLOOKUP($BS30,'État & Plan d''action'!$B$6:$DB$1113,24,FALSE),VLOOKUP($BS30,'État & Plan d''action'!$B$6:$DB$1113,34,FALSE),VLOOKUP($BS30,'État & Plan d''action'!$B$6:$DB$1113,44,FALSE),VLOOKUP($BS30,'État & Plan d''action'!$B$6:$DB$1113,54,FALSE),VLOOKUP($BS30,'État & Plan d''action'!$B$6:$DB$1113,64,FALSE),VLOOKUP($BS30,'État & Plan d''action'!$B$6:$DB$1113,74,FALSE),VLOOKUP($BS30,'État & Plan d''action'!$B$6:$DB$1113,84,FALSE),VLOOKUP($BS30,'État & Plan d''action'!$B$6:$DB$1113,94,FALSE),VLOOKUP($BS30,'État & Plan d''action'!$B$6:$DB$1113,104,FALSE)),"") -> 0 | FH30: 282
W31: Quantité d'eau distribuée par personne (l/pers/d) | X31: =IF($W$21="","",IF($AG$25="non","Non disponible",IF(VLOOKUP($W$21,'Données par municipalité'!$B$6:$Q$1113,4,FALSE)=0,"Non disponible",VLOOKUP($W$21,'Données par municipalité'!$B$6:$Q$1113,4,FALSE)))) ->  | Y31: =IF($W$21="","",VLOOKUP(VLOOKUP($W$21,$BS$8:$BU$1115,3,FALSE),$T$171:$AM$187,20,FALSE)) ->  | Z31: =IF($W$21="","",IF(VLOOKUP($W$21,'Données par municipalité'!B6:$M$1113,12,FALSE)<1000,K199,IF(AND(VLOOKUP($W$21,'Données par municipalité'!B6:$M$1113,12,FALSE)<5000,VLOOKUP($W$21,'Données par municipalité'!B6:$M$1113,12,FALSE)>=1000),K200,IF(AND(VLOOKUP($W$21,'Données par municipalité'!B6:$M$1113,12,FALSE)<10000,VLOOKUP($W$21,'Données par municipalité'!B6:$M$1113,12,FALSE)>=5000),K201,IF(AND(VLOOKUP($W$21,'Données par municipalité'!B6:$M$1113,12,FALSE)<50000,VLOOKUP($W$21,'Données par municipalité'!B6:$M$1113,12,FALSE)>=10000),K202,IF(AND(VLOOKUP($W$21,'Données par municipalité'!B6:$M$1113,12,FALSE)<100000,VLOOKUP($W$21,'Données par municipalité'!B6:$M$1113,12,FALSE)>=50000),K203,IF(VLOOKUP($W$21,'Données par municipalité'!B6:$M$1113,12,FALSE)>=100000,K204))))))) ->  | AA31: =AM188 -> 520.6271926 | BS31: 45035 | BT31: AYER'S CLIFF | BU31: 5 | BV31: non | BW31: non | BX31: non | BY31: non | BZ31: non | CA31: non | CB31: non | CC31: non | CD31: non | CE31: non | CF31: oui | CG31: oui | CH31: non | CI31: oui | CJ31: non | CK31: oui | CL31: oui | CM31: non | CN31: non | CO31: =IF(VLOOKUP(BS31,'Données par municipalité'!$B$6:$E$1113,4,FALSE)="","non","oui") -> oui | CP31: 758.431692 | CQ31: 606.3585282 | CS31: 392.8628336 | CU31: 544.8057007 | CV31: 582.0422325 | CX31: =VLOOKUP(BS31,[5]Évolution!$BS$7:$CV$1115,30,FALSE) ->  | CY31: =IF(VLOOKUP(BS31,'Données par municipalité'!$B$6:$F$1113,4,FALSE)="","",VLOOKUP(BS31,'Données par municipalité'!$B$6:$F$1113,4,FALSE)) -> 376 | CZ31: Non disponible | DA31: 0 | DC31: 0.3 | DE31: 0.3 | DF31: 0.3 | DI31: =IFERROR(SUM(VLOOKUP($BS31,'État & Plan d''action'!$B$6:$DB$1113,18,FALSE),VLOOKUP($BS31,'État & Plan d''action'!$B$6:$DB$1113,20,FALSE),VLOOKUP($BS31,'État & Plan d''action'!$B$6:$DB$1113,28,FALSE),VLOOKUP($BS31,'État & Plan d''action'!$B$6:$DB$1113,30,FALSE),VLOOKUP($BS31,'État & Plan d''action'!$B$6:$DB$1113,38,FALSE),VLOOKUP($BS31,'État & Plan d''action'!$B$6:$DB$1113,40,FALSE),VLOOKUP($BS31,'État & Plan d''action'!$B$6:$DB$1113,48,FALSE),VLOOKUP($BS31,'État & Plan d''action'!$B$6:$DB$1113,50,FALSE),VLOOKUP($BS31,'État & Plan d''action'!$B$6:$DB$1113,58,FALSE),VLOOKUP($BS31,'État & Plan d''action'!$B$6:$DB$1113,60,FALSE),VLOOKUP($BS31,'État & Plan d''action'!$B$6:$DB$1113,68,FALSE),VLOOKUP($BS31,'État & Plan d''action'!$B$6:$DB$1113,70,FALSE),VLOOKUP($BS31,'État & Plan d''action'!$B$6:$DB$1113,78,FALSE),VLOOKUP($BS31,'État & Plan d''action'!$B$6:$DB$1113,80,FALSE),VLOOKUP($BS31,'État & Plan d''action'!$B$6:$DB$1113,88,FALSE),VLOOKUP($BS31,'État & Plan d''action'!$B$6:$DB$1113,90,FALSE),VLOOKUP($BS31,'État & Plan d''action'!$B$6:$DB$1113,98,FALSE),VLOOKUP($BS31,'État & Plan d''action'!$B$6:$DB$1113,100,FALSE))/(VLOOKUP($BS31,'Données par municipalité'!$B$4:$N$1113,13,FALSE)),"") -> 1 | DJ31: =IFERROR(SUM(VLOOKUP($BS31,'État & Plan d''action'!$B$6:$DB$1113,19,FALSE),VLOOKUP($BS31,'État & Plan d''action'!$B$6:$DB$1113,21,FALSE),VLOOKUP($BS31,'État & Plan d''action'!$B$6:$DB$1113,29,FALSE),VLOOKUP($BS31,'État & Plan d''action'!$B$6:$DB$1113,31,FALSE),VLOOKUP($BS31,'État & Plan d''action'!$B$6:$DB$1113,39,FALSE),VLOOKUP($BS31,'État & Plan d''action'!$B$6:$DB$1113,41,FALSE),VLOOKUP($BS31,'État & Plan d''action'!$B$6:$DB$1113,49,FALSE),VLOOKUP($BS31,'État & Plan d''action'!$B$6:$DB$1113,51,FALSE),VLOOKUP($BS31,'État & Plan d''action'!$B$6:$DB$1113,59,FALSE),VLOOKUP($BS31,'État & Plan d''action'!$B$6:$DB$1113,61,FALSE),VLOOKUP($BS31,'État & Plan d''action'!$B$6:$DB$1113,69,FALSE),VLOOKUP($BS31,'État & Plan d''action'!$B$6:$DB$1113,71,FALSE),VLOOKUP($BS31,'État & Plan d''action'!$B$6:$DB$1113,79,FALSE),VLOOKUP($BS31,'État & Plan d''action'!$B$6:$DB$1113,81,FALSE),VLOOKUP($BS31,'État & Plan d''action'!$B$6:$DB$1113,89,FALSE),VLOOKUP($BS31,'État & Plan d''action'!$B$6:$DB$1113,91,FALSE),VLOOKUP($BS31,'État & Plan d''action'!$B$6:$DB$1113,99,FALSE),VLOOKUP($BS31,'État & Plan d''action'!$B$6:$DB$1113,101,FALSE))/(VLOOKUP($BS31,'Données par municipalité'!$B$4:$N$1113,13,FALSE)),"") -> 1 | DK31: Non disponible | DL31: 0 | DN31: 0 | DO31: 0 | DP31: 0 | DQ31: 0 | DX31: =IF(VLOOKUP($BS31,'État & Plan d''action'!$B$6:$DM$1113,108,FALSE)="","",VLOOKUP($BS31,'État & Plan d''action'!$B$6:$DM$1113,108,FALSE)) -> 0 | DY31: =IF(VLOOKUP($BS31,'État & Plan d''action'!$B$6:$DM$1113,109,FALSE)="","",VLOOKUP($BS31,'État & Plan d''action'!$B$6:$DM$1113,109,FALSE)) -> 0 | DZ31: =IF(VLOOKUP($BS31,'État & Plan d''action'!$B$6:$DM$1113,110,FALSE)="","",VLOOKUP($BS31,'État & Plan d''action'!$B$6:$DM$1113,110,FALSE)) -> 0 | EB31: =VLOOKUP(BS31,'[5]Données par municipalité'!$B$6:$F$1113,5,FALSE) ->  | EC31: =VLOOKUP($BS31,'Données par municipalité'!$B$6:$F$1113,5,FALSE) -> 316 | EF31: =IF(VLOOKUP(BS31,'Données par municipalité'!$B$6:$U$1113,7,FALSE)="","",VLOOKUP(BS31,'Données par municipalité'!$B$6:$U$1113,7,FALSE)) -> 1.385204615 | EM31: =VLOOKUP($BS31,'État & Plan d''action'!$B$6:$DK$1113,112,FALSE) -> S.O. | EN31: =VLOOKUP($BS31,'État & Plan d''action'!$B$6:$DK$1113,113,FALSE) ->  | EO31: =VLOOKUP($BS31,'État & Plan d''action'!$B$6:$DK$1113,114,FALSE) ->  | EZ31: =IFERROR(SUM(VLOOKUP($BS31,'État & Plan d''action'!$B$6:$DB$1113,16,FALSE),VLOOKUP($BS31,'État & Plan d''action'!$B$6:$DB$1113,26,FALSE),VLOOKUP($BS31,'État & Plan d''action'!$B$6:$DB$1113,36,FALSE),VLOOKUP($BS31,'État & Plan d''action'!$B$6:$DB$1113,46,FALSE),VLOOKUP($BS31,'État & Plan d''action'!$B$6:$DB$1113,56,FALSE),VLOOKUP($BS31,'État & Plan d''action'!$B$6:$DB$1113,66,FALSE),VLOOKUP($BS31,'État & Plan d''action'!$B$6:$DB$1113,76,FALSE),VLOOKUP($BS31,'État & Plan d''action'!$B$6:$DB$1113,86,FALSE),VLOOKUP($BS31,'État & Plan d''action'!$B$6:$DB$1113,96,FALSE)),"") -> 0 | FA31: =IFERROR(SUM(VLOOKUP($BS31,'État & Plan d''action'!$B$6:$DB$1113,18,FALSE),VLOOKUP($BS31,'État & Plan d''action'!$B$6:$DB$1113,28,FALSE),VLOOKUP($BS31,'État & Plan d''action'!$B$6:$DB$1113,38,FALSE),VLOOKUP($BS31,'État & Plan d''action'!$B$6:$DB$1113,48,FALSE),VLOOKUP($BS31,'État & Plan d''action'!$B$6:$DB$1113,58,FALSE),VLOOKUP($BS31,'État & Plan d''action'!$B$6:$DB$1113,68,FALSE),VLOOKUP($BS31,'État & Plan d''action'!$B$6:$DB$1113,78,FALSE),VLOOKUP($BS31,'État & Plan d''action'!$B$6:$DB$1113,88,FALSE),VLOOKUP($BS31,'État & Plan d''action'!$B$6:$DB$1113,98,FALSE)),"") -> 19.892 | FB31: =IFERROR(SUM(VLOOKUP($BS31,'État & Plan d''action'!$B$6:$DB$1113,20,FALSE),VLOOKUP($BS31,'État & Plan d''action'!$B$6:$DB$1113,30,FALSE),VLOOKUP($BS31,'État & Plan d''action'!$B$6:$DB$1113,40,FALSE),VLOOKUP($BS31,'État & Plan d''action'!$B$6:$DB$1113,50,FALSE),VLOOKUP($BS31,'État & Plan d''action'!$B$6:$DB$1113,60,FALSE),VLOOKUP($BS31,'État & Plan d''action'!$B$6:$DB$1113,70,FALSE),VLOOKUP($BS31,'État & Plan d''action'!$B$6:$DB$1113,80,FALSE),VLOOKUP($BS31,'État & Plan d''action'!$B$6:$DB$1113,90,FALSE),VLOOKUP($BS31,'État & Plan d''action'!$B$6:$DB$1113,100,FALSE)),"") -> 0 | FC31: =IFERROR(SUM(VLOOKUP($BS31,'État & Plan d''action'!$B$6:$DB$1113,22,FALSE),VLOOKUP($BS31,'État & Plan d''action'!$B$6:$DB$1113,32,FALSE),VLOOKUP($BS31,'État & Plan d''action'!$B$6:$DB$1113,42,FALSE),VLOOKUP($BS31,'État & Plan d''action'!$B$6:$DB$1113,52,FALSE),VLOOKUP($BS31,'État & Plan d''action'!$B$6:$DB$1113,62,FALSE),VLOOKUP($BS31,'État & Plan d''action'!$B$6:$DB$1113,72,FALSE),VLOOKUP($BS31,'État & Plan d''action'!$B$6:$DB$1113,82,FALSE),VLOOKUP($BS31,'État & Plan d''action'!$B$6:$DB$1113,92,FALSE),VLOOKUP($BS31,'État & Plan d''action'!$B$6:$DB$1113,102,FALSE)),"") -> 0 | FD31: =IFERROR(SUM(VLOOKUP($BS31,'État & Plan d''action'!$B$6:$DB$1113,24,FALSE),VLOOKUP($BS31,'État & Plan d''action'!$B$6:$DB$1113,34,FALSE),VLOOKUP($BS31,'État & Plan d''action'!$B$6:$DB$1113,44,FALSE),VLOOKUP($BS31,'État & Plan d''action'!$B$6:$DB$1113,54,FALSE),VLOOKUP($BS31,'État & Plan d''action'!$B$6:$DB$1113,64,FALSE),VLOOKUP($BS31,'État & Plan d''action'!$B$6:$DB$1113,74,FALSE),VLOOKUP($BS31,'État & Plan d''action'!$B$6:$DB$1113,84,FALSE),VLOOKUP($BS31,'État & Plan d''action'!$B$6:$DB$1113,94,FALSE),VLOOKUP($BS31,'État & Plan d''action'!$B$6:$DB$1113,104,FALSE)),"") -> 0 | FG31: 55 | FH31: 1161
W32: =IF(NM="Tout le Québec","Objectif 2025 pour l'ensemble du Québec : 458","") -> Objectif 2025 pour l'ensemble du Québec : 458 | X32: =IF(NM="Tout le Québec",458,"") -> 458 | Y32: =IF(NM="Tout le Québec",458,"") -> 458 | Z32: =IF(NM="Tout le Québec",458,"") -> 458 | AA32: =IF(NM="Tout le Québec",458,"") -> 458 | AB32: =IF(NM="Tout le Québec",458,"") -> 458 | AG32: =RIGHT(AG33,3) ->  | BS32: 96020 | BT32: BAIE-COMEAU | BU32: 9 | BV32: non | BW32: non | BX32: non | BY32: non | BZ32: non | CA32: non | CB32: non | CC32: non | CD32: non | CE32: non | CF32: oui | CG32: oui | CH32: oui | CI32: non | CJ32: oui | CK32: oui | CL32: oui | CM32: oui | CN32: oui | CO32: =IF(VLOOKUP(BS32,'Données par municipalité'!$B$6:$E$1113,4,FALSE)="","non","oui") -> oui | CP32: 620.2515619 | CQ32: 606.4876072 | CR32: 450.9764134 | CT32: 487.8803568 | CU32: 484.4174111 | CV32: 533.0176912 | CW32: 472 | CX32: =VLOOKUP(BS32,[5]Évolution!$BS$7:$CV$1115,30,FALSE) -> 498 | CY32: =IF(VLOOKUP(BS32,'Données par municipalité'!$B$6:$F$1113,4,FALSE)="","",VLOOKUP(BS32,'Données par municipalité'!$B$6:$F$1113,4,FALSE)) -> 559 | CZ32: Non disponible | DA32: 0.25 | DB32: 1 | DD32: 0.25 | DE32: 0.64 | DF32: 1 | DG32: 1 | DH32: 2.027324606 | DI32: =IFERROR(SUM(VLOOKUP($BS32,'État & Plan d''action'!$B$6:$DB$1113,18,FALSE),VLOOKUP($BS32,'État & Plan d''action'!$B$6:$DB$1113,20,FALSE),VLOOKUP($BS32,'État & Plan d''action'!$B$6:$DB$1113,28,FALSE),VLOOKUP($BS32,'État & Plan d''action'!$B$6:$DB$1113,30,FALSE),VLOOKUP($BS32,'État & Plan d''action'!$B$6:$DB$1113,38,FALSE),VLOOKUP($BS32,'État & Plan d''action'!$B$6:$DB$1113,40,FALSE),VLOOKUP($BS32,'État & Plan d''action'!$B$6:$DB$1113,48,FALSE),VLOOKUP($BS32,'État & Plan d''action'!$B$6:$DB$1113,50,FALSE),VLOOKUP($BS32,'État & Plan d''action'!$B$6:$DB$1113,58,FALSE),VLOOKUP($BS32,'État & Plan d''action'!$B$6:$DB$1113,60,FALSE),VLOOKUP($BS32,'État & Plan d''action'!$B$6:$DB$1113,68,FALSE),VLOOKUP($BS32,'État & Plan d''action'!$B$6:$DB$1113,70,FALSE),VLOOKUP($BS32,'État & Plan d''action'!$B$6:$DB$1113,78,FALSE),VLOOKUP($BS32,'État & Plan d''action'!$B$6:$DB$1113,80,FALSE),VLOOKUP($BS32,'État & Plan d''action'!$B$6:$DB$1113,88,FALSE),VLOOKUP($BS32,'État & Plan d''action'!$B$6:$DB$1113,90,FALSE),VLOOKUP($BS32,'État & Plan d''action'!$B$6:$DB$1113,98,FALSE),VLOOKUP($BS32,'État & Plan d''action'!$B$6:$DB$1113,100,FALSE))/(VLOOKUP($BS32,'Données par municipalité'!$B$4:$N$1113,13,FALSE)),"") -> 2 | DJ32: =IFERROR(SUM(VLOOKUP($BS32,'État & Plan d''action'!$B$6:$DB$1113,19,FALSE),VLOOKUP($BS32,'État & Plan d''action'!$B$6:$DB$1113,21,FALSE),VLOOKUP($BS32,'État & Plan d''action'!$B$6:$DB$1113,29,FALSE),VLOOKUP($BS32,'État & Plan d''action'!$B$6:$DB$1113,31,FALSE),VLOOKUP($BS32,'État & Plan d''action'!$B$6:$DB$1113,39,FALSE),VLOOKUP($BS32,'État & Plan d''action'!$B$6:$DB$1113,41,FALSE),VLOOKUP($BS32,'État & Plan d''action'!$B$6:$DB$1113,49,FALSE),VLOOKUP($BS32,'État & Plan d''action'!$B$6:$DB$1113,51,FALSE),VLOOKUP($BS32,'État & Plan d''action'!$B$6:$DB$1113,59,FALSE),VLOOKUP($BS32,'État & Plan d''action'!$B$6:$DB$1113,61,FALSE),VLOOKUP($BS32,'État & Plan d''action'!$B$6:$DB$1113,69,FALSE),VLOOKUP($BS32,'État & Plan d''action'!$B$6:$DB$1113,71,FALSE),VLOOKUP($BS32,'État & Plan d''action'!$B$6:$DB$1113,79,FALSE),VLOOKUP($BS32,'État & Plan d''action'!$B$6:$DB$1113,81,FALSE),VLOOKUP($BS32,'État & Plan d''action'!$B$6:$DB$1113,89,FALSE),VLOOKUP($BS32,'État & Plan d''action'!$B$6:$DB$1113,91,FALSE),VLOOKUP($BS32,'État & Plan d''action'!$B$6:$DB$1113,99,FALSE),VLOOKUP($BS32,'État & Plan d''action'!$B$6:$DB$1113,101,FALSE))/(VLOOKUP($BS32,'Données par municipalité'!$B$4:$N$1113,13,FALSE)),"") -> 1 | DK32: Non disponible | DL32: 0 | DN32: 0 | DO32: 0 | DP32: 19 | DQ32: 14 | DR32: 12 | DS32: 28 | DT32: 5 | DU32: 13 | DV32: 72 | DW32: 5 | DX32: =IF(VLOOKUP($BS32,'État & Plan d''action'!$B$6:$DM$1113,108,FALSE)="","",VLOOKUP($BS32,'État & Plan d''action'!$B$6:$DM$1113,108,FALSE)) -> 29 | DY32: =IF(VLOOKUP($BS32,'État & Plan d''action'!$B$6:$DM$1113,109,FALSE)="","",VLOOKUP($BS32,'État & Plan d''action'!$B$6:$DM$1113,109,FALSE)) -> 11 | DZ32: =IF(VLOOKUP($BS32,'État & Plan d''action'!$B$6:$DM$1113,110,FALSE)="","",VLOOKUP($BS32,'État & Plan d''action'!$B$6:$DM$1113,110,FALSE)) -> 18 | EA32: 334 | EB32: =VLOOKUP(BS32,'[5]Données par municipalité'!$B$6:$F$1113,5,FALSE) -> 297 | EC32: =VLOOKUP($BS32,'Données par municipalité'!$B$6:$F$1113,5,FALSE) -> 336 | ED32: 3.912316815 | EE32: 8.655640926 | EF32: =IF(VLOOKUP(BS32,'Données par municipalité'!$B$6:$U$1113,7,FALSE)="","",VLOOKUP(BS32,'Données par municipalité'!$B$6:$U$1113,7,FALSE)) -> 9.399155072 | EG32: 3 | EH32: 5 | EI32: 15 | EJ32: 2 | EK32: 3 | EL32: 5 | EM32: =VLOOKUP($BS32,'État & Plan d''action'!$B$6:$DK$1113,112,FALSE) -> 2 | EN32: =VLOOKUP($BS32,'État & Plan d''action'!$B$6:$DK$1113,113,FALSE) -> 3 | EO32: =VLOOKUP($BS32,'État & Plan d''action'!$B$6:$DK$1113,114,FALSE) -> 5 | EP32: 0 | EQ32: 150.985 | ER32: 0 | ES32: 0 | ET32: 0 | EU32: 0 | EV32: 150.985 | EW32: 0 | EX32: 0 | EY32: 0 | EZ32: =IFERROR(SUM(VLOOKUP($BS32,'État & Plan d''action'!$B$6:$DB$1113,16,FALSE),VLOOKUP($BS32,'État & Plan d''action'!$B$6:$DB$1113,26,FALSE),VLOOKUP($BS32,'État & Plan d''action'!$B$6:$DB$1113,36,FALSE),VLOOKUP($BS32,'État & Plan d''action'!$B$6:$DB$1113,46,FALSE),VLOOKUP($BS32,'État & Plan d''action'!$B$6:$DB$1113,56,FALSE),VLOOKUP($BS32,'État & Plan d''action'!$B$6:$DB$1113,66,FALSE),VLOOKUP($BS32,'État & Plan d''action'!$B$6:$DB$1113,76,FALSE),VLOOKUP($BS32,'État & Plan d''action'!$B$6:$DB$1113,86,FALSE),VLOOKUP($BS32,'État & Plan d''action'!$B$6:$DB$1113,96,FALSE)),"") -> 0 | FA32: =IFERROR(SUM(VLOOKUP($BS32,'État & Plan d''action'!$B$6:$DB$1113,18,FALSE),VLOOKUP($BS32,'État & Plan d''action'!$B$6:$DB$1113,28,FALSE),VLOOKUP($BS32,'État & Plan d''action'!$B$6:$DB$1113,38,FALSE),VLOOKUP($BS32,'État & Plan d''action'!$B$6:$DB$1113,48,FALSE),VLOOKUP($BS32,'État & Plan d''action'!$B$6:$DB$1113,58,FALSE),VLOOKUP($BS32,'État & Plan d''action'!$B$6:$DB$1113,68,FALSE),VLOOKUP($BS32,'État & Plan d''action'!$B$6:$DB$1113,78,FALSE),VLOOKUP($BS32,'État & Plan d''action'!$B$6:$DB$1113,88,FALSE),VLOOKUP($BS32,'État & Plan d''action'!$B$6:$DB$1113,98,FALSE)),"") -> 297.9 | FB32: =IFERROR(SUM(VLOOKUP($BS32,'État & Plan d''action'!$B$6:$DB$1113,20,FALSE),VLOOKUP($BS32,'État & Plan d''action'!$B$6:$DB$1113,30,FALSE),VLOOKUP($BS32,'État & Plan d''action'!$B$6:$DB$1113,40,FALSE),VLOOKUP($BS32,'État & Plan d''action'!$B$6:$DB$1113,50,FALSE),VLOOKUP($BS32,'État & Plan d''action'!$B$6:$DB$1113,60,FALSE),VLOOKUP($BS32,'État & Plan d''action'!$B$6:$DB$1113,70,FALSE),VLOOKUP($BS32,'État & Plan d''action'!$B$6:$DB$1113,80,FALSE),VLOOKUP($BS32,'État & Plan d''action'!$B$6:$DB$1113,90,FALSE),VLOOKUP($BS32,'État & Plan d''action'!$B$6:$DB$1113,100,FALSE)),"") -> 0 | FC32: =IFERROR(SUM(VLOOKUP($BS32,'État & Plan d''action'!$B$6:$DB$1113,22,FALSE),VLOOKUP($BS32,'État & Plan d''action'!$B$6:$DB$1113,32,FALSE),VLOOKUP($BS32,'État & Plan d''action'!$B$6:$DB$1113,42,FALSE),VLOOKUP($BS32,'État & Plan d''action'!$B$6:$DB$1113,52,FALSE),VLOOKUP($BS32,'État & Plan d''action'!$B$6:$DB$1113,62,FALSE),VLOOKUP($BS32,'État & Plan d''action'!$B$6:$DB$1113,72,FALSE),VLOOKUP($BS32,'État & Plan d''action'!$B$6:$DB$1113,82,FALSE),VLOOKUP($BS32,'État & Plan d''action'!$B$6:$DB$1113,92,FALSE),VLOOKUP($BS32,'État & Plan d''action'!$B$6:$DB$1113,102,FALSE)),"") -> 0 | FD32: =IFERROR(SUM(VLOOKUP($BS32,'État & Plan d''action'!$B$6:$DB$1113,24,FALSE),VLOOKUP($BS32,'État & Plan d''action'!$B$6:$DB$1113,34,FALSE),VLOOKUP($BS32,'État & Plan d''action'!$B$6:$DB$1113,44,FALSE),VLOOKUP($BS32,'État & Plan d''action'!$B$6:$DB$1113,54,FALSE),VLOOKUP($BS32,'État & Plan d''action'!$B$6:$DB$1113,64,FALSE),VLOOKUP($BS32,'État & Plan d''action'!$B$6:$DB$1113,74,FALSE),VLOOKUP($BS32,'État & Plan d''action'!$B$6:$DB$1113,84,FALSE),VLOOKUP($BS32,'État & Plan d''action'!$B$6:$DB$1113,94,FALSE),VLOOKUP($BS32,'État & Plan d''action'!$B$6:$DB$1113,104,FALSE)),"") -> 0 | FE32: 32.55584666 | FF32: 59 | FG32: 59 | FH32: 20951
W33: Consommation résidentielle (l/pers/d) | X33: =IF($W$21="","",IF($AG$25="non","Non disponible",IF(VLOOKUP($W$21,'Données par municipalité'!$B$6:$Q$1113,5,FALSE)=0,"Non disponible",VLOOKUP($W$21,'Données par municipalité'!$B$6:$Q$1113,5,FALSE)))) ->  | Y33: =IF($W$21="","",VLOOKUP(VLOOKUP(VLOOKUP($W$20,$BT$8:$BU$1115,2,FALSE),$T$171:$V$187,3,FALSE),$E$171:$AH$188,30,FALSE)) ->  | Z33: =IF($W$21="","",IF(VLOOKUP($W$20,$B$199:$AH$205,33,FALSE)=0,"Non disponible",VLOOKUP($W$20,$B$199:$AH$205,33,FALSE))) ->  | AA33: =AH188 -> 276.2706008 | AG33: =IF(LEN(VLOOKUP(W21,'Données par municipalité'!B6:G1113,6,FALSE))=14,LEFT(VLOOKUP(W21,'Données par municipalité'!B6:G1113,6,FALSE),5),VLOOKUP(W21,'Données par municipalité'!B6:G1113,6,FALSE)) ->  | BS33: 8080 | BT33: BAIE-DES-SABLES | BU33: 1 | BV33: non | BW33: non | BX33: non | BY33: non | BZ33: non | CA33: non | CB33: non | CC33: non | CD33: non | CE33: non | CF33: oui | CG33: oui | CH33: non | CI33: oui | CJ33: non | CK33: oui | CL33: oui | CM33: oui | CN33: oui | CO33: =IF(VLOOKUP(BS33,'Données par municipalité'!$B$6:$E$1113,4,FALSE)="","non","oui") -> oui | CP33: 312.3923584 | CQ33: 380.6231556 | CS33: 256.6667557 | CU33: 165.4058899 | CV33: 159.3294889 | CW33: 186 | CX33: =VLOOKUP(BS33,[5]Évolution!$BS$7:$CV$1115,30,FALSE) -> 184 | CY33: =IF(VLOOKUP(BS33,'Données par municipalité'!$B$6:$F$1113,4,FALSE)="","",VLOOKUP(BS33,'Données par municipalité'!$B$6:$F$1113,4,FALSE)) -> 216 | CZ33: Non disponible | DA33: 0 | DC33: 0 | DE33: 0 | DF33: 0 | DH33: 0 | DI33: =IFERROR(SUM(VLOOKUP($BS33,'État & Plan d''action'!$B$6:$DB$1113,18,FALSE),VLOOKUP($BS33,'État & Plan d''action'!$B$6:$DB$1113,20,FALSE),VLOOKUP($BS33,'État & Plan d''action'!$B$6:$DB$1113,28,FALSE),VLOOKUP($BS33,'État & Plan d''action'!$B$6:$DB$1113,30,FALSE),VLOOKUP($BS33,'État & Plan d''action'!$B$6:$DB$1113,38,FALSE),VLOOKUP($BS33,'État & Plan d''action'!$B$6:$DB$1113,40,FALSE),VLOOKUP($BS33,'État & Plan d''action'!$B$6:$DB$1113,48,FALSE),VLOOKUP($BS33,'État & Plan d''action'!$B$6:$DB$1113,50,FALSE),VLOOKUP($BS33,'État & Plan d''action'!$B$6:$DB$1113,58,FALSE),VLOOKUP($BS33,'État & Plan d''action'!$B$6:$DB$1113,60,FALSE),VLOOKUP($BS33,'État & Plan d''action'!$B$6:$DB$1113,68,FALSE),VLOOKUP($BS33,'État & Plan d''action'!$B$6:$DB$1113,70,FALSE),VLOOKUP($BS33,'État & Plan d''action'!$B$6:$DB$1113,78,FALSE),VLOOKUP($BS33,'État & Plan d''action'!$B$6:$DB$1113,80,FALSE),VLOOKUP($BS33,'État & Plan d''action'!$B$6:$DB$1113,88,FALSE),VLOOKUP($BS33,'État & Plan d''action'!$B$6:$DB$1113,90,FALSE),VLOOKUP($BS33,'État & Plan d''action'!$B$6:$DB$1113,98,FALSE),VLOOKUP($BS33,'État & Plan d''action'!$B$6:$DB$1113,100,FALSE))/(VLOOKUP($BS33,'Données par municipalité'!$B$4:$N$1113,13,FALSE)),"") -> 0 | DJ33: =IFERROR(SUM(VLOOKUP($BS33,'État & Plan d''action'!$B$6:$DB$1113,19,FALSE),VLOOKUP($BS33,'État & Plan d''action'!$B$6:$DB$1113,21,FALSE),VLOOKUP($BS33,'État & Plan d''action'!$B$6:$DB$1113,29,FALSE),VLOOKUP($BS33,'État & Plan d''action'!$B$6:$DB$1113,31,FALSE),VLOOKUP($BS33,'État & Plan d''action'!$B$6:$DB$1113,39,FALSE),VLOOKUP($BS33,'État & Plan d''action'!$B$6:$DB$1113,41,FALSE),VLOOKUP($BS33,'État & Plan d''action'!$B$6:$DB$1113,49,FALSE),VLOOKUP($BS33,'État & Plan d''action'!$B$6:$DB$1113,51,FALSE),VLOOKUP($BS33,'État & Plan d''action'!$B$6:$DB$1113,59,FALSE),VLOOKUP($BS33,'État & Plan d''action'!$B$6:$DB$1113,61,FALSE),VLOOKUP($BS33,'État & Plan d''action'!$B$6:$DB$1113,69,FALSE),VLOOKUP($BS33,'État & Plan d''action'!$B$6:$DB$1113,71,FALSE),VLOOKUP($BS33,'État & Plan d''action'!$B$6:$DB$1113,79,FALSE),VLOOKUP($BS33,'État & Plan d''action'!$B$6:$DB$1113,81,FALSE),VLOOKUP($BS33,'État & Plan d''action'!$B$6:$DB$1113,89,FALSE),VLOOKUP($BS33,'État & Plan d''action'!$B$6:$DB$1113,91,FALSE),VLOOKUP($BS33,'État & Plan d''action'!$B$6:$DB$1113,99,FALSE),VLOOKUP($BS33,'État & Plan d''action'!$B$6:$DB$1113,101,FALSE))/(VLOOKUP($BS33,'Données par municipalité'!$B$4:$N$1113,13,FALSE)),"") -> 0 | DK33: Non disponible | DL33: 1 | DN33: 2 | DO33: 0 | DP33: 0 | DQ33: 0 | DR33: 0 | DS33: 0 | DT33: 0 | DU33: 0 | DV33: 0 | DW33: 0 | DX33: =IF(VLOOKUP($BS33,'État & Plan d''action'!$B$6:$DM$1113,108,FALSE)="","",VLOOKUP($BS33,'État & Plan d''action'!$B$6:$DM$1113,108,FALSE)) -> 0 | DY33: =IF(VLOOKUP($BS33,'État & Plan d''action'!$B$6:$DM$1113,109,FALSE)="","",VLOOKUP($BS33,'État & Plan d''action'!$B$6:$DM$1113,109,FALSE)) -> 0 | DZ33: =IF(VLOOKUP($BS33,'État & Plan d''action'!$B$6:$DM$1113,110,FALSE)="","",VLOOKUP($BS33,'État & Plan d''action'!$B$6:$DM$1113,110,FALSE)) -> 1 | EA33: 150 | EB33: =VLOOKUP(BS33,'[5]Données par municipalité'!$B$6:$F$1113,5,FALSE) -> 142 | EC33: =VLOOKUP($BS33,'Données par municipalité'!$B$6:$F$1113,5,FALSE) -> 135 | ED33: 0.5931752239 | EE33: 0.6744351751 | EF33: =IF(VLOOKUP(BS33,'Données par municipalité'!$B$6:$U$1113,7,FALSE)="","",VLOOKUP(BS33,'Données par municipalité'!$B$6:$U$1113,7,FALSE)) -> 1.476526138 | EG33: 0 | EH33: 0 | EI33: 0 | EJ33: 0 | EK33: 0 | EL33: 0 | EM33: =VLOOKUP($BS33,'État & Plan d''action'!$B$6:$DK$1113,112,FALSE) -> S.O. | EN33: =VLOOKUP($BS33,'État & Plan d''action'!$B$6:$DK$1113,113,FALSE) ->  | EO33: =VLOOKUP($BS33,'État & Plan d''action'!$B$6:$DK$1113,114,FALSE) -> 48 | EP33: 0 | EQ33: 0 | ER33: 0 | ES33: 0 | ET33: 0 | EU33: 0 | EV33: 0 | EW33: 0 | EX33: 0 | EY33: 0 | EZ33: =IFERROR(SUM(VLOOKUP($BS33,'État & Plan d''action'!$B$6:$DB$1113,16,FALSE),VLOOKUP($BS33,'État & Plan d''action'!$B$6:$DB$1113,26,FALSE),VLOOKUP($BS33,'État & Plan d''action'!$B$6:$DB$1113,36,FALSE),VLOOKUP($BS33,'État & Plan d''action'!$B$6:$DB$1113,46,FALSE),VLOOKUP($BS33,'État & Plan d''action'!$B$6:$DB$1113,56,FALSE),VLOOKUP($BS33,'État & Plan d''action'!$B$6:$DB$1113,66,FALSE),VLOOKUP($BS33,'État & Plan d''action'!$B$6:$DB$1113,76,FALSE),VLOOKUP($BS33,'État & Plan d''action'!$B$6:$DB$1113,86,FALSE),VLOOKUP($BS33,'État & Plan d''action'!$B$6:$DB$1113,96,FALSE)),"") -> 0 | FA33: =IFERROR(SUM(VLOOKUP($BS33,'État & Plan d''action'!$B$6:$DB$1113,18,FALSE),VLOOKUP($BS33,'État & Plan d''action'!$B$6:$DB$1113,28,FALSE),VLOOKUP($BS33,'État & Plan d''action'!$B$6:$DB$1113,38,FALSE),VLOOKUP($BS33,'État & Plan d''action'!$B$6:$DB$1113,48,FALSE),VLOOKUP($BS33,'État & Plan d''action'!$B$6:$DB$1113,58,FALSE),VLOOKUP($BS33,'État & Plan d''action'!$B$6:$DB$1113,68,FALSE),VLOOKUP($BS33,'État & Plan d''action'!$B$6:$DB$1113,78,FALSE),VLOOKUP($BS33,'État & Plan d''action'!$B$6:$DB$1113,88,FALSE),VLOOKUP($BS33,'État & Plan d''action'!$B$6:$DB$1113,98,FALSE)),"") -> 0 | FB33: =IFERROR(SUM(VLOOKUP($BS33,'État & Plan d''action'!$B$6:$DB$1113,20,FALSE),VLOOKUP($BS33,'État & Plan d''action'!$B$6:$DB$1113,30,FALSE),VLOOKUP($BS33,'État & Plan d''action'!$B$6:$DB$1113,40,FALSE),VLOOKUP($BS33,'État & Plan d''action'!$B$6:$DB$1113,50,FALSE),VLOOKUP($BS33,'État & Plan d''action'!$B$6:$DB$1113,60,FALSE),VLOOKUP($BS33,'État & Plan d''action'!$B$6:$DB$1113,70,FALSE),VLOOKUP($BS33,'État & Plan d''action'!$B$6:$DB$1113,80,FALSE),VLOOKUP($BS33,'État & Plan d''action'!$B$6:$DB$1113,90,FALSE),VLOOKUP($BS33,'État & Plan d''action'!$B$6:$DB$1113,100,FALSE)),"") -> 0 | FC33: =IFERROR(SUM(VLOOKUP($BS33,'État & Plan d''action'!$B$6:$DB$1113,22,FALSE),VLOOKUP($BS33,'État & Plan d''action'!$B$6:$DB$1113,32,FALSE),VLOOKUP($BS33,'État & Plan d''action'!$B$6:$DB$1113,42,FALSE),VLOOKUP($BS33,'État & Plan d''action'!$B$6:$DB$1113,52,FALSE),VLOOKUP($BS33,'État & Plan d''action'!$B$6:$DB$1113,62,FALSE),VLOOKUP($BS33,'État & Plan d''action'!$B$6:$DB$1113,72,FALSE),VLOOKUP($BS33,'État & Plan d''action'!$B$6:$DB$1113,82,FALSE),VLOOKUP($BS33,'État & Plan d''action'!$B$6:$DB$1113,92,FALSE),VLOOKUP($BS33,'État & Plan d''action'!$B$6:$DB$1113,102,FALSE)),"") -> 0 | FD33: =IFERROR(SUM(VLOOKUP($BS33,'État & Plan d''action'!$B$6:$DB$1113,24,FALSE),VLOOKUP($BS33,'État & Plan d''action'!$B$6:$DB$1113,34,FALSE),VLOOKUP($BS33,'État & Plan d''action'!$B$6:$DB$1113,44,FALSE),VLOOKUP($BS33,'État & Plan d''action'!$B$6:$DB$1113,54,FALSE),VLOOKUP($BS33,'État & Plan d''action'!$B$6:$DB$1113,64,FALSE),VLOOKUP($BS33,'État & Plan d''action'!$B$6:$DB$1113,74,FALSE),VLOOKUP($BS33,'État & Plan d''action'!$B$6:$DB$1113,84,FALSE),VLOOKUP($BS33,'État & Plan d''action'!$B$6:$DB$1113,94,FALSE),VLOOKUP($BS33,'État & Plan d''action'!$B$6:$DB$1113,104,FALSE)),"") -> 0 | FE33: 55 | FF33: 59.08108108 | FG33: 59.08108108 | FH33: 617
W34: Indice de fuites dans les infrastructures moyen | X34: =IF($W$21="","",IF($AG$25="non","Non disponible",IF(VLOOKUP($W$21,$BS$8:$EF$1115,66,FALSE)=0,"Non disponible",VLOOKUP($W$21,$BS$8:$EF$1115,66,FALSE)))) ->  | Y34: =IF($W$21="","",VLOOKUP(VLOOKUP(VLOOKUP($W$20,$BT$8:$BU$1115,2,FALSE),$T$171:$V$187,3,FALSE),$E$171:$AI$188,31,FALSE)) ->  | Z34: =IF($W$21="","",IF(VLOOKUP($W$20,$B$199:$AI$205,34,FALSE)=0,"Non disponible",VLOOKUP($W$20,$B$199:$AI$205,34,FALSE))) ->  | AA34: =AI188 -> 6.292155615 | BS34: 50100 | BT34: BAIE-DU-FEBVRE | BU34: 17 | BV34: non | BW34: non | BX34: non | BY34: non | BZ34: non | CA34: non | CB34: non | CC34: non | CD34: non | CE34: non | CF34: oui | CG34: oui | CH34: oui | CI34: oui | CJ34: oui | CK34: oui | CL34: oui | CM34: oui | CN34: oui | CO34: =IF(VLOOKUP(BS34,'Données par municipalité'!$B$6:$E$1113,4,FALSE)="","non","oui") -> oui | CP34: 451.0851588 | CQ34: 471.3284675 | CR34: 510.0954363 | CS34: 466.2590498 | CT34: 419.9611215 | CU34: 436.9630718 | CV34: 438.2966823 | CW34: 556 | CX34: =VLOOKUP(BS34,[5]Évolution!$BS$7:$CV$1115,30,FALSE) -> 581 | CY34: =IF(VLOOKUP(BS34,'Données par municipalité'!$B$6:$F$1113,4,FALSE)="","",VLOOKUP(BS34,'Données par municipalité'!$B$6:$F$1113,4,FALSE)) -> 542 | CZ34: Non disponible | DA34: 0.5 | DB34: 0.5 | DC34: 0.5 | DD34: 0.5 | DE34: 1 | DF34: 1 | DG34: 1 | DH34: 2.026453627 | DI34: =IFERROR(SUM(VLOOKUP($BS34,'État & Plan d''action'!$B$6:$DB$1113,18,FALSE),VLOOKUP($BS34,'État & Plan d''action'!$B$6:$DB$1113,20,FALSE),VLOOKUP($BS34,'État & Plan d''action'!$B$6:$DB$1113,28,FALSE),VLOOKUP($BS34,'État & Plan d''action'!$B$6:$DB$1113,30,FALSE),VLOOKUP($BS34,'État & Plan d''action'!$B$6:$DB$1113,38,FALSE),VLOOKUP($BS34,'État & Plan d''action'!$B$6:$DB$1113,40,FALSE),VLOOKUP($BS34,'État & Plan d''action'!$B$6:$DB$1113,48,FALSE),VLOOKUP($BS34,'État & Plan d''action'!$B$6:$DB$1113,50,FALSE),VLOOKUP($BS34,'État & Plan d''action'!$B$6:$DB$1113,58,FALSE),VLOOKUP($BS34,'État & Plan d''action'!$B$6:$DB$1113,60,FALSE),VLOOKUP($BS34,'État & Plan d''action'!$B$6:$DB$1113,68,FALSE),VLOOKUP($BS34,'État & Plan d''action'!$B$6:$DB$1113,70,FALSE),VLOOKUP($BS34,'État & Plan d''action'!$B$6:$DB$1113,78,FALSE),VLOOKUP($BS34,'État & Plan d''action'!$B$6:$DB$1113,80,FALSE),VLOOKUP($BS34,'État & Plan d''action'!$B$6:$DB$1113,88,FALSE),VLOOKUP($BS34,'État & Plan d''action'!$B$6:$DB$1113,90,FALSE),VLOOKUP($BS34,'État & Plan d''action'!$B$6:$DB$1113,98,FALSE),VLOOKUP($BS34,'État & Plan d''action'!$B$6:$DB$1113,100,FALSE))/(VLOOKUP($BS34,'Données par municipalité'!$B$4:$N$1113,13,FALSE)),"") -> 2 | DJ34: =IFERROR(SUM(VLOOKUP($BS34,'État & Plan d''action'!$B$6:$DB$1113,19,FALSE),VLOOKUP($BS34,'État & Plan d''action'!$B$6:$DB$1113,21,FALSE),VLOOKUP($BS34,'État & Plan d''action'!$B$6:$DB$1113,29,FALSE),VLOOKUP($BS34,'État & Plan d''action'!$B$6:$DB$1113,31,FALSE),VLOOKUP($BS34,'État & Plan d''action'!$B$6:$DB$1113,39,FALSE),VLOOKUP($BS34,'État & Plan d''action'!$B$6:$DB$1113,41,FALSE),VLOOKUP($BS34,'État & Plan d''action'!$B$6:$DB$1113,49,FALSE),VLOOKUP($BS34,'État & Plan d''action'!$B$6:$DB$1113,51,FALSE),VLOOKUP($BS34,'État & Plan d''action'!$B$6:$DB$1113,59,FALSE),VLOOKUP($BS34,'État & Plan d''action'!$B$6:$DB$1113,61,FALSE),VLOOKUP($BS34,'État & Plan d''action'!$B$6:$DB$1113,69,FALSE),VLOOKUP($BS34,'État & Plan d''action'!$B$6:$DB$1113,71,FALSE),VLOOKUP($BS34,'État & Plan d''action'!$B$6:$DB$1113,79,FALSE),VLOOKUP($BS34,'État & Plan d''action'!$B$6:$DB$1113,81,FALSE),VLOOKUP($BS34,'État & Plan d''action'!$B$6:$DB$1113,89,FALSE),VLOOKUP($BS34,'État & Plan d''action'!$B$6:$DB$1113,91,FALSE),VLOOKUP($BS34,'État & Plan d''action'!$B$6:$DB$1113,99,FALSE),VLOOKUP($BS34,'État & Plan d''action'!$B$6:$DB$1113,101,FALSE))/(VLOOKUP($BS34,'Données par municipalité'!$B$4:$N$1113,13,FALSE)),"") -> 2 | DK34: Non disponible | DL34: 1 | DM34: 1 | DN34: 0 | DO34: 0 | DP34: 0 | DQ34: 1 | DR34: 2 | DS34: 1 | DT34: 0 | DU34: 0 | DV34: 0 | DW34: 7 | DX34: =IF(VLOOKUP($BS34,'État & Plan d''action'!$B$6:$DM$1113,108,FALSE)="","",VLOOKUP($BS34,'État & Plan d''action'!$B$6:$DM$1113,108,FALSE)) -> 3 | DY34: =IF(VLOOKUP($BS34,'État & Plan d''action'!$B$6:$DM$1113,109,FALSE)="","",VLOOKUP($BS34,'État & Plan d''action'!$B$6:$DM$1113,109,FALSE)) -> 0 | DZ34: =IF(VLOOKUP($BS34,'État & Plan d''action'!$B$6:$DM$1113,110,FALSE)="","",VLOOKUP($BS34,'État & Plan d''action'!$B$6:$DM$1113,110,FALSE)) -> 0 | EA34: 262 | EB34: =VLOOKUP(BS34,'[5]Données par municipalité'!$B$6:$F$1113,5,FALSE) -> 161 | EC34: =VLOOKUP($BS34,'Données par municipalité'!$B$6:$F$1113,5,FALSE) -> 165 | ED34: 3.207401327 | EE34: 1.431825832 | EF34: =IF(VLOOKUP(BS34,'Données par municipalité'!$B$6:$U$1113,7,FALSE)="","",VLOOKUP(BS34,'Données par municipalité'!$B$6:$U$1113,7,FALSE)) -> 1.494637218 | EG34: 2 | EH34: 2 | EI34: 0 | EJ34: 0 | EK34: 0 | EL34: 2 | EM34: =VLOOKUP($BS34,'État & Plan d''action'!$B$6:$DK$1113,112,FALSE) -> 1 | EN34: =VLOOKUP($BS34,'État & Plan d''action'!$B$6:$DK$1113,113,FALSE) ->  | EO34: =VLOOKUP($BS34,'État & Plan d''action'!$B$6:$DK$1113,114,FALSE) ->  | EP34: 0 | EQ34: 0 | ER34: 37.802 | ES34: 0 | ET34: 0 | EU34: 0 | EV34: 0 | EW34: 37.802 | EX34: 0 | EY34: 0 | EZ34: =IFERROR(SUM(VLOOKUP($BS34,'État & Plan d''action'!$B$6:$DB$1113,16,FALSE),VLOOKUP($BS34,'État & Plan d''action'!$B$6:$DB$1113,26,FALSE),VLOOKUP($BS34,'État & Plan d''action'!$B$6:$DB$1113,36,FALSE),VLOOKUP($BS34,'État & Plan d''action'!$B$6:$DB$1113,46,FALSE),VLOOKUP($BS34,'État & Plan d''action'!$B$6:$DB$1113,56,FALSE),VLOOKUP($BS34,'État & Plan d''action'!$B$6:$DB$1113,66,FALSE),VLOOKUP($BS34,'État & Plan d''action'!$B$6:$DB$1113,76,FALSE),VLOOKUP($BS34,'État & Plan d''action'!$B$6:$DB$1113,86,FALSE),VLOOKUP($BS34,'État & Plan d''action'!$B$6:$DB$1113,96,FALSE)),"") -> 0 | FA34: =IFERROR(SUM(VLOOKUP($BS34,'État & Plan d''action'!$B$6:$DB$1113,18,FALSE),VLOOKUP($BS34,'État & Plan d''action'!$B$6:$DB$1113,28,FALSE),VLOOKUP($BS34,'État & Plan d''action'!$B$6:$DB$1113,38,FALSE),VLOOKUP($BS34,'État & Plan d''action'!$B$6:$DB$1113,48,FALSE),VLOOKUP($BS34,'État & Plan d''action'!$B$6:$DB$1113,58,FALSE),VLOOKUP($BS34,'État & Plan d''action'!$B$6:$DB$1113,68,FALSE),VLOOKUP($BS34,'État & Plan d''action'!$B$6:$DB$1113,78,FALSE),VLOOKUP($BS34,'État & Plan d''action'!$B$6:$DB$1113,88,FALSE),VLOOKUP($BS34,'État & Plan d''action'!$B$6:$DB$1113,98,FALSE)),"") -> 0 | FB34: =IFERROR(SUM(VLOOKUP($BS34,'État & Plan d''action'!$B$6:$DB$1113,20,FALSE),VLOOKUP($BS34,'État & Plan d''action'!$B$6:$DB$1113,30,FALSE),VLOOKUP($BS34,'État & Plan d''action'!$B$6:$DB$1113,40,FALSE),VLOOKUP($BS34,'État & Plan d''action'!$B$6:$DB$1113,50,FALSE),VLOOKUP($BS34,'État & Plan d''action'!$B$6:$DB$1113,60,FALSE),VLOOKUP($BS34,'État & Plan d''action'!$B$6:$DB$1113,70,FALSE),VLOOKUP($BS34,'État & Plan d''action'!$B$6:$DB$1113,80,FALSE),VLOOKUP($BS34,'État & Plan d''action'!$B$6:$DB$1113,90,FALSE),VLOOKUP($BS34,'État & Plan d''action'!$B$6:$DB$1113,100,FALSE)),"") -> 75.604 | FC34: =IFERROR(SUM(VLOOKUP($BS34,'État & Plan d''action'!$B$6:$DB$1113,22,FALSE),VLOOKUP($BS34,'État & Plan d''action'!$B$6:$DB$1113,32,FALSE),VLOOKUP($BS34,'État & Plan d''action'!$B$6:$DB$1113,42,FALSE),VLOOKUP($BS34,'État & Plan d''action'!$B$6:$DB$1113,52,FALSE),VLOOKUP($BS34,'État & Plan d''action'!$B$6:$DB$1113,62,FALSE),VLOOKUP($BS34,'État & Plan d''action'!$B$6:$DB$1113,72,FALSE),VLOOKUP($BS34,'État & Plan d''action'!$B$6:$DB$1113,82,FALSE),VLOOKUP($BS34,'État & Plan d''action'!$B$6:$DB$1113,92,FALSE),VLOOKUP($BS34,'État & Plan d''action'!$B$6:$DB$1113,102,FALSE)),"") -> 0 | FD34: =IFERROR(SUM(VLOOKUP($BS34,'État & Plan d''action'!$B$6:$DB$1113,24,FALSE),VLOOKUP($BS34,'État & Plan d''action'!$B$6:$DB$1113,34,FALSE),VLOOKUP($BS34,'État & Plan d''action'!$B$6:$DB$1113,44,FALSE),VLOOKUP($BS34,'État & Plan d''action'!$B$6:$DB$1113,54,FALSE),VLOOKUP($BS34,'État & Plan d''action'!$B$6:$DB$1113,64,FALSE),VLOOKUP($BS34,'État & Plan d''action'!$B$6:$DB$1113,74,FALSE),VLOOKUP($BS34,'État & Plan d''action'!$B$6:$DB$1113,84,FALSE),VLOOKUP($BS34,'État & Plan d''action'!$B$6:$DB$1113,94,FALSE),VLOOKUP($BS34,'État & Plan d''action'!$B$6:$DB$1113,104,FALSE)),"") -> 0 | FE34: 61 | FF34: 74.45098039 | FG34: 74.70588235 | FH34: 975
W35: Résultat de validité des données | X35: =IF($W$21="","",IF($AG$25="non","Non disponible",IF(VLOOKUP($W$21,'Données par municipalité'!$B$6:$U$1113,20,FALSE)=0,"Non disponible",VLOOKUP($W$21,'Données par municipalité'!$B$6:$U$1113,20,FALSE)))) ->  | Y35: =IF($W$21="","",VLOOKUP(VLOOKUP(VLOOKUP($W$20,$BT$8:$BU$1115,2,FALSE),$T$171:$V$187,3,FALSE),$E$171:$AK$188,33,FALSE)) ->  | Z35: =IF($W$21="","",IF(VLOOKUP($W$20,$B$199:$AK$205,36,FALSE)=0,"Non disponible",VLOOKUP($W$20,$B$199:$AK$205,36,FALSE))) ->  | AA35: =AK188 -> 58.67133127 | BS35: 66112 | BT35: BAIE-D'URFÉ | BU35: 6 | BV35: non | BW35: non | BX35: non | BY35: non | BZ35: non | CA35: non | CB35: non | CC35: non | CD35: non | CE35: non | CF35: oui | CG35: oui | CH35: non | CI35: oui | CJ35: oui | CK35: oui | CL35: oui | CM35: oui | CN35: oui | CO35: =IF(VLOOKUP(BS35,'Données par municipalité'!$B$6:$E$1113,4,FALSE)="","non","oui") -> oui | CP35: 838.7058484 | CQ35: 806.6106545 | CS35: 892 | CT35: 532.1600702 | CU35: 572 | CV35: 600.3350024 | CW35: 1042 | CX35: =VLOOKUP(BS35,[5]Évolution!$BS$7:$CV$1115,30,FALSE) -> 941 | CY35: =IF(VLOOKUP(BS35,'Données par municipalité'!$B$6:$F$1113,4,FALSE)="","",VLOOKUP(BS35,'Données par municipalité'!$B$6:$F$1113,4,FALSE)) -> 974 | CZ35: Non disponible | DA35: 0 | DC35: 2 | DD35: 2 | DE35: 2 | DF35: 1 | DG35: 0 | DH35: 1 | DI35: =IFERROR(SUM(VLOOKUP($BS35,'État & Plan d''action'!$B$6:$DB$1113,18,FALSE),VLOOKUP($BS35,'État & Plan d''action'!$B$6:$DB$1113,20,FALSE),VLOOKUP($BS35,'État & Plan d''action'!$B$6:$DB$1113,28,FALSE),VLOOKUP($BS35,'État & Plan d''action'!$B$6:$DB$1113,30,FALSE),VLOOKUP($BS35,'État & Plan d''action'!$B$6:$DB$1113,38,FALSE),VLOOKUP($BS35,'État & Plan d''action'!$B$6:$DB$1113,40,FALSE),VLOOKUP($BS35,'État & Plan d''action'!$B$6:$DB$1113,48,FALSE),VLOOKUP($BS35,'État & Plan d''action'!$B$6:$DB$1113,50,FALSE),VLOOKUP($BS35,'État & Plan d''action'!$B$6:$DB$1113,58,FALSE),VLOOKUP($BS35,'État & Plan d''action'!$B$6:$DB$1113,60,FALSE),VLOOKUP($BS35,'État & Plan d''action'!$B$6:$DB$1113,68,FALSE),VLOOKUP($BS35,'État & Plan d''action'!$B$6:$DB$1113,70,FALSE),VLOOKUP($BS35,'État & Plan d''action'!$B$6:$DB$1113,78,FALSE),VLOOKUP($BS35,'État & Plan d''action'!$B$6:$DB$1113,80,FALSE),VLOOKUP($BS35,'État & Plan d''action'!$B$6:$DB$1113,88,FALSE),VLOOKUP($BS35,'État & Plan d''action'!$B$6:$DB$1113,90,FALSE),VLOOKUP($BS35,'État & Plan d''action'!$B$6:$DB$1113,98,FALSE),VLOOKUP($BS35,'État & Plan d''action'!$B$6:$DB$1113,100,FALSE))/(VLOOKUP($BS35,'Données par municipalité'!$B$4:$N$1113,13,FALSE)),"") -> 1 | DJ35: =IFERROR(SUM(VLOOKUP($BS35,'État & Plan d''action'!$B$6:$DB$1113,19,FALSE),VLOOKUP($BS35,'État & Plan d''action'!$B$6:$DB$1113,21,FALSE),VLOOKUP($BS35,'État & Plan d''action'!$B$6:$DB$1113,29,FALSE),VLOOKUP($BS35,'État & Plan d''action'!$B$6:$DB$1113,31,FALSE),VLOOKUP($BS35,'État & Plan d''action'!$B$6:$DB$1113,39,FALSE),VLOOKUP($BS35,'État & Plan d''action'!$B$6:$DB$1113,41,FALSE),VLOOKUP($BS35,'État & Plan d''action'!$B$6:$DB$1113,49,FALSE),VLOOKUP($BS35,'État & Plan d''action'!$B$6:$DB$1113,51,FALSE),VLOOKUP($BS35,'État & Plan d''action'!$B$6:$DB$1113,59,FALSE),VLOOKUP($BS35,'État & Plan d''action'!$B$6:$DB$1113,61,FALSE),VLOOKUP($BS35,'État & Plan d''action'!$B$6:$DB$1113,69,FALSE),VLOOKUP($BS35,'État & Plan d''action'!$B$6:$DB$1113,71,FALSE),VLOOKUP($BS35,'État & Plan d''action'!$B$6:$DB$1113,79,FALSE),VLOOKUP($BS35,'État & Plan d''action'!$B$6:$DB$1113,81,FALSE),VLOOKUP($BS35,'État & Plan d''action'!$B$6:$DB$1113,89,FALSE),VLOOKUP($BS35,'État & Plan d''action'!$B$6:$DB$1113,91,FALSE),VLOOKUP($BS35,'État & Plan d''action'!$B$6:$DB$1113,99,FALSE),VLOOKUP($BS35,'État & Plan d''action'!$B$6:$DB$1113,101,FALSE))/(VLOOKUP($BS35,'Données par municipalité'!$B$4:$N$1113,13,FALSE)),"") -> 1 | DK35: Non disponible | DN35: 2 | DO35: 2 | DP35: 3 | DQ35: 0 | DR35: 0 | DS35: 0 | DT35: 0 | DU35: 1 | DV35: 0 | DW35: 0 | DX35: =IF(VLOOKUP($BS35,'État & Plan d''action'!$B$6:$DM$1113,108,FALSE)="","",VLOOKUP($BS35,'État & Plan d''action'!$B$6:$DM$1113,108,FALSE)) -> 2 | DY35: =IF(VLOOKUP($BS35,'État & Plan d''action'!$B$6:$DM$1113,109,FALSE)="","",VLOOKUP($BS35,'État & Plan d''action'!$B$6:$DM$1113,109,FALSE)) -> 1 | DZ35: =IF(VLOOKUP($BS35,'État & Plan d''action'!$B$6:$DM$1113,110,FALSE)="","",VLOOKUP($BS35,'État & Plan d''action'!$B$6:$DM$1113,110,FALSE)) -> 0 | EA35: 286 | EB35: =VLOOKUP(BS35,'[5]Données par municipalité'!$B$6:$F$1113,5,FALSE) -> 299 | EC35: =VLOOKUP($BS35,'Données par municipalité'!$B$6:$F$1113,5,FALSE) -> 335 | ED35: 0.8051574931 | EE35: 4.257213101 | EF35: =IF(VLOOKUP(BS35,'Données par municipalité'!$B$6:$U$1113,7,FALSE)="","",VLOOKUP(BS35,'Données par municipalité'!$B$6:$U$1113,7,FALSE)) -> 5.331797275 | EG35: 0 | EH35: 0 | EI35: 0 | EJ35: 1 | EK35: 0 | EL35: 0 | EM35: =VLOOKUP($BS35,'État & Plan d''action'!$B$6:$DK$1113,112,FALSE) -> 1 | EN35: =VLOOKUP($BS35,'État & Plan d''action'!$B$6:$DK$1113,113,FALSE) -> 1 | EO35: =VLOOKUP($BS35,'État & Plan d''action'!$B$6:$DK$1113,114,FALSE) ->  | EP35: 47.136 | EQ35: 0 | ER35: 0 | ES35: 0 | ET35: 0 | EU35: 47.136 | EV35: 0 | EW35: 0 | EX35: 0 | EY35: 0 | EZ35: =IFERROR(SUM(VLOOKUP($BS35,'État & Plan d''action'!$B$6:$DB$1113,16,FALSE),VLOOKUP($BS35,'État & Plan d''action'!$B$6:$DB$1113,26,FALSE),VLOOKUP($BS35,'État & Plan d''action'!$B$6:$DB$1113,36,FALSE),VLOOKUP($BS35,'État & Plan d''action'!$B$6:$DB$1113,46,FALSE),VLOOKUP($BS35,'État & Plan d''action'!$B$6:$DB$1113,56,FALSE),VLOOKUP($BS35,'État & Plan d''action'!$B$6:$DB$1113,66,FALSE),VLOOKUP($BS35,'État & Plan d''action'!$B$6:$DB$1113,76,FALSE),VLOOKUP($BS35,'État & Plan d''action'!$B$6:$DB$1113,86,FALSE),VLOOKUP($BS35,'État & Plan d''action'!$B$6:$DB$1113,96,FALSE)),"") -> 0 | FA35: =IFERROR(SUM(VLOOKUP($BS35,'État & Plan d''action'!$B$6:$DB$1113,18,FALSE),VLOOKUP($BS35,'État & Plan d''action'!$B$6:$DB$1113,28,FALSE),VLOOKUP($BS35,'État & Plan d''action'!$B$6:$DB$1113,38,FALSE),VLOOKUP($BS35,'État & Plan d''action'!$B$6:$DB$1113,48,FALSE),VLOOKUP($BS35,'État & Plan d''action'!$B$6:$DB$1113,58,FALSE),VLOOKUP($BS35,'État & Plan d''action'!$B$6:$DB$1113,68,FALSE),VLOOKUP($BS35,'État & Plan d''action'!$B$6:$DB$1113,78,FALSE),VLOOKUP($BS35,'État & Plan d''action'!$B$6:$DB$1113,88,FALSE),VLOOKUP($BS35,'État & Plan d''action'!$B$6:$DB$1113,98,FALSE)),"") -> 47.136 | FB35: =IFERROR(SUM(VLOOKUP($BS35,'État & Plan d''action'!$B$6:$DB$1113,20,FALSE),VLOOKUP($BS35,'État & Plan d''action'!$B$6:$DB$1113,30,FALSE),VLOOKUP($BS35,'État & Plan d''action'!$B$6:$DB$1113,40,FALSE),VLOOKUP($BS35,'État & Plan d''action'!$B$6:$DB$1113,50,FALSE),VLOOKUP($BS35,'État & Plan d''action'!$B$6:$DB$1113,60,FALSE),VLOOKUP($BS35,'État & Plan d''action'!$B$6:$DB$1113,70,FALSE),VLOOKUP($BS35,'État & Plan d''action'!$B$6:$DB$1113,80,FALSE),VLOOKUP($BS35,'État & Plan d''action'!$B$6:$DB$1113,90,FALSE),VLOOKUP($BS35,'État & Plan d''action'!$B$6:$DB$1113,100,FALSE)),"") -> 0 | FC35: =IFERROR(SUM(VLOOKUP($BS35,'État & Plan d''action'!$B$6:$DB$1113,22,FALSE),VLOOKUP($BS35,'État & Plan d''action'!$B$6:$DB$1113,32,FALSE),VLOOKUP($BS35,'État & Plan d''action'!$B$6:$DB$1113,42,FALSE),VLOOKUP($BS35,'État & Plan d''action'!$B$6:$DB$1113,52,FALSE),VLOOKUP($BS35,'État & Plan d''action'!$B$6:$DB$1113,62,FALSE),VLOOKUP($BS35,'État & Plan d''action'!$B$6:$DB$1113,72,FALSE),VLOOKUP($BS35,'État & Plan d''action'!$B$6:$DB$1113,82,FALSE),VLOOKUP($BS35,'État & Plan d''action'!$B$6:$DB$1113,92,FALSE),VLOOKUP($BS35,'État & Plan d''action'!$B$6:$DB$1113,102,FALSE)),"") -> 0 | FD35: =IFERROR(SUM(VLOOKUP($BS35,'État & Plan d''action'!$B$6:$DB$1113,24,FALSE),VLOOKUP($BS35,'État & Plan d''action'!$B$6:$DB$1113,34,FALSE),VLOOKUP($BS35,'État & Plan d''action'!$B$6:$DB$1113,44,FALSE),VLOOKUP($BS35,'État & Plan d''action'!$B$6:$DB$1113,54,FALSE),VLOOKUP($BS35,'État & Plan d''action'!$B$6:$DB$1113,64,FALSE),VLOOKUP($BS35,'État & Plan d''action'!$B$6:$DB$1113,74,FALSE),VLOOKUP($BS35,'État & Plan d''action'!$B$6:$DB$1113,84,FALSE),VLOOKUP($BS35,'État & Plan d''action'!$B$6:$DB$1113,94,FALSE),VLOOKUP($BS35,'État & Plan d''action'!$B$6:$DB$1113,104,FALSE)),"") -> 0 | FE35: 57 | FF35: 56.75490196 | FG35: 56.75490196 | FH35: 3944
W36: =#REF! ->  | X36: =IF($W$21="","ND",IF($AE$25="non","ND",IF(VLOOKUP($W$21,$BS$8:$DZ$1115,35,FALSE)="","ND",VLOOKUP($W$21,$BS$8:$DZ$1115,35,FALSE)))) -> ND | Y36: =IF($W$21="","ND",VLOOKUP(VLOOKUP($W$21,$BS$8:$BU$1115,3,FALSE),$T$171:$AM$187,14,FALSE)) -> ND | Z36: =IF($W$21="","ND",IF(VLOOKUP($W$20,$B$199:$AH$205,32,FALSE)=0,"ND",VLOOKUP($W$20,$B$199:$AH$205,32,FALSE))) -> ND | AA36: =DG7 -> 0.8807061573 | BS36: 98035 | BT36: BAIE-JOHAN-BEETZ | BU36: 9 | BV36: non | BW36: non | BX36: non | BY36: non | BZ36: non | CA36: non | CB36: non | CC36: non | CD36: non | CE36: non | CF36: oui | CG36: oui | CH36: non | CI36: non | CJ36: oui | CK36: non | CL36: oui | CM36: oui | CN36: oui | CO36: =IF(VLOOKUP(BS36,'Données par municipalité'!$B$6:$E$1113,4,FALSE)="","non","oui") -> oui | CP36: 1431.288418 | CQ36: 1346.824203 | CT36: 923.6099919 | CV36: 827.3781014 | CW36: 957 | CX36: =VLOOKUP(BS36,[5]Évolution!$BS$7:$CV$1115,30,FALSE) -> 721 | CY36: =IF(VLOOKUP(BS36,'Données par municipalité'!$B$6:$F$1113,4,FALSE)="","",VLOOKUP(BS36,'Données par municipalité'!$B$6:$F$1113,4,FALSE)) -> 738 | CZ36: Non disponible | DA36: 0 | DD36: 1 | DF36: 0 | DG36: 0 | DH36: 0 | DI36: =IFERROR(SUM(VLOOKUP($BS36,'État & Plan d''action'!$B$6:$DB$1113,18,FALSE),VLOOKUP($BS36,'État & Plan d''action'!$B$6:$DB$1113,20,FALSE),VLOOKUP($BS36,'État & Plan d''action'!$B$6:$DB$1113,28,FALSE),VLOOKUP($BS36,'État & Plan d''action'!$B$6:$DB$1113,30,FALSE),VLOOKUP($BS36,'État & Plan d''action'!$B$6:$DB$1113,38,FALSE),VLOOKUP($BS36,'État & Plan d''action'!$B$6:$DB$1113,40,FALSE),VLOOKUP($BS36,'État & Plan d''action'!$B$6:$DB$1113,48,FALSE),VLOOKUP($BS36,'État & Plan d''action'!$B$6:$DB$1113,50,FALSE),VLOOKUP($BS36,'État & Plan d''action'!$B$6:$DB$1113,58,FALSE),VLOOKUP($BS36,'État & Plan d''action'!$B$6:$DB$1113,60,FALSE),VLOOKUP($BS36,'État & Plan d''action'!$B$6:$DB$1113,68,FALSE),VLOOKUP($BS36,'État & Plan d''action'!$B$6:$DB$1113,70,FALSE),VLOOKUP($BS36,'État & Plan d''action'!$B$6:$DB$1113,78,FALSE),VLOOKUP($BS36,'État & Plan d''action'!$B$6:$DB$1113,80,FALSE),VLOOKUP($BS36,'État & Plan d''action'!$B$6:$DB$1113,88,FALSE),VLOOKUP($BS36,'État & Plan d''action'!$B$6:$DB$1113,90,FALSE),VLOOKUP($BS36,'État & Plan d''action'!$B$6:$DB$1113,98,FALSE),VLOOKUP($BS36,'État & Plan d''action'!$B$6:$DB$1113,100,FALSE))/(VLOOKUP($BS36,'Données par municipalité'!$B$4:$N$1113,13,FALSE)),"") -> 0 | DJ36: =IFERROR(SUM(VLOOKUP($BS36,'État & Plan d''action'!$B$6:$DB$1113,19,FALSE),VLOOKUP($BS36,'État & Plan d''action'!$B$6:$DB$1113,21,FALSE),VLOOKUP($BS36,'État & Plan d''action'!$B$6:$DB$1113,29,FALSE),VLOOKUP($BS36,'État & Plan d''action'!$B$6:$DB$1113,31,FALSE),VLOOKUP($BS36,'État & Plan d''action'!$B$6:$DB$1113,39,FALSE),VLOOKUP($BS36,'État & Plan d''action'!$B$6:$DB$1113,41,FALSE),VLOOKUP($BS36,'État & Plan d''action'!$B$6:$DB$1113,49,FALSE),VLOOKUP($BS36,'État & Plan d''action'!$B$6:$DB$1113,51,FALSE),VLOOKUP($BS36,'État & Plan d''action'!$B$6:$DB$1113,59,FALSE),VLOOKUP($BS36,'État & Plan d''action'!$B$6:$DB$1113,61,FALSE),VLOOKUP($BS36,'État & Plan d''action'!$B$6:$DB$1113,69,FALSE),VLOOKUP($BS36,'État & Plan d''action'!$B$6:$DB$1113,71,FALSE),VLOOKUP($BS36,'État & Plan d''action'!$B$6:$DB$1113,79,FALSE),VLOOKUP($BS36,'État & Plan d''action'!$B$6:$DB$1113,81,FALSE),VLOOKUP($BS36,'État & Plan d''action'!$B$6:$DB$1113,89,FALSE),VLOOKUP($BS36,'État & Plan d''action'!$B$6:$DB$1113,91,FALSE),VLOOKUP($BS36,'État & Plan d''action'!$B$6:$DB$1113,99,FALSE),VLOOKUP($BS36,'État & Plan d''action'!$B$6:$DB$1113,101,FALSE))/(VLOOKUP($BS36,'Données par municipalité'!$B$4:$N$1113,13,FALSE)),"") -> 0 | DK36: Non disponible | DL36: 1 | DN36: 0 | DO36: 0 | DQ36: 1 | DR36: 2 | DS36: 0 | DT36: 0 | DU36: 1 | DV36: 0 | DW36: 0 | DX36: =IF(VLOOKUP($BS36,'État & Plan d''action'!$B$6:$DM$1113,108,FALSE)="","",VLOOKUP($BS36,'État & Plan d''action'!$B$6:$DM$1113,108,FALSE)) -> 0 | DY36: =IF(VLOOKUP($BS36,'État & Plan d''action'!$B$6:$DM$1113,109,FALSE)="","",VLOOKUP($BS36,'État & Plan d''action'!$B$6:$DM$1113,109,FALSE)) -> 0 | DZ36: =IF(VLOOKUP($BS36,'État & Plan d''action'!$B$6:$DM$1113,110,FALSE)="","",VLOOKUP($BS36,'État & Plan d''action'!$B$6:$DM$1113,110,FALSE)) -> 0 | EA36: 293 | EB36: =VLOOKUP(BS36,'[5]Données par municipalité'!$B$6:$F$1113,5,FALSE) -> 163 | EC36: =VLOOKUP($BS36,'Données par municipalité'!$B$6:$F$1113,5,FALSE) -> 336 | ED36: 1.478126504 | EE36: 1.251260155 | EF36: =IF(VLOOKUP(BS36,'Données par municipalité'!$B$6:$U$1113,7,FALSE)="","",VLOOKUP(BS36,'Données par municipalité'!$B$6:$U$1113,7,FALSE)) -> 1.493988145 | EG36: 2 | EH36: 0 | EI36: 0 | EJ36: 2 | EK36: 0 | EL36: 0 | EM36: =VLOOKUP($BS36,'État & Plan d''action'!$B$6:$DK$1113,112,FALSE) -> S.O. | EN36: =VLOOKUP($BS36,'État & Plan d''action'!$B$6:$DK$1113,113,FALSE) ->  | EO36: =VLOOKUP($BS36,'État & Plan d''action'!$B$6:$DK$1113,114,FALSE) ->  | EP36: 0 | EQ36: 0 | ER36: 0 | ES36: 0 | ET36: 0 | EU36: 0 | EV36: 0 | EW36: 0 | EX36: 0 | EY36: 0 | EZ36: =IFERROR(SUM(VLOOKUP($BS36,'État & Plan d''action'!$B$6:$DB$1113,16,FALSE),VLOOKUP($BS36,'État & Plan d''action'!$B$6:$DB$1113,26,FALSE),VLOOKUP($BS36,'État & Plan d''action'!$B$6:$DB$1113,36,FALSE),VLOOKUP($BS36,'État & Plan d''action'!$B$6:$DB$1113,46,FALSE),VLOOKUP($BS36,'État & Plan d''action'!$B$6:$DB$1113,56,FALSE),VLOOKUP($BS36,'État & Plan d''action'!$B$6:$DB$1113,66,FALSE),VLOOKUP($BS36,'État & Plan d''action'!$B$6:$DB$1113,76,FALSE),VLOOKUP($BS36,'État & Plan d''action'!$B$6:$DB$1113,86,FALSE),VLOOKUP($BS36,'État & Plan d''action'!$B$6:$DB$1113,96,FALSE)),"") -> 0 | FA36: =IFERROR(SUM(VLOOKUP($BS36,'État & Plan d''action'!$B$6:$DB$1113,18,FALSE),VLOOKUP($BS36,'État & Plan d''action'!$B$6:$DB$1113,28,FALSE),VLOOKUP($BS36,'État & Plan d''action'!$B$6:$DB$1113,38,FALSE),VLOOKUP($BS36,'État & Plan d''action'!$B$6:$DB$1113,48,FALSE),VLOOKUP($BS36,'État & Plan d''action'!$B$6:$DB$1113,58,FALSE),VLOOKUP($BS36,'État & Plan d''action'!$B$6:$DB$1113,68,FALSE),VLOOKUP($BS36,'État & Plan d''action'!$B$6:$DB$1113,78,FALSE),VLOOKUP($BS36,'État & Plan d''action'!$B$6:$DB$1113,88,FALSE),VLOOKUP($BS36,'État & Plan d''action'!$B$6:$DB$1113,98,FALSE)),"") -> 0 | FB36: =IFERROR(SUM(VLOOKUP($BS36,'État & Plan d''action'!$B$6:$DB$1113,20,FALSE),VLOOKUP($BS36,'État & Plan d''action'!$B$6:$DB$1113,30,FALSE),VLOOKUP($BS36,'État & Plan d''action'!$B$6:$DB$1113,40,FALSE),VLOOKUP($BS36,'État & Plan d''action'!$B$6:$DB$1113,50,FALSE),VLOOKUP($BS36,'État & Plan d''action'!$B$6:$DB$1113,60,FALSE),VLOOKUP($BS36,'État & Plan d''action'!$B$6:$DB$1113,70,FALSE),VLOOKUP($BS36,'État & Plan d''action'!$B$6:$DB$1113,80,FALSE),VLOOKUP($BS36,'État & Plan d''action'!$B$6:$DB$1113,90,FALSE),VLOOKUP($BS36,'État & Plan d''action'!$B$6:$DB$1113,100,FALSE)),"") -> 0 | FC36: =IFERROR(SUM(VLOOKUP($BS36,'État & Plan d''action'!$B$6:$DB$1113,22,FALSE),VLOOKUP($BS36,'État & Plan d''action'!$B$6:$DB$1113,32,FALSE),VLOOKUP($BS36,'État & Plan d''action'!$B$6:$DB$1113,42,FALSE),VLOOKUP($BS36,'État & Plan d''action'!$B$6:$DB$1113,52,FALSE),VLOOKUP($BS36,'État & Plan d''action'!$B$6:$DB$1113,62,FALSE),VLOOKUP($BS36,'État & Plan d''action'!$B$6:$DB$1113,72,FALSE),VLOOKUP($BS36,'État & Plan d''action'!$B$6:$DB$1113,82,FALSE),VLOOKUP($BS36,'État & Plan d''action'!$B$6:$DB$1113,92,FALSE),VLOOKUP($BS36,'État & Plan d''action'!$B$6:$DB$1113,102,FALSE)),"") -> 0 | FD36: =IFERROR(SUM(VLOOKUP($BS36,'État & Plan d''action'!$B$6:$DB$1113,24,FALSE),VLOOKUP($BS36,'État & Plan d''action'!$B$6:$DB$1113,34,FALSE),VLOOKUP($BS36,'État & Plan d''action'!$B$6:$DB$1113,44,FALSE),VLOOKUP($BS36,'État & Plan d''action'!$B$6:$DB$1113,54,FALSE),VLOOKUP($BS36,'État & Plan d''action'!$B$6:$DB$1113,64,FALSE),VLOOKUP($BS36,'État & Plan d''action'!$B$6:$DB$1113,74,FALSE),VLOOKUP($BS36,'État & Plan d''action'!$B$6:$DB$1113,84,FALSE),VLOOKUP($BS36,'État & Plan d''action'!$B$6:$DB$1113,94,FALSE),VLOOKUP($BS36,'État & Plan d''action'!$B$6:$DB$1113,104,FALSE)),"") -> 0 | FE36: 45 | FF36: 59.43243243 | FG36: 59 | FH36: 83
W37: =#REF! ->  | X37: =IF($W$21="","ND",IF($AE$25="non","ND",IF(SUM(VLOOKUP($W$21,$BS$8:$DZ$1115,44,FALSE),VLOOKUP($W$21,$BS$8:$DZ$1115,45,FALSE),VLOOKUP($W$21,$BS$8:$DZ$1115,46,FALSE))="","ND",SUM(VLOOKUP($W$21,$BS$8:$DZ$1115,44,FALSE),VLOOKUP($W$21,$BS$8:$DZ$1115,45,FALSE),VLOOKUP($W$21,$BS$8:$DZ$1115,46,FALSE))))) -> ND | Y37: =IF($W$21="","ND",VLOOKUP(VLOOKUP($W$21,$BS$8:$BU$1115,3,FALSE),$T$171:$AM$187,13,FALSE)) -> ND | Z37: =IF($W$21="","ND",IF(VLOOKUP($W$20,$B$199:$AH$205,31,FALSE)=0,"ND",VLOOKUP($W$20,$B$199:$AH$205,31,FALSE))) -> ND | AA37: =AF188 -> 8407 | BS37: 15065 | BT37: BAIE-SAINTE-CATHERINE | BU37: 3 | BV37: non | BW37: non | BX37: non | BY37: non | BZ37: non | CA37: non | CB37: non | CC37: non | CD37: non | CE37: non | CF37: oui | CG37: oui | CH37: non | CI37: non | CJ37: oui | CK37: oui | CL37: oui | CM37: oui | CN37: oui | CO37: =IF(VLOOKUP(BS37,'Données par municipalité'!$B$6:$E$1113,4,FALSE)="","non","oui") -> oui | CP37: 1653.440122 | CQ37: 1383.356575 | CT37: 854.2441919 | CU37: 653.142109 | CV37: 574.0933505 | CW37: 622 | CX37: =VLOOKUP(BS37,[5]Évolution!$BS$7:$CV$1115,30,FALSE) -> 589 | CY37: =IF(VLOOKUP(BS37,'Données par municipalité'!$B$6:$F$1113,4,FALSE)="","",VLOOKUP(BS37,'Données par municipalité'!$B$6:$F$1113,4,FALSE)) -> 446 | CZ37: Non disponible | DA37: 1 | DD37: 0 | DE37: 0 | DF37: 0 | DG37: 0 | DH37: 0 | DI37: =IFERROR(SUM(VLOOKUP($BS37,'État & Plan d''action'!$B$6:$DB$1113,18,FALSE),VLOOKUP($BS37,'État & Plan d''action'!$B$6:$DB$1113,20,FALSE),VLOOKUP($BS37,'État & Plan d''action'!$B$6:$DB$1113,28,FALSE),VLOOKUP($BS37,'État & Plan d''action'!$B$6:$DB$1113,30,FALSE),VLOOKUP($BS37,'État & Plan d''action'!$B$6:$DB$1113,38,FALSE),VLOOKUP($BS37,'État & Plan d''action'!$B$6:$DB$1113,40,FALSE),VLOOKUP($BS37,'État & Plan d''action'!$B$6:$DB$1113,48,FALSE),VLOOKUP($BS37,'État & Plan d''action'!$B$6:$DB$1113,50,FALSE),VLOOKUP($BS37,'État & Plan d''action'!$B$6:$DB$1113,58,FALSE),VLOOKUP($BS37,'État & Plan d''action'!$B$6:$DB$1113,60,FALSE),VLOOKUP($BS37,'État & Plan d''action'!$B$6:$DB$1113,68,FALSE),VLOOKUP($BS37,'État & Plan d''action'!$B$6:$DB$1113,70,FALSE),VLOOKUP($BS37,'État & Plan d''action'!$B$6:$DB$1113,78,FALSE),VLOOKUP($BS37,'État & Plan d''action'!$B$6:$DB$1113,80,FALSE),VLOOKUP($BS37,'État & Plan d''action'!$B$6:$DB$1113,88,FALSE),VLOOKUP($BS37,'État & Plan d''action'!$B$6:$DB$1113,90,FALSE),VLOOKUP($BS37,'État & Plan d''action'!$B$6:$DB$1113,98,FALSE),VLOOKUP($BS37,'État & Plan d''action'!$B$6:$DB$1113,100,FALSE))/(VLOOKUP($BS37,'Données par municipalité'!$B$4:$N$1113,13,FALSE)),"") -> 0 | DJ37: =IFERROR(SUM(VLOOKUP($BS37,'État & Plan d''action'!$B$6:$DB$1113,19,FALSE),VLOOKUP($BS37,'État & Plan d''action'!$B$6:$DB$1113,21,FALSE),VLOOKUP($BS37,'État & Plan d''action'!$B$6:$DB$1113,29,FALSE),VLOOKUP($BS37,'État & Plan d''action'!$B$6:$DB$1113,31,FALSE),VLOOKUP($BS37,'État & Plan d''action'!$B$6:$DB$1113,39,FALSE),VLOOKUP($BS37,'État & Plan d''action'!$B$6:$DB$1113,41,FALSE),VLOOKUP($BS37,'État & Plan d''action'!$B$6:$DB$1113,49,FALSE),VLOOKUP($BS37,'État & Plan d''action'!$B$6:$DB$1113,51,FALSE),VLOOKUP($BS37,'État & Plan d''action'!$B$6:$DB$1113,59,FALSE),VLOOKUP($BS37,'État & Plan d''action'!$B$6:$DB$1113,61,FALSE),VLOOKUP($BS37,'État & Plan d''action'!$B$6:$DB$1113,69,FALSE),VLOOKUP($BS37,'État & Plan d''action'!$B$6:$DB$1113,71,FALSE),VLOOKUP($BS37,'État & Plan d''action'!$B$6:$DB$1113,79,FALSE),VLOOKUP($BS37,'État & Plan d''action'!$B$6:$DB$1113,81,FALSE),VLOOKUP($BS37,'État & Plan d''action'!$B$6:$DB$1113,89,FALSE),VLOOKUP($BS37,'État & Plan d''action'!$B$6:$DB$1113,91,FALSE),VLOOKUP($BS37,'État & Plan d''action'!$B$6:$DB$1113,99,FALSE),VLOOKUP($BS37,'État & Plan d''action'!$B$6:$DB$1113,101,FALSE))/(VLOOKUP($BS37,'Données par municipalité'!$B$4:$N$1113,13,FALSE)),"") -> 0 | DK37: Non disponible | DL37: 4 | DN37: 0 | DO37: 1 | DP37: 0 | DQ37: 0 | DR37: 3 | DS37: 0 | DT37: 0 | DU37: 1 | DV37: 0 | DW37: 0 | DX37: =IF(VLOOKUP($BS37,'État & Plan d''action'!$B$6:$DM$1113,108,FALSE)="","",VLOOKUP($BS37,'État & Plan d''action'!$B$6:$DM$1113,108,FALSE)) -> 1 | DY37: =IF(VLOOKUP($BS37,'État & Plan d''action'!$B$6:$DM$1113,109,FALSE)="","",VLOOKUP($BS37,'État & Plan d''action'!$B$6:$DM$1113,109,FALSE)) -> 0 | DZ37: =IF(VLOOKUP($BS37,'État & Plan d''action'!$B$6:$DM$1113,110,FALSE)="","",VLOOKUP($BS37,'État & Plan d''action'!$B$6:$DM$1113,110,FALSE)) -> 0 | EA37: 235 | EB37: =VLOOKUP(BS37,'[5]Données par municipalité'!$B$6:$F$1113,5,FALSE) -> 260 | EC37: =VLOOKUP($BS37,'Données par municipalité'!$B$6:$F$1113,5,FALSE) -> 251 | ED37: 1.278380058 | EE37: 2.558365363 | EF37: =IF(VLOOKUP(BS37,'Données par municipalité'!$B$6:$U$1113,7,FALSE)="","",VLOOKUP(BS37,'Données par municipalité'!$B$6:$U$1113,7,FALSE)) -> 1.649275857 | EG37: 2 | EH37: 0 | EI37: 0 | EJ37: 1 | EK37: 0 | EL37: 0 | EM37: =VLOOKUP($BS37,'État & Plan d''action'!$B$6:$DK$1113,112,FALSE) -> 1 | EN37: =VLOOKUP($BS37,'État & Plan d''action'!$B$6:$DK$1113,113,FALSE) ->  | EO37: =VLOOKUP($BS37,'État & Plan d''action'!$B$6:$DK$1113,114,FALSE) ->  | EP37: 6.596 | EQ37: 0 | ER37: 0 | ES37: 0 | ET37: 0 | EU37: 6.596 | EV37: 0 | EW37: 0 | EX37: 0 | EY37: 0 | EZ37: =IFERROR(SUM(VLOOKUP($BS37,'État & Plan d''action'!$B$6:$DB$1113,16,FALSE),VLOOKUP($BS37,'État & Plan d''action'!$B$6:$DB$1113,26,FALSE),VLOOKUP($BS37,'État & Plan d''action'!$B$6:$DB$1113,36,FALSE),VLOOKUP($BS37,'État & Plan d''action'!$B$6:$DB$1113,46,FALSE),VLOOKUP($BS37,'État & Plan d''action'!$B$6:$DB$1113,56,FALSE),VLOOKUP($BS37,'État & Plan d''action'!$B$6:$DB$1113,66,FALSE),VLOOKUP($BS37,'État & Plan d''action'!$B$6:$DB$1113,76,FALSE),VLOOKUP($BS37,'État & Plan d''action'!$B$6:$DB$1113,86,FALSE),VLOOKUP($BS37,'État & Plan d''action'!$B$6:$DB$1113,96,FALSE)),"") -> 0 | FA37: =IFERROR(SUM(VLOOKUP($BS37,'État & Plan d''action'!$B$6:$DB$1113,18,FALSE),VLOOKUP($BS37,'État & Plan d''action'!$B$6:$DB$1113,28,FALSE),VLOOKUP($BS37,'État & Plan d''action'!$B$6:$DB$1113,38,FALSE),VLOOKUP($BS37,'État & Plan d''action'!$B$6:$DB$1113,48,FALSE),VLOOKUP($BS37,'État & Plan d''action'!$B$6:$DB$1113,58,FALSE),VLOOKUP($BS37,'État & Plan d''action'!$B$6:$DB$1113,68,FALSE),VLOOKUP($BS37,'État & Plan d''action'!$B$6:$DB$1113,78,FALSE),VLOOKUP($BS37,'État & Plan d''action'!$B$6:$DB$1113,88,FALSE),VLOOKUP($BS37,'État & Plan d''action'!$B$6:$DB$1113,98,FALSE)),"") -> 0 | FB37: =IFERROR(SUM(VLOOKUP($BS37,'État & Plan d''action'!$B$6:$DB$1113,20,FALSE),VLOOKUP($BS37,'État & Plan d''action'!$B$6:$DB$1113,30,FALSE),VLOOKUP($BS37,'État & Plan d''action'!$B$6:$DB$1113,40,FALSE),VLOOKUP($BS37,'État & Plan d''action'!$B$6:$DB$1113,50,FALSE),VLOOKUP($BS37,'État & Plan d''action'!$B$6:$DB$1113,60,FALSE),VLOOKUP($BS37,'État & Plan d''action'!$B$6:$DB$1113,70,FALSE),VLOOKUP($BS37,'État & Plan d''action'!$B$6:$DB$1113,80,FALSE),VLOOKUP($BS37,'État & Plan d''action'!$B$6:$DB$1113,90,FALSE),VLOOKUP($BS37,'État & Plan d''action'!$B$6:$DB$1113,100,FALSE)),"") -> 0 | FC37: =IFERROR(SUM(VLOOKUP($BS37,'État & Plan d''action'!$B$6:$DB$1113,22,FALSE),VLOOKUP($BS37,'État & Plan d''action'!$B$6:$DB$1113,32,FALSE),VLOOKUP($BS37,'État & Plan d''action'!$B$6:$DB$1113,42,FALSE),VLOOKUP($BS37,'État & Plan d''action'!$B$6:$DB$1113,52,FALSE),VLOOKUP($BS37,'État & Plan d''action'!$B$6:$DB$1113,62,FALSE),VLOOKUP($BS37,'État & Plan d''action'!$B$6:$DB$1113,72,FALSE),VLOOKUP($BS37,'État & Plan d''action'!$B$6:$DB$1113,82,FALSE),VLOOKUP($BS37,'État & Plan d''action'!$B$6:$DB$1113,92,FALSE),VLOOKUP($BS37,'État & Plan d''action'!$B$6:$DB$1113,102,FALSE)),"") -> 0 | FD37: =IFERROR(SUM(VLOOKUP($BS37,'État & Plan d''action'!$B$6:$DB$1113,24,FALSE),VLOOKUP($BS37,'État & Plan d''action'!$B$6:$DB$1113,34,FALSE),VLOOKUP($BS37,'État & Plan d''action'!$B$6:$DB$1113,44,FALSE),VLOOKUP($BS37,'État & Plan d''action'!$B$6:$DB$1113,54,FALSE),VLOOKUP($BS37,'État & Plan d''action'!$B$6:$DB$1113,64,FALSE),VLOOKUP($BS37,'État & Plan d''action'!$B$6:$DB$1113,74,FALSE),VLOOKUP($BS37,'État & Plan d''action'!$B$6:$DB$1113,84,FALSE),VLOOKUP($BS37,'État & Plan d''action'!$B$6:$DB$1113,94,FALSE),VLOOKUP($BS37,'État & Plan d''action'!$B$6:$DB$1113,104,FALSE)),"") -> 0 | FE37: 44 | FF37: 53.67647059 | FG37: 55.20588235 | FH37: 191
W38: dummy 1 | X38: 0 | Y38: 0 | Z38: 0 | AA38: 0 | BS38: 16013 | BT38: BAIE-SAINT-PAUL | BU38: 3 | BV38: non | BW38: non | BX38: non | BY38: non | BZ38: non | CA38: non | CB38: non | CC38: non | CD38: non | CE38: non | CF38: oui | CG38: oui | CH38: non | CI38: oui | CJ38: oui | CK38: oui | CL38: oui | CM38: oui | CN38: oui | CO38: =IF(VLOOKUP(BS38,'Données par municipalité'!$B$6:$E$1113,4,FALSE)="","non","oui") -> oui | CP38: 509.6433487 | CQ38: 473.1811475 | CS38: 477.5163952 | CT38: 527.8365419 | CU38: 569.239067 | CV38: 572.8375103 | CW38: 598 | CX38: =VLOOKUP(BS38,[5]Évolution!$BS$7:$CV$1115,30,FALSE) -> 567 | CY38: =IF(VLOOKUP(BS38,'Données par municipalité'!$B$6:$F$1113,4,FALSE)="","",VLOOKUP(BS38,'Données par municipalité'!$B$6:$F$1113,4,FALSE)) -> 525 | CZ38: Non disponible | DA38: 0 | DC38: 0.05 | DD38: 1 | DE38: 0.75 | DF38: 0.25 | DG38: 0 | DH38: 0.2239129305 | DI38: =IFERROR(SUM(VLOOKUP($BS38,'État & Plan d''action'!$B$6:$DB$1113,18,FALSE),VLOOKUP($BS38,'État & Plan d''action'!$B$6:$DB$1113,20,FALSE),VLOOKUP($BS38,'État & Plan d''action'!$B$6:$DB$1113,28,FALSE),VLOOKUP($BS38,'État & Plan d''action'!$B$6:$DB$1113,30,FALSE),VLOOKUP($BS38,'État & Plan d''action'!$B$6:$DB$1113,38,FALSE),VLOOKUP($BS38,'État & Plan d''action'!$B$6:$DB$1113,40,FALSE),VLOOKUP($BS38,'État & Plan d''action'!$B$6:$DB$1113,48,FALSE),VLOOKUP($BS38,'État & Plan d''action'!$B$6:$DB$1113,50,FALSE),VLOOKUP($BS38,'État & Plan d''action'!$B$6:$DB$1113,58,FALSE),VLOOKUP($BS38,'État & Plan d''action'!$B$6:$DB$1113,60,FALSE),VLOOKUP($BS38,'État & Plan d''action'!$B$6:$DB$1113,68,FALSE),VLOOKUP($BS38,'État & Plan d''action'!$B$6:$DB$1113,70,FALSE),VLOOKUP($BS38,'État & Plan d''action'!$B$6:$DB$1113,78,FALSE),VLOOKUP($BS38,'État & Plan d''action'!$B$6:$DB$1113,80,FALSE),VLOOKUP($BS38,'État & Plan d''action'!$B$6:$DB$1113,88,FALSE),VLOOKUP($BS38,'État & Plan d''action'!$B$6:$DB$1113,90,FALSE),VLOOKUP($BS38,'État & Plan d''action'!$B$6:$DB$1113,98,FALSE),VLOOKUP($BS38,'État & Plan d''action'!$B$6:$DB$1113,100,FALSE))/(VLOOKUP($BS38,'Données par municipalité'!$B$4:$N$1113,13,FALSE)),"") -> 1 | DJ38: =IFERROR(SUM(VLOOKUP($BS38,'État & Plan d''action'!$B$6:$DB$1113,19,FALSE),VLOOKUP($BS38,'État & Plan d''action'!$B$6:$DB$1113,21,FALSE),VLOOKUP($BS38,'État & Plan d''action'!$B$6:$DB$1113,29,FALSE),VLOOKUP($BS38,'État & Plan d''action'!$B$6:$DB$1113,31,FALSE),VLOOKUP($BS38,'État & Plan d''action'!$B$6:$DB$1113,39,FALSE),VLOOKUP($BS38,'État & Plan d''action'!$B$6:$DB$1113,41,FALSE),VLOOKUP($BS38,'État & Plan d''action'!$B$6:$DB$1113,49,FALSE),VLOOKUP($BS38,'État & Plan d''action'!$B$6:$DB$1113,51,FALSE),VLOOKUP($BS38,'État & Plan d''action'!$B$6:$DB$1113,59,FALSE),VLOOKUP($BS38,'État & Plan d''action'!$B$6:$DB$1113,61,FALSE),VLOOKUP($BS38,'État & Plan d''action'!$B$6:$DB$1113,69,FALSE),VLOOKUP($BS38,'État & Plan d''action'!$B$6:$DB$1113,71,FALSE),VLOOKUP($BS38,'État & Plan d''action'!$B$6:$DB$1113,79,FALSE),VLOOKUP($BS38,'État & Plan d''action'!$B$6:$DB$1113,81,FALSE),VLOOKUP($BS38,'État & Plan d''action'!$B$6:$DB$1113,89,FALSE),VLOOKUP($BS38,'État & Plan d''action'!$B$6:$DB$1113,91,FALSE),VLOOKUP($BS38,'État & Plan d''action'!$B$6:$DB$1113,99,FALSE),VLOOKUP($BS38,'État & Plan d''action'!$B$6:$DB$1113,101,FALSE))/(VLOOKUP($BS38,'Données par municipalité'!$B$4:$N$1113,13,FALSE)),"") -> 0.7972132199 | DK38: Non disponible | DL38: 6 | DN38: 2 | DO38: 2 | DP38: 1 | DQ38: 2 | DR38: 5 | DS38: 0 | DT38: 0 | DU38: 2 | DV38: 5 | DW38: 1 | DX38: =IF(VLOOKUP($BS38,'État & Plan d''action'!$B$6:$DM$1113,108,FALSE)="","",VLOOKUP($BS38,'État & Plan d''action'!$B$6:$DM$1113,108,FALSE)) -> 2 | DY38: =IF(VLOOKUP($BS38,'État & Plan d''action'!$B$6:$DM$1113,109,FALSE)="","",VLOOKUP($BS38,'État & Plan d''action'!$B$6:$DM$1113,109,FALSE)) -> 0 | DZ38: =IF(VLOOKUP($BS38,'État & Plan d''action'!$B$6:$DM$1113,110,FALSE)="","",VLOOKUP($BS38,'État & Plan d''action'!$B$6:$DM$1113,110,FALSE)) -> 0 | EA38: 411 | EB38: =VLOOKUP(BS38,'[5]Données par municipalité'!$B$6:$F$1113,5,FALSE) -> 271 | EC38: =VLOOKUP($BS38,'Données par municipalité'!$B$6:$F$1113,5,FALSE) -> 260 | ED38: 1.233263378 | EE38: 3.951386716 | EF38: =IF(VLOOKUP(BS38,'Données par municipalité'!$B$6:$U$1113,7,FALSE)="","",VLOOKUP(BS38,'Données par municipalité'!$B$6:$U$1113,7,FALSE)) -> 4.550818556 | EG38: 1 | EH38: 0 | EI38: 0 | EJ38: 1 | EK38: 1 | EL38: 1 | EM38: =VLOOKUP($BS38,'État & Plan d''action'!$B$6:$DK$1113,112,FALSE) -> 5 | EN38: =VLOOKUP($BS38,'État & Plan d''action'!$B$6:$DK$1113,113,FALSE) ->  | EO38: =VLOOKUP($BS38,'État & Plan d''action'!$B$6:$DK$1113,114,FALSE) ->  | EP38: 1.678 | EQ38: 0 | ER38: 0 | ES38: 0 | ET38: 0 | EU38: 1.678 | EV38: 0 | EW38: 0 | EX38: 0 | EY38: 0 | EZ38: =IFERROR(SUM(VLOOKUP($BS38,'État & Plan d''action'!$B$6:$DB$1113,16,FALSE),VLOOKUP($BS38,'État & Plan d''action'!$B$6:$DB$1113,26,FALSE),VLOOKUP($BS38,'État & Plan d''action'!$B$6:$DB$1113,36,FALSE),VLOOKUP($BS38,'État & Plan d''action'!$B$6:$DB$1113,46,FALSE),VLOOKUP($BS38,'État & Plan d''action'!$B$6:$DB$1113,56,FALSE),VLOOKUP($BS38,'État & Plan d''action'!$B$6:$DB$1113,66,FALSE),VLOOKUP($BS38,'État & Plan d''action'!$B$6:$DB$1113,76,FALSE),VLOOKUP($BS38,'État & Plan d''action'!$B$6:$DB$1113,86,FALSE),VLOOKUP($BS38,'État & Plan d''action'!$B$6:$DB$1113,96,FALSE)),"") -> 12.655 | FA38: =IFERROR(SUM(VLOOKUP($BS38,'État & Plan d''action'!$B$6:$DB$1113,18,FALSE),VLOOKUP($BS38,'État & Plan d''action'!$B$6:$DB$1113,28,FALSE),VLOOKUP($BS38,'État & Plan d''action'!$B$6:$DB$1113,38,FALSE),VLOOKUP($BS38,'État & Plan d''action'!$B$6:$DB$1113,48,FALSE),VLOOKUP($BS38,'État & Plan d''action'!$B$6:$DB$1113,58,FALSE),VLOOKUP($BS38,'État & Plan d''action'!$B$6:$DB$1113,68,FALSE),VLOOKUP($BS38,'État & Plan d''action'!$B$6:$DB$1113,78,FALSE),VLOOKUP($BS38,'État & Plan d''action'!$B$6:$DB$1113,88,FALSE),VLOOKUP($BS38,'État & Plan d''action'!$B$6:$DB$1113,98,FALSE)),"") -> 0 | FB38: =IFERROR(SUM(VLOOKUP($BS38,'État & Plan d''action'!$B$6:$DB$1113,20,FALSE),VLOOKUP($BS38,'État & Plan d''action'!$B$6:$DB$1113,30,FALSE),VLOOKUP($BS38,'État & Plan d''action'!$B$6:$DB$1113,40,FALSE),VLOOKUP($BS38,'État & Plan d''action'!$B$6:$DB$1113,50,FALSE),VLOOKUP($BS38,'État & Plan d''action'!$B$6:$DB$1113,60,FALSE),VLOOKUP($BS38,'État & Plan d''action'!$B$6:$DB$1113,70,FALSE),VLOOKUP($BS38,'État & Plan d''action'!$B$6:$DB$1113,80,FALSE),VLOOKUP($BS38,'État & Plan d''action'!$B$6:$DB$1113,90,FALSE),VLOOKUP($BS38,'État & Plan d''action'!$B$6:$DB$1113,100,FALSE)),"") -> 57.701 | FC38: =IFERROR(SUM(VLOOKUP($BS38,'État & Plan d''action'!$B$6:$DB$1113,22,FALSE),VLOOKUP($BS38,'État & Plan d''action'!$B$6:$DB$1113,32,FALSE),VLOOKUP($BS38,'État & Plan d''action'!$B$6:$DB$1113,42,FALSE),VLOOKUP($BS38,'État & Plan d''action'!$B$6:$DB$1113,52,FALSE),VLOOKUP($BS38,'État & Plan d''action'!$B$6:$DB$1113,62,FALSE),VLOOKUP($BS38,'État & Plan d''action'!$B$6:$DB$1113,72,FALSE),VLOOKUP($BS38,'État & Plan d''action'!$B$6:$DB$1113,82,FALSE),VLOOKUP($BS38,'État & Plan d''action'!$B$6:$DB$1113,92,FALSE),VLOOKUP($BS38,'État & Plan d''action'!$B$6:$DB$1113,102,FALSE)),"") -> 0 | FD38: =IFERROR(SUM(VLOOKUP($BS38,'État & Plan d''action'!$B$6:$DB$1113,24,FALSE),VLOOKUP($BS38,'État & Plan d''action'!$B$6:$DB$1113,34,FALSE),VLOOKUP($BS38,'État & Plan d''action'!$B$6:$DB$1113,44,FALSE),VLOOKUP($BS38,'État & Plan d''action'!$B$6:$DB$1113,54,FALSE),VLOOKUP($BS38,'État & Plan d''action'!$B$6:$DB$1113,64,FALSE),VLOOKUP($BS38,'État & Plan d''action'!$B$6:$DB$1113,74,FALSE),VLOOKUP($BS38,'État & Plan d''action'!$B$6:$DB$1113,84,FALSE),VLOOKUP($BS38,'État & Plan d''action'!$B$6:$DB$1113,94,FALSE),VLOOKUP($BS38,'État & Plan d''action'!$B$6:$DB$1113,104,FALSE)),"") -> 0 | FE38: 56.69298246 | FF38: 55.21929825 | FG38: 62.12848297 | FH38: 7217
W39: dummy 2 | X39: 0 | Y39: 0 | Z39: 0 | AA39: 0 | BS39: 96005 | BT39: BAIE-TRINITÉ | BU39: 9 | BV39: non | BW39: non | BX39: non | BY39: non | BZ39: non | CA39: non | CB39: non | CC39: non | CD39: non | CE39: non | CF39: oui | CG39: oui | CH39: non | CI39: non | CJ39: non | CK39: non | CL39: non | CM39: oui | CN39: oui | CO39: =IF(VLOOKUP(BS39,'Données par municipalité'!$B$6:$E$1113,4,FALSE)="","non","oui") -> oui | CP39: 917.0550137 | CQ39: 832.2838306 | CW39: 1351 | CX39: =VLOOKUP(BS39,[5]Évolution!$BS$7:$CV$1115,30,FALSE) -> 1157 | CY39: =IF(VLOOKUP(BS39,'Données par municipalité'!$B$6:$F$1113,4,FALSE)="","",VLOOKUP(BS39,'Données par municipalité'!$B$6:$F$1113,4,FALSE)) -> 1045 | CZ39: Non disponible | DA39: 0 | DG39: 0 | DH39: 0 | DI39: =IFERROR(SUM(VLOOKUP($BS39,'État & Plan d''action'!$B$6:$DB$1113,18,FALSE),VLOOKUP($BS39,'État & Plan d''action'!$B$6:$DB$1113,20,FALSE),VLOOKUP($BS39,'État & Plan d''action'!$B$6:$DB$1113,28,FALSE),VLOOKUP($BS39,'État & Plan d''action'!$B$6:$DB$1113,30,FALSE),VLOOKUP($BS39,'État & Plan d''action'!$B$6:$DB$1113,38,FALSE),VLOOKUP($BS39,'État & Plan d''action'!$B$6:$DB$1113,40,FALSE),VLOOKUP($BS39,'État & Plan d''action'!$B$6:$DB$1113,48,FALSE),VLOOKUP($BS39,'État & Plan d''action'!$B$6:$DB$1113,50,FALSE),VLOOKUP($BS39,'État & Plan d''action'!$B$6:$DB$1113,58,FALSE),VLOOKUP($BS39,'État & Plan d''action'!$B$6:$DB$1113,60,FALSE),VLOOKUP($BS39,'État & Plan d''action'!$B$6:$DB$1113,68,FALSE),VLOOKUP($BS39,'État & Plan d''action'!$B$6:$DB$1113,70,FALSE),VLOOKUP($BS39,'État & Plan d''action'!$B$6:$DB$1113,78,FALSE),VLOOKUP($BS39,'État & Plan d''action'!$B$6:$DB$1113,80,FALSE),VLOOKUP($BS39,'État & Plan d''action'!$B$6:$DB$1113,88,FALSE),VLOOKUP($BS39,'État & Plan d''action'!$B$6:$DB$1113,90,FALSE),VLOOKUP($BS39,'État & Plan d''action'!$B$6:$DB$1113,98,FALSE),VLOOKUP($BS39,'État & Plan d''action'!$B$6:$DB$1113,100,FALSE))/(VLOOKUP($BS39,'Données par municipalité'!$B$4:$N$1113,13,FALSE)),"") -> 0.5555555556 | DJ39: =IFERROR(SUM(VLOOKUP($BS39,'État & Plan d''action'!$B$6:$DB$1113,19,FALSE),VLOOKUP($BS39,'État & Plan d''action'!$B$6:$DB$1113,21,FALSE),VLOOKUP($BS39,'État & Plan d''action'!$B$6:$DB$1113,29,FALSE),VLOOKUP($BS39,'État & Plan d''action'!$B$6:$DB$1113,31,FALSE),VLOOKUP($BS39,'État & Plan d''action'!$B$6:$DB$1113,39,FALSE),VLOOKUP($BS39,'État & Plan d''action'!$B$6:$DB$1113,41,FALSE),VLOOKUP($BS39,'État & Plan d''action'!$B$6:$DB$1113,49,FALSE),VLOOKUP($BS39,'État & Plan d''action'!$B$6:$DB$1113,51,FALSE),VLOOKUP($BS39,'État & Plan d''action'!$B$6:$DB$1113,59,FALSE),VLOOKUP($BS39,'État & Plan d''action'!$B$6:$DB$1113,61,FALSE),VLOOKUP($BS39,'État & Plan d''action'!$B$6:$DB$1113,69,FALSE),VLOOKUP($BS39,'État & Plan d''action'!$B$6:$DB$1113,71,FALSE),VLOOKUP($BS39,'État & Plan d''action'!$B$6:$DB$1113,79,FALSE),VLOOKUP($BS39,'État & Plan d''action'!$B$6:$DB$1113,81,FALSE),VLOOKUP($BS39,'État & Plan d''action'!$B$6:$DB$1113,89,FALSE),VLOOKUP($BS39,'État & Plan d''action'!$B$6:$DB$1113,91,FALSE),VLOOKUP($BS39,'État & Plan d''action'!$B$6:$DB$1113,99,FALSE),VLOOKUP($BS39,'État & Plan d''action'!$B$6:$DB$1113,101,FALSE))/(VLOOKUP($BS39,'Données par municipalité'!$B$4:$N$1113,13,FALSE)),"") -> 0.6060606061 | DK39: Non disponible | DL39: 0 | DN39: 0 | DO39: 0 | DR39: 2 | DS39: 0 | DT39: 0 | DU39: 0 | DV39: 0 | DW39: 1 | DX39: =IF(VLOOKUP($BS39,'État & Plan d''action'!$B$6:$DM$1113,108,FALSE)="","",VLOOKUP($BS39,'État & Plan d''action'!$B$6:$DM$1113,108,FALSE)) -> 0 | DY39: =IF(VLOOKUP($BS39,'État & Plan d''action'!$B$6:$DM$1113,109,FALSE)="","",VLOOKUP($BS39,'État & Plan d''action'!$B$6:$DM$1113,109,FALSE)) -> 2 | DZ39: =IF(VLOOKUP($BS39,'État & Plan d''action'!$B$6:$DM$1113,110,FALSE)="","",VLOOKUP($BS39,'État & Plan d''action'!$B$6:$DM$1113,110,FALSE)) -> 1 | EA39: 1040 | EB39: =VLOOKUP(BS39,'[5]Données par municipalité'!$B$6:$F$1113,5,FALSE) -> 308 | EC39: =VLOOKUP($BS39,'Données par municipalité'!$B$6:$F$1113,5,FALSE) -> 369 | ED39: 0.9505413745 | EE39: 2.513917515 | EF39: =IF(VLOOKUP(BS39,'Données par municipalité'!$B$6:$U$1113,7,FALSE)="","",VLOOKUP(BS39,'Données par municipalité'!$B$6:$U$1113,7,FALSE)) -> 2.319000512 | EG39: 3 | EH39: 0 | EI39: 0 | EJ39: 0 | EK39: 0 | EL39: 2 | EM39: =VLOOKUP($BS39,'État & Plan d''action'!$B$6:$DK$1113,112,FALSE) -> S.O. | EN39: =VLOOKUP($BS39,'État & Plan d''action'!$B$6:$DK$1113,113,FALSE) -> 1 | EO39: =VLOOKUP($BS39,'État & Plan d''action'!$B$6:$DK$1113,114,FALSE) -> 2 | EP39: 0 | EQ39: 0 | ER39: 0 | ES39: 0 | ET39: 0 | EU39: 0 | EV39: 0 | EW39: 0 | EX39: 0 | EY39: 0 | EZ39: =IFERROR(SUM(VLOOKUP($BS39,'État & Plan d''action'!$B$6:$DB$1113,16,FALSE),VLOOKUP($BS39,'État & Plan d''action'!$B$6:$DB$1113,26,FALSE),VLOOKUP($BS39,'État & Plan d''action'!$B$6:$DB$1113,36,FALSE),VLOOKUP($BS39,'État & Plan d''action'!$B$6:$DB$1113,46,FALSE),VLOOKUP($BS39,'État & Plan d''action'!$B$6:$DB$1113,56,FALSE),VLOOKUP($BS39,'État & Plan d''action'!$B$6:$DB$1113,66,FALSE),VLOOKUP($BS39,'État & Plan d''action'!$B$6:$DB$1113,76,FALSE),VLOOKUP($BS39,'État & Plan d''action'!$B$6:$DB$1113,86,FALSE),VLOOKUP($BS39,'État & Plan d''action'!$B$6:$DB$1113,96,FALSE)),"") -> 0 | FA39: =IFERROR(SUM(VLOOKUP($BS39,'État & Plan d''action'!$B$6:$DB$1113,18,FALSE),VLOOKUP($BS39,'État & Plan d''action'!$B$6:$DB$1113,28,FALSE),VLOOKUP($BS39,'État & Plan d''action'!$B$6:$DB$1113,38,FALSE),VLOOKUP($BS39,'État & Plan d''action'!$B$6:$DB$1113,48,FALSE),VLOOKUP($BS39,'État & Plan d''action'!$B$6:$DB$1113,58,FALSE),VLOOKUP($BS39,'État & Plan d''action'!$B$6:$DB$1113,68,FALSE),VLOOKUP($BS39,'État & Plan d''action'!$B$6:$DB$1113,78,FALSE),VLOOKUP($BS39,'État & Plan d''action'!$B$6:$DB$1113,88,FALSE),VLOOKUP($BS39,'État & Plan d''action'!$B$6:$DB$1113,98,FALSE)),"") -> 10 | FB39: =IFERROR(SUM(VLOOKUP($BS39,'État & Plan d''action'!$B$6:$DB$1113,20,FALSE),VLOOKUP($BS39,'État & Plan d''action'!$B$6:$DB$1113,30,FALSE),VLOOKUP($BS39,'État & Plan d''action'!$B$6:$DB$1113,40,FALSE),VLOOKUP($BS39,'État & Plan d''action'!$B$6:$DB$1113,50,FALSE),VLOOKUP($BS39,'État & Plan d''action'!$B$6:$DB$1113,60,FALSE),VLOOKUP($BS39,'État & Plan d''action'!$B$6:$DB$1113,70,FALSE),VLOOKUP($BS39,'État & Plan d''action'!$B$6:$DB$1113,80,FALSE),VLOOKUP($BS39,'État & Plan d''action'!$B$6:$DB$1113,90,FALSE),VLOOKUP($BS39,'État & Plan d''action'!$B$6:$DB$1113,100,FALSE)),"") -> 1 | FC39: =IFERROR(SUM(VLOOKUP($BS39,'État & Plan d''action'!$B$6:$DB$1113,22,FALSE),VLOOKUP($BS39,'État & Plan d''action'!$B$6:$DB$1113,32,FALSE),VLOOKUP($BS39,'État & Plan d''action'!$B$6:$DB$1113,42,FALSE),VLOOKUP($BS39,'État & Plan d''action'!$B$6:$DB$1113,52,FALSE),VLOOKUP($BS39,'État & Plan d''action'!$B$6:$DB$1113,62,FALSE),VLOOKUP($BS39,'État & Plan d''action'!$B$6:$DB$1113,72,FALSE),VLOOKUP($BS39,'État & Plan d''action'!$B$6:$DB$1113,82,FALSE),VLOOKUP($BS39,'État & Plan d''action'!$B$6:$DB$1113,92,FALSE),VLOOKUP($BS39,'État & Plan d''action'!$B$6:$DB$1113,102,FALSE)),"") -> 0 | FD39: =IFERROR(SUM(VLOOKUP($BS39,'État & Plan d''action'!$B$6:$DB$1113,24,FALSE),VLOOKUP($BS39,'État & Plan d''action'!$B$6:$DB$1113,34,FALSE),VLOOKUP($BS39,'État & Plan d''action'!$B$6:$DB$1113,44,FALSE),VLOOKUP($BS39,'État & Plan d''action'!$B$6:$DB$1113,54,FALSE),VLOOKUP($BS39,'État & Plan d''action'!$B$6:$DB$1113,64,FALSE),VLOOKUP($BS39,'État & Plan d''action'!$B$6:$DB$1113,74,FALSE),VLOOKUP($BS39,'État & Plan d''action'!$B$6:$DB$1113,84,FALSE),VLOOKUP($BS39,'État & Plan d''action'!$B$6:$DB$1113,94,FALSE),VLOOKUP($BS39,'État & Plan d''action'!$B$6:$DB$1113,104,FALSE)),"") -> 0 | FE39: 58.72972973 | FF39: 58 | FG39: 59 | FH39: 380
X40: =IF(X37=0,"ND",TEXT(X37,"# ##0")&IF(X37>1," fuites"," fuite")) -> ND fuites | Y40: =IF(Y37=0,"ND",TEXT(Y37,"# ##0")&IF(Y37>1," fuites"," fuite")) -> ND fuites | Z40: ND fuites | AA40: 8 407 fuites | BS40: 78050 | BT40: BARKMERE | BU40: 15 | BV40: oui | BW40: oui | BX40: oui | BY40: oui | BZ40: oui | CA40: oui | CB40: oui | CC40: oui | CD40: oui | CE40: oui | CF40: non | CG40: non | CH40: non | CI40: non | CJ40: non | CK40: non | CL40: non | CM40: non | CN40: non | CO40: =IF(VLOOKUP(BS40,'Données par municipalité'!$B$6:$E$1113,4,FALSE)="","non","oui") -> non | CX40: =VLOOKUP(BS40,[5]Évolution!$BS$7:$CV$1115,30,FALSE) ->  | CY40: =IF(VLOOKUP(BS40,'Données par municipalité'!$B$6:$F$1113,4,FALSE)="","",VLOOKUP(BS40,'Données par municipalité'!$B$6:$F$1113,4,FALSE)) ->  | CZ40: Non disponible | DI40: =IFERROR(SUM(VLOOKUP($BS40,'État & Plan d''action'!$B$6:$DB$1113,18,FALSE),VLOOKUP($BS40,'État & Plan d''action'!$B$6:$DB$1113,20,FALSE),VLOOKUP($BS40,'État & Plan d''action'!$B$6:$DB$1113,28,FALSE),VLOOKUP($BS40,'État & Plan d''action'!$B$6:$DB$1113,30,FALSE),VLOOKUP($BS40,'État & Plan d''action'!$B$6:$DB$1113,38,FALSE),VLOOKUP($BS40,'État & Plan d''action'!$B$6:$DB$1113,40,FALSE),VLOOKUP($BS40,'État & Plan d''action'!$B$6:$DB$1113,48,FALSE),VLOOKUP($BS40,'État & Plan d''action'!$B$6:$DB$1113,50,FALSE),VLOOKUP($BS40,'État & Plan d''action'!$B$6:$DB$1113,58,FALSE),VLOOKUP($BS40,'État & Plan d''action'!$B$6:$DB$1113,60,FALSE),VLOOKUP($BS40,'État & Plan d''action'!$B$6:$DB$1113,68,FALSE),VLOOKUP($BS40,'État & Plan d''action'!$B$6:$DB$1113,70,FALSE),VLOOKUP($BS40,'État & Plan d''action'!$B$6:$DB$1113,78,FALSE),VLOOKUP($BS40,'État & Plan d''action'!$B$6:$DB$1113,80,FALSE),VLOOKUP($BS40,'État & Plan d''action'!$B$6:$DB$1113,88,FALSE),VLOOKUP($BS40,'État & Plan d''action'!$B$6:$DB$1113,90,FALSE),VLOOKUP($BS40,'État & Plan d''action'!$B$6:$DB$1113,98,FALSE),VLOOKUP($BS40,'État & Plan d''action'!$B$6:$DB$1113,100,FALSE))/(VLOOKUP($BS40,'Données par municipalité'!$B$4:$N$1113,13,FALSE)),"") ->  | DJ40: =IFERROR(SUM(VLOOKUP($BS40,'État & Plan d''action'!$B$6:$DB$1113,19,FALSE),VLOOKUP($BS40,'État & Plan d''action'!$B$6:$DB$1113,21,FALSE),VLOOKUP($BS40,'État & Plan d''action'!$B$6:$DB$1113,29,FALSE),VLOOKUP($BS40,'État & Plan d''action'!$B$6:$DB$1113,31,FALSE),VLOOKUP($BS40,'État & Plan d''action'!$B$6:$DB$1113,39,FALSE),VLOOKUP($BS40,'État & Plan d''action'!$B$6:$DB$1113,41,FALSE),VLOOKUP($BS40,'État & Plan d''action'!$B$6:$DB$1113,49,FALSE),VLOOKUP($BS40,'État & Plan d''action'!$B$6:$DB$1113,51,FALSE),VLOOKUP($BS40,'État & Plan d''action'!$B$6:$DB$1113,59,FALSE),VLOOKUP($BS40,'État & Plan d''action'!$B$6:$DB$1113,61,FALSE),VLOOKUP($BS40,'État & Plan d''action'!$B$6:$DB$1113,69,FALSE),VLOOKUP($BS40,'État & Plan d''action'!$B$6:$DB$1113,71,FALSE),VLOOKUP($BS40,'État & Plan d''action'!$B$6:$DB$1113,79,FALSE),VLOOKUP($BS40,'État & Plan d''action'!$B$6:$DB$1113,81,FALSE),VLOOKUP($BS40,'État & Plan d''action'!$B$6:$DB$1113,89,FALSE),VLOOKUP($BS40,'État & Plan d''action'!$B$6:$DB$1113,91,FALSE),VLOOKUP($BS40,'État & Plan d''action'!$B$6:$DB$1113,99,FALSE),VLOOKUP($BS40,'État & Plan d''action'!$B$6:$DB$1113,101,FALSE))/(VLOOKUP($BS40,'Données par municipalité'!$B$4:$N$1113,13,FALSE)),"") ->  | DK40: Non disponible | DN40: 0 | DO40: 0 | DX40: =IF(VLOOKUP($BS40,'État & Plan d''action'!$B$6:$DM$1113,108,FALSE)="","",VLOOKUP($BS40,'État & Plan d''action'!$B$6:$DM$1113,108,FALSE)) ->  | DY40: =IF(VLOOKUP($BS40,'État & Plan d''action'!$B$6:$DM$1113,109,FALSE)="","",VLOOKUP($BS40,'État & Plan d''action'!$B$6:$DM$1113,109,FALSE)) ->  | DZ40: =IF(VLOOKUP($BS40,'État & Plan d''action'!$B$6:$DM$1113,110,FALSE)="","",VLOOKUP($BS40,'État & Plan d''action'!$B$6:$DM$1113,110,FALSE)) ->  | EB40: =VLOOKUP(BS40,'[5]Données par municipalité'!$B$6:$F$1113,5,FALSE) ->  | EC40: =VLOOKUP($BS40,'Données par municipalité'!$B$6:$F$1113,5,FALSE) -> 0 | EF40: =IF(VLOOKUP(BS40,'Données par municipalité'!$B$6:$U$1113,7,FALSE)="","",VLOOKUP(BS40,'Données par municipalité'!$B$6:$U$1113,7,FALSE)) ->  | EM40: =VLOOKUP($BS40,'État & Plan d''action'!$B$6:$DK$1113,112,FALSE) -> 0 | EN40: =VLOOKUP($BS40,'État & Plan d''action'!$B$6:$DK$1113,113,FALSE) -> 0 | EO40: =VLOOKUP($BS40,'État & Plan d''action'!$B$6:$DK$1113,114,FALSE) -> 0 | EZ40: =IFERROR(SUM(VLOOKUP($BS40,'État & Plan d''action'!$B$6:$DB$1113,16,FALSE),VLOOKUP($BS40,'État & Plan d''action'!$B$6:$DB$1113,26,FALSE),VLOOKUP($BS40,'État & Plan d''action'!$B$6:$DB$1113,36,FALSE),VLOOKUP($BS40,'État & Plan d''action'!$B$6:$DB$1113,46,FALSE),VLOOKUP($BS40,'État & Plan d''action'!$B$6:$DB$1113,56,FALSE),VLOOKUP($BS40,'État & Plan d''action'!$B$6:$DB$1113,66,FALSE),VLOOKUP($BS40,'État & Plan d''action'!$B$6:$DB$1113,76,FALSE),VLOOKUP($BS40,'État & Plan d''action'!$B$6:$DB$1113,86,FALSE),VLOOKUP($BS40,'État & Plan d''action'!$B$6:$DB$1113,96,FALSE)),"") -> 0 | FA40: =IFERROR(SUM(VLOOKUP($BS40,'État & Plan d''action'!$B$6:$DB$1113,18,FALSE),VLOOKUP($BS40,'État & Plan d''action'!$B$6:$DB$1113,28,FALSE),VLOOKUP($BS40,'État & Plan d''action'!$B$6:$DB$1113,38,FALSE),VLOOKUP($BS40,'État & Plan d''action'!$B$6:$DB$1113,48,FALSE),VLOOKUP($BS40,'État & Plan d''action'!$B$6:$DB$1113,58,FALSE),VLOOKUP($BS40,'État & Plan d''action'!$B$6:$DB$1113,68,FALSE),VLOOKUP($BS40,'État & Plan d''action'!$B$6:$DB$1113,78,FALSE),VLOOKUP($BS40,'État & Plan d''action'!$B$6:$DB$1113,88,FALSE),VLOOKUP($BS40,'État & Plan d''action'!$B$6:$DB$1113,98,FALSE)),"") -> 0 | FB40: =IFERROR(SUM(VLOOKUP($BS40,'État & Plan d''action'!$B$6:$DB$1113,20,FALSE),VLOOKUP($BS40,'État & Plan d''action'!$B$6:$DB$1113,30,FALSE),VLOOKUP($BS40,'État & Plan d''action'!$B$6:$DB$1113,40,FALSE),VLOOKUP($BS40,'État & Plan d''action'!$B$6:$DB$1113,50,FALSE),VLOOKUP($BS40,'État & Plan d''action'!$B$6:$DB$1113,60,FALSE),VLOOKUP($BS40,'État & Plan d''action'!$B$6:$DB$1113,70,FALSE),VLOOKUP($BS40,'État & Plan d''action'!$B$6:$DB$1113,80,FALSE),VLOOKUP($BS40,'État & Plan d''action'!$B$6:$DB$1113,90,FALSE),VLOOKUP($BS40,'État & Plan d''action'!$B$6:$DB$1113,100,FALSE)),"") -> 0 | FC40: =IFERROR(SUM(VLOOKUP($BS40,'État & Plan d''action'!$B$6:$DB$1113,22,FALSE),VLOOKUP($BS40,'État & Plan d''action'!$B$6:$DB$1113,32,FALSE),VLOOKUP($BS40,'État & Plan d''action'!$B$6:$DB$1113,42,FALSE),VLOOKUP($BS40,'État & Plan d''action'!$B$6:$DB$1113,52,FALSE),VLOOKUP($BS40,'État & Plan d''action'!$B$6:$DB$1113,62,FALSE),VLOOKUP($BS40,'État & Plan d''action'!$B$6:$DB$1113,72,FALSE),VLOOKUP($BS40,'État & Plan d''action'!$B$6:$DB$1113,82,FALSE),VLOOKUP($BS40,'État & Plan d''action'!$B$6:$DB$1113,92,FALSE),VLOOKUP($BS40,'État & Plan d''action'!$B$6:$DB$1113,102,FALSE)),"") -> 0 | FD40: =IFERROR(SUM(VLOOKUP($BS40,'État & Plan d''action'!$B$6:$DB$1113,24,FALSE),VLOOKUP($BS40,'État & Plan d''action'!$B$6:$DB$1113,34,FALSE),VLOOKUP($BS40,'État & Plan d''action'!$B$6:$DB$1113,44,FALSE),VLOOKUP($BS40,'État & Plan d''action'!$B$6:$DB$1113,54,FALSE),VLOOKUP($BS40,'État & Plan d''action'!$B$6:$DB$1113,64,FALSE),VLOOKUP($BS40,'État & Plan d''action'!$B$6:$DB$1113,74,FALSE),VLOOKUP($BS40,'État & Plan d''action'!$B$6:$DB$1113,84,FALSE),VLOOKUP($BS40,'État & Plan d''action'!$B$6:$DB$1113,94,FALSE),VLOOKUP($BS40,'État & Plan d''action'!$B$6:$DB$1113,104,FALSE)),"") -> 0 | FH40: 59
X41: =IF(X36=0,"ND",X36) -> ND | Y41: =IF(Y36=0,"ND",Y36) -> ND | Z41: ND | AA41: 0.8807061573 | BS41: 44045 | BT41: BARNSTON-OUEST | BU41: 5 | BV41: oui | BW41: oui | BX41: oui | BY41: oui | BZ41: oui | CA41: oui | CB41: oui | CC41: oui | CD41: oui | CE41: oui | CF41: non | CG41: non | CH41: non | CI41: non | CJ41: non | CK41: non | CL41: non | CM41: non | CN41: non | CO41: =IF(VLOOKUP(BS41,'Données par municipalité'!$B$6:$E$1113,4,FALSE)="","non","oui") -> non | CX41: =VLOOKUP(BS41,[5]Évolution!$BS$7:$CV$1115,30,FALSE) ->  | CY41: =IF(VLOOKUP(BS41,'Données par municipalité'!$B$6:$F$1113,4,FALSE)="","",VLOOKUP(BS41,'Données par municipalité'!$B$6:$F$1113,4,FALSE)) ->  | CZ41: Non disponible | DI41: =IFERROR(SUM(VLOOKUP($BS41,'État & Plan d''action'!$B$6:$DB$1113,18,FALSE),VLOOKUP($BS41,'État & Plan d''action'!$B$6:$DB$1113,20,FALSE),VLOOKUP($BS41,'État & Plan d''action'!$B$6:$DB$1113,28,FALSE),VLOOKUP($BS41,'État & Plan d''action'!$B$6:$DB$1113,30,FALSE),VLOOKUP($BS41,'État & Plan d''action'!$B$6:$DB$1113,38,FALSE),VLOOKUP($BS41,'État & Plan d''action'!$B$6:$DB$1113,40,FALSE),VLOOKUP($BS41,'État & Plan d''action'!$B$6:$DB$1113,48,FALSE),VLOOKUP($BS41,'État & Plan d''action'!$B$6:$DB$1113,50,FALSE),VLOOKUP($BS41,'État & Plan d''action'!$B$6:$DB$1113,58,FALSE),VLOOKUP($BS41,'État & Plan d''action'!$B$6:$DB$1113,60,FALSE),VLOOKUP($BS41,'État & Plan d''action'!$B$6:$DB$1113,68,FALSE),VLOOKUP($BS41,'État & Plan d''action'!$B$6:$DB$1113,70,FALSE),VLOOKUP($BS41,'État & Plan d''action'!$B$6:$DB$1113,78,FALSE),VLOOKUP($BS41,'État & Plan d''action'!$B$6:$DB$1113,80,FALSE),VLOOKUP($BS41,'État & Plan d''action'!$B$6:$DB$1113,88,FALSE),VLOOKUP($BS41,'État & Plan d''action'!$B$6:$DB$1113,90,FALSE),VLOOKUP($BS41,'État & Plan d''action'!$B$6:$DB$1113,98,FALSE),VLOOKUP($BS41,'État & Plan d''action'!$B$6:$DB$1113,100,FALSE))/(VLOOKUP($BS41,'Données par municipalité'!$B$4:$N$1113,13,FALSE)),"") ->  | DJ41: =IFERROR(SUM(VLOOKUP($BS41,'État & Plan d''action'!$B$6:$DB$1113,19,FALSE),VLOOKUP($BS41,'État & Plan d''action'!$B$6:$DB$1113,21,FALSE),VLOOKUP($BS41,'État & Plan d''action'!$B$6:$DB$1113,29,FALSE),VLOOKUP($BS41,'État & Plan d''action'!$B$6:$DB$1113,31,FALSE),VLOOKUP($BS41,'État & Plan d''action'!$B$6:$DB$1113,39,FALSE),VLOOKUP($BS41,'État & Plan d''action'!$B$6:$DB$1113,41,FALSE),VLOOKUP($BS41,'État & Plan d''action'!$B$6:$DB$1113,49,FALSE),VLOOKUP($BS41,'État & Plan d''action'!$B$6:$DB$1113,51,FALSE),VLOOKUP($BS41,'État & Plan d''action'!$B$6:$DB$1113,59,FALSE),VLOOKUP($BS41,'État & Plan d''action'!$B$6:$DB$1113,61,FALSE),VLOOKUP($BS41,'État & Plan d''action'!$B$6:$DB$1113,69,FALSE),VLOOKUP($BS41,'État & Plan d''action'!$B$6:$DB$1113,71,FALSE),VLOOKUP($BS41,'État & Plan d''action'!$B$6:$DB$1113,79,FALSE),VLOOKUP($BS41,'État & Plan d''action'!$B$6:$DB$1113,81,FALSE),VLOOKUP($BS41,'État & Plan d''action'!$B$6:$DB$1113,89,FALSE),VLOOKUP($BS41,'État & Plan d''action'!$B$6:$DB$1113,91,FALSE),VLOOKUP($BS41,'État & Plan d''action'!$B$6:$DB$1113,99,FALSE),VLOOKUP($BS41,'État & Plan d''action'!$B$6:$DB$1113,101,FALSE))/(VLOOKUP($BS41,'Données par municipalité'!$B$4:$N$1113,13,FALSE)),"") ->  | DK41: Non disponible | DN41: 0 | DO41: 0 | DX41: =IF(VLOOKUP($BS41,'État & Plan d''action'!$B$6:$DM$1113,108,FALSE)="","",VLOOKUP($BS41,'État & Plan d''action'!$B$6:$DM$1113,108,FALSE)) ->  | DY41: =IF(VLOOKUP($BS41,'État & Plan d''action'!$B$6:$DM$1113,109,FALSE)="","",VLOOKUP($BS41,'État & Plan d''action'!$B$6:$DM$1113,109,FALSE)) ->  | DZ41: =IF(VLOOKUP($BS41,'État & Plan d''action'!$B$6:$DM$1113,110,FALSE)="","",VLOOKUP($BS41,'État & Plan d''action'!$B$6:$DM$1113,110,FALSE)) ->  | EB41: =VLOOKUP(BS41,'[5]Données par municipalité'!$B$6:$F$1113,5,FALSE) ->  | EC41: =VLOOKUP($BS41,'Données par municipalité'!$B$6:$F$1113,5,FALSE) -> 0 | EF41: =IF(VLOOKUP(BS41,'Données par municipalité'!$B$6:$U$1113,7,FALSE)="","",VLOOKUP(BS41,'Données par municipalité'!$B$6:$U$1113,7,FALSE)) ->  | EM41: =VLOOKUP($BS41,'État & Plan d''action'!$B$6:$DK$1113,112,FALSE) -> 0 | EN41: =VLOOKUP($BS41,'État & Plan d''action'!$B$6:$DK$1113,113,FALSE) -> 0 | EO41: =VLOOKUP($BS41,'État & Plan d''action'!$B$6:$DK$1113,114,FALSE) -> 0 | EZ41: =IFERROR(SUM(VLOOKUP($BS41,'État & Plan d''action'!$B$6:$DB$1113,16,FALSE),VLOOKUP($BS41,'État & Plan d''action'!$B$6:$DB$1113,26,FALSE),VLOOKUP($BS41,'État & Plan d''action'!$B$6:$DB$1113,36,FALSE),VLOOKUP($BS41,'État & Plan d''action'!$B$6:$DB$1113,46,FALSE),VLOOKUP($BS41,'État & Plan d''action'!$B$6:$DB$1113,56,FALSE),VLOOKUP($BS41,'État & Plan d''action'!$B$6:$DB$1113,66,FALSE),VLOOKUP($BS41,'État & Plan d''action'!$B$6:$DB$1113,76,FALSE),VLOOKUP($BS41,'État & Plan d''action'!$B$6:$DB$1113,86,FALSE),VLOOKUP($BS41,'État & Plan d''action'!$B$6:$DB$1113,96,FALSE)),"") -> 0 | FA41: =IFERROR(SUM(VLOOKUP($BS41,'État & Plan d''action'!$B$6:$DB$1113,18,FALSE),VLOOKUP($BS41,'État & Plan d''action'!$B$6:$DB$1113,28,FALSE),VLOOKUP($BS41,'État & Plan d''action'!$B$6:$DB$1113,38,FALSE),VLOOKUP($BS41,'État & Plan d''action'!$B$6:$DB$1113,48,FALSE),VLOOKUP($BS41,'État & Plan d''action'!$B$6:$DB$1113,58,FALSE),VLOOKUP($BS41,'État & Plan d''action'!$B$6:$DB$1113,68,FALSE),VLOOKUP($BS41,'État & Plan d''action'!$B$6:$DB$1113,78,FALSE),VLOOKUP($BS41,'État & Plan d''action'!$B$6:$DB$1113,88,FALSE),VLOOKUP($BS41,'État & Plan d''action'!$B$6:$DB$1113,98,FALSE)),"") -> 0 | FB41: =IFERROR(SUM(VLOOKUP($BS41,'État & Plan d''action'!$B$6:$DB$1113,20,FALSE),VLOOKUP($BS41,'État & Plan d''action'!$B$6:$DB$1113,30,FALSE),VLOOKUP($BS41,'État & Plan d''action'!$B$6:$DB$1113,40,FALSE),VLOOKUP($BS41,'État & Plan d''action'!$B$6:$DB$1113,50,FALSE),VLOOKUP($BS41,'État & Plan d''action'!$B$6:$DB$1113,60,FALSE),VLOOKUP($BS41,'État & Plan d''action'!$B$6:$DB$1113,70,FALSE),VLOOKUP($BS41,'État & Plan d''action'!$B$6:$DB$1113,80,FALSE),VLOOKUP($BS41,'État & Plan d''action'!$B$6:$DB$1113,90,FALSE),VLOOKUP($BS41,'État & Plan d''action'!$B$6:$DB$1113,100,FALSE)),"") -> 0 | FC41: =IFERROR(SUM(VLOOKUP($BS41,'État & Plan d''action'!$B$6:$DB$1113,22,FALSE),VLOOKUP($BS41,'État & Plan d''action'!$B$6:$DB$1113,32,FALSE),VLOOKUP($BS41,'État & Plan d''action'!$B$6:$DB$1113,42,FALSE),VLOOKUP($BS41,'État & Plan d''action'!$B$6:$DB$1113,52,FALSE),VLOOKUP($BS41,'État & Plan d''action'!$B$6:$DB$1113,62,FALSE),VLOOKUP($BS41,'État & Plan d''action'!$B$6:$DB$1113,72,FALSE),VLOOKUP($BS41,'État & Plan d''action'!$B$6:$DB$1113,82,FALSE),VLOOKUP($BS41,'État & Plan d''action'!$B$6:$DB$1113,92,FALSE),VLOOKUP($BS41,'État & Plan d''action'!$B$6:$DB$1113,102,FALSE)),"") -> 0 | FD41: =IFERROR(SUM(VLOOKUP($BS41,'État & Plan d''action'!$B$6:$DB$1113,24,FALSE),VLOOKUP($BS41,'État & Plan d''action'!$B$6:$DB$1113,34,FALSE),VLOOKUP($BS41,'État & Plan d''action'!$B$6:$DB$1113,44,FALSE),VLOOKUP($BS41,'État & Plan d''action'!$B$6:$DB$1113,54,FALSE),VLOOKUP($BS41,'État & Plan d''action'!$B$6:$DB$1113,64,FALSE),VLOOKUP($BS41,'État & Plan d''action'!$B$6:$DB$1113,74,FALSE),VLOOKUP($BS41,'État & Plan d''action'!$B$6:$DB$1113,84,FALSE),VLOOKUP($BS41,'État & Plan d''action'!$B$6:$DB$1113,94,FALSE),VLOOKUP($BS41,'État & Plan d''action'!$B$6:$DB$1113,104,FALSE)),"") -> 0 | FH41: 570
BS42: 88022 | BT42: BARRAUTE | BU42: 8 | BV42: non | BW42: non | BX42: non | BY42: non | BZ42: non | CA42: non | CB42: non | CC42: non | CD42: non | CE42: non | CF42: oui | CG42: oui | CH42: oui | CI42: oui | CJ42: oui | CK42: oui | CL42: oui | CM42: oui | CN42: non | CO42: =IF(VLOOKUP(BS42,'Données par municipalité'!$B$6:$E$1113,4,FALSE)="","non","oui") -> non | CP42: 267.0096512 | CQ42: 339.087999 | CR42: 324.4582491 | CS42: 287.3105524 | CT42: 336.2958323 | CU42: 341.1102352 | CV42: 362.6599286 | CW42: 342 | CX42: =VLOOKUP(BS42,[5]Évolution!$BS$7:$CV$1115,30,FALSE) ->  | CY42: =IF(VLOOKUP(BS42,'Données par municipalité'!$B$6:$F$1113,4,FALSE)="","",VLOOKUP(BS42,'Données par municipalité'!$B$6:$F$1113,4,FALSE)) ->  | CZ42: Non disponible | DA42: 0.8 | DB42: 0.2 | DC42: 0.2 | DD42: 0.2 | DE42: 0.1 | DF42: 0.1 | DG42: 1 | DI42: =IFERROR(SUM(VLOOKUP($BS42,'État & Plan d''action'!$B$6:$DB$1113,18,FALSE),VLOOKUP($BS42,'État & Plan d''action'!$B$6:$DB$1113,20,FALSE),VLOOKUP($BS42,'État & Plan d''action'!$B$6:$DB$1113,28,FALSE),VLOOKUP($BS42,'État & Plan d''action'!$B$6:$DB$1113,30,FALSE),VLOOKUP($BS42,'État & Plan d''action'!$B$6:$DB$1113,38,FALSE),VLOOKUP($BS42,'État & Plan d''action'!$B$6:$DB$1113,40,FALSE),VLOOKUP($BS42,'État & Plan d''action'!$B$6:$DB$1113,48,FALSE),VLOOKUP($BS42,'État & Plan d''action'!$B$6:$DB$1113,50,FALSE),VLOOKUP($BS42,'État & Plan d''action'!$B$6:$DB$1113,58,FALSE),VLOOKUP($BS42,'État & Plan d''action'!$B$6:$DB$1113,60,FALSE),VLOOKUP($BS42,'État & Plan d''action'!$B$6:$DB$1113,68,FALSE),VLOOKUP($BS42,'État & Plan d''action'!$B$6:$DB$1113,70,FALSE),VLOOKUP($BS42,'État & Plan d''action'!$B$6:$DB$1113,78,FALSE),VLOOKUP($BS42,'État & Plan d''action'!$B$6:$DB$1113,80,FALSE),VLOOKUP($BS42,'État & Plan d''action'!$B$6:$DB$1113,88,FALSE),VLOOKUP($BS42,'État & Plan d''action'!$B$6:$DB$1113,90,FALSE),VLOOKUP($BS42,'État & Plan d''action'!$B$6:$DB$1113,98,FALSE),VLOOKUP($BS42,'État & Plan d''action'!$B$6:$DB$1113,100,FALSE))/(VLOOKUP($BS42,'Données par municipalité'!$B$4:$N$1113,13,FALSE)),"") ->  | DJ42: =IFERROR(SUM(VLOOKUP($BS42,'État & Plan d''action'!$B$6:$DB$1113,19,FALSE),VLOOKUP($BS42,'État & Plan d''action'!$B$6:$DB$1113,21,FALSE),VLOOKUP($BS42,'État & Plan d''action'!$B$6:$DB$1113,29,FALSE),VLOOKUP($BS42,'État & Plan d''action'!$B$6:$DB$1113,31,FALSE),VLOOKUP($BS42,'État & Plan d''action'!$B$6:$DB$1113,39,FALSE),VLOOKUP($BS42,'État & Plan d''action'!$B$6:$DB$1113,41,FALSE),VLOOKUP($BS42,'État & Plan d''action'!$B$6:$DB$1113,49,FALSE),VLOOKUP($BS42,'État & Plan d''action'!$B$6:$DB$1113,51,FALSE),VLOOKUP($BS42,'État & Plan d''action'!$B$6:$DB$1113,59,FALSE),VLOOKUP($BS42,'État & Plan d''action'!$B$6:$DB$1113,61,FALSE),VLOOKUP($BS42,'État & Plan d''action'!$B$6:$DB$1113,69,FALSE),VLOOKUP($BS42,'État & Plan d''action'!$B$6:$DB$1113,71,FALSE),VLOOKUP($BS42,'État & Plan d''action'!$B$6:$DB$1113,79,FALSE),VLOOKUP($BS42,'État & Plan d''action'!$B$6:$DB$1113,81,FALSE),VLOOKUP($BS42,'État & Plan d''action'!$B$6:$DB$1113,89,FALSE),VLOOKUP($BS42,'État & Plan d''action'!$B$6:$DB$1113,91,FALSE),VLOOKUP($BS42,'État & Plan d''action'!$B$6:$DB$1113,99,FALSE),VLOOKUP($BS42,'État & Plan d''action'!$B$6:$DB$1113,101,FALSE))/(VLOOKUP($BS42,'Données par municipalité'!$B$4:$N$1113,13,FALSE)),"") ->  | DK42: Non disponible | DN42: 0 | DO42: 0 | DP42: 2 | DQ42: 1 | DR42: 1 | DS42: 0 | DT42: 3 | DX42: =IF(VLOOKUP($BS42,'État & Plan d''action'!$B$6:$DM$1113,108,FALSE)="","",VLOOKUP($BS42,'État & Plan d''action'!$B$6:$DM$1113,108,FALSE)) ->  | DY42: =IF(VLOOKUP($BS42,'État & Plan d''action'!$B$6:$DM$1113,109,FALSE)="","",VLOOKUP($BS42,'État & Plan d''action'!$B$6:$DM$1113,109,FALSE)) ->  | DZ42: =IF(VLOOKUP($BS42,'État & Plan d''action'!$B$6:$DM$1113,110,FALSE)="","",VLOOKUP($BS42,'État & Plan d''action'!$B$6:$DM$1113,110,FALSE)) ->  | EA42: 239 | EB42: =VLOOKUP(BS42,'[5]Données par municipalité'!$B$6:$F$1113,5,FALSE) ->  | EC42: =VLOOKUP($BS42,'Données par municipalité'!$B$6:$F$1113,5,FALSE) -> 0 | ED42: 1.196445465 | EF42: =IF(VLOOKUP(BS42,'Données par municipalité'!$B$6:$U$1113,7,FALSE)="","",VLOOKUP(BS42,'Données par municipalité'!$B$6:$U$1113,7,FALSE)) ->  | EG42: 1 | EH42: 0 | EI42: 1 | EM42: =VLOOKUP($BS42,'État & Plan d''action'!$B$6:$DK$1113,112,FALSE) -> 0 | EN42: =VLOOKUP($BS42,'État & Plan d''action'!$B$6:$DK$1113,113,FALSE) -> 0 | EO42: =VLOOKUP($BS42,'État & Plan d''action'!$B$6:$DK$1113,114,FALSE) -> 0 | EP42: 15.724 | EQ42: 15.724 | ER42: 0 | ES42: 0 | ET42: 0 | EU42: 15.724 | EV42: 15.724 | EW42: 0 | EX42: 0 | EY42: 0 | EZ42: =IFERROR(SUM(VLOOKUP($BS42,'État & Plan d''action'!$B$6:$DB$1113,16,FALSE),VLOOKUP($BS42,'État & Plan d''action'!$B$6:$DB$1113,26,FALSE),VLOOKUP($BS42,'État & Plan d''action'!$B$6:$DB$1113,36,FALSE),VLOOKUP($BS42,'État & Plan d''action'!$B$6:$DB$1113,46,FALSE),VLOOKUP($BS42,'État & Plan d''action'!$B$6:$DB$1113,56,FALSE),VLOOKUP($BS42,'État & Plan d''action'!$B$6:$DB$1113,66,FALSE),VLOOKUP($BS42,'État & Plan d''action'!$B$6:$DB$1113,76,FALSE),VLOOKUP($BS42,'État & Plan d''action'!$B$6:$DB$1113,86,FALSE),VLOOKUP($BS42,'État & Plan d''action'!$B$6:$DB$1113,96,FALSE)),"") -> 0 | FA42: =IFERROR(SUM(VLOOKUP($BS42,'État & Plan d''action'!$B$6:$DB$1113,18,FALSE),VLOOKUP($BS42,'État & Plan d''action'!$B$6:$DB$1113,28,FALSE),VLOOKUP($BS42,'État & Plan d''action'!$B$6:$DB$1113,38,FALSE),VLOOKUP($BS42,'État & Plan d''action'!$B$6:$DB$1113,48,FALSE),VLOOKUP($BS42,'État & Plan d''action'!$B$6:$DB$1113,58,FALSE),VLOOKUP($BS42,'État & Plan d''action'!$B$6:$DB$1113,68,FALSE),VLOOKUP($BS42,'État & Plan d''action'!$B$6:$DB$1113,78,FALSE),VLOOKUP($BS42,'État & Plan d''action'!$B$6:$DB$1113,88,FALSE),VLOOKUP($BS42,'État & Plan d''action'!$B$6:$DB$1113,98,FALSE)),"") -> 0 | FB42: =IFERROR(SUM(VLOOKUP($BS42,'État & Plan d''action'!$B$6:$DB$1113,20,FALSE),VLOOKUP($BS42,'État & Plan d''action'!$B$6:$DB$1113,30,FALSE),VLOOKUP($BS42,'État & Plan d''action'!$B$6:$DB$1113,40,FALSE),VLOOKUP($BS42,'État & Plan d''action'!$B$6:$DB$1113,50,FALSE),VLOOKUP($BS42,'État & Plan d''action'!$B$6:$DB$1113,60,FALSE),VLOOKUP($BS42,'État & Plan d''action'!$B$6:$DB$1113,70,FALSE),VLOOKUP($BS42,'État & Plan d''action'!$B$6:$DB$1113,80,FALSE),VLOOKUP($BS42,'État & Plan d''action'!$B$6:$DB$1113,90,FALSE),VLOOKUP($BS42,'État & Plan d''action'!$B$6:$DB$1113,100,FALSE)),"") -> 0 | FC42: =IFERROR(SUM(VLOOKUP($BS42,'État & Plan d''action'!$B$6:$DB$1113,22,FALSE),VLOOKUP($BS42,'État & Plan d''action'!$B$6:$DB$1113,32,FALSE),VLOOKUP($BS42,'État & Plan d''action'!$B$6:$DB$1113,42,FALSE),VLOOKUP($BS42,'État & Plan d''action'!$B$6:$DB$1113,52,FALSE),VLOOKUP($BS42,'État & Plan d''action'!$B$6:$DB$1113,62,FALSE),VLOOKUP($BS42,'État & Plan d''action'!$B$6:$DB$1113,72,FALSE),VLOOKUP($BS42,'État & Plan d''action'!$B$6:$DB$1113,82,FALSE),VLOOKUP($BS42,'État & Plan d''action'!$B$6:$DB$1113,92,FALSE),VLOOKUP($BS42,'État & Plan d''action'!$B$6:$DB$1113,102,FALSE)),"") -> 0 | FD42: =IFERROR(SUM(VLOOKUP($BS42,'État & Plan d''action'!$B$6:$DB$1113,24,FALSE),VLOOKUP($BS42,'État & Plan d''action'!$B$6:$DB$1113,34,FALSE),VLOOKUP($BS42,'État & Plan d''action'!$B$6:$DB$1113,44,FALSE),VLOOKUP($BS42,'État & Plan d''action'!$B$6:$DB$1113,54,FALSE),VLOOKUP($BS42,'État & Plan d''action'!$B$6:$DB$1113,64,FALSE),VLOOKUP($BS42,'État & Plan d''action'!$B$6:$DB$1113,74,FALSE),VLOOKUP($BS42,'État & Plan d''action'!$B$6:$DB$1113,84,FALSE),VLOOKUP($BS42,'État & Plan d''action'!$B$6:$DB$1113,94,FALSE),VLOOKUP($BS42,'État & Plan d''action'!$B$6:$DB$1113,104,FALSE)),"") -> 0 | FE42: 59.52222222 | FH42: 2008
BS43: 37210 | BT43: BATISCAN | BU43: 4 | BV43: non | BW43: non | BX43: non | BY43: non | BZ43: non | CA43: non | CB43: non | CC43: non | CD43: non | CE43: non | CF43: oui | CG43: oui | CH43: oui | CI43: oui | CJ43: oui | CK43: non | CL43: oui | CM43: oui | CN43: non | CO43: =IF(VLOOKUP(BS43,'Données par municipalité'!$B$6:$E$1113,4,FALSE)="","non","oui") -> non | CP43: 603.0435629 | CQ43: 652.8668744 | CR43: 468.0277442 | CS43: 435.7914819 | CT43: 453.6860642 | CV43: 778.3411616 | CW43: 496 | CX43: =VLOOKUP(BS43,[5]Évolution!$BS$7:$CV$1115,30,FALSE) ->  | CY43: =IF(VLOOKUP(BS43,'Données par municipalité'!$B$6:$F$1113,4,FALSE)="","",VLOOKUP(BS43,'Données par municipalité'!$B$6:$F$1113,4,FALSE)) ->  | CZ43: Non disponible | DA43: 0 | DB43: 0 | DC43: 0 | DD43: 0 | DF43: 0 | DG43: 0.3752345216 | DI43: =IFERROR(SUM(VLOOKUP($BS43,'État & Plan d''action'!$B$6:$DB$1113,18,FALSE),VLOOKUP($BS43,'État & Plan d''action'!$B$6:$DB$1113,20,FALSE),VLOOKUP($BS43,'État & Plan d''action'!$B$6:$DB$1113,28,FALSE),VLOOKUP($BS43,'État & Plan d''action'!$B$6:$DB$1113,30,FALSE),VLOOKUP($BS43,'État & Plan d''action'!$B$6:$DB$1113,38,FALSE),VLOOKUP($BS43,'État & Plan d''action'!$B$6:$DB$1113,40,FALSE),VLOOKUP($BS43,'État & Plan d''action'!$B$6:$DB$1113,48,FALSE),VLOOKUP($BS43,'État & Plan d''action'!$B$6:$DB$1113,50,FALSE),VLOOKUP($BS43,'État & Plan d''action'!$B$6:$DB$1113,58,FALSE),VLOOKUP($BS43,'État & Plan d''action'!$B$6:$DB$1113,60,FALSE),VLOOKUP($BS43,'État & Plan d''action'!$B$6:$DB$1113,68,FALSE),VLOOKUP($BS43,'État & Plan d''action'!$B$6:$DB$1113,70,FALSE),VLOOKUP($BS43,'État & Plan d''action'!$B$6:$DB$1113,78,FALSE),VLOOKUP($BS43,'État & Plan d''action'!$B$6:$DB$1113,80,FALSE),VLOOKUP($BS43,'État & Plan d''action'!$B$6:$DB$1113,88,FALSE),VLOOKUP($BS43,'État & Plan d''action'!$B$6:$DB$1113,90,FALSE),VLOOKUP($BS43,'État & Plan d''action'!$B$6:$DB$1113,98,FALSE),VLOOKUP($BS43,'État & Plan d''action'!$B$6:$DB$1113,100,FALSE))/(VLOOKUP($BS43,'Données par municipalité'!$B$4:$N$1113,13,FALSE)),"") ->  | DJ43: =IFERROR(SUM(VLOOKUP($BS43,'État & Plan d''action'!$B$6:$DB$1113,19,FALSE),VLOOKUP($BS43,'État & Plan d''action'!$B$6:$DB$1113,21,FALSE),VLOOKUP($BS43,'État & Plan d''action'!$B$6:$DB$1113,29,FALSE),VLOOKUP($BS43,'État & Plan d''action'!$B$6:$DB$1113,31,FALSE),VLOOKUP($BS43,'État & Plan d''action'!$B$6:$DB$1113,39,FALSE),VLOOKUP($BS43,'État & Plan d''action'!$B$6:$DB$1113,41,FALSE),VLOOKUP($BS43,'État & Plan d''action'!$B$6:$DB$1113,49,FALSE),VLOOKUP($BS43,'État & Plan d''action'!$B$6:$DB$1113,51,FALSE),VLOOKUP($BS43,'État & Plan d''action'!$B$6:$DB$1113,59,FALSE),VLOOKUP($BS43,'État & Plan d''action'!$B$6:$DB$1113,61,FALSE),VLOOKUP($BS43,'État & Plan d''action'!$B$6:$DB$1113,69,FALSE),VLOOKUP($BS43,'État & Plan d''action'!$B$6:$DB$1113,71,FALSE),VLOOKUP($BS43,'État & Plan d''action'!$B$6:$DB$1113,79,FALSE),VLOOKUP($BS43,'État & Plan d''action'!$B$6:$DB$1113,81,FALSE),VLOOKUP($BS43,'État & Plan d''action'!$B$6:$DB$1113,89,FALSE),VLOOKUP($BS43,'État & Plan d''action'!$B$6:$DB$1113,91,FALSE),VLOOKUP($BS43,'État & Plan d''action'!$B$6:$DB$1113,99,FALSE),VLOOKUP($BS43,'État & Plan d''action'!$B$6:$DB$1113,101,FALSE))/(VLOOKUP($BS43,'Données par municipalité'!$B$4:$N$1113,13,FALSE)),"") ->  | DK43: Non disponible | DL43: 3 | DM43: 4 | DN43: 2 | DO43: 2 | DQ43: 4 | DR43: 0 | DS43: 2 | DT43: 4 | DX43: =IF(VLOOKUP($BS43,'État & Plan d''action'!$B$6:$DM$1113,108,FALSE)="","",VLOOKUP($BS43,'État & Plan d''action'!$B$6:$DM$1113,108,FALSE)) ->  | DY43: =IF(VLOOKUP($BS43,'État & Plan d''action'!$B$6:$DM$1113,109,FALSE)="","",VLOOKUP($BS43,'État & Plan d''action'!$B$6:$DM$1113,109,FALSE)) ->  | DZ43: =IF(VLOOKUP($BS43,'État & Plan d''action'!$B$6:$DM$1113,110,FALSE)="","",VLOOKUP($BS43,'État & Plan d''action'!$B$6:$DM$1113,110,FALSE)) ->  | EA43: 403 | EB43: =VLOOKUP(BS43,'[5]Données par municipalité'!$B$6:$F$1113,5,FALSE) ->  | EC43: =VLOOKUP($BS43,'Données par municipalité'!$B$6:$F$1113,5,FALSE) -> 0 | ED43: 1.598020517 | EF43: =IF(VLOOKUP(BS43,'Données par municipalité'!$B$6:$U$1113,7,FALSE)="","",VLOOKUP(BS43,'Données par municipalité'!$B$6:$U$1113,7,FALSE)) ->  | EG43: 0 | EH43: 3 | EI43: 3 | EM43: =VLOOKUP($BS43,'État & Plan d''action'!$B$6:$DK$1113,112,FALSE) -> 0 | EN43: =VLOOKUP($BS43,'État & Plan d''action'!$B$6:$DK$1113,113,FALSE) -> 0 | EO43: =VLOOKUP($BS43,'État & Plan d''action'!$B$6:$DK$1113,114,FALSE) -> 0 | EP43: 0 | EQ43: 0 | ER43: 10 | ES43: 0 | ET43: 3.5 | EU43: 0 | EV43: 0 | EW43: 10 | EX43: 0 | EY43: 3.5 | EZ43: =IFERROR(SUM(VLOOKUP($BS43,'État & Plan d''action'!$B$6:$DB$1113,16,FALSE),VLOOKUP($BS43,'État & Plan d''action'!$B$6:$DB$1113,26,FALSE),VLOOKUP($BS43,'État & Plan d''action'!$B$6:$DB$1113,36,FALSE),VLOOKUP($BS43,'État & Plan d''action'!$B$6:$DB$1113,46,FALSE),VLOOKUP($BS43,'État & Plan d''action'!$B$6:$DB$1113,56,FALSE),VLOOKUP($BS43,'État & Plan d''action'!$B$6:$DB$1113,66,FALSE),VLOOKUP($BS43,'État & Plan d''action'!$B$6:$DB$1113,76,FALSE),VLOOKUP($BS43,'État & Plan d''action'!$B$6:$DB$1113,86,FALSE),VLOOKUP($BS43,'État & Plan d''action'!$B$6:$DB$1113,96,FALSE)),"") -> 0 | FA43: =IFERROR(SUM(VLOOKUP($BS43,'État & Plan d''action'!$B$6:$DB$1113,18,FALSE),VLOOKUP($BS43,'État & Plan d''action'!$B$6:$DB$1113,28,FALSE),VLOOKUP($BS43,'État & Plan d''action'!$B$6:$DB$1113,38,FALSE),VLOOKUP($BS43,'État & Plan d''action'!$B$6:$DB$1113,48,FALSE),VLOOKUP($BS43,'État & Plan d''action'!$B$6:$DB$1113,58,FALSE),VLOOKUP($BS43,'État & Plan d''action'!$B$6:$DB$1113,68,FALSE),VLOOKUP($BS43,'État & Plan d''action'!$B$6:$DB$1113,78,FALSE),VLOOKUP($BS43,'État & Plan d''action'!$B$6:$DB$1113,88,FALSE),VLOOKUP($BS43,'État & Plan d''action'!$B$6:$DB$1113,98,FALSE)),"") -> 0 | FB43: =IFERROR(SUM(VLOOKUP($BS43,'État & Plan d''action'!$B$6:$DB$1113,20,FALSE),VLOOKUP($BS43,'État & Plan d''action'!$B$6:$DB$1113,30,FALSE),VLOOKUP($BS43,'État & Plan d''action'!$B$6:$DB$1113,40,FALSE),VLOOKUP($BS43,'État & Plan d''action'!$B$6:$DB$1113,50,FALSE),VLOOKUP($BS43,'État & Plan d''action'!$B$6:$DB$1113,60,FALSE),VLOOKUP($BS43,'État & Plan d''action'!$B$6:$DB$1113,70,FALSE),VLOOKUP($BS43,'État & Plan d''action'!$B$6:$DB$1113,80,FALSE),VLOOKUP($BS43,'État & Plan d''action'!$B$6:$DB$1113,90,FALSE),VLOOKUP($BS43,'État & Plan d''action'!$B$6:$DB$1113,100,FALSE)),"") -> 0 | FC43: =IFERROR(SUM(VLOOKUP($BS43,'État & Plan d''action'!$B$6:$DB$1113,22,FALSE),VLOOKUP($BS43,'État & Plan d''action'!$B$6:$DB$1113,32,FALSE),VLOOKUP($BS43,'État & Plan d''action'!$B$6:$DB$1113,42,FALSE),VLOOKUP($BS43,'État & Plan d''action'!$B$6:$DB$1113,52,FALSE),VLOOKUP($BS43,'État & Plan d''action'!$B$6:$DB$1113,62,FALSE),VLOOKUP($BS43,'État & Plan d''action'!$B$6:$DB$1113,72,FALSE),VLOOKUP($BS43,'État & Plan d''action'!$B$6:$DB$1113,82,FALSE),VLOOKUP($BS43,'État & Plan d''action'!$B$6:$DB$1113,92,FALSE),VLOOKUP($BS43,'État & Plan d''action'!$B$6:$DB$1113,102,FALSE)),"") -> 0 | FD43: =IFERROR(SUM(VLOOKUP($BS43,'État & Plan d''action'!$B$6:$DB$1113,24,FALSE),VLOOKUP($BS43,'État & Plan d''action'!$B$6:$DB$1113,34,FALSE),VLOOKUP($BS43,'État & Plan d''action'!$B$6:$DB$1113,44,FALSE),VLOOKUP($BS43,'État & Plan d''action'!$B$6:$DB$1113,54,FALSE),VLOOKUP($BS43,'État & Plan d''action'!$B$6:$DB$1113,64,FALSE),VLOOKUP($BS43,'État & Plan d''action'!$B$6:$DB$1113,74,FALSE),VLOOKUP($BS43,'État & Plan d''action'!$B$6:$DB$1113,84,FALSE),VLOOKUP($BS43,'État & Plan d''action'!$B$6:$DB$1113,94,FALSE),VLOOKUP($BS43,'État & Plan d''action'!$B$6:$DB$1113,104,FALSE)),"") -> 0 | FE43: 38 | FH43: 905
BS44: 66107 | BT44: BEACONSFIELD | BU44: 6 | BV44: non | BW44: non | BX44: non | BY44: non | BZ44: non | CA44: non | CB44: non | CC44: non | CD44: non | CE44: non | CF44: oui | CG44: non | CH44: non | CI44: oui | CJ44: oui | CK44: oui | CL44: oui | CM44: oui | CN44: non | CO44: =IF(VLOOKUP(BS44,'Données par municipalité'!$B$6:$E$1113,4,FALSE)="","non","oui") -> non | CP44: 1077.821637 | CS44: 1143.00881 | CT44: 548.4040133 | CU44: 572 | CV44: 600.3350024 | CW44: 388 | CX44: =VLOOKUP(BS44,[5]Évolution!$BS$7:$CV$1115,30,FALSE) ->  | CY44: =IF(VLOOKUP(BS44,'Données par municipalité'!$B$6:$F$1113,4,FALSE)="","",VLOOKUP(BS44,'Données par municipalité'!$B$6:$F$1113,4,FALSE)) ->  | CZ44: Non disponible | DC44: 3 | DD44: 3 | DE44: 3 | DF44: 3 | DG44: 3 | DI44: =IFERROR(SUM(VLOOKUP($BS44,'État & Plan d''action'!$B$6:$DB$1113,18,FALSE),VLOOKUP($BS44,'État & Plan d''action'!$B$6:$DB$1113,20,FALSE),VLOOKUP($BS44,'État & Plan d''action'!$B$6:$DB$1113,28,FALSE),VLOOKUP($BS44,'État & Plan d''action'!$B$6:$DB$1113,30,FALSE),VLOOKUP($BS44,'État & Plan d''action'!$B$6:$DB$1113,38,FALSE),VLOOKUP($BS44,'État & Plan d''action'!$B$6:$DB$1113,40,FALSE),VLOOKUP($BS44,'État & Plan d''action'!$B$6:$DB$1113,48,FALSE),VLOOKUP($BS44,'État & Plan d''action'!$B$6:$DB$1113,50,FALSE),VLOOKUP($BS44,'État & Plan d''action'!$B$6:$DB$1113,58,FALSE),VLOOKUP($BS44,'État & Plan d''action'!$B$6:$DB$1113,60,FALSE),VLOOKUP($BS44,'État & Plan d''action'!$B$6:$DB$1113,68,FALSE),VLOOKUP($BS44,'État & Plan d''action'!$B$6:$DB$1113,70,FALSE),VLOOKUP($BS44,'État & Plan d''action'!$B$6:$DB$1113,78,FALSE),VLOOKUP($BS44,'État & Plan d''action'!$B$6:$DB$1113,80,FALSE),VLOOKUP($BS44,'État & Plan d''action'!$B$6:$DB$1113,88,FALSE),VLOOKUP($BS44,'État & Plan d''action'!$B$6:$DB$1113,90,FALSE),VLOOKUP($BS44,'État & Plan d''action'!$B$6:$DB$1113,98,FALSE),VLOOKUP($BS44,'État & Plan d''action'!$B$6:$DB$1113,100,FALSE))/(VLOOKUP($BS44,'Données par municipalité'!$B$4:$N$1113,13,FALSE)),"") ->  | DJ44: =IFERROR(SUM(VLOOKUP($BS44,'État & Plan d''action'!$B$6:$DB$1113,19,FALSE),VLOOKUP($BS44,'État & Plan d''action'!$B$6:$DB$1113,21,FALSE),VLOOKUP($BS44,'État & Plan d''action'!$B$6:$DB$1113,29,FALSE),VLOOKUP($BS44,'État & Plan d''action'!$B$6:$DB$1113,31,FALSE),VLOOKUP($BS44,'État & Plan d''action'!$B$6:$DB$1113,39,FALSE),VLOOKUP($BS44,'État & Plan d''action'!$B$6:$DB$1113,41,FALSE),VLOOKUP($BS44,'État & Plan d''action'!$B$6:$DB$1113,49,FALSE),VLOOKUP($BS44,'État & Plan d''action'!$B$6:$DB$1113,51,FALSE),VLOOKUP($BS44,'État & Plan d''action'!$B$6:$DB$1113,59,FALSE),VLOOKUP($BS44,'État & Plan d''action'!$B$6:$DB$1113,61,FALSE),VLOOKUP($BS44,'État & Plan d''action'!$B$6:$DB$1113,69,FALSE),VLOOKUP($BS44,'État & Plan d''action'!$B$6:$DB$1113,71,FALSE),VLOOKUP($BS44,'État & Plan d''action'!$B$6:$DB$1113,79,FALSE),VLOOKUP($BS44,'État & Plan d''action'!$B$6:$DB$1113,81,FALSE),VLOOKUP($BS44,'État & Plan d''action'!$B$6:$DB$1113,89,FALSE),VLOOKUP($BS44,'État & Plan d''action'!$B$6:$DB$1113,91,FALSE),VLOOKUP($BS44,'État & Plan d''action'!$B$6:$DB$1113,99,FALSE),VLOOKUP($BS44,'État & Plan d''action'!$B$6:$DB$1113,101,FALSE))/(VLOOKUP($BS44,'Données par municipalité'!$B$4:$N$1113,13,FALSE)),"") ->  | DK44: Non disponible | DL44: 52 | DN44: 44 | DO44: 41 | DP44: 40 | DQ44: 30 | DR44: 32 | DS44: 4 | DT44: 3 | DX44: =IF(VLOOKUP($BS44,'État & Plan d''action'!$B$6:$DM$1113,108,FALSE)="","",VLOOKUP($BS44,'État & Plan d''action'!$B$6:$DM$1113,108,FALSE)) ->  | DY44: =IF(VLOOKUP($BS44,'État & Plan d''action'!$B$6:$DM$1113,109,FALSE)="","",VLOOKUP($BS44,'État & Plan d''action'!$B$6:$DM$1113,109,FALSE)) ->  | DZ44: =IF(VLOOKUP($BS44,'État & Plan d''action'!$B$6:$DM$1113,110,FALSE)="","",VLOOKUP($BS44,'État & Plan d''action'!$B$6:$DM$1113,110,FALSE)) ->  | EA44: 266 | EB44: =VLOOKUP(BS44,'[5]Données par municipalité'!$B$6:$F$1113,5,FALSE) ->  | EC44: =VLOOKUP($BS44,'Données par municipalité'!$B$6:$F$1113,5,FALSE) -> 0 | ED44: 4.310250388 | EF44: =IF(VLOOKUP(BS44,'Données par municipalité'!$B$6:$U$1113,7,FALSE)="","",VLOOKUP(BS44,'Données par municipalité'!$B$6:$U$1113,7,FALSE)) ->  | EG44: 2 | EH44: 2 | EI44: 7 | EM44: =VLOOKUP($BS44,'État & Plan d''action'!$B$6:$DK$1113,112,FALSE) -> 0 | EN44: =VLOOKUP($BS44,'État & Plan d''action'!$B$6:$DK$1113,113,FALSE) -> 0 | EO44: =VLOOKUP($BS44,'État & Plan d''action'!$B$6:$DK$1113,114,FALSE) -> 0 | EP44: 0 | EQ44: 379.866 | ER44: 0 | ES44: 0 | ET44: 0 | EU44: 0 | EV44: 379.866 | EW44: 0 | EX44: 0 | EY44: 0 | EZ44: =IFERROR(SUM(VLOOKUP($BS44,'État & Plan d''action'!$B$6:$DB$1113,16,FALSE),VLOOKUP($BS44,'État & Plan d''action'!$B$6:$DB$1113,26,FALSE),VLOOKUP($BS44,'État & Plan d''action'!$B$6:$DB$1113,36,FALSE),VLOOKUP($BS44,'État & Plan d''action'!$B$6:$DB$1113,46,FALSE),VLOOKUP($BS44,'État & Plan d''action'!$B$6:$DB$1113,56,FALSE),VLOOKUP($BS44,'État & Plan d''action'!$B$6:$DB$1113,66,FALSE),VLOOKUP($BS44,'État & Plan d''action'!$B$6:$DB$1113,76,FALSE),VLOOKUP($BS44,'État & Plan d''action'!$B$6:$DB$1113,86,FALSE),VLOOKUP($BS44,'État & Plan d''action'!$B$6:$DB$1113,96,FALSE)),"") -> 0 | FA44: =IFERROR(SUM(VLOOKUP($BS44,'État & Plan d''action'!$B$6:$DB$1113,18,FALSE),VLOOKUP($BS44,'État & Plan d''action'!$B$6:$DB$1113,28,FALSE),VLOOKUP($BS44,'État & Plan d''action'!$B$6:$DB$1113,38,FALSE),VLOOKUP($BS44,'État & Plan d''action'!$B$6:$DB$1113,48,FALSE),VLOOKUP($BS44,'État & Plan d''action'!$B$6:$DB$1113,58,FALSE),VLOOKUP($BS44,'État & Plan d''action'!$B$6:$DB$1113,68,FALSE),VLOOKUP($BS44,'État & Plan d''action'!$B$6:$DB$1113,78,FALSE),VLOOKUP($BS44,'État & Plan d''action'!$B$6:$DB$1113,88,FALSE),VLOOKUP($BS44,'État & Plan d''action'!$B$6:$DB$1113,98,FALSE)),"") -> 0 | FB44: =IFERROR(SUM(VLOOKUP($BS44,'État & Plan d''action'!$B$6:$DB$1113,20,FALSE),VLOOKUP($BS44,'État & Plan d''action'!$B$6:$DB$1113,30,FALSE),VLOOKUP($BS44,'État & Plan d''action'!$B$6:$DB$1113,40,FALSE),VLOOKUP($BS44,'État & Plan d''action'!$B$6:$DB$1113,50,FALSE),VLOOKUP($BS44,'État & Plan d''action'!$B$6:$DB$1113,60,FALSE),VLOOKUP($BS44,'État & Plan d''action'!$B$6:$DB$1113,70,FALSE),VLOOKUP($BS44,'État & Plan d''action'!$B$6:$DB$1113,80,FALSE),VLOOKUP($BS44,'État & Plan d''action'!$B$6:$DB$1113,90,FALSE),VLOOKUP($BS44,'État & Plan d''action'!$B$6:$DB$1113,100,FALSE)),"") -> 0 | FC44: =IFERROR(SUM(VLOOKUP($BS44,'État & Plan d''action'!$B$6:$DB$1113,22,FALSE),VLOOKUP($BS44,'État & Plan d''action'!$B$6:$DB$1113,32,FALSE),VLOOKUP($BS44,'État & Plan d''action'!$B$6:$DB$1113,42,FALSE),VLOOKUP($BS44,'État & Plan d''action'!$B$6:$DB$1113,52,FALSE),VLOOKUP($BS44,'État & Plan d''action'!$B$6:$DB$1113,62,FALSE),VLOOKUP($BS44,'État & Plan d''action'!$B$6:$DB$1113,72,FALSE),VLOOKUP($BS44,'État & Plan d''action'!$B$6:$DB$1113,82,FALSE),VLOOKUP($BS44,'État & Plan d''action'!$B$6:$DB$1113,92,FALSE),VLOOKUP($BS44,'État & Plan d''action'!$B$6:$DB$1113,102,FALSE)),"") -> 0 | FD44: =IFERROR(SUM(VLOOKUP($BS44,'État & Plan d''action'!$B$6:$DB$1113,24,FALSE),VLOOKUP($BS44,'État & Plan d''action'!$B$6:$DB$1113,34,FALSE),VLOOKUP($BS44,'État & Plan d''action'!$B$6:$DB$1113,44,FALSE),VLOOKUP($BS44,'État & Plan d''action'!$B$6:$DB$1113,54,FALSE),VLOOKUP($BS44,'État & Plan d''action'!$B$6:$DB$1113,64,FALSE),VLOOKUP($BS44,'État & Plan d''action'!$B$6:$DB$1113,74,FALSE),VLOOKUP($BS44,'État & Plan d''action'!$B$6:$DB$1113,84,FALSE),VLOOKUP($BS44,'État & Plan d''action'!$B$6:$DB$1113,94,FALSE),VLOOKUP($BS44,'État & Plan d''action'!$B$6:$DB$1113,104,FALSE)),"") -> 0 | FE44: 62.74509804 | FH44: 19942
